Workbook

Sheet LevelbattleConfig
A1: ID | C1: Group | J1: awardDrop | K1: awardNum | L1: combatTime | M1: combatType | N1: MonsterGroupTruePower | O1: MonsterGroupPower
A2: int | C2: int[] | J2: int[] | K2: int[] | L2: float | M2: int | N2: int | O2: int
A4: 战斗组ID | B4: 使用位置 | C4: 包含的组ID （就是第二页的ID) | D4: 战斗组ID1 | E4: 战斗组ID2 | F4: 战斗组ID3 | J4: 奖励随机掉落组 | K4: 奖励道具数量 | L4: 用时(秒） | M4: 玩法类型 1.正常 2.追逐 3.站桩 4.保卫水晶 5.至少完成x波 （406260） 6.至少坚持x秒 （406261） | N4: 怪物战斗组修为（实际） | O4: 怪物战斗组修为（表现） | P4: 评分修正 例如3人参战填75% | R4: 怪物等级上浮
A5: 100001 | B5: 主线1-1 | C5: =CONCATENATE(D5,IF(E5="","",";"),E5,IF(F5="","",";"),F5) -> 100001 | D5: =A5 -> 100001 | J5: -1 | K5: -1 | L5: 120 | M5: 1 | N5: 100 | O5: 100 | Q5: 1-1
A6: 100002 | B6: 主线1-1 | C6: 100002 | D6: =A6 -> 100002 | J6: -1 | K6: -1 | L6: 120 | M6: 1 | N6: 100 | O6: 100 | Q6: 1-1
A7: 100003 | B7: 主线1-1 | C7: 100003 | D7: 100003 | J7: -1 | K7: -1 | L7: 120 | M7: 1 | N7: 100 | O7: 100 | Q7: 1-1 | R7: 1

Sheet GroupConfig
A1: ID | C1: GroupMonsterLevel | D1: GroupMonster
A2: int | C2: int | D2: int[]
A4: 组ID | B4: 常用阵容ID | C4: 具体怪物等级 -1代表跟随玩家等级 | D4: 每组具体怪 | E4: 战斗时长 | F4: 战力参数
A5: 100001 | B5: 100001 | C5: -1 | D5: 9101 | E5: =IF($B5="","",VLOOKUP($B5,阵容配置工具!$A:$CA,74,FALSE)) -> 120 | F5: =IF($B5="",100,VLOOKUP($B5,阵容配置工具!$A:$CA,76,FALSE)) -> 100
A6: 100002 | B6: 100002 | C6: -1 | D6: 9102 | E6: =IF($B6="","",VLOOKUP($B6,阵容配置工具!$A:$CA,74,FALSE)) -> 120 | F6: =IF($B6="",100,VLOOKUP($B6,阵容配置工具!$A:$CA,76,FALSE)) -> 100
A7: 100003 | B7: 100003 | C7: -1 | D7: 9103 | E7: =IF($B7="","",VLOOKUP($B7,阵容配置工具!$A:$CA,74,FALSE)) -> 120 | F7: =IF($B7="",100,VLOOKUP($B7,阵容配置工具!$A:$CA,76,FALSE)) -> 100

Sheet 阵容配置工具
A1: 编号 | B1: 类型 | C1: 进阶1 | D1: 进阶2 | E1: 进阶3 | F1: 进阶4 | G1: 进阶5 | H1: 进阶6 | I1: 进阶7 | J1: 进阶8 | K1: 进阶9 | L1: 进阶10 | N1: 怪物1 | O1: 怪物2 | P1: 怪物3 | Q1: 怪物4 | R1: 怪物5 | S1: 怪物6 | T1: 怪物7 | U1: 怪物8 | V1: 怪物9 | W1: 怪物10 | X1: 总cost | Y1: 高度1 | Z1: 高度2 | AA1: 高度3 | AB1: 高度4 | AC1: 高度5 | AD1: 高度6 | AE1: 高度7 | AF1: 高度8 | AG1: 高度9 | AH1: 高度10 | AI1: 默认间隔 | AJ1: 初始 偏移 | AK1: 偏移2 | AL1: 偏移3 | AM1: 偏移4 | AN1: 偏移5 | AO1: 偏移6 | AP1: 偏移7 | AQ1: 偏移8 | AR1: 偏移9 | AS1: 偏移10 | AU1: 高度1 | AV1: 高度2 | AW1: 高度3 | AX1: 高度4 | AY1: 高度5 | AZ1: 高度6 | BA1: 高度7 | BB1: 高度8 | BC1: 高度9 | BD1: 高度10 | BE1: 默认间隔 | BF1: 间隔1 | BG1: 间隔2 | BH1: 间隔3 | BI1: 间隔4 | BJ1: 间隔5 | BK1: 间隔6 | BL1: 间隔7 | BM1: 间隔8 | BN1: 间隔9 | BO1: 间隔10 | BQ1: 具体怪 | BR1: 高度偏移 | BS1: x偏移 | BT1: 时间偏移 | BU1: 精英光环 | BV1: 战斗时长 | BW1: 难度参数 | BX1: 战力参数 | BY1: IF(X2<16,100,MIN(ROUND(100+(X2-15)*1.5,0),115))
A2: 211211 | B2: =VLOOKUP(A2,LevelbattleConfig!$A:$B,2,FALSE)&VLOOKUP(A2,LevelbattleConfig!$A:$B,3,FALSE) ->  | N2: 100008 | O2: 100008 | P2: 100009 | Q2: 100000 | R2: 100000 | S2: 100000 | T2: 100008 | U2: 100008 | V2: 100008 | X2: =SUM(IF(N2="",0,VLOOKUP(N2,怪物表!$A:$D,3,FALSE)),IF(O2="",0,VLOOKUP(O2,怪物表!$A:$D,3,FALSE)),IF(P2="",0,VLOOKUP(P2,怪物表!$A:$D,3,FALSE)),IF(Q2="",0,VLOOKUP(Q2,怪物表!$A:$D,3,FALSE)),IF(R2="",0,VLOOKUP(R2,怪物表!$A:$D,3,FALSE)),IF(S2="",0,VLOOKUP(S2,怪物表!$A:$D,3,FALSE)),IF(T2="",0,VLOOKUP(T2,怪物表!$A:$D,3,FALSE)),IF(U2="",0,VLOOKUP(U2,怪物表!$A:$D,3,FALSE)),IF(V2="",0,VLOOKUP(V2,怪物表!$A:$D,3,FALSE)),IF(W2="",0,VLOOKUP(W2,怪物表!$A:$D,3,FALSE))) -> 18 | Y2: =IF(N2="","",IF(VLOOKUP(N2,怪物表!$A:$D,4,FALSE)=1,2,0)) -> 2 | Z2: =IF(O2="","",IF(VLOOKUP(O2,怪物表!$A:$D,4,FALSE)=1,2,0)) -> 2 | AA2: =IF(P2="","",IF(VLOOKUP(P2,怪物表!$A:$D,4,FALSE)=1,2,0)) -> 2 | AB2: =IF(Q2="","",IF(VLOOKUP(Q2,怪物表!$A:$D,4,FALSE)=1,2,0)) -> 0 | AC2: =IF(R2="","",IF(VLOOKUP(R2,怪物表!$A:$D,4,FALSE)=1,2,0)) -> 0 | AD2: =IF(S2="","",IF(VLOOKUP(S2,怪物表!$A:$D,4,FALSE)=1,2,0)) -> 0 | AE2: =IF(T2="","",IF(VLOOKUP(T2,怪物表!$A:$D,4,FALSE)=1,2,0)) -> 2 | AF2: =IF(U2="","",IF(VLOOKUP(U2,怪物表!$A:$D,4,FALSE)=1,2,0)) -> 2 | AG2: =IF(V2="","",IF(VLOOKUP(V2,怪物表!$A:$D,4,FALSE)=1,2,0)) -> 2 | AH2: =IF(W2="","",IF(VLOOKUP(W2,怪物表!$A:$D,4,FALSE)=1,2,0)) ->  | AI2: 1.2 | AJ2: -10 | AK2: =IF(O2="","",1*$AI2+$AJ2) -> -8.8 | AL2: =IF(P2="","",2*$AI2+$AJ2) -> -7.6 | AM2: =IF(Q2="","",3*$AI2+$AJ2) -> -6.4 | AN2: =IF(R2="","",4*$AI2+$AJ2) -> -5.2 | AO2: =IF(S2="","",5*$AI2+$AJ2) -> -4 | AP2: =IF(T2="","",6*$AI2+$AJ2) -> -2.8 | AQ2: =IF(U2="","",7*$AI2+$AJ2) -> -1.6 | AR2: =IF(V2="","",8*$AI2+$AJ2) -> -0.4 | AS2: =IF(W2="","",9*$AI2+$AJ2) ->  | AU2: =IF(Y2="","",VLOOKUP(Y2,高度表!$A:$C,3,FALSE)) -> 1.8 | AV2: =IF(Z2="","",VLOOKUP(Z2,高度表!$A:$C,3,FALSE)) -> 1.8 | AW2: =IF(AA2="","",VLOOKUP(AA2,高度表!$A:$C,3,FALSE)) -> 1.8 | AX2: =IF(AB2="","",VLOOKUP(AB2,高度表!$A:$C,3,FALSE)) -> 0 | AY2: =IF(AC2="","",VLOOKUP(AC2,高度表!$A:$C,3,FALSE)) -> 0 | AZ2: =IF(AD2="","",VLOOKUP(AD2,高度表!$A:$C,3,FALSE)) -> 0 | BA2: =IF(AE2="","",VLOOKUP(AE2,高度表!$A:$C,3,FALSE)) -> 1.8 | BB2: =IF(AF2="","",VLOOKUP(AF2,高度表!$A:$C,3,FALSE)) -> 1.8 | BC2: =IF(AG2="","",VLOOKUP(AG2,高度表!$A:$C,3,FALSE)) -> 1.8 | BD2: =IF(AH2="","",VLOOKUP(AH2,高度表!$A:$C,3,FALSE)) ->  | BE2: 0.15 | BF2: =IF(N2="","",0*$BE2) -> 0 | BG2: =IF(O2="","",1*$BE2) -> 0.15 | BH2: =IF(P2="","",2*$BE2) -> 0.3 | BI2: =IF(Q2="","",3*$BE2) -> 0.45 | BJ2: =IF(R2="","",4*$BE2) -> 0.6 | BK2: =IF(S2="","",5*$BE2) -> 0.75 | BL2: =IF(T2="","",6*$BE2) -> 0.9 | BM2: =IF(U2="","",7*$BE2) -> 1.05 | BN2: =IF(V2="","",8*$BE2) -> 1.2 | BO2: =IF(W2="","",9*$BE2) ->  | BQ2: =CONCATENATE(N2,IF(O2="","",";"),O2,IF(P2="","",";"),P2,IF(Q2="","",";"),Q2,IF(R2="","",";"),R2,IF(S2="","",";"),S2,IF(T2="","",";"),T2,IF(U2="","",";"),U2,IF(V2="","",";"),V2,IF(W2="","",";"),W2) -> 100008;100008;100009;100000;100000;100000;100008;100008;100008 | BR2: =CONCATENATE(AU2,IF(AV2="","",";"),AV2,IF(AW2="","",";"),AW2,IF(AX2="","",";"),AX2,IF(AY2="","",";"),AY2,IF(AZ2="","",";"),AZ2,IF(BA2="","",";"),BA2,IF(BB2="","",";"),BB2,IF(BC2="","",";"),BC2,IF(BD2="","",";"),BD2) -> 1.8;1.8;1.8;0;0;0;1.8;1.8;1.8 | BS2: =CONCATENATE(AJ2,IF(AK2="","",";"),AK2,IF(AL2="","",";"),AL2,IF(AM2="","",";"),AM2,IF(AN2="","",";"),AN2,IF(AO2="","",";"),AO2,IF(AP2="","",";"),AP2,IF(AQ2="","",";"),AQ2,IF(AR2="","",";"),AR2,IF(AS2="","",";"),AS2) -> -10;-8.8;-7.6;-6.4;-5.2;-4;-2.8;-1.6;-0.4 | BT2: =CONCATENATE(BF2,IF(BG2="","",";"),BG2,IF(BH2="","",";"),BH2,IF(BI2="","",";"),BI2,IF(BJ2="","",";"),BJ2,IF(BK2="","",";"),BK2,IF(BL2="","",";"),BL2,IF(BM2="","",";"),BM2,IF(BN2="","",";"),BN2,IF(BO2="","",";"),BO2) -> 0;0.15;0.3;0.45;0.6;0.75;0.9;1.05;1.2 | BU2: =CONCATENATE(IF(N2="","",IF(C2="",0,C2)),IF(IF(O2="","",IF(D2="",0,D2))="","",";"),IF(O2="","",IF(D2="",0,D2)),IF(IF(P2="","",IF(E2="",0,E2))="","",";"),IF(P2="","",IF(E2="",0,E2)),IF(IF(Q2="","",IF(F2="",0,F2))="","",";"),IF(Q2="","",IF(F2="",0,F2)),IF(IF(R2="","",IF(G2="",0,G2))="","",";"),IF(R2="","",IF(G2="",0,G2)),IF(IF(S2="","",IF(H2="",0,H2))="","",";"),IF(S2="","",IF(H2="",0,H2)),IF(IF(T2="","",IF(I2="",0,I2))="","",";"),IF(T2="","",IF(I2="",0,I2)),IF(IF(U2="","",IF(J2="",0,J2))="","",";"),IF(U2="","",IF(J2="",0,J2)),IF(IF(V2="","",IF(K2="",0,K2))="","",";"),IF(V2="","",IF(K2="",0,K2)),IF(IF(W2="","",IF(M2="",0,M2))="","",";"),IF(W2="","",IF(M2="",0,M2))) -> 0;0;0;0;0;0;0;0;0 | BV2: =IF(SUM(IF(N2="",0,IF(VLOOKUP(N2,怪物表!$A:$E,5,FALSE)=3,1,0)),IF(O2="",0,IF(VLOOKUP(O2,怪物表!$A:$E,5,FALSE)=3,1,0)),IF(P2="",0,IF(VLOOKUP(P2,怪物表!$A:$E,5,FALSE)=3,1,0)),IF(Q2="",0,IF(VLOOKUP(Q2,怪物表!$A:$E,5,FALSE)=3,1,0)),IF(R2="",0,IF(VLOOKUP(R2,怪物表!$A:$E,5,FALSE)=3,1,0)),IF(S2="",0,IF(VLOOKUP(S2,怪物表!$A:$E,5,FALSE)=3,1,0)),IF(T2="",0,IF(VLOOKUP(T2,怪物表!$A:$E,5,FALSE)=3,1,0)),IF(U2="",0,IF(VLOOKUP(U2,怪物表!$A:$E,5,FALSE)=3,1,0)),IF(V2="",0,IF(VLOOKUP(V2,怪物表!$A:$E,5,FALSE)=3,1,0)),IF(W2="",0,IF(VLOOKUP(W2,怪物表!$A:$E,5,FALSE)=3,1,0)))>0,180,120)*BW2/100 -> 120 | BW2: 100 | BX2: 100
A3: 211212 | B3: =VLOOKUP(A3,LevelbattleConfig!$A:$B,2,FALSE)&VLOOKUP(A3,LevelbattleConfig!$A:$B,3,FALSE) ->  | N3: 100008 | O3: 100009 | P3: 100008 | Q3: 100013 | R3: 100001 | X3: =SUM(IF(N3="",0,VLOOKUP(N3,怪物表!$A:$D,3,FALSE)),IF(O3="",0,VLOOKUP(O3,怪物表!$A:$D,3,FALSE)),IF(P3="",0,VLOOKUP(P3,怪物表!$A:$D,3,FALSE)),IF(Q3="",0,VLOOKUP(Q3,怪物表!$A:$D,3,FALSE)),IF(R3="",0,VLOOKUP(R3,怪物表!$A:$D,3,FALSE)),IF(S3="",0,VLOOKUP(S3,怪物表!$A:$D,3,FALSE)),IF(T3="",0,VLOOKUP(T3,怪物表!$A:$D,3,FALSE)),IF(U3="",0,VLOOKUP(U3,怪物表!$A:$D,3,FALSE)),IF(V3="",0,VLOOKUP(V3,怪物表!$A:$D,3,FALSE)),IF(W3="",0,VLOOKUP(W3,怪物表!$A:$D,3,FALSE))) -> 10 | Y3: 1 | Z3: 1 | AA3: 1 | AB3: 0 | AI3: 1.2 | AJ3: -10 | AK3: =IF(O3="","",1*$AI3+$AJ3) -> -8.8 | AL3: =IF(P3="","",2*$AI3+$AJ3) -> -7.6 | AM3: =IF(Q3="","",3*$AI3+$AJ3) -> -6.4 | AN3: =IF(R3="","",4*$AI3+$AJ3) -> -5.2 | AO3: =IF(S3="","",5*$AI3+$AJ3) ->  | AP3: =IF(T3="","",6*$AI3+$AJ3) ->  | AQ3: =IF(U3="","",7*$AI3+$AJ3) ->  | AR3: =IF(V3="","",8*$AI3+$AJ3) ->  | AS3: =IF(W3="","",9*$AI3+$AJ3) ->  | AU3: =IF(Y3="","",VLOOKUP(Y3,高度表!$A:$C,3,FALSE)) -> 1.1 | AV3: =IF(Z3="","",VLOOKUP(Z3,高度表!$A:$C,3,FALSE)) -> 1.1 | AW3: =IF(AA3="","",VLOOKUP(AA3,高度表!$A:$C,3,FALSE)) -> 1.1 | AX3: =IF(AB3="","",VLOOKUP(AB3,高度表!$A:$C,3,FALSE)) -> 0 | AY3: =IF(AC3="","",VLOOKUP(AC3,高度表!$A:$C,3,FALSE)) ->  | AZ3: =IF(AD3="","",VLOOKUP(AD3,高度表!$A:$C,3,FALSE)) ->  | BA3: =IF(AE3="","",VLOOKUP(AE3,高度表!$A:$C,3,FALSE)) ->  | BB3: =IF(AF3="","",VLOOKUP(AF3,高度表!$A:$C,3,FALSE)) ->  | BC3: =IF(AG3="","",VLOOKUP(AG3,高度表!$A:$C,3,FALSE)) ->  | BD3: =IF(AH3="","",VLOOKUP(AH3,高度表!$A:$C,3,FALSE)) ->  | BE3: 0.15 | BF3: =IF(N3="","",0*$BE3) -> 0 | BG3: =IF(O3="","",1*$BE3) -> 0.15 | BH3: =IF(P3="","",2*$BE3) -> 0.3 | BI3: =IF(Q3="","",3*$BE3) -> 0.45 | BJ3: =IF(R3="","",4*$BE3) -> 0.6 | BK3: =IF(S3="","",5*$BE3) ->  | BL3: =IF(T3="","",6*$BE3) ->  | BM3: =IF(U3="","",7*$BE3) ->  | BN3: =IF(V3="","",8*$BE3) ->  | BO3: =IF(W3="","",9*$BE3) ->  | BQ3: =CONCATENATE(N3,IF(O3="","",";"),O3,IF(P3="","",";"),P3,IF(Q3="","",";"),Q3,IF(R3="","",";"),R3,IF(S3="","",";"),S3,IF(T3="","",";"),T3,IF(U3="","",";"),U3,IF(V3="","",";"),V3,IF(W3="","",";"),W3) -> 100008;100009;100008;100013;100001 | BR3: =CONCATENATE(AU3,IF(AV3="","",";"),AV3,IF(AW3="","",";"),AW3,IF(AX3="","",";"),AX3,IF(AY3="","",";"),AY3,IF(AZ3="","",";"),AZ3,IF(BA3="","",";"),BA3,IF(BB3="","",";"),BB3,IF(BC3="","",";"),BC3,IF(BD3="","",";"),BD3) -> 1.1;1.1;1.1;0 | BS3: =CONCATENATE(AJ3,IF(AK3="","",";"),AK3,IF(AL3="","",";"),AL3,IF(AM3="","",";"),AM3,IF(AN3="","",";"),AN3,IF(AO3="","",";"),AO3,IF(AP3="","",";"),AP3,IF(AQ3="","",";"),AQ3,IF(AR3="","",";"),AR3,IF(AS3="","",";"),AS3) -> -10;-8.8;-7.6;-6.4;-5.2 | BT3: =CONCATENATE(BF3,IF(BG3="","",";"),BG3,IF(BH3="","",";"),BH3,IF(BI3="","",";"),BI3,IF(BJ3="","",";"),BJ3,IF(BK3="","",";"),BK3,IF(BL3="","",";"),BL3,IF(BM3="","",";"),BM3,IF(BN3="","",";"),BN3,IF(BO3="","",";"),BO3) -> 0;0.15;0.3;0.45;0.6 | BU3: =CONCATENATE(IF(N3="","",IF(C3="",0,C3)),IF(IF(O3="","",IF(D3="",0,D3))="","",";"),IF(O3="","",IF(D3="",0,D3)),IF(IF(P3="","",IF(E3="",0,E3))="","",";"),IF(P3="","",IF(E3="",0,E3)),IF(IF(Q3="","",IF(F3="",0,F3))="","",";"),IF(Q3="","",IF(F3="",0,F3)),IF(IF(R3="","",IF(G3="",0,G3))="","",";"),IF(R3="","",IF(G3="",0,G3)),IF(IF(S3="","",IF(H3="",0,H3))="","",";"),IF(S3="","",IF(H3="",0,H3)),IF(IF(T3="","",IF(I3="",0,I3))="","",";"),IF(T3="","",IF(I3="",0,I3)),IF(IF(U3="","",IF(J3="",0,J3))="","",";"),IF(U3="","",IF(J3="",0,J3)),IF(IF(V3="","",IF(K3="",0,K3))="","",";"),IF(V3="","",IF(K3="",0,K3)),IF(IF(W3="","",IF(M3="",0,M3))="","",";"),IF(W3="","",IF(M3="",0,M3))) -> 0;0;0;0;0 | BV3: 120 | BW3: 100 | BX3: 100
A4: 211213 | B4: =VLOOKUP(A4,LevelbattleConfig!$A:$B,2,FALSE)&VLOOKUP(A4,LevelbattleConfig!$A:$B,3,FALSE) ->  | N4: 108000 | O4: 100010 | P4: 100009 | Q4: 100000 | X4: =SUM(IF(N4="",0,VLOOKUP(N4,怪物表!$A:$D,3,FALSE)),IF(O4="",0,VLOOKUP(O4,怪物表!$A:$D,3,FALSE)),IF(P4="",0,VLOOKUP(P4,怪物表!$A:$D,3,FALSE)),IF(Q4="",0,VLOOKUP(Q4,怪物表!$A:$D,3,FALSE)),IF(R4="",0,VLOOKUP(R4,怪物表!$A:$D,3,FALSE)),IF(S4="",0,VLOOKUP(S4,怪物表!$A:$D,3,FALSE)),IF(T4="",0,VLOOKUP(T4,怪物表!$A:$D,3,FALSE)),IF(U4="",0,VLOOKUP(U4,怪物表!$A:$D,3,FALSE)),IF(V4="",0,VLOOKUP(V4,怪物表!$A:$D,3,FALSE)),IF(W4="",0,VLOOKUP(W4,怪物表!$A:$D,3,FALSE))) -> 14 | Y4: =IF(N4="","",IF(VLOOKUP(N4,怪物表!$A:$D,4,FALSE)=1,2,0)) -> 0 | Z4: =IF(O4="","",IF(VLOOKUP(O4,怪物表!$A:$D,4,FALSE)=1,2,0)) -> 2 | AA4: =IF(P4="","",IF(VLOOKUP(P4,怪物表!$A:$D,4,FALSE)=1,2,0)) -> 2 | AB4: =IF(Q4="","",IF(VLOOKUP(Q4,怪物表!$A:$D,4,FALSE)=1,2,0)) -> 0 | AC4: =IF(R4="","",IF(VLOOKUP(R4,怪物表!$A:$D,4,FALSE)=1,2,0)) ->  | AD4: =IF(S4="","",IF(VLOOKUP(S4,怪物表!$A:$D,4,FALSE)=1,2,0)) ->  | AE4: =IF(T4="","",IF(VLOOKUP(T4,怪物表!$A:$D,4,FALSE)=1,2,0)) ->  | AF4: =IF(U4="","",IF(VLOOKUP(U4,怪物表!$A:$D,4,FALSE)=1,2,0)) ->  | AG4: =IF(V4="","",IF(VLOOKUP(V4,怪物表!$A:$D,4,FALSE)=1,2,0)) ->  | AH4: =IF(W4="","",IF(VLOOKUP(W4,怪物表!$A:$D,4,FALSE)=1,2,0)) ->  | AI4: 1.2 | AJ4: -10 | AK4: -8.8 | AL4: -7.6 | AM4: -6.4 | AU4: =IF(Y4="","",VLOOKUP(Y4,高度表!$A:$C,3,FALSE)) -> 0 | AV4: =IF(Z4="","",VLOOKUP(Z4,高度表!$A:$C,3,FALSE)) -> 1.8 | AW4: =IF(AA4="","",VLOOKUP(AA4,高度表!$A:$C,3,FALSE)) -> 1.8 | AX4: =IF(AB4="","",VLOOKUP(AB4,高度表!$A:$C,3,FALSE)) -> 0 | AY4: =IF(AC4="","",VLOOKUP(AC4,高度表!$A:$C,3,FALSE)) ->  | AZ4: =IF(AD4="","",VLOOKUP(AD4,高度表!$A:$C,3,FALSE)) ->  | BA4: =IF(AE4="","",VLOOKUP(AE4,高度表!$A:$C,3,FALSE)) ->  | BB4: =IF(AF4="","",VLOOKUP(AF4,高度表!$A:$C,3,FALSE)) ->  | BC4: =IF(AG4="","",VLOOKUP(AG4,高度表!$A:$C,3,FALSE)) ->  | BD4: =IF(AH4="","",VLOOKUP(AH4,高度表!$A:$C,3,FALSE)) ->  | BE4: 0.15 | BF4: 0 | BG4: 0.15 | BH4: 0.3 | BI4: 0.45 | BQ4: 108000;100010;100009;100000 | BR4: 0;1.8;1.8;0 | BS4: -10;-8.8;-7.6;-6.4 | BT4: 0;0.15;0.3;0.45 | BU4: 0;0;0;0 | BV4: 120 | BW4: 100 | BX4: 100
A5: 211214 | B5: =VLOOKUP(A5,LevelbattleConfig!$A:$B,2,FALSE)&VLOOKUP(A5,LevelbattleConfig!$A:$B,3,FALSE) ->  | N5: 100004 | O5: 100010 | P5: 100009 | Q5: 100000 | X5: =SUM(IF(N5="",0,VLOOKUP(N5,怪物表!$A:$D,3,FALSE)),IF(O5="",0,VLOOKUP(O5,怪物表!$A:$D,3,FALSE)),IF(P5="",0,VLOOKUP(P5,怪物表!$A:$D,3,FALSE)),IF(Q5="",0,VLOOKUP(Q5,怪物表!$A:$D,3,FALSE)),IF(R5="",0,VLOOKUP(R5,怪物表!$A:$D,3,FALSE)),IF(S5="",0,VLOOKUP(S5,怪物表!$A:$D,3,FALSE)),IF(T5="",0,VLOOKUP(T5,怪物表!$A:$D,3,FALSE)),IF(U5="",0,VLOOKUP(U5,怪物表!$A:$D,3,FALSE)),IF(V5="",0,VLOOKUP(V5,怪物表!$A:$D,3,FALSE)),IF(W5="",0,VLOOKUP(W5,怪物表!$A:$D,3,FALSE))) -> 8 | Y5: =IF(N5="","",IF(VLOOKUP(N5,怪物表!$A:$D,4,FALSE)=1,2,0)) -> 0 | Z5: 0 | AA5: =IF(P5="","",IF(VLOOKUP(P5,怪物表!$A:$D,4,FALSE)=1,2,0)) -> 2 | AB5: =IF(Q5="","",IF(VLOOKUP(Q5,怪物表!$A:$D,4,FALSE)=1,2,0)) -> 0 | AC5: =IF(R5="","",IF(VLOOKUP(R5,怪物表!$A:$D,4,FALSE)=1,2,0)) ->  | AD5: =IF(S5="","",IF(VLOOKUP(S5,怪物表!$A:$D,4,FALSE)=1,2,0)) ->  | AE5: =IF(T5="","",IF(VLOOKUP(T5,怪物表!$A:$D,4,FALSE)=1,2,0)) ->  | AF5: =IF(U5="","",IF(VLOOKUP(U5,怪物表!$A:$D,4,FALSE)=1,2,0)) ->  | AG5: =IF(V5="","",IF(VLOOKUP(V5,怪物表!$A:$D,4,FALSE)=1,2,0)) ->  | AH5: =IF(W5="","",IF(VLOOKUP(W5,怪物表!$A:$D,4,FALSE)=1,2,0)) ->  | AI5: 1.2 | AJ5: -10 | AK5: -8.8 | AL5: -7.6 | AM5: -6.4 | AU5: =IF(Y5="","",VLOOKUP(Y5,高度表!$A:$C,3,FALSE)) -> 0 | AV5: =IF(Z5="","",VLOOKUP(Z5,高度表!$A:$C,3,FALSE)) -> 0 | AW5: =IF(AA5="","",VLOOKUP(AA5,高度表!$A:$C,3,FALSE)) -> 1.8 | AX5: =IF(AB5="","",VLOOKUP(AB5,高度表!$A:$C,3,FALSE)) -> 0 | AY5: =IF(AC5="","",VLOOKUP(AC5,高度表!$A:$C,3,FALSE)) ->  | AZ5: =IF(AD5="","",VLOOKUP(AD5,高度表!$A:$C,3,FALSE)) ->  | BA5: =IF(AE5="","",VLOOKUP(AE5,高度表!$A:$C,3,FALSE)) ->  | BB5: =IF(AF5="","",VLOOKUP(AF5,高度表!$A:$C,3,FALSE)) ->  | BC5: =IF(AG5="","",VLOOKUP(AG5,高度表!$A:$C,3,FALSE)) ->  | BD5: =IF(AH5="","",VLOOKUP(AH5,高度表!$A:$C,3,FALSE)) ->  | BE5: 0.15 | BF5: 0 | BG5: 0.15 | BH5: 0.3 | BI5: 0.45 | BQ5: 100004;100010;100009;100000 | BR5: 0;0;1.8;0 | BS5: -10;-8.8;-7.6;-6.4 | BT5: 0;0.15;0.3;0.45 | BU5: 0;0;0;0 | BV5: 120 | BW5: 100 | BX5: 100
A6: 211215 | B6: =VLOOKUP(A6,LevelbattleConfig!$A:$B,2,FALSE)&VLOOKUP(A6,LevelbattleConfig!$A:$B,3,FALSE) ->  | N6: 108000 | X6: =SUM(IF(N6="",0,VLOOKUP(N6,怪物表!$A:$D,3,FALSE)),IF(O6="",0,VLOOKUP(O6,怪物表!$A:$D,3,FALSE)),IF(P6="",0,VLOOKUP(P6,怪物表!$A:$D,3,FALSE)),IF(Q6="",0,VLOOKUP(Q6,怪物表!$A:$D,3,FALSE)),IF(R6="",0,VLOOKUP(R6,怪物表!$A:$D,3,FALSE)),IF(S6="",0,VLOOKUP(S6,怪物表!$A:$D,3,FALSE)),IF(T6="",0,VLOOKUP(T6,怪物表!$A:$D,3,FALSE)),IF(U6="",0,VLOOKUP(U6,怪物表!$A:$D,3,FALSE)),IF(V6="",0,VLOOKUP(V6,怪物表!$A:$D,3,FALSE)),IF(W6="",0,VLOOKUP(W6,怪物表!$A:$D,3,FALSE))) -> 8 | Y6: 0 | AB6: =IF(Q6="","",IF(VLOOKUP(Q6,怪物表!$A:$D,4,FALSE)=1,2,0)) ->  | AI6: 1.2 | AJ6: -10 | AU6: 0 | BE6: 0.15 | BF6: 0 | BQ6: 108000 | BR6: 0 | BS6: -10 | BT6: 0 | BU6: 0 | BV6: 120 | BW6: 100 | BX6: 100
A7: 211216 | B7: =VLOOKUP(A7,LevelbattleConfig!$A:$B,2,FALSE)&VLOOKUP(A7,LevelbattleConfig!$A:$B,3,FALSE) ->  | N7: 107000 | O7: 103003 | P7: 103003 | Q7: 103003 | X7: =SUM(IF(N7="",0,VLOOKUP(N7,怪物表!$A:$D,3,FALSE)),IF(O7="",0,VLOOKUP(O7,怪物表!$A:$D,3,FALSE)),IF(P7="",0,VLOOKUP(P7,怪物表!$A:$D,3,FALSE)),IF(Q7="",0,VLOOKUP(Q7,怪物表!$A:$D,3,FALSE)),IF(R7="",0,VLOOKUP(R7,怪物表!$A:$D,3,FALSE)),IF(S7="",0,VLOOKUP(S7,怪物表!$A:$D,3,FALSE)),IF(T7="",0,VLOOKUP(T7,怪物表!$A:$D,3,FALSE)),IF(U7="",0,VLOOKUP(U7,怪物表!$A:$D,3,FALSE)),IF(V7="",0,VLOOKUP(V7,怪物表!$A:$D,3,FALSE)),IF(W7="",0,VLOOKUP(W7,怪物表!$A:$D,3,FALSE))) -> 14 | Y7: =IF(N7="","",IF(VLOOKUP(N7,怪物表!$A:$D,4,FALSE)=1,2,0)) -> 2 | Z7: 1 | AA7: =IF(P7="","",IF(VLOOKUP(P7,怪物表!$A:$D,4,FALSE)=1,2,0)) -> 2 | AB7: 3 | AC7: =IF(R7="","",IF(VLOOKUP(R7,怪物表!$A:$D,4,FALSE)=1,2,0)) ->  | AD7: =IF(S7="","",IF(VLOOKUP(S7,怪物表!$A:$D,4,FALSE)=1,2,0)) ->  | AE7: =IF(T7="","",IF(VLOOKUP(T7,怪物表!$A:$D,4,FALSE)=1,2,0)) ->  | AF7: =IF(U7="","",IF(VLOOKUP(U7,怪物表!$A:$D,4,FALSE)=1,2,0)) ->  | AG7: =IF(V7="","",IF(VLOOKUP(V7,怪物表!$A:$D,4,FALSE)=1,2,0)) ->  | AH7: =IF(W7="","",IF(VLOOKUP(W7,怪物表!$A:$D,4,FALSE)=1,2,0)) ->  | AI7: 3 | AJ7: -10 | AK7: -7 | AL7: -4 | AM7: -1 | AU7: =IF(Y7="","",VLOOKUP(Y7,高度表!$A:$C,3,FALSE)) -> 1.8 | AV7: =IF(Z7="","",VLOOKUP(Z7,高度表!$A:$C,3,FALSE)) -> 1.1 | AW7: =IF(AA7="","",VLOOKUP(AA7,高度表!$A:$C,3,FALSE)) -> 1.8 | AX7: =IF(AB7="","",VLOOKUP(AB7,高度表!$A:$C,3,FALSE)) -> 2.5 | AY7: =IF(AC7="","",VLOOKUP(AC7,高度表!$A:$C,3,FALSE)) ->  | AZ7: =IF(AD7="","",VLOOKUP(AD7,高度表!$A:$C,3,FALSE)) ->  | BA7: =IF(AE7="","",VLOOKUP(AE7,高度表!$A:$C,3,FALSE)) ->  | BB7: =IF(AF7="","",VLOOKUP(AF7,高度表!$A:$C,3,FALSE)) ->  | BC7: =IF(AG7="","",VLOOKUP(AG7,高度表!$A:$C,3,FALSE)) ->  | BD7: =IF(AH7="","",VLOOKUP(AH7,高度表!$A:$C,3,FALSE)) ->  | BE7: 0.15 | BF7: 0 | BG7: 0.15 | BH7: 0.3 | BI7: 0.45 | BQ7: 107000;103003;103003;103003 | BR7: 1.8;1.1;1.8;2.5 | BS7: -10;-7;-4;-1 | BT7: 0;0.15;0.3;0.45 | BU7: 0;0;0;0 | BV7: =IF(SUM(IF(N7="",0,IF(VLOOKUP(N7,怪物表!$A:$E,5,FALSE)=3,1,0)),IF(O7="",0,IF(VLOOKUP(O7,怪物表!$A:$E,5,FALSE)=3,1,0)),IF(P7="",0,IF(VLOOKUP(P7,怪物表!$A:$E,5,FALSE)=3,1,0)),IF(Q7="",0,IF(VLOOKUP(Q7,怪物表!$A:$E,5,FALSE)=3,1,0)),IF(R7="",0,IF(VLOOKUP(R7,怪物表!$A:$E,5,FALSE)=3,1,0)),IF(S7="",0,IF(VLOOKUP(S7,怪物表!$A:$E,5,FALSE)=3,1,0)),IF(T7="",0,IF(VLOOKUP(T7,怪物表!$A:$E,5,FALSE)=3,1,0)),IF(U7="",0,IF(VLOOKUP(U7,怪物表!$A:$E,5,FALSE)=3,1,0)),IF(V7="",0,IF(VLOOKUP(V7,怪物表!$A:$E,5,FALSE)=3,1,0)),IF(W7="",0,IF(VLOOKUP(W7,怪物表!$A:$E,5,FALSE)=3,1,0)))>0,180,120)*BW7/100 -> 120 | BW7: 100 | BX7: 100
A8: 211217 | B8: =VLOOKUP(A8,LevelbattleConfig!$A:$B,2,FALSE)&VLOOKUP(A8,LevelbattleConfig!$A:$B,3,FALSE) ->  | N8: 100004 | O8: 100008 | P8: 100009 | Q8: 100000 | R8: 100010 | S8: 100008 | T8: 100010 | X8: =SUM(IF(N8="",0,VLOOKUP(N8,怪物表!$A:$D,3,FALSE)),IF(O8="",0,VLOOKUP(O8,怪物表!$A:$D,3,FALSE)),IF(P8="",0,VLOOKUP(P8,怪物表!$A:$D,3,FALSE)),IF(Q8="",0,VLOOKUP(Q8,怪物表!$A:$D,3,FALSE)),IF(R8="",0,VLOOKUP(R8,怪物表!$A:$D,3,FALSE)),IF(S8="",0,VLOOKUP(S8,怪物表!$A:$D,3,FALSE)),IF(T8="",0,VLOOKUP(T8,怪物表!$A:$D,3,FALSE)),IF(U8="",0,VLOOKUP(U8,怪物表!$A:$D,3,FALSE)),IF(V8="",0,VLOOKUP(V8,怪物表!$A:$D,3,FALSE)),IF(W8="",0,VLOOKUP(W8,怪物表!$A:$D,3,FALSE))) -> 14 | Y8: =IF(N8="","",IF(VLOOKUP(N8,怪物表!$A:$D,4,FALSE)=1,2,0)) -> 0 | Z8: =IF(O8="","",IF(VLOOKUP(O8,怪物表!$A:$D,4,FALSE)=1,2,0)) -> 2 | AA8: =IF(P8="","",IF(VLOOKUP(P8,怪物表!$A:$D,4,FALSE)=1,2,0)) -> 2 | AB8: =IF(Q8="","",IF(VLOOKUP(Q8,怪物表!$A:$D,4,FALSE)=1,2,0)) -> 0 | AC8: =IF(R8="","",IF(VLOOKUP(R8,怪物表!$A:$D,4,FALSE)=1,2,0)) -> 2 | AD8: 3 | AE8: =IF(T8="","",IF(VLOOKUP(T8,怪物表!$A:$D,4,FALSE)=1,2,0)) -> 2 | AF8: =IF(U8="","",IF(VLOOKUP(U8,怪物表!$A:$D,4,FALSE)=1,2,0)) ->  | AG8: =IF(V8="","",IF(VLOOKUP(V8,怪物表!$A:$D,4,FALSE)=1,2,0)) ->  | AH8: =IF(W8="","",IF(VLOOKUP(W8,怪物表!$A:$D,4,FALSE)=1,2,0)) ->  | AI8: 1.2 | AJ8: 0 | AK8: 1.2 | AL8: 2.4 | AM8: 3.6 | AN8: 4.8 | AO8: 6 | AP8: 7.2 | AU8: =IF(Y8="","",VLOOKUP(Y8,高度表!$A:$C,3,FALSE)) -> 0 | AV8: =IF(Z8="","",VLOOKUP(Z8,高度表!$A:$C,3,FALSE)) -> 1.8 | AW8: =IF(AA8="","",VLOOKUP(AA8,高度表!$A:$C,3,FALSE)) -> 1.8 | AX8: =IF(AB8="","",VLOOKUP(AB8,高度表!$A:$C,3,FALSE)) -> 0 | AY8: =IF(AC8="","",VLOOKUP(AC8,高度表!$A:$C,3,FALSE)) -> 1.8 | AZ8: =IF(AD8="","",VLOOKUP(AD8,高度表!$A:$C,3,FALSE)) -> 2.5 | BA8: =IF(AE8="","",VLOOKUP(AE8,高度表!$A:$C,3,FALSE)) -> 1.8 | BB8: =IF(AF8="","",VLOOKUP(AF8,高度表!$A:$C,3,FALSE)) ->  | BC8: =IF(AG8="","",VLOOKUP(AG8,高度表!$A:$C,3,FALSE)) ->  | BD8: =IF(AH8="","",VLOOKUP(AH8,高度表!$A:$C,3,FALSE)) ->  | BE8: 0.15 | BF8: 0 | BG8: 0.15 | BH8: 0.3 | BI8: 0.45 | BJ8: 0.6 | BK8: 0.75 | BL8: 0.9 | BQ8: 100004;100008;100009;100000;100010;100008;100010 | BR8: 0;1.8;1.8;0;1.8;2.5;1.8 | BS8: 0;1.2;2.4;3.6;4.8;6;7.2 | BT8: 0;0.15;0.3;0.45;0.6;0.75;0.9 | BU8: 0;0;0;0;0;0;0 | BV8: =IF(SUM(IF(N8="",0,IF(VLOOKUP(N8,怪物表!$A:$E,5,FALSE)=3,1,0)),IF(O8="",0,IF(VLOOKUP(O8,怪物表!$A:$E,5,FALSE)=3,1,0)),IF(P8="",0,IF(VLOOKUP(P8,怪物表!$A:$E,5,FALSE)=3,1,0)),IF(Q8="",0,IF(VLOOKUP(Q8,怪物表!$A:$E,5,FALSE)=3,1,0)),IF(R8="",0,IF(VLOOKUP(R8,怪物表!$A:$E,5,FALSE)=3,1,0)),IF(S8="",0,IF(VLOOKUP(S8,怪物表!$A:$E,5,FALSE)=3,1,0)),IF(T8="",0,IF(VLOOKUP(T8,怪物表!$A:$E,5,FALSE)=3,1,0)),IF(U8="",0,IF(VLOOKUP(U8,怪物表!$A:$E,5,FALSE)=3,1,0)),IF(V8="",0,IF(VLOOKUP(V8,怪物表!$A:$E,5,FALSE)=3,1,0)),IF(W8="",0,IF(VLOOKUP(W8,怪物表!$A:$E,5,FALSE)=3,1,0)))>0,180,120)*BW8/100 -> 120 | BW8: 100 | BX8: 100
A9: 211218 | B9: =VLOOKUP(A9,LevelbattleConfig!$A:$B,2,FALSE)&VLOOKUP(A9,LevelbattleConfig!$A:$B,3,FALSE) ->  | N9: 108000 | O9: 108000 | X9: =SUM(IF(N9="",0,VLOOKUP(N9,怪物表!$A:$D,3,FALSE)),IF(O9="",0,VLOOKUP(O9,怪物表!$A:$D,3,FALSE)),IF(P9="",0,VLOOKUP(P9,怪物表!$A:$D,3,FALSE)),IF(Q9="",0,VLOOKUP(Q9,怪物表!$A:$D,3,FALSE)),IF(R9="",0,VLOOKUP(R9,怪物表!$A:$D,3,FALSE)),IF(S9="",0,VLOOKUP(S9,怪物表!$A:$D,3,FALSE)),IF(T9="",0,VLOOKUP(T9,怪物表!$A:$D,3,FALSE)),IF(U9="",0,VLOOKUP(U9,怪物表!$A:$D,3,FALSE)),IF(V9="",0,VLOOKUP(V9,怪物表!$A:$D,3,FALSE)),IF(W9="",0,VLOOKUP(W9,怪物表!$A:$D,3,FALSE))) -> 16 | Y9: =IF(N9="","",IF(VLOOKUP(N9,怪物表!$A:$D,4,FALSE)=1,2,0)) -> 0 | Z9: =IF(O9="","",IF(VLOOKUP(O9,怪物表!$A:$D,4,FALSE)=1,2,0)) -> 0 | AA9: =IF(P9="","",IF(VLOOKUP(P9,怪物表!$A:$D,4,FALSE)=1,2,0)) ->  | AB9: =IF(Q9="","",IF(VLOOKUP(Q9,怪物表!$A:$D,4,FALSE)=1,2,0)) ->  | AC9: =IF(R9="","",IF(VLOOKUP(R9,怪物表!$A:$D,4,FALSE)=1,2,0)) ->  | AD9: =IF(S9="","",IF(VLOOKUP(S9,怪物表!$A:$D,4,FALSE)=1,2,0)) ->  | AE9: =IF(T9="","",IF(VLOOKUP(T9,怪物表!$A:$D,4,FALSE)=1,2,0)) ->  | AF9: =IF(U9="","",IF(VLOOKUP(U9,怪物表!$A:$D,4,FALSE)=1,2,0)) ->  | AG9: =IF(V9="","",IF(VLOOKUP(V9,怪物表!$A:$D,4,FALSE)=1,2,0)) ->  | AH9: =IF(W9="","",IF(VLOOKUP(W9,怪物表!$A:$D,4,FALSE)=1,2,0)) ->  | AI9: 5 | AJ9: 0 | AK9: 5 | AU9: =IF(Y9="","",VLOOKUP(Y9,高度表!$A:$C,3,FALSE)) -> 0 | AV9: =IF(Z9="","",VLOOKUP(Z9,高度表!$A:$C,3,FALSE)) -> 0 | AW9: =IF(AA9="","",VLOOKUP(AA9,高度表!$A:$C,3,FALSE)) ->  | AX9: =IF(AB9="","",VLOOKUP(AB9,高度表!$A:$C,3,FALSE)) ->  | AY9: =IF(AC9="","",VLOOKUP(AC9,高度表!$A:$C,3,FALSE)) ->  | AZ9: =IF(AD9="","",VLOOKUP(AD9,高度表!$A:$C,3,FALSE)) ->  | BA9: =IF(AE9="","",VLOOKUP(AE9,高度表!$A:$C,3,FALSE)) ->  | BB9: =IF(AF9="","",VLOOKUP(AF9,高度表!$A:$C,3,FALSE)) ->  | BC9: =IF(AG9="","",VLOOKUP(AG9,高度表!$A:$C,3,FALSE)) ->  | BD9: =IF(AH9="","",VLOOKUP(AH9,高度表!$A:$C,3,FALSE)) ->  | BE9: 1 | BF9: 0 | BG9: 1 | BQ9: 108000;108000 | BR9: 0;0 | BS9: 0;5 | BT9: 0;1 | BU9: 0;0 | BV9: =IF(SUM(IF(N9="",0,IF(VLOOKUP(N9,怪物表!$A:$E,5,FALSE)=3,1,0)),IF(O9="",0,IF(VLOOKUP(O9,怪物表!$A:$E,5,FALSE)=3,1,0)),IF(P9="",0,IF(VLOOKUP(P9,怪物表!$A:$E,5,FALSE)=3,1,0)),IF(Q9="",0,IF(VLOOKUP(Q9,怪物表!$A:$E,5,FALSE)=3,1,0)),IF(R9="",0,IF(VLOOKUP(R9,怪物表!$A:$E,5,FALSE)=3,1,0)),IF(S9="",0,IF(VLOOKUP(S9,怪物表!$A:$E,5,FALSE)=3,1,0)),IF(T9="",0,IF(VLOOKUP(T9,怪物表!$A:$E,5,FALSE)=3,1,0)),IF(U9="",0,IF(VLOOKUP(U9,怪物表!$A:$E,5,FALSE)=3,1,0)),IF(V9="",0,IF(VLOOKUP(V9,怪物表!$A:$E,5,FALSE)=3,1,0)),IF(W9="",0,IF(VLOOKUP(W9,怪物表!$A:$E,5,FALSE)=3,1,0)))>0,180,120)*BW9/100 -> 120 | BW9: 100 | BX9: 100
A10: 211219 | B10: =VLOOKUP(A10,LevelbattleConfig!$A:$B,2,FALSE)&VLOOKUP(A10,LevelbattleConfig!$A:$B,3,FALSE) ->  | N10: 200004 | O10: 100012 | P10: 100012 | Q10: 200002 | X10: =SUM(IF(N10="",0,VLOOKUP(N10,怪物表!$A:$D,3,FALSE)),IF(O10="",0,VLOOKUP(O10,怪物表!$A:$D,3,FALSE)),IF(P10="",0,VLOOKUP(P10,怪物表!$A:$D,3,FALSE)),IF(Q10="",0,VLOOKUP(Q10,怪物表!$A:$D,3,FALSE)),IF(R10="",0,VLOOKUP(R10,怪物表!$A:$D,3,FALSE)),IF(S10="",0,VLOOKUP(S10,怪物表!$A:$D,3,FALSE)),IF(T10="",0,VLOOKUP(T10,怪物表!$A:$D,3,FALSE)),IF(U10="",0,VLOOKUP(U10,怪物表!$A:$D,3,FALSE)),IF(V10="",0,VLOOKUP(V10,怪物表!$A:$D,3,FALSE)),IF(W10="",0,VLOOKUP(W10,怪物表!$A:$D,3,FALSE))) -> 18 | Y10: =IF(N10="","",IF(VLOOKUP(N10,怪物表!$A:$D,4,FALSE)=1,2,0)) -> 0 | Z10: =IF(O10="","",IF(VLOOKUP(O10,怪物表!$A:$D,4,FALSE)=1,2,0)) -> 2 | AA10: =IF(P10="","",IF(VLOOKUP(P10,怪物表!$A:$D,4,FALSE)=1,2,0)) -> 2 | AB10: =IF(Q10="","",IF(VLOOKUP(Q10,怪物表!$A:$D,4,FALSE)=1,2,0)) -> 0 | AC10: =IF(R10="","",IF(VLOOKUP(R10,怪物表!$A:$D,4,FALSE)=1,2,0)) ->  | AD10: =IF(S10="","",IF(VLOOKUP(S10,怪物表!$A:$D,4,FALSE)=1,2,0)) ->  | AE10: =IF(T10="","",IF(VLOOKUP(T10,怪物表!$A:$D,4,FALSE)=1,2,0)) ->  | AF10: =IF(U10="","",IF(VLOOKUP(U10,怪物表!$A:$D,4,FALSE)=1,2,0)) ->  | AG10: =IF(V10="","",IF(VLOOKUP(V10,怪物表!$A:$D,4,FALSE)=1,2,0)) ->  | AH10: =IF(W10="","",IF(VLOOKUP(W10,怪物表!$A:$D,4,FALSE)=1,2,0)) ->  | AI10: 1.2 | AJ10: 0 | AK10: 1.2 | AL10: 2.4 | AM10: 3.6 | AU10: =IF(Y10="","",VLOOKUP(Y10,高度表!$A:$C,3,FALSE)) -> 0 | AV10: =IF(Z10="","",VLOOKUP(Z10,高度表!$A:$C,3,FALSE)) -> 1.8 | AW10: =IF(AA10="","",VLOOKUP(AA10,高度表!$A:$C,3,FALSE)) -> 1.8 | AX10: =IF(AB10="","",VLOOKUP(AB10,高度表!$A:$C,3,FALSE)) -> 0 | AY10: =IF(AC10="","",VLOOKUP(AC10,高度表!$A:$C,3,FALSE)) ->  | AZ10: =IF(AD10="","",VLOOKUP(AD10,高度表!$A:$C,3,FALSE)) ->  | BA10: =IF(AE10="","",VLOOKUP(AE10,高度表!$A:$C,3,FALSE)) ->  | BB10: =IF(AF10="","",VLOOKUP(AF10,高度表!$A:$C,3,FALSE)) ->  | BC10: =IF(AG10="","",VLOOKUP(AG10,高度表!$A:$C,3,FALSE)) ->  | BD10: =IF(AH10="","",VLOOKUP(AH10,高度表!$A:$C,3,FALSE)) ->  | BE10: 0.15 | BF10: 0 | BG10: 0.15 | BH10: 0.3 | BI10: 0.45 | BQ10: 200004;100012;100012;200002 | BR10: 0;1.8;1.8;0 | BS10: 0;1.2;2.4;3.6 | BT10: 0;0.15;0.3;0.45 | BU10: 0;0;0;0 | BV10: =IF(SUM(IF(N10="",0,IF(VLOOKUP(N10,怪物表!$A:$E,5,FALSE)=3,1,0)),IF(O10="",0,IF(VLOOKUP(O10,怪物表!$A:$E,5,FALSE)=3,1,0)),IF(P10="",0,IF(VLOOKUP(P10,怪物表!$A:$E,5,FALSE)=3,1,0)),IF(Q10="",0,IF(VLOOKUP(Q10,怪物表!$A:$E,5,FALSE)=3,1,0)),IF(R10="",0,IF(VLOOKUP(R10,怪物表!$A:$E,5,FALSE)=3,1,0)),IF(S10="",0,IF(VLOOKUP(S10,怪物表!$A:$E,5,FALSE)=3,1,0)),IF(T10="",0,IF(VLOOKUP(T10,怪物表!$A:$E,5,FALSE)=3,1,0)),IF(U10="",0,IF(VLOOKUP(U10,怪物表!$A:$E,5,FALSE)=3,1,0)),IF(V10="",0,IF(VLOOKUP(V10,怪物表!$A:$E,5,FALSE)=3,1,0)),IF(W10="",0,IF(VLOOKUP(W10,怪物表!$A:$E,5,FALSE)=3,1,0)))>0,180,120)*BW10/100 -> 120 | BW10: 100 | BX10: 100
A11: 211220 | B11: =VLOOKUP(A11,LevelbattleConfig!$A:$B,2,FALSE)&VLOOKUP(A11,LevelbattleConfig!$A:$B,3,FALSE) ->  | N11: 108000 | O11: 100010 | P11: 100009 | Q11: 100000 | X11: =SUM(IF(N11="",0,VLOOKUP(N11,怪物表!$A:$D,3,FALSE)),IF(O11="",0,VLOOKUP(O11,怪物表!$A:$D,3,FALSE)),IF(P11="",0,VLOOKUP(P11,怪物表!$A:$D,3,FALSE)),IF(Q11="",0,VLOOKUP(Q11,怪物表!$A:$D,3,FALSE)),IF(R11="",0,VLOOKUP(R11,怪物表!$A:$D,3,FALSE)),IF(S11="",0,VLOOKUP(S11,怪物表!$A:$D,3,FALSE)),IF(T11="",0,VLOOKUP(T11,怪物表!$A:$D,3,FALSE)),IF(U11="",0,VLOOKUP(U11,怪物表!$A:$D,3,FALSE)),IF(V11="",0,VLOOKUP(V11,怪物表!$A:$D,3,FALSE)),IF(W11="",0,VLOOKUP(W11,怪物表!$A:$D,3,FALSE))) -> 14 | Y11: =IF(N11="","",IF(VLOOKUP(N11,怪物表!$A:$D,4,FALSE)=1,2,0)) -> 0 | Z11: =IF(O11="","",IF(VLOOKUP(O11,怪物表!$A:$D,4,FALSE)=1,2,0)) -> 2 | AA11: =IF(P11="","",IF(VLOOKUP(P11,怪物表!$A:$D,4,FALSE)=1,2,0)) -> 2 | AB11: =IF(Q11="","",IF(VLOOKUP(Q11,怪物表!$A:$D,4,FALSE)=1,2,0)) -> 0 | AC11: =IF(R11="","",IF(VLOOKUP(R11,怪物表!$A:$D,4,FALSE)=1,2,0)) ->  | AD11: =IF(S11="","",IF(VLOOKUP(S11,怪物表!$A:$D,4,FALSE)=1,2,0)) ->  | AE11: =IF(T11="","",IF(VLOOKUP(T11,怪物表!$A:$D,4,FALSE)=1,2,0)) ->  | AF11: =IF(U11="","",IF(VLOOKUP(U11,怪物表!$A:$D,4,FALSE)=1,2,0)) ->  | AG11: =IF(V11="","",IF(VLOOKUP(V11,怪物表!$A:$D,4,FALSE)=1,2,0)) ->  | AH11: =IF(W11="","",IF(VLOOKUP(W11,怪物表!$A:$D,4,FALSE)=1,2,0)) ->  | AI11: 1.2 | AJ11: 0 | AK11: 1.2 | AL11: 2.4 | AM11: 3.6 | AU11: =IF(Y11="","",VLOOKUP(Y11,高度表!$A:$C,3,FALSE)) -> 0 | AV11: =IF(Z11="","",VLOOKUP(Z11,高度表!$A:$C,3,FALSE)) -> 1.8 | AW11: =IF(AA11="","",VLOOKUP(AA11,高度表!$A:$C,3,FALSE)) -> 1.8 | AX11: =IF(AB11="","",VLOOKUP(AB11,高度表!$A:$C,3,FALSE)) -> 0 | AY11: =IF(AC11="","",VLOOKUP(AC11,高度表!$A:$C,3,FALSE)) ->  | AZ11: =IF(AD11="","",VLOOKUP(AD11,高度表!$A:$C,3,FALSE)) ->  | BA11: =IF(AE11="","",VLOOKUP(AE11,高度表!$A:$C,3,FALSE)) ->  | BB11: =IF(AF11="","",VLOOKUP(AF11,高度表!$A:$C,3,FALSE)) ->  | BC11: =IF(AG11="","",VLOOKUP(AG11,高度表!$A:$C,3,FALSE)) ->  | BD11: =IF(AH11="","",VLOOKUP(AH11,高度表!$A:$C,3,FALSE)) ->  | BE11: 0.15 | BF11: 0 | BG11: 0.15 | BH11: 0.3 | BI11: 0.45 | BQ11: 108000;100010;100009;100000 | BR11: 0;1.8;1.8;0 | BS11: 0;1.2;2.4;3.6 | BT11: 0;0.15;0.3;0.45 | BU11: 0;0;0;0 | BV11: =IF(SUM(IF(N11="",0,IF(VLOOKUP(N11,怪物表!$A:$E,5,FALSE)=3,1,0)),IF(O11="",0,IF(VLOOKUP(O11,怪物表!$A:$E,5,FALSE)=3,1,0)),IF(P11="",0,IF(VLOOKUP(P11,怪物表!$A:$E,5,FALSE)=3,1,0)),IF(Q11="",0,IF(VLOOKUP(Q11,怪物表!$A:$E,5,FALSE)=3,1,0)),IF(R11="",0,IF(VLOOKUP(R11,怪物表!$A:$E,5,FALSE)=3,1,0)),IF(S11="",0,IF(VLOOKUP(S11,怪物表!$A:$E,5,FALSE)=3,1,0)),IF(T11="",0,IF(VLOOKUP(T11,怪物表!$A:$E,5,FALSE)=3,1,0)),IF(U11="",0,IF(VLOOKUP(U11,怪物表!$A:$E,5,FALSE)=3,1,0)),IF(V11="",0,IF(VLOOKUP(V11,怪物表!$A:$E,5,FALSE)=3,1,0)),IF(W11="",0,IF(VLOOKUP(W11,怪物表!$A:$E,5,FALSE)=3,1,0)))>0,180,120)*BW11/100 -> 120 | BW11: 100 | BX11: 100
A12: 211221 | B12: =VLOOKUP(A12,LevelbattleConfig!$A:$B,2,FALSE)&VLOOKUP(A12,LevelbattleConfig!$A:$B,3,FALSE) ->  | X12: =SUM(IF(N12="",0,VLOOKUP(N12,怪物表!$A:$D,3,FALSE)),IF(O12="",0,VLOOKUP(O12,怪物表!$A:$D,3,FALSE)),IF(P12="",0,VLOOKUP(P12,怪物表!$A:$D,3,FALSE)),IF(Q12="",0,VLOOKUP(Q12,怪物表!$A:$D,3,FALSE)),IF(R12="",0,VLOOKUP(R12,怪物表!$A:$D,3,FALSE)),IF(S12="",0,VLOOKUP(S12,怪物表!$A:$D,3,FALSE)),IF(T12="",0,VLOOKUP(T12,怪物表!$A:$D,3,FALSE)),IF(U12="",0,VLOOKUP(U12,怪物表!$A:$D,3,FALSE)),IF(V12="",0,VLOOKUP(V12,怪物表!$A:$D,3,FALSE)),IF(W12="",0,VLOOKUP(W12,怪物表!$A:$D,3,FALSE))) -> 0 | Y12: =IF(N12="","",IF(VLOOKUP(N12,怪物表!$A:$D,4,FALSE)=1,2,0)) ->  | Z12: =IF(O12="","",IF(VLOOKUP(O12,怪物表!$A:$D,4,FALSE)=1,2,0)) ->  | AA12: =IF(P12="","",IF(VLOOKUP(P12,怪物表!$A:$D,4,FALSE)=1,2,0)) ->  | AB12: =IF(Q12="","",IF(VLOOKUP(Q12,怪物表!$A:$D,4,FALSE)=1,2,0)) ->  | AC12: =IF(R12="","",IF(VLOOKUP(R12,怪物表!$A:$D,4,FALSE)=1,2,0)) ->  | AD12: =IF(S12="","",IF(VLOOKUP(S12,怪物表!$A:$D,4,FALSE)=1,2,0)) ->  | AE12: =IF(T12="","",IF(VLOOKUP(T12,怪物表!$A:$D,4,FALSE)=1,2,0)) ->  | AF12: =IF(U12="","",IF(VLOOKUP(U12,怪物表!$A:$D,4,FALSE)=1,2,0)) ->  | AG12: =IF(V12="","",IF(VLOOKUP(V12,怪物表!$A:$D,4,FALSE)=1,2,0)) ->  | AH12: =IF(W12="","",IF(VLOOKUP(W12,怪物表!$A:$D,4,FALSE)=1,2,0)) ->  | AI12: 1.2 | AJ12: 0 | AU12: =IF(Y12="","",VLOOKUP(Y12,高度表!$A:$C,3,FALSE)) ->  | AV12: =IF(Z12="","",VLOOKUP(Z12,高度表!$A:$C,3,FALSE)) ->  | AW12: =IF(AA12="","",VLOOKUP(AA12,高度表!$A:$C,3,FALSE)) ->  | AX12: =IF(AB12="","",VLOOKUP(AB12,高度表!$A:$C,3,FALSE)) ->  | AY12: =IF(AC12="","",VLOOKUP(AC12,高度表!$A:$C,3,FALSE)) ->  | AZ12: =IF(AD12="","",VLOOKUP(AD12,高度表!$A:$C,3,FALSE)) ->  | BA12: =IF(AE12="","",VLOOKUP(AE12,高度表!$A:$C,3,FALSE)) ->  | BB12: =IF(AF12="","",VLOOKUP(AF12,高度表!$A:$C,3,FALSE)) ->  | BC12: =IF(AG12="","",VLOOKUP(AG12,高度表!$A:$C,3,FALSE)) ->  | BD12: =IF(AH12="","",VLOOKUP(AH12,高度表!$A:$C,3,FALSE)) ->  | BE12: 0.15 | BS12: 0 | BV12: =IF(SUM(IF(N12="",0,IF(VLOOKUP(N12,怪物表!$A:$E,5,FALSE)=3,1,0)),IF(O12="",0,IF(VLOOKUP(O12,怪物表!$A:$E,5,FALSE)=3,1,0)),IF(P12="",0,IF(VLOOKUP(P12,怪物表!$A:$E,5,FALSE)=3,1,0)),IF(Q12="",0,IF(VLOOKUP(Q12,怪物表!$A:$E,5,FALSE)=3,1,0)),IF(R12="",0,IF(VLOOKUP(R12,怪物表!$A:$E,5,FALSE)=3,1,0)),IF(S12="",0,IF(VLOOKUP(S12,怪物表!$A:$E,5,FALSE)=3,1,0)),IF(T12="",0,IF(VLOOKUP(T12,怪物表!$A:$E,5,FALSE)=3,1,0)),IF(U12="",0,IF(VLOOKUP(U12,怪物表!$A:$E,5,FALSE)=3,1,0)),IF(V12="",0,IF(VLOOKUP(V12,怪物表!$A:$E,5,FALSE)=3,1,0)),IF(W12="",0,IF(VLOOKUP(W12,怪物表!$A:$E,5,FALSE)=3,1,0)))>0,180,120)*BW12/100 -> 120 | BW12: 100 | BX12: 100
A13: 211231 | B13: =VLOOKUP(A13,LevelbattleConfig!$A:$B,2,FALSE)&VLOOKUP(A13,LevelbattleConfig!$A:$B,3,FALSE) ->  | N13: 105000 | O13: 103000 | P13: 100009 | Q13: 103000 | R13: 103000 | X13: =SUM(IF(N13="",0,VLOOKUP(N13,怪物表!$A:$D,3,FALSE)),IF(O13="",0,VLOOKUP(O13,怪物表!$A:$D,3,FALSE)),IF(P13="",0,VLOOKUP(P13,怪物表!$A:$D,3,FALSE)),IF(Q13="",0,VLOOKUP(Q13,怪物表!$A:$D,3,FALSE)),IF(R13="",0,VLOOKUP(R13,怪物表!$A:$D,3,FALSE)),IF(S13="",0,VLOOKUP(S13,怪物表!$A:$D,3,FALSE)),IF(T13="",0,VLOOKUP(T13,怪物表!$A:$D,3,FALSE)),IF(U13="",0,VLOOKUP(U13,怪物表!$A:$D,3,FALSE)),IF(V13="",0,VLOOKUP(V13,怪物表!$A:$D,3,FALSE)),IF(W13="",0,VLOOKUP(W13,怪物表!$A:$D,3,FALSE))) -> 10 | Y13: =IF(N13="","",IF(VLOOKUP(N13,怪物表!$A:$D,4,FALSE)=1,2,0)) -> 0 | Z13: =IF(O13="","",IF(VLOOKUP(O13,怪物表!$A:$D,4,FALSE)=1,2,0)) -> 2 | AA13: =IF(P13="","",IF(VLOOKUP(P13,怪物表!$A:$D,4,FALSE)=1,2,0)) -> 2 | AB13: 1 | AC13: 3 | AD13: =IF(S13="","",IF(VLOOKUP(S13,怪物表!$A:$D,4,FALSE)=1,2,0)) ->  | AE13: =IF(T13="","",IF(VLOOKUP(T13,怪物表!$A:$D,4,FALSE)=1,2,0)) ->  | AF13: =IF(U13="","",IF(VLOOKUP(U13,怪物表!$A:$D,4,FALSE)=1,2,0)) ->  | AG13: =IF(V13="","",IF(VLOOKUP(V13,怪物表!$A:$D,4,FALSE)=1,2,0)) ->  | AH13: =IF(W13="","",IF(VLOOKUP(W13,怪物表!$A:$D,4,FALSE)=1,2,0)) ->  | AI13: 1.2 | AJ13: 0 | AK13: 1.2 | AL13: 2.4 | AM13: 3.6 | AN13: 4.8 | AU13: =IF(Y13="","",VLOOKUP(Y13,高度表!$A:$C,3,FALSE)) -> 0 | AV13: =IF(Z13="","",VLOOKUP(Z13,高度表!$A:$C,3,FALSE)) -> 1.8 | AW13: =IF(AA13="","",VLOOKUP(AA13,高度表!$A:$C,3,FALSE)) -> 1.8 | AX13: =IF(AB13="","",VLOOKUP(AB13,高度表!$A:$C,3,FALSE)) -> 1.1 | AY13: =IF(AC13="","",VLOOKUP(AC13,高度表!$A:$C,3,FALSE)) -> 2.5 | AZ13: =IF(AD13="","",VLOOKUP(AD13,高度表!$A:$C,3,FALSE)) ->  | BA13: =IF(AE13="","",VLOOKUP(AE13,高度表!$A:$C,3,FALSE)) ->  | BB13: =IF(AF13="","",VLOOKUP(AF13,高度表!$A:$C,3,FALSE)) ->  | BC13: =IF(AG13="","",VLOOKUP(AG13,高度表!$A:$C,3,FALSE)) ->  | BD13: =IF(AH13="","",VLOOKUP(AH13,高度表!$A:$C,3,FALSE)) ->  | BE13: 0.15 | BF13: 0 | BG13: 0.15 | BH13: 0.3 | BI13: 0.45 | BJ13: 0.6 | BQ13: 105000;103000;100009;103000;103000 | BR13: 0;1.8;1.8;1.1;2.5 | BS13: 0;1.2;2.4;3.6;4.8 | BT13: 0;0.15;0.3;0.45;0.6 | BU13: 0;0;0;0;0 | BV13: =IF(SUM(IF(N13="",0,IF(VLOOKUP(N13,怪物表!$A:$E,5,FALSE)=3,1,0)),IF(O13="",0,IF(VLOOKUP(O13,怪物表!$A:$E,5,FALSE)=3,1,0)),IF(P13="",0,IF(VLOOKUP(P13,怪物表!$A:$E,5,FALSE)=3,1,0)),IF(Q13="",0,IF(VLOOKUP(Q13,怪物表!$A:$E,5,FALSE)=3,1,0)),IF(R13="",0,IF(VLOOKUP(R13,怪物表!$A:$E,5,FALSE)=3,1,0)),IF(S13="",0,IF(VLOOKUP(S13,怪物表!$A:$E,5,FALSE)=3,1,0)),IF(T13="",0,IF(VLOOKUP(T13,怪物表!$A:$E,5,FALSE)=3,1,0)),IF(U13="",0,IF(VLOOKUP(U13,怪物表!$A:$E,5,FALSE)=3,1,0)),IF(V13="",0,IF(VLOOKUP(V13,怪物表!$A:$E,5,FALSE)=3,1,0)),IF(W13="",0,IF(VLOOKUP(W13,怪物表!$A:$E,5,FALSE)=3,1,0)))>0,180,120)*BW13/100 -> 120 | BW13: 100 | BX13: 100
A14: 211232 | B14: =VLOOKUP(A14,LevelbattleConfig!$A:$B,2,FALSE)&VLOOKUP(A14,LevelbattleConfig!$A:$B,3,FALSE) ->  | N14: 205000 | O14: 105000 | P14: 105000 | Q14: 105000 | R14: 105000 | X14: =SUM(IF(N14="",0,VLOOKUP(N14,怪物表!$A:$D,3,FALSE)),IF(O14="",0,VLOOKUP(O14,怪物表!$A:$D,3,FALSE)),IF(P14="",0,VLOOKUP(P14,怪物表!$A:$D,3,FALSE)),IF(Q14="",0,VLOOKUP(Q14,怪物表!$A:$D,3,FALSE)),IF(R14="",0,VLOOKUP(R14,怪物表!$A:$D,3,FALSE)),IF(S14="",0,VLOOKUP(S14,怪物表!$A:$D,3,FALSE)),IF(T14="",0,VLOOKUP(T14,怪物表!$A:$D,3,FALSE)),IF(U14="",0,VLOOKUP(U14,怪物表!$A:$D,3,FALSE)),IF(V14="",0,VLOOKUP(V14,怪物表!$A:$D,3,FALSE)),IF(W14="",0,VLOOKUP(W14,怪物表!$A:$D,3,FALSE))) -> 16 | Y14: =IF(N14="","",IF(VLOOKUP(N14,怪物表!$A:$D,4,FALSE)=1,2,0)) -> 0 | Z14: =IF(O14="","",IF(VLOOKUP(O14,怪物表!$A:$D,4,FALSE)=1,2,0)) -> 0 | AA14: 0 | AB14: =IF(Q14="","",IF(VLOOKUP(Q14,怪物表!$A:$D,4,FALSE)=1,2,0)) -> 0 | AC14: =IF(R14="","",IF(VLOOKUP(R14,怪物表!$A:$D,4,FALSE)=1,2,0)) -> 0 | AD14: =IF(S14="","",IF(VLOOKUP(S14,怪物表!$A:$D,4,FALSE)=1,2,0)) ->  | AE14: =IF(T14="","",IF(VLOOKUP(T14,怪物表!$A:$D,4,FALSE)=1,2,0)) ->  | AF14: =IF(U14="","",IF(VLOOKUP(U14,怪物表!$A:$D,4,FALSE)=1,2,0)) ->  | AG14: =IF(V14="","",IF(VLOOKUP(V14,怪物表!$A:$D,4,FALSE)=1,2,0)) ->  | AH14: =IF(W14="","",IF(VLOOKUP(W14,怪物表!$A:$D,4,FALSE)=1,2,0)) ->  | AI14: 1.2 | AJ14: 0 | AK14: 15 | AL14: =AK14+$AI14 -> 16.2 | AM14: =AL14+$AI14 -> 17.4 | AN14: 18.6 | AO14: 19.8 | AP14: 21 | AQ14: 22.2 | AR14: 23.4 | AS14: 24.6 | AU14: =IF(Y14="","",VLOOKUP(Y14,高度表!$A:$C,3,FALSE)) -> 0 | AV14: =IF(Z14="","",VLOOKUP(Z14,高度表!$A:$C,3,FALSE)) -> 0 | AW14: =IF(AA14="","",VLOOKUP(AA14,高度表!$A:$C,3,FALSE)) -> 0 | AX14: =IF(AB14="","",VLOOKUP(AB14,高度表!$A:$C,3,FALSE)) -> 0 | AY14: =IF(AC14="","",VLOOKUP(AC14,高度表!$A:$C,3,FALSE)) -> 0 | AZ14: =IF(AD14="","",VLOOKUP(AD14,高度表!$A:$C,3,FALSE)) ->  | BA14: =IF(AE14="","",VLOOKUP(AE14,高度表!$A:$C,3,FALSE)) ->  | BB14: =IF(AF14="","",VLOOKUP(AF14,高度表!$A:$C,3,FALSE)) ->  | BC14: =IF(AG14="","",VLOOKUP(AG14,高度表!$A:$C,3,FALSE)) ->  | BD14: =IF(AH14="","",VLOOKUP(AH14,高度表!$A:$C,3,FALSE)) ->  | BE14: 0.15 | BF14: 0 | BG14: 0.15 | BH14: 0.3 | BI14: 0.45 | BJ14: 0.6 | BQ14: 205000;105000;105000;105000;105000 | BR14: 0;0;0;0;0 | BS14: 0;15;16.2;17.4;18.6;19.8;21;22.2;23.4;24.6 | BT14: 0;0.15;0.3;0.45;0.6 | BU14: 0;0;0;0;0 | BV14: =IF(SUM(IF(N14="",0,IF(VLOOKUP(N14,怪物表!$A:$E,5,FALSE)=3,1,0)),IF(O14="",0,IF(VLOOKUP(O14,怪物表!$A:$E,5,FALSE)=3,1,0)),IF(P14="",0,IF(VLOOKUP(P14,怪物表!$A:$E,5,FALSE)=3,1,0)),IF(Q14="",0,IF(VLOOKUP(Q14,怪物表!$A:$E,5,FALSE)=3,1,0)),IF(R14="",0,IF(VLOOKUP(R14,怪物表!$A:$E,5,FALSE)=3,1,0)),IF(S14="",0,IF(VLOOKUP(S14,怪物表!$A:$E,5,FALSE)=3,1,0)),IF(T14="",0,IF(VLOOKUP(T14,怪物表!$A:$E,5,FALSE)=3,1,0)),IF(U14="",0,IF(VLOOKUP(U14,怪物表!$A:$E,5,FALSE)=3,1,0)),IF(V14="",0,IF(VLOOKUP(V14,怪物表!$A:$E,5,FALSE)=3,1,0)),IF(W14="",0,IF(VLOOKUP(W14,怪物表!$A:$E,5,FALSE)=3,1,0)))>0,180,120)*BW14/100 -> 120 | BW14: 100 | BX14: 100
A15: 211234 | B15: =VLOOKUP(A15,LevelbattleConfig!$A:$B,2,FALSE)&VLOOKUP(A15,LevelbattleConfig!$A:$B,3,FALSE) ->  | N15: 200004 | O15: 103000 | P15: 100009 | Q15: 103000 | R15: 103000 | X15: =SUM(IF(N15="",0,VLOOKUP(N15,怪物表!$A:$D,3,FALSE)),IF(O15="",0,VLOOKUP(O15,怪物表!$A:$D,3,FALSE)),IF(P15="",0,VLOOKUP(P15,怪物表!$A:$D,3,FALSE)),IF(Q15="",0,VLOOKUP(Q15,怪物表!$A:$D,3,FALSE)),IF(R15="",0,VLOOKUP(R15,怪物表!$A:$D,3,FALSE)),IF(S15="",0,VLOOKUP(S15,怪物表!$A:$D,3,FALSE)),IF(T15="",0,VLOOKUP(T15,怪物表!$A:$D,3,FALSE)),IF(U15="",0,VLOOKUP(U15,怪物表!$A:$D,3,FALSE)),IF(V15="",0,VLOOKUP(V15,怪物表!$A:$D,3,FALSE)),IF(W15="",0,VLOOKUP(W15,怪物表!$A:$D,3,FALSE))) -> 15 | Y15: =IF(N15="","",IF(VLOOKUP(N15,怪物表!$A:$D,4,FALSE)=1,2,0)) -> 0 | Z15: =IF(O15="","",IF(VLOOKUP(O15,怪物表!$A:$D,4,FALSE)=1,2,0)) -> 2 | AA15: 3 | AB15: 2 | AC15: =IF(R15="","",IF(VLOOKUP(R15,怪物表!$A:$D,4,FALSE)=1,2,0)) -> 2 | AD15: =IF(S15="","",IF(VLOOKUP(S15,怪物表!$A:$D,4,FALSE)=1,2,0)) ->  | AE15: =IF(T15="","",IF(VLOOKUP(T15,怪物表!$A:$D,4,FALSE)=1,2,0)) ->  | AF15: =IF(U15="","",IF(VLOOKUP(U15,怪物表!$A:$D,4,FALSE)=1,2,0)) ->  | AG15: =IF(V15="","",IF(VLOOKUP(V15,怪物表!$A:$D,4,FALSE)=1,2,0)) ->  | AH15: =IF(W15="","",IF(VLOOKUP(W15,怪物表!$A:$D,4,FALSE)=1,2,0)) ->  | AI15: 1.2 | AJ15: 0 | AK15: 1.2 | AL15: 2.4 | AM15: 3.6 | AN15: 4.8 | AU15: =IF(Y15="","",VLOOKUP(Y15,高度表!$A:$C,3,FALSE)) -> 0 | AV15: =IF(Z15="","",VLOOKUP(Z15,高度表!$A:$C,3,FALSE)) -> 1.8 | AW15: =IF(AA15="","",VLOOKUP(AA15,高度表!$A:$C,3,FALSE)) -> 2.5 | AX15: =IF(AB15="","",VLOOKUP(AB15,高度表!$A:$C,3,FALSE)) -> 1.8 | AY15: =IF(AC15="","",VLOOKUP(AC15,高度表!$A:$C,3,FALSE)) -> 1.8 | AZ15: =IF(AD15="","",VLOOKUP(AD15,高度表!$A:$C,3,FALSE)) ->  | BA15: =IF(AE15="","",VLOOKUP(AE15,高度表!$A:$C,3,FALSE)) ->  | BB15: =IF(AF15="","",VLOOKUP(AF15,高度表!$A:$C,3,FALSE)) ->  | BC15: =IF(AG15="","",VLOOKUP(AG15,高度表!$A:$C,3,FALSE)) ->  | BD15: =IF(AH15="","",VLOOKUP(AH15,高度表!$A:$C,3,FALSE)) ->  | BE15: 0.15 | BF15: 0 | BG15: 0.15 | BH15: 0.3 | BI15: 0.45 | BJ15: 0.6 | BQ15: 200004;103000;100009;103000;103000 | BR15: 0;1.8;2.5;1.8;1.8 | BS15: 0;1.2;2.4;3.6;4.8 | BT15: 0;0.15;0.3;0.45;0.6 | BU15: 0;0;0;0;0 | BV15: =IF(SUM(IF(N15="",0,IF(VLOOKUP(N15,怪物表!$A:$E,5,FALSE)=3,1,0)),IF(O15="",0,IF(VLOOKUP(O15,怪物表!$A:$E,5,FALSE)=3,1,0)),IF(P15="",0,IF(VLOOKUP(P15,怪物表!$A:$E,5,FALSE)=3,1,0)),IF(Q15="",0,IF(VLOOKUP(Q15,怪物表!$A:$E,5,FALSE)=3,1,0)),IF(R15="",0,IF(VLOOKUP(R15,怪物表!$A:$E,5,FALSE)=3,1,0)),IF(S15="",0,IF(VLOOKUP(S15,怪物表!$A:$E,5,FALSE)=3,1,0)),IF(T15="",0,IF(VLOOKUP(T15,怪物表!$A:$E,5,FALSE)=3,1,0)),IF(U15="",0,IF(VLOOKUP(U15,怪物表!$A:$E,5,FALSE)=3,1,0)),IF(V15="",0,IF(VLOOKUP(V15,怪物表!$A:$E,5,FALSE)=3,1,0)),IF(W15="",0,IF(VLOOKUP(W15,怪物表!$A:$E,5,FALSE)=3,1,0)))>0,180,120)*BW15/100 -> 120 | BW15: 100 | BX15: 100
A16: 211235 | B16: =VLOOKUP(A16,LevelbattleConfig!$A:$B,2,FALSE)&VLOOKUP(A16,LevelbattleConfig!$A:$B,3,FALSE) ->  | N16: 100004 | O16: 107000 | P16: 100009 | Q16: 103000 | X16: =SUM(IF(N16="",0,VLOOKUP(N16,怪物表!$A:$D,3,FALSE)),IF(O16="",0,VLOOKUP(O16,怪物表!$A:$D,3,FALSE)),IF(P16="",0,VLOOKUP(P16,怪物表!$A:$D,3,FALSE)),IF(Q16="",0,VLOOKUP(Q16,怪物表!$A:$D,3,FALSE)),IF(R16="",0,VLOOKUP(R16,怪物表!$A:$D,3,FALSE)),IF(S16="",0,VLOOKUP(S16,怪物表!$A:$D,3,FALSE)),IF(T16="",0,VLOOKUP(T16,怪物表!$A:$D,3,FALSE)),IF(U16="",0,VLOOKUP(U16,怪物表!$A:$D,3,FALSE)),IF(V16="",0,VLOOKUP(V16,怪物表!$A:$D,3,FALSE)),IF(W16="",0,VLOOKUP(W16,怪物表!$A:$D,3,FALSE))) -> 14 | Y16: =IF(N16="","",IF(VLOOKUP(N16,怪物表!$A:$D,4,FALSE)=1,2,0)) -> 0 | Z16: 3 | AA16: =IF(P16="","",IF(VLOOKUP(P16,怪物表!$A:$D,4,FALSE)=1,2,0)) -> 2 | AB16: 3 | AC16: =IF(R16="","",IF(VLOOKUP(R16,怪物表!$A:$D,4,FALSE)=1,2,0)) ->  | AD16: =IF(S16="","",IF(VLOOKUP(S16,怪物表!$A:$D,4,FALSE)=1,2,0)) ->  | AE16: =IF(T16="","",IF(VLOOKUP(T16,怪物表!$A:$D,4,FALSE)=1,2,0)) ->  | AF16: =IF(U16="","",IF(VLOOKUP(U16,怪物表!$A:$D,4,FALSE)=1,2,0)) ->  | AG16: =IF(V16="","",IF(VLOOKUP(V16,怪物表!$A:$D,4,FALSE)=1,2,0)) ->  | AH16: =IF(W16="","",IF(VLOOKUP(W16,怪物表!$A:$D,4,FALSE)=1,2,0)) ->  | AI16: 1.2 | AJ16: 0 | AK16: 1.2 | AL16: 2.4 | AM16: 3.6 | AU16: =IF(Y16="","",VLOOKUP(Y16,高度表!$A:$C,3,FALSE)) -> 0 | AV16: =IF(Z16="","",VLOOKUP(Z16,高度表!$A:$C,3,FALSE)) -> 2.5 | AW16: =IF(AA16="","",VLOOKUP(AA16,高度表!$A:$C,3,FALSE)) -> 1.8 | AX16: =IF(AB16="","",VLOOKUP(AB16,高度表!$A:$C,3,FALSE)) -> 2.5 | AY16: =IF(AC16="","",VLOOKUP(AC16,高度表!$A:$C,3,FALSE)) ->  | AZ16: =IF(AD16="","",VLOOKUP(AD16,高度表!$A:$C,3,FALSE)) ->  | BA16: =IF(AE16="","",VLOOKUP(AE16,高度表!$A:$C,3,FALSE)) ->  | BB16: =IF(AF16="","",VLOOKUP(AF16,高度表!$A:$C,3,FALSE)) ->  | BC16: =IF(AG16="","",VLOOKUP(AG16,高度表!$A:$C,3,FALSE)) ->  | BD16: =IF(AH16="","",VLOOKUP(AH16,高度表!$A:$C,3,FALSE)) ->  | BE16: 0.15 | BF16: 0 | BG16: 0.15 | BH16: 0.3 | BI16: 0.45 | BQ16: 100004;107000;100009;103000 | BR16: 0;2.5;1.8;2.5 | BS16: 0;1.2;2.4;3.6 | BT16: 0;0.15;0.3;0.45 | BU16: 0;0;0;0 | BV16: =IF(SUM(IF(N16="",0,IF(VLOOKUP(N16,怪物表!$A:$E,5,FALSE)=3,1,0)),IF(O16="",0,IF(VLOOKUP(O16,怪物表!$A:$E,5,FALSE)=3,1,0)),IF(P16="",0,IF(VLOOKUP(P16,怪物表!$A:$E,5,FALSE)=3,1,0)),IF(Q16="",0,IF(VLOOKUP(Q16,怪物表!$A:$E,5,FALSE)=3,1,0)),IF(R16="",0,IF(VLOOKUP(R16,怪物表!$A:$E,5,FALSE)=3,1,0)),IF(S16="",0,IF(VLOOKUP(S16,怪物表!$A:$E,5,FALSE)=3,1,0)),IF(T16="",0,IF(VLOOKUP(T16,怪物表!$A:$E,5,FALSE)=3,1,0)),IF(U16="",0,IF(VLOOKUP(U16,怪物表!$A:$E,5,FALSE)=3,1,0)),IF(V16="",0,IF(VLOOKUP(V16,怪物表!$A:$E,5,FALSE)=3,1,0)),IF(W16="",0,IF(VLOOKUP(W16,怪物表!$A:$E,5,FALSE)=3,1,0)))>0,180,120)*BW16/100 -> 120 | BW16: 100 | BX16: 100
A17: 211237 | B17: =VLOOKUP(A17,LevelbattleConfig!$A:$B,2,FALSE)&VLOOKUP(A17,LevelbattleConfig!$A:$B,3,FALSE) ->  | N17: 108000 | O17: 107000 | X17: =SUM(IF(N17="",0,VLOOKUP(N17,怪物表!$A:$D,3,FALSE)),IF(O17="",0,VLOOKUP(O17,怪物表!$A:$D,3,FALSE)),IF(P17="",0,VLOOKUP(P17,怪物表!$A:$D,3,FALSE)),IF(Q17="",0,VLOOKUP(Q17,怪物表!$A:$D,3,FALSE)),IF(R17="",0,VLOOKUP(R17,怪物表!$A:$D,3,FALSE)),IF(S17="",0,VLOOKUP(S17,怪物表!$A:$D,3,FALSE)),IF(T17="",0,VLOOKUP(T17,怪物表!$A:$D,3,FALSE)),IF(U17="",0,VLOOKUP(U17,怪物表!$A:$D,3,FALSE)),IF(V17="",0,VLOOKUP(V17,怪物表!$A:$D,3,FALSE)),IF(W17="",0,VLOOKUP(W17,怪物表!$A:$D,3,FALSE))) -> 16 | Y17: =IF(N17="","",IF(VLOOKUP(N17,怪物表!$A:$D,4,FALSE)=1,2,0)) -> 0 | Z17: 2 | AA17: =IF(P17="","",IF(VLOOKUP(P17,怪物表!$A:$D,4,FALSE)=1,2,0)) ->  | AB17: 3 | AC17: =IF(R17="","",IF(VLOOKUP(R17,怪物表!$A:$D,4,FALSE)=1,2,0)) ->  | AD17: =IF(S17="","",IF(VLOOKUP(S17,怪物表!$A:$D,4,FALSE)=1,2,0)) ->  | AE17: =IF(T17="","",IF(VLOOKUP(T17,怪物表!$A:$D,4,FALSE)=1,2,0)) ->  | AF17: =IF(U17="","",IF(VLOOKUP(U17,怪物表!$A:$D,4,FALSE)=1,2,0)) ->  | AG17: =IF(V17="","",IF(VLOOKUP(V17,怪物表!$A:$D,4,FALSE)=1,2,0)) ->  | AH17: =IF(W17="","",IF(VLOOKUP(W17,怪物表!$A:$D,4,FALSE)=1,2,0)) ->  | AI17: 1.2 | AJ17: 0 | AK17: 1.2 | AU17: =IF(Y17="","",VLOOKUP(Y17,高度表!$A:$C,3,FALSE)) -> 0 | AV17: =IF(Z17="","",VLOOKUP(Z17,高度表!$A:$C,3,FALSE)) -> 1.8 | AW17: =IF(AA17="","",VLOOKUP(AA17,高度表!$A:$C,3,FALSE)) ->  | AX17: =IF(AB17="","",VLOOKUP(AB17,高度表!$A:$C,3,FALSE)) -> 2.5 | AY17: =IF(AC17="","",VLOOKUP(AC17,高度表!$A:$C,3,FALSE)) ->  | AZ17: =IF(AD17="","",VLOOKUP(AD17,高度表!$A:$C,3,FALSE)) ->  | BA17: =IF(AE17="","",VLOOKUP(AE17,高度表!$A:$C,3,FALSE)) ->  | BB17: =IF(AF17="","",VLOOKUP(AF17,高度表!$A:$C,3,FALSE)) ->  | BC17: =IF(AG17="","",VLOOKUP(AG17,高度表!$A:$C,3,FALSE)) ->  | BD17: =IF(AH17="","",VLOOKUP(AH17,高度表!$A:$C,3,FALSE)) ->  | BE17: 0.15 | BF17: 0 | BG17: 0.15 | BQ17: 108000;107000 | BR17: 0;1.8;2.5 | BS17: 0;1.2 | BT17: 0;0.15 | BU17: 0;0 | BV17: =IF(SUM(IF(N17="",0,IF(VLOOKUP(N17,怪物表!$A:$E,5,FALSE)=3,1,0)),IF(O17="",0,IF(VLOOKUP(O17,怪物表!$A:$E,5,FALSE)=3,1,0)),IF(P17="",0,IF(VLOOKUP(P17,怪物表!$A:$E,5,FALSE)=3,1,0)),IF(Q17="",0,IF(VLOOKUP(Q17,怪物表!$A:$E,5,FALSE)=3,1,0)),IF(R17="",0,IF(VLOOKUP(R17,怪物表!$A:$E,5,FALSE)=3,1,0)),IF(S17="",0,IF(VLOOKUP(S17,怪物表!$A:$E,5,FALSE)=3,1,0)),IF(T17="",0,IF(VLOOKUP(T17,怪物表!$A:$E,5,FALSE)=3,1,0)),IF(U17="",0,IF(VLOOKUP(U17,怪物表!$A:$E,5,FALSE)=3,1,0)),IF(V17="",0,IF(VLOOKUP(V17,怪物表!$A:$E,5,FALSE)=3,1,0)),IF(W17="",0,IF(VLOOKUP(W17,怪物表!$A:$E,5,FALSE)=3,1,0)))>0,180,120)*BW17/100 -> 120 | BW17: 100 | BX17: 100
A18: 211238 | B18: =VLOOKUP(A18,LevelbattleConfig!$A:$B,2,FALSE)&VLOOKUP(A18,LevelbattleConfig!$A:$B,3,FALSE) ->  | N18: 200000 | O18: 200004 | P18: 200001 | Q18: 200002 | X18: =SUM(IF(N18="",0,VLOOKUP(N18,怪物表!$A:$D,3,FALSE)),IF(O18="",0,VLOOKUP(O18,怪物表!$A:$D,3,FALSE)),IF(P18="",0,VLOOKUP(P18,怪物表!$A:$D,3,FALSE)),IF(Q18="",0,VLOOKUP(Q18,怪物表!$A:$D,3,FALSE)),IF(R18="",0,VLOOKUP(R18,怪物表!$A:$D,3,FALSE)),IF(S18="",0,VLOOKUP(S18,怪物表!$A:$D,3,FALSE)),IF(T18="",0,VLOOKUP(T18,怪物表!$A:$D,3,FALSE)),IF(U18="",0,VLOOKUP(U18,怪物表!$A:$D,3,FALSE)),IF(V18="",0,VLOOKUP(V18,怪物表!$A:$D,3,FALSE)),IF(W18="",0,VLOOKUP(W18,怪物表!$A:$D,3,FALSE))) -> 28 | Y18: =IF(N18="","",IF(VLOOKUP(N18,怪物表!$A:$D,4,FALSE)=1,2,0)) -> 0 | Z18: 0 | AA18: =IF(P18="","",IF(VLOOKUP(P18,怪物表!$A:$D,4,FALSE)=1,2,0)) -> 0 | AB18: 0 | AC18: =IF(R18="","",IF(VLOOKUP(R18,怪物表!$A:$D,4,FALSE)=1,2,0)) ->  | AD18: =IF(S18="","",IF(VLOOKUP(S18,怪物表!$A:$D,4,FALSE)=1,2,0)) ->  | AE18: =IF(T18="","",IF(VLOOKUP(T18,怪物表!$A:$D,4,FALSE)=1,2,0)) ->  | AF18: =IF(U18="","",IF(VLOOKUP(U18,怪物表!$A:$D,4,FALSE)=1,2,0)) ->  | AG18: =IF(V18="","",IF(VLOOKUP(V18,怪物表!$A:$D,4,FALSE)=1,2,0)) ->  | AH18: =IF(W18="","",IF(VLOOKUP(W18,怪物表!$A:$D,4,FALSE)=1,2,0)) ->  | AI18: 1.2 | AJ18: 0 | AK18: 1.2 | AL18: 2.4 | AM18: 3.6 | AU18: =IF(Y18="","",VLOOKUP(Y18,高度表!$A:$C,3,FALSE)) -> 0 | AV18: =IF(Z18="","",VLOOKUP(Z18,高度表!$A:$C,3,FALSE)) -> 0 | AW18: =IF(AA18="","",VLOOKUP(AA18,高度表!$A:$C,3,FALSE)) -> 0 | AX18: =IF(AB18="","",VLOOKUP(AB18,高度表!$A:$C,3,FALSE)) -> 0 | AY18: =IF(AC18="","",VLOOKUP(AC18,高度表!$A:$C,3,FALSE)) ->  | AZ18: =IF(AD18="","",VLOOKUP(AD18,高度表!$A:$C,3,FALSE)) ->  | BA18: =IF(AE18="","",VLOOKUP(AE18,高度表!$A:$C,3,FALSE)) ->  | BB18: =IF(AF18="","",VLOOKUP(AF18,高度表!$A:$C,3,FALSE)) ->  | BC18: =IF(AG18="","",VLOOKUP(AG18,高度表!$A:$C,3,FALSE)) ->  | BD18: =IF(AH18="","",VLOOKUP(AH18,高度表!$A:$C,3,FALSE)) ->  | BE18: 0.15 | BF18: 0 | BG18: 0.15 | BH18: 0.3 | BI18: 0.45 | BQ18: 200000;200004;200001;200002 | BR18: 0;0;0;0 | BS18: 0;1.2;2.4;3.6 | BT18: 0;0.15;0.3;0.45 | BU18: 0;0;0;0 | BV18: =IF(SUM(IF(N18="",0,IF(VLOOKUP(N18,怪物表!$A:$E,5,FALSE)=3,1,0)),IF(O18="",0,IF(VLOOKUP(O18,怪物表!$A:$E,5,FALSE)=3,1,0)),IF(P18="",0,IF(VLOOKUP(P18,怪物表!$A:$E,5,FALSE)=3,1,0)),IF(Q18="",0,IF(VLOOKUP(Q18,怪物表!$A:$E,5,FALSE)=3,1,0)),IF(R18="",0,IF(VLOOKUP(R18,怪物表!$A:$E,5,FALSE)=3,1,0)),IF(S18="",0,IF(VLOOKUP(S18,怪物表!$A:$E,5,FALSE)=3,1,0)),IF(T18="",0,IF(VLOOKUP(T18,怪物表!$A:$E,5,FALSE)=3,1,0)),IF(U18="",0,IF(VLOOKUP(U18,怪物表!$A:$E,5,FALSE)=3,1,0)),IF(V18="",0,IF(VLOOKUP(V18,怪物表!$A:$E,5,FALSE)=3,1,0)),IF(W18="",0,IF(VLOOKUP(W18,怪物表!$A:$E,5,FALSE)=3,1,0)))>0,180,120)*BW18/100 -> 120 | BW18: 100 | BX18: 100
A19: 100001 | B19: 小怪 | N19: 100004 | O19: 100011 | P19: 100011 | Q19: 100003 | R19: 100005 | S19: 100003 | X19: =SUM(IF(N19="",0,VLOOKUP(N19,怪物表!$A:$D,3,FALSE)),IF(O19="",0,VLOOKUP(O19,怪物表!$A:$D,3,FALSE)),IF(P19="",0,VLOOKUP(P19,怪物表!$A:$D,3,FALSE)),IF(Q19="",0,VLOOKUP(Q19,怪物表!$A:$D,3,FALSE)),IF(R19="",0,VLOOKUP(R19,怪物表!$A:$D,3,FALSE)),IF(S19="",0,VLOOKUP(S19,怪物表!$A:$D,3,FALSE)),IF(T19="",0,VLOOKUP(T19,怪物表!$A:$D,3,FALSE)),IF(U19="",0,VLOOKUP(U19,怪物表!$A:$D,3,FALSE)),IF(V19="",0,VLOOKUP(V19,怪物表!$A:$D,3,FALSE)),IF(W19="",0,VLOOKUP(W19,怪物表!$A:$D,3,FALSE))) -> 12 | Y19: =IF(N19="","",IF(VLOOKUP(N19,怪物表!$A:$D,4,FALSE)=1,2,0)) -> 0 | Z19: =IF(O19="","",IF(VLOOKUP(O19,怪物表!$A:$D,4,FALSE)=1,2,0)) -> 2 | AA19: =IF(P19="","",IF(VLOOKUP(P19,怪物表!$A:$D,4,FALSE)=1,2,0)) -> 2 | AB19: =IF(Q19="","",IF(VLOOKUP(Q19,怪物表!$A:$D,4,FALSE)=1,2,0)) -> 0 | AC19: =IF(R19="","",IF(VLOOKUP(R19,怪物表!$A:$D,4,FALSE)=1,2,0)) -> 0 | AD19: =IF(S19="","",IF(VLOOKUP(S19,怪物表!$A:$D,4,FALSE)=1,2,0)) -> 0 | AE19: =IF(T19="","",IF(VLOOKUP(T19,怪物表!$A:$D,4,FALSE)=1,2,0)) ->  | AF19: =IF(U19="","",IF(VLOOKUP(U19,怪物表!$A:$D,4,FALSE)=1,2,0)) ->  | AG19: =IF(V19="","",IF(VLOOKUP(V19,怪物表!$A:$D,4,FALSE)=1,2,0)) ->  | AH19: =IF(W19="","",IF(VLOOKUP(W19,怪物表!$A:$D,4,FALSE)=1,2,0)) ->  | AI19: 1.2 | AJ19: 0 | AK19: =IF(O19="","",1*$AI19+$AJ19) -> 1.2 | AL19: =IF(P19="","",2*$AI19+$AJ19) -> 2.4 | AM19: =IF(Q19="","",3*$AI19+$AJ19) -> 3.6 | AN19: =IF(R19="","",4*$AI19+$AJ19) -> 4.8 | AO19: =IF(S19="","",5*$AI19+$AJ19) -> 6 | AP19: =IF(T19="","",6*$AI19+$AJ19) ->  | AQ19: =IF(U19="","",7*$AI19+$AJ19) ->  | AR19: =IF(V19="","",8*$AI19+$AJ19) ->  | AS19: =IF(W19="","",9*$AI19+$AJ19) ->  | AU19: =IF(Y19="","",VLOOKUP(Y19,高度表!$A:$C,3,FALSE)) -> 0 | AV19: =IF(Z19="","",VLOOKUP(Z19,高度表!$A:$C,3,FALSE)) -> 1.8 | AW19: =IF(AA19="","",VLOOKUP(AA19,高度表!$A:$C,3,FALSE)) -> 1.8 | AX19: =IF(AB19="","",VLOOKUP(AB19,高度表!$A:$C,3,FALSE)) -> 0 | AY19: =IF(AC19="","",VLOOKUP(AC19,高度表!$A:$C,3,FALSE)) -> 0 | AZ19: =IF(AD19="","",VLOOKUP(AD19,高度表!$A:$C,3,FALSE)) -> 0 | BA19: =IF(AE19="","",VLOOKUP(AE19,高度表!$A:$C,3,FALSE)) ->  | BB19: =IF(AF19="","",VLOOKUP(AF19,高度表!$A:$C,3,FALSE)) ->  | BC19: =IF(AG19="","",VLOOKUP(AG19,高度表!$A:$C,3,FALSE)) ->  | BD19: =IF(AH19="","",VLOOKUP(AH19,高度表!$A:$C,3,FALSE)) ->  | BE19: 0.15 | BF19: 0 | BG19: 0.15 | BH19: 0.3 | BI19: 0.45 | BJ19: 0.6 | BK19: 0.75 | BQ19: 100004;100011;100011;100003;100005;100003 | BR19: 0;1.8;1.8;0;0;0 | BS19: 0;1.2;2.4;3.6;4.8;6 | BT19: 0;0.15;0.3;0.45;0.6;0.75 | BU19: 0;0;0;0;0;0 | BV19: 120 | BW19: 100 | BX19: 100
A20: 100002 | B20: 小怪 | N20: 108000 | O20: 100008 | P20: 100009 | Q20: 100000 | X20: =SUM(IF(N20="",0,VLOOKUP(N20,怪物表!$A:$D,3,FALSE)),IF(O20="",0,VLOOKUP(O20,怪物表!$A:$D,3,FALSE)),IF(P20="",0,VLOOKUP(P20,怪物表!$A:$D,3,FALSE)),IF(Q20="",0,VLOOKUP(Q20,怪物表!$A:$D,3,FALSE)),IF(R20="",0,VLOOKUP(R20,怪物表!$A:$D,3,FALSE)),IF(S20="",0,VLOOKUP(S20,怪物表!$A:$D,3,FALSE)),IF(T20="",0,VLOOKUP(T20,怪物表!$A:$D,3,FALSE)),IF(U20="",0,VLOOKUP(U20,怪物表!$A:$D,3,FALSE)),IF(V20="",0,VLOOKUP(V20,怪物表!$A:$D,3,FALSE)),IF(W20="",0,VLOOKUP(W20,怪物表!$A:$D,3,FALSE))) -> 14 | Y20: =IF(N20="","",IF(VLOOKUP(N20,怪物表!$A:$D,4,FALSE)=1,2,0)) -> 0 | Z20: =IF(O20="","",IF(VLOOKUP(O20,怪物表!$A:$D,4,FALSE)=1,2,0)) -> 2 | AA20: =IF(P20="","",IF(VLOOKUP(P20,怪物表!$A:$D,4,FALSE)=1,2,0)) -> 2 | AB20: =IF(Q20="","",IF(VLOOKUP(Q20,怪物表!$A:$D,4,FALSE)=1,2,0)) -> 0 | AC20: =IF(R20="","",IF(VLOOKUP(R20,怪物表!$A:$D,4,FALSE)=1,2,0)) ->  | AD20: =IF(S20="","",IF(VLOOKUP(S20,怪物表!$A:$D,4,FALSE)=1,2,0)) ->  | AE20: =IF(T20="","",IF(VLOOKUP(T20,怪物表!$A:$D,4,FALSE)=1,2,0)) ->  | AF20: =IF(U20="","",IF(VLOOKUP(U20,怪物表!$A:$D,4,FALSE)=1,2,0)) ->  | AG20: =IF(V20="","",IF(VLOOKUP(V20,怪物表!$A:$D,4,FALSE)=1,2,0)) ->  | AH20: =IF(W20="","",IF(VLOOKUP(W20,怪物表!$A:$D,4,FALSE)=1,2,0)) ->  | AI20: 1.2 | AJ20: 0 | AK20: 1.2 | AL20: 2.4 | AM20: 3.6 | AU20: =IF(Y20="","",VLOOKUP(Y20,高度表!$A:$C,3,FALSE)) -> 0 | AV20: =IF(Z20="","",VLOOKUP(Z20,高度表!$A:$C,3,FALSE)) -> 1.8 | AW20: =IF(AA20="","",VLOOKUP(AA20,高度表!$A:$C,3,FALSE)) -> 1.8 | AX20: =IF(AB20="","",VLOOKUP(AB20,高度表!$A:$C,3,FALSE)) -> 0 | AY20: =IF(AC20="","",VLOOKUP(AC20,高度表!$A:$C,3,FALSE)) ->  | AZ20: =IF(AD20="","",VLOOKUP(AD20,高度表!$A:$C,3,FALSE)) ->  | BA20: =IF(AE20="","",VLOOKUP(AE20,高度表!$A:$C,3,FALSE)) ->  | BB20: =IF(AF20="","",VLOOKUP(AF20,高度表!$A:$C,3,FALSE)) ->  | BC20: =IF(AG20="","",VLOOKUP(AG20,高度表!$A:$C,3,FALSE)) ->  | BD20: =IF(AH20="","",VLOOKUP(AH20,高度表!$A:$C,3,FALSE)) ->  | BE20: 0.15 | BF20: 0 | BG20: 0.15 | BH20: 0.3 | BI20: 0.45 | BQ20: 108000;100008;100009;100000 | BR20: 0;1.8;1.8;0 | BS20: 0;1.2;2.4;3.6 | BT20: 0;0.15;0.3;0.45 | BU20: 0;0;0;0 | BV20: 120 | BW20: 100 | BX20: 100
A21: 100003 | B21: 小怪 | N21: 108000 | O21: 100009 | P21: 100008 | Q21: 100013 | R21: 100001 | X21: =SUM(IF(N21="",0,VLOOKUP(N21,怪物表!$A:$D,3,FALSE)),IF(O21="",0,VLOOKUP(O21,怪物表!$A:$D,3,FALSE)),IF(P21="",0,VLOOKUP(P21,怪物表!$A:$D,3,FALSE)),IF(Q21="",0,VLOOKUP(Q21,怪物表!$A:$D,3,FALSE)),IF(R21="",0,VLOOKUP(R21,怪物表!$A:$D,3,FALSE)),IF(S21="",0,VLOOKUP(S21,怪物表!$A:$D,3,FALSE)),IF(T21="",0,VLOOKUP(T21,怪物表!$A:$D,3,FALSE)),IF(U21="",0,VLOOKUP(U21,怪物表!$A:$D,3,FALSE)),IF(V21="",0,VLOOKUP(V21,怪物表!$A:$D,3,FALSE)),IF(W21="",0,VLOOKUP(W21,怪物表!$A:$D,3,FALSE))) -> 16 | Y21: 0 | Z21: 3 | AA21: 2 | AB21: 3 | AC21: 0 | AI21: 1.2 | AJ21: 0 | AK21: 1.2 | AL21: 2.4 | AM21: 3.6 | AN21: 4.8 | AU21: =IF(Y21="","",VLOOKUP(Y21,高度表!$A:$C,3,FALSE)) -> 0 | AV21: =IF(Z21="","",VLOOKUP(Z21,高度表!$A:$C,3,FALSE)) -> 2.5 | AW21: =IF(AA21="","",VLOOKUP(AA21,高度表!$A:$C,3,FALSE)) -> 1.8 | AX21: =IF(AB21="","",VLOOKUP(AB21,高度表!$A:$C,3,FALSE)) -> 2.5 | AY21: =IF(AC21="","",VLOOKUP(AC21,高度表!$A:$C,3,FALSE)) -> 0 | AZ21: =IF(AD21="","",VLOOKUP(AD21,高度表!$A:$C,3,FALSE)) ->  | BA21: =IF(AE21="","",VLOOKUP(AE21,高度表!$A:$C,3,FALSE)) ->  | BB21: =IF(AF21="","",VLOOKUP(AF21,高度表!$A:$C,3,FALSE)) ->  | BC21: =IF(AG21="","",VLOOKUP(AG21,高度表!$A:$C,3,FALSE)) ->  | BD21: =IF(AH21="","",VLOOKUP(AH21,高度表!$A:$C,3,FALSE)) ->  | BE21: 0.15 | BF21: 0 | BG21: 0.15 | BH21: 0.3 | BI21: 0.45 | BJ21: 0.6 | BQ21: 108000;100009;100008;100013;100001 | BR21: 0;2.5;1.8;2.5;0 | BS21: 0;1.2;2.4;3.6;4.8 | BT21: 0;0.15;0.3;0.45;0.6 | BU21: 0;0;0;0;0 | BV21: 120 | BW21: 100 | BX21: 100
A22: 100004 | B22: 精英 | N22: 108000 | O22: 100010 | P22: 100009 | Q22: 100000 | R22: 100005 | S22: 100006 | X22: =SUM(IF(N22="",0,VLOOKUP(N22,怪物表!$A:$D,3,FALSE)),IF(O22="",0,VLOOKUP(O22,怪物表!$A:$D,3,FALSE)),IF(P22="",0,VLOOKUP(P22,怪物表!$A:$D,3,FALSE)),IF(Q22="",0,VLOOKUP(Q22,怪物表!$A:$D,3,FALSE)),IF(R22="",0,VLOOKUP(R22,怪物表!$A:$D,3,FALSE)),IF(S22="",0,VLOOKUP(S22,怪物表!$A:$D,3,FALSE)),IF(T22="",0,VLOOKUP(T22,怪物表!$A:$D,3,FALSE)),IF(U22="",0,VLOOKUP(U22,怪物表!$A:$D,3,FALSE)),IF(V22="",0,VLOOKUP(V22,怪物表!$A:$D,3,FALSE)),IF(W22="",0,VLOOKUP(W22,怪物表!$A:$D,3,FALSE))) -> 18 | Y22: =IF(N22="","",IF(VLOOKUP(N22,怪物表!$A:$D,4,FALSE)=1,2,0)) -> 0 | Z22: 0 | AA22: =IF(P22="","",IF(VLOOKUP(P22,怪物表!$A:$D,4,FALSE)=1,2,0)) -> 2 | AB22: =IF(Q22="","",IF(VLOOKUP(Q22,怪物表!$A:$D,4,FALSE)=1,2,0)) -> 0 | AC22: =IF(R22="","",IF(VLOOKUP(R22,怪物表!$A:$D,4,FALSE)=1,2,0)) -> 0 | AD22: =IF(S22="","",IF(VLOOKUP(S22,怪物表!$A:$D,4,FALSE)=1,2,0)) -> 0 | AE22: =IF(T22="","",IF(VLOOKUP(T22,怪物表!$A:$D,4,FALSE)=1,2,0)) ->  | AF22: =IF(U22="","",IF(VLOOKUP(U22,怪物表!$A:$D,4,FALSE)=1,2,0)) ->  | AG22: =IF(V22="","",IF(VLOOKUP(V22,怪物表!$A:$D,4,FALSE)=1,2,0)) ->  | AH22: =IF(W22="","",IF(VLOOKUP(W22,怪物表!$A:$D,4,FALSE)=1,2,0)) ->  | AI22: 1.2 | AJ22: 0 | AK22: 1.2 | AL22: 2.4 | AM22: 3.6 | AN22: 4.8 | AO22: 6 | AU22: =IF(Y22="","",VLOOKUP(Y22,高度表!$A:$C,3,FALSE)) -> 0 | AV22: =IF(Z22="","",VLOOKUP(Z22,高度表!$A:$C,3,FALSE)) -> 0 | AW22: =IF(AA22="","",VLOOKUP(AA22,高度表!$A:$C,3,FALSE)) -> 1.8 | AX22: =IF(AB22="","",VLOOKUP(AB22,高度表!$A:$C,3,FALSE)) -> 0 | AY22: =IF(AC22="","",VLOOKUP(AC22,高度表!$A:$C,3,FALSE)) -> 0 | AZ22: =IF(AD22="","",VLOOKUP(AD22,高度表!$A:$C,3,FALSE)) -> 0 | BA22: =IF(AE22="","",VLOOKUP(AE22,高度表!$A:$C,3,FALSE)) ->  | BB22: =IF(AF22="","",VLOOKUP(AF22,高度表!$A:$C,3,FALSE)) ->  | BC22: =IF(AG22="","",VLOOKUP(AG22,高度表!$A:$C,3,FALSE)) ->  | BD22: =IF(AH22="","",VLOOKUP(AH22,高度表!$A:$C,3,FALSE)) ->  | BE22: 0.15 | BF22: 0 | BG22: 0.15 | BH22: 0.3 | BI22: 0.45 | BJ22: 0.6 | BK22: 0.75 | BQ22: 108000;100010;100009;100000;100005;100006 | BR22: 0;0;1.8;0;0;0 | BS22: 0;1.2;2.4;3.6;4.8;6 | BT22: 0;0.15;0.3;0.45;0.6;0.75 | BU22: 0;0;0;0;0;0 | BV22: 120 | BW22: 100 | BX22: 100
A23: 100101 | B23: 小怪 | N23: 107000 | O23: 100009 | P23: 100009 | Q23: 100010 | R23: 100011 | X23: =SUM(IF(N23="",0,VLOOKUP(N23,怪物表!$A:$D,3,FALSE)),IF(O23="",0,VLOOKUP(O23,怪物表!$A:$D,3,FALSE)),IF(P23="",0,VLOOKUP(P23,怪物表!$A:$D,3,FALSE)),IF(Q23="",0,VLOOKUP(Q23,怪物表!$A:$D,3,FALSE)),IF(R23="",0,VLOOKUP(R23,怪物表!$A:$D,3,FALSE)),IF(S23="",0,VLOOKUP(S23,怪物表!$A:$D,3,FALSE)),IF(T23="",0,VLOOKUP(T23,怪物表!$A:$D,3,FALSE)),IF(U23="",0,VLOOKUP(U23,怪物表!$A:$D,3,FALSE)),IF(V23="",0,VLOOKUP(V23,怪物表!$A:$D,3,FALSE)),IF(W23="",0,VLOOKUP(W23,怪物表!$A:$D,3,FALSE))) -> 16 | Y23: =IF(N23="","",IF(VLOOKUP(N23,怪物表!$A:$D,4,FALSE)=1,2,0)) -> 2 | Z23: 1 | AA23: =IF(P23="","",IF(VLOOKUP(P23,怪物表!$A:$D,4,FALSE)=1,2,0)) -> 2 | AB23: =IF(Q23="","",IF(VLOOKUP(Q23,怪物表!$A:$D,4,FALSE)=1,2,0)) -> 2 | AC23: =IF(R23="","",IF(VLOOKUP(R23,怪物表!$A:$D,4,FALSE)=1,2,0)) -> 2 | AD23: =IF(S23="","",IF(VLOOKUP(S23,怪物表!$A:$D,4,FALSE)=1,2,0)) ->  | AE23: =IF(T23="","",IF(VLOOKUP(T23,怪物表!$A:$D,4,FALSE)=1,2,0)) ->  | AF23: =IF(U23="","",IF(VLOOKUP(U23,怪物表!$A:$D,4,FALSE)=1,2,0)) ->  | AG23: =IF(V23="","",IF(VLOOKUP(V23,怪物表!$A:$D,4,FALSE)=1,2,0)) ->  | AH23: =IF(W23="","",IF(VLOOKUP(W23,怪物表!$A:$D,4,FALSE)=1,2,0)) ->  | AI23: 1.2 | AJ23: 0 | AK23: =IF(O23="","",1*$AI23+$AJ23) -> 1.2 | AL23: =IF(P23="","",2*$AI23+$AJ23) -> 2.4 | AM23: =IF(Q23="","",3*$AI23+$AJ23) -> 3.6 | AN23: =IF(R23="","",4*$AI23+$AJ23) -> 4.8 | AO23: =IF(S23="","",5*$AI23+$AJ23) ->  | AP23: =IF(T23="","",6*$AI23+$AJ23) ->  | AQ23: =IF(U23="","",7*$AI23+$AJ23) ->  | AR23: =IF(V23="","",8*$AI23+$AJ23) ->  | AS23: =IF(W23="","",9*$AI23+$AJ23) ->  | AU23: =IF(Y23="","",VLOOKUP(Y23,高度表!$A:$C,3,FALSE)) -> 1.8 | AV23: =IF(Z23="","",VLOOKUP(Z23,高度表!$A:$C,3,FALSE)) -> 1.1 | AW23: =IF(AA23="","",VLOOKUP(AA23,高度表!$A:$C,3,FALSE)) -> 1.8 | AX23: =IF(AB23="","",VLOOKUP(AB23,高度表!$A:$C,3,FALSE)) -> 1.8 | AY23: =IF(AC23="","",VLOOKUP(AC23,高度表!$A:$C,3,FALSE)) -> 1.8 | AZ23: =IF(AD23="","",VLOOKUP(AD23,高度表!$A:$C,3,FALSE)) ->  | BA23: =IF(AE23="","",VLOOKUP(AE23,高度表!$A:$C,3,FALSE)) ->  | BB23: =IF(AF23="","",VLOOKUP(AF23,高度表!$A:$C,3,FALSE)) ->  | BC23: =IF(AG23="","",VLOOKUP(AG23,高度表!$A:$C,3,FALSE)) ->  | BD23: =IF(AH23="","",VLOOKUP(AH23,高度表!$A:$C,3,FALSE)) ->  | BE23: 0.15 | BF23: =IF(N23="","",0*$BE23) -> 0 | BG23: =IF(O23="","",1*$BE23) -> 0.15 | BH23: =IF(P23="","",2*$BE23) -> 0.3 | BI23: =IF(Q23="","",3*$BE23) -> 0.45 | BJ23: =IF(R23="","",4*$BE23) -> 0.6 | BK23: =IF(S23="","",5*$BE23) ->  | BL23: =IF(T23="","",6*$BE23) ->  | BM23: =IF(U23="","",7*$BE23) ->  | BN23: =IF(V23="","",8*$BE23) ->  | BO23: =IF(W23="","",9*$BE23) ->  | BQ23: =CONCATENATE(N23,IF(O23="","",";"),O23,IF(P23="","",";"),P23,IF(Q23="","",";"),Q23,IF(R23="","",";"),R23,IF(S23="","",";"),S23,IF(T23="","",";"),T23,IF(U23="","",";"),U23,IF(V23="","",";"),V23,IF(W23="","",";"),W23) -> 107000;100009;100009;100010;100011 | BR23: =CONCATENATE(AU23,IF(AV23="","",";"),AV23,IF(AW23="","",";"),AW23,IF(AX23="","",";"),AX23,IF(AY23="","",";"),AY23,IF(AZ23="","",";"),AZ23,IF(BA23="","",";"),BA23,IF(BB23="","",";"),BB23,IF(BC23="","",";"),BC23,IF(BD23="","",";"),BD23) -> 1.8;1.1;1.8;1.8;1.8 | BS23: =CONCATENATE(AJ23,IF(AK23="","",";"),AK23,IF(AL23="","",";"),AL23,IF(AM23="","",";"),AM23,IF(AN23="","",";"),AN23,IF(AO23="","",";"),AO23,IF(AP23="","",";"),AP23,IF(AQ23="","",";"),AQ23,IF(AR23="","",";"),AR23,IF(AS23="","",";"),AS23) -> 0;1.2;2.4;3.6;4.8 | BT23: =CONCATENATE(BF23,IF(BG23="","",";"),BG23,IF(BH23="","",";"),BH23,IF(BI23="","",";"),BI23,IF(BJ23="","",";"),BJ23,IF(BK23="","",";"),BK23,IF(BL23="","",";"),BL23,IF(BM23="","",";"),BM23,IF(BN23="","",";"),BN23,IF(BO23="","",";"),BO23) -> 0;0.15;0.3;0.45;0.6 | BU23: =CONCATENATE(IF(N23="","",IF(C23="",0,C23)),IF(IF(O23="","",IF(D23="",0,D23))="","",";"),IF(O23="","",IF(D23="",0,D23)),IF(IF(P23="","",IF(E23="",0,E23))="","",";"),IF(P23="","",IF(E23="",0,E23)),IF(IF(Q23="","",IF(F23="",0,F23))="","",";"),IF(Q23="","",IF(F23="",0,F23)),IF(IF(R23="","",IF(G23="",0,G23))="","",";"),IF(R23="","",IF(G23="",0,G23)),IF(IF(S23="","",IF(H23="",0,H23))="","",";"),IF(S23="","",IF(H23="",0,H23)),IF(IF(T23="","",IF(I23="",0,I23))="","",";"),IF(T23="","",IF(I23="",0,I23)),IF(IF(U23="","",IF(J23="",0,J23))="","",";"),IF(U23="","",IF(J23="",0,J23)),IF(IF(V23="","",IF(K23="",0,K23))="","",";"),IF(V23="","",IF(K23="",0,K23)),IF(IF(W23="","",IF(M23="",0,M23))="","",";"),IF(W23="","",IF(M23="",0,M23))) -> 0;0;0;0;0 | BV23: 120 | BW23: 100 | BX23: 100
A24: 100102 | B24: 小怪 | N24: 108000 | O24: 100003 | P24: 100003 | X24: =SUM(IF(N24="",0,VLOOKUP(N24,怪物表!$A:$D,3,FALSE)),IF(O24="",0,VLOOKUP(O24,怪物表!$A:$D,3,FALSE)),IF(P24="",0,VLOOKUP(P24,怪物表!$A:$D,3,FALSE)),IF(Q24="",0,VLOOKUP(Q24,怪物表!$A:$D,3,FALSE)),IF(R24="",0,VLOOKUP(R24,怪物表!$A:$D,3,FALSE)),IF(S24="",0,VLOOKUP(S24,怪物表!$A:$D,3,FALSE)),IF(T24="",0,VLOOKUP(T24,怪物表!$A:$D,3,FALSE)),IF(U24="",0,VLOOKUP(U24,怪物表!$A:$D,3,FALSE)),IF(V24="",0,VLOOKUP(V24,怪物表!$A:$D,3,FALSE)),IF(W24="",0,VLOOKUP(W24,怪物表!$A:$D,3,FALSE))) -> 12 | Y24: =IF(N24="","",IF(VLOOKUP(N24,怪物表!$A:$D,4,FALSE)=1,2,0)) -> 0 | Z24: 0 | AA24: =IF(P24="","",IF(VLOOKUP(P24,怪物表!$A:$D,4,FALSE)=1,2,0)) -> 0 | AB24: =IF(Q24="","",IF(VLOOKUP(Q24,怪物表!$A:$D,4,FALSE)=1,2,0)) ->  | AC24: =IF(R24="","",IF(VLOOKUP(R24,怪物表!$A:$D,4,FALSE)=1,2,0)) ->  | AD24: =IF(S24="","",IF(VLOOKUP(S24,怪物表!$A:$D,4,FALSE)=1,2,0)) ->  | AE24: =IF(T24="","",IF(VLOOKUP(T24,怪物表!$A:$D,4,FALSE)=1,2,0)) ->  | AF24: =IF(U24="","",IF(VLOOKUP(U24,怪物表!$A:$D,4,FALSE)=1,2,0)) ->  | AG24: =IF(V24="","",IF(VLOOKUP(V24,怪物表!$A:$D,4,FALSE)=1,2,0)) ->  | AH24: =IF(W24="","",IF(VLOOKUP(W24,怪物表!$A:$D,4,FALSE)=1,2,0)) ->  | AI24: 3 | AJ24: 0 | AK24: 3 | AL24: 6 | AU24: =IF(Y24="","",VLOOKUP(Y24,高度表!$A:$C,3,FALSE)) -> 0 | AV24: =IF(Z24="","",VLOOKUP(Z24,高度表!$A:$C,3,FALSE)) -> 0 | AW24: =IF(AA24="","",VLOOKUP(AA24,高度表!$A:$C,3,FALSE)) -> 0 | AX24: =IF(AB24="","",VLOOKUP(AB24,高度表!$A:$C,3,FALSE)) ->  | AY24: =IF(AC24="","",VLOOKUP(AC24,高度表!$A:$C,3,FALSE)) ->  | AZ24: =IF(AD24="","",VLOOKUP(AD24,高度表!$A:$C,3,FALSE)) ->  | BA24: =IF(AE24="","",VLOOKUP(AE24,高度表!$A:$C,3,FALSE)) ->  | BB24: =IF(AF24="","",VLOOKUP(AF24,高度表!$A:$C,3,FALSE)) ->  | BC24: =IF(AG24="","",VLOOKUP(AG24,高度表!$A:$C,3,FALSE)) ->  | BD24: =IF(AH24="","",VLOOKUP(AH24,高度表!$A:$C,3,FALSE)) ->  | BE24: 0.15 | BF24: 0 | BG24: 0.15 | BH24: 0.3 | BQ24: 108000;100003;100003 | BR24: 0;0;0 | BS24: 0;3;6 | BT24: 0;0.15;0.3 | BU24: 0;0;0 | BV24: =IF(SUM(IF(N24="",0,IF(VLOOKUP(N24,怪物表!$A:$E,5,FALSE)=3,1,0)),IF(O24="",0,IF(VLOOKUP(O24,怪物表!$A:$E,5,FALSE)=3,1,0)),IF(P24="",0,IF(VLOOKUP(P24,怪物表!$A:$E,5,FALSE)=3,1,0)),IF(Q24="",0,IF(VLOOKUP(Q24,怪物表!$A:$E,5,FALSE)=3,1,0)),IF(R24="",0,IF(VLOOKUP(R24,怪物表!$A:$E,5,FALSE)=3,1,0)),IF(S24="",0,IF(VLOOKUP(S24,怪物表!$A:$E,5,FALSE)=3,1,0)),IF(T24="",0,IF(VLOOKUP(T24,怪物表!$A:$E,5,FALSE)=3,1,0)),IF(U24="",0,IF(VLOOKUP(U24,怪物表!$A:$E,5,FALSE)=3,1,0)),IF(V24="",0,IF(VLOOKUP(V24,怪物表!$A:$E,5,FALSE)=3,1,0)),IF(W24="",0,IF(VLOOKUP(W24,怪物表!$A:$E,5,FALSE)=3,1,0)))>0,180,120)*BW24/100 -> 120 | BW24: 100 | BX24: 100
A25: 100103 | B25: 小怪 | N25: 100004 | O25: 100008 | P25: 100009 | Q25: 100000 | R25: 100010 | S25: 100008 | T25: 100010 | X25: =SUM(IF(N25="",0,VLOOKUP(N25,怪物表!$A:$D,3,FALSE)),IF(O25="",0,VLOOKUP(O25,怪物表!$A:$D,3,FALSE)),IF(P25="",0,VLOOKUP(P25,怪物表!$A:$D,3,FALSE)),IF(Q25="",0,VLOOKUP(Q25,怪物表!$A:$D,3,FALSE)),IF(R25="",0,VLOOKUP(R25,怪物表!$A:$D,3,FALSE)),IF(S25="",0,VLOOKUP(S25,怪物表!$A:$D,3,FALSE)),IF(T25="",0,VLOOKUP(T25,怪物表!$A:$D,3,FALSE)),IF(U25="",0,VLOOKUP(U25,怪物表!$A:$D,3,FALSE)),IF(V25="",0,VLOOKUP(V25,怪物表!$A:$D,3,FALSE)),IF(W25="",0,VLOOKUP(W25,怪物表!$A:$D,3,FALSE))) -> 14 | Y25: =IF(N25="","",IF(VLOOKUP(N25,怪物表!$A:$D,4,FALSE)=1,2,0)) -> 0 | Z25: =IF(O25="","",IF(VLOOKUP(O25,怪物表!$A:$D,4,FALSE)=1,2,0)) -> 2 | AA25: =IF(P25="","",IF(VLOOKUP(P25,怪物表!$A:$D,4,FALSE)=1,2,0)) -> 2 | AB25: =IF(Q25="","",IF(VLOOKUP(Q25,怪物表!$A:$D,4,FALSE)=1,2,0)) -> 0 | AC25: =IF(R25="","",IF(VLOOKUP(R25,怪物表!$A:$D,4,FALSE)=1,2,0)) -> 2 | AD25: 3 | AE25: =IF(T25="","",IF(VLOOKUP(T25,怪物表!$A:$D,4,FALSE)=1,2,0)) -> 2 | AF25: =IF(U25="","",IF(VLOOKUP(U25,怪物表!$A:$D,4,FALSE)=1,2,0)) ->  | AG25: =IF(V25="","",IF(VLOOKUP(V25,怪物表!$A:$D,4,FALSE)=1,2,0)) ->  | AH25: =IF(W25="","",IF(VLOOKUP(W25,怪物表!$A:$D,4,FALSE)=1,2,0)) ->  | AI25: 1.2 | AJ25: 0 | AK25: 1.2 | AL25: 2.4 | AM25: 3.6 | AN25: 4.8 | AO25: 6 | AP25: 7.2 | AU25: =IF(Y25="","",VLOOKUP(Y25,高度表!$A:$C,3,FALSE)) -> 0 | AV25: =IF(Z25="","",VLOOKUP(Z25,高度表!$A:$C,3,FALSE)) -> 1.8 | AW25: =IF(AA25="","",VLOOKUP(AA25,高度表!$A:$C,3,FALSE)) -> 1.8 | AX25: =IF(AB25="","",VLOOKUP(AB25,高度表!$A:$C,3,FALSE)) -> 0 | AY25: =IF(AC25="","",VLOOKUP(AC25,高度表!$A:$C,3,FALSE)) -> 1.8 | AZ25: =IF(AD25="","",VLOOKUP(AD25,高度表!$A:$C,3,FALSE)) -> 2.5 | BA25: =IF(AE25="","",VLOOKUP(AE25,高度表!$A:$C,3,FALSE)) -> 1.8 | BB25: =IF(AF25="","",VLOOKUP(AF25,高度表!$A:$C,3,FALSE)) ->  | BC25: =IF(AG25="","",VLOOKUP(AG25,高度表!$A:$C,3,FALSE)) ->  | BD25: =IF(AH25="","",VLOOKUP(AH25,高度表!$A:$C,3,FALSE)) ->  | BE25: 0.15 | BF25: 0 | BG25: 0.15 | BH25: 0.3 | BI25: 0.45 | BJ25: 0.6 | BK25: 0.75 | BL25: 0.9 | BQ25: 100004;100008;100009;100000;100010;100008;100010 | BR25: 0;1.8;1.8;0;1.8;2.5;1.8 | BS25: 0;1.2;2.4;3.6;4.8;6;7.2 | BT25: 0;0.15;0.3;0.45;0.6;0.75;0.9 | BU25: 0;0;0;0;0;0;0 | BV25: =IF(SUM(IF(N25="",0,IF(VLOOKUP(N25,怪物表!$A:$E,5,FALSE)=3,1,0)),IF(O25="",0,IF(VLOOKUP(O25,怪物表!$A:$E,5,FALSE)=3,1,0)),IF(P25="",0,IF(VLOOKUP(P25,怪物表!$A:$E,5,FALSE)=3,1,0)),IF(Q25="",0,IF(VLOOKUP(Q25,怪物表!$A:$E,5,FALSE)=3,1,0)),IF(R25="",0,IF(VLOOKUP(R25,怪物表!$A:$E,5,FALSE)=3,1,0)),IF(S25="",0,IF(VLOOKUP(S25,怪物表!$A:$E,5,FALSE)=3,1,0)),IF(T25="",0,IF(VLOOKUP(T25,怪物表!$A:$E,5,FALSE)=3,1,0)),IF(U25="",0,IF(VLOOKUP(U25,怪物表!$A:$E,5,FALSE)=3,1,0)),IF(V25="",0,IF(VLOOKUP(V25,怪物表!$A:$E,5,FALSE)=3,1,0)),IF(W25="",0,IF(VLOOKUP(W25,怪物表!$A:$E,5,FALSE)=3,1,0)))>0,180,120)*BW25/100 -> 120 | BW25: 100 | BX25: 100
A26: 100104 | B26: 精英 | N26: 984 | X26: =SUM(IF(N26="",0,VLOOKUP(N26,怪物表!$A:$D,3,FALSE)),IF(O26="",0,VLOOKUP(O26,怪物表!$A:$D,3,FALSE)),IF(P26="",0,VLOOKUP(P26,怪物表!$A:$D,3,FALSE)),IF(Q26="",0,VLOOKUP(Q26,怪物表!$A:$D,3,FALSE)),IF(R26="",0,VLOOKUP(R26,怪物表!$A:$D,3,FALSE)),IF(S26="",0,VLOOKUP(S26,怪物表!$A:$D,3,FALSE)),IF(T26="",0,VLOOKUP(T26,怪物表!$A:$D,3,FALSE)),IF(U26="",0,VLOOKUP(U26,怪物表!$A:$D,3,FALSE)),IF(V26="",0,VLOOKUP(V26,怪物表!$A:$D,3,FALSE)),IF(W26="",0,VLOOKUP(W26,怪物表!$A:$D,3,FALSE))) -> 25 | Y26: =IF(N26="","",IF(VLOOKUP(N26,怪物表!$A:$D,4,FALSE)=1,2,0)) -> 0 | Z26: =IF(O26="","",IF(VLOOKUP(O26,怪物表!$A:$D,4,FALSE)=1,2,0)) ->  | AA26: =IF(P26="","",IF(VLOOKUP(P26,怪物表!$A:$D,4,FALSE)=1,2,0)) ->  | AB26: =IF(Q26="","",IF(VLOOKUP(Q26,怪物表!$A:$D,4,FALSE)=1,2,0)) ->  | AC26: =IF(R26="","",IF(VLOOKUP(R26,怪物表!$A:$D,4,FALSE)=1,2,0)) ->  | AD26: =IF(S26="","",IF(VLOOKUP(S26,怪物表!$A:$D,4,FALSE)=1,2,0)) ->  | AE26: =IF(T26="","",IF(VLOOKUP(T26,怪物表!$A:$D,4,FALSE)=1,2,0)) ->  | AF26: =IF(U26="","",IF(VLOOKUP(U26,怪物表!$A:$D,4,FALSE)=1,2,0)) ->  | AG26: =IF(V26="","",IF(VLOOKUP(V26,怪物表!$A:$D,4,FALSE)=1,2,0)) ->  | AH26: =IF(W26="","",IF(VLOOKUP(W26,怪物表!$A:$D,4,FALSE)=1,2,0)) ->  | AI26: 5 | AJ26: 0 | AU26: =IF(Y26="","",VLOOKUP(Y26,高度表!$A:$C,3,FALSE)) -> 0 | AV26: =IF(Z26="","",VLOOKUP(Z26,高度表!$A:$C,3,FALSE)) ->  | AW26: =IF(AA26="","",VLOOKUP(AA26,高度表!$A:$C,3,FALSE)) ->  | AX26: =IF(AB26="","",VLOOKUP(AB26,高度表!$A:$C,3,FALSE)) ->  | AY26: =IF(AC26="","",VLOOKUP(AC26,高度表!$A:$C,3,FALSE)) ->  | AZ26: =IF(AD26="","",VLOOKUP(AD26,高度表!$A:$C,3,FALSE)) ->  | BA26: =IF(AE26="","",VLOOKUP(AE26,高度表!$A:$C,3,FALSE)) ->  | BB26: =IF(AF26="","",VLOOKUP(AF26,高度表!$A:$C,3,FALSE)) ->  | BC26: =IF(AG26="","",VLOOKUP(AG26,高度表!$A:$C,3,FALSE)) ->  | BD26: =IF(AH26="","",VLOOKUP(AH26,高度表!$A:$C,3,FALSE)) ->  | BE26: 1 | BF26: 0 | BQ26: 984 | BR26: 0 | BS26: 0 | BT26: 0 | BU26: 0 | BV26: =IF(SUM(IF(N26="",0,IF(VLOOKUP(N26,怪物表!$A:$E,5,FALSE)=3,1,0)),IF(O26="",0,IF(VLOOKUP(O26,怪物表!$A:$E,5,FALSE)=3,1,0)),IF(P26="",0,IF(VLOOKUP(P26,怪物表!$A:$E,5,FALSE)=3,1,0)),IF(Q26="",0,IF(VLOOKUP(Q26,怪物表!$A:$E,5,FALSE)=3,1,0)),IF(R26="",0,IF(VLOOKUP(R26,怪物表!$A:$E,5,FALSE)=3,1,0)),IF(S26="",0,IF(VLOOKUP(S26,怪物表!$A:$E,5,FALSE)=3,1,0)),IF(T26="",0,IF(VLOOKUP(T26,怪物表!$A:$E,5,FALSE)=3,1,0)),IF(U26="",0,IF(VLOOKUP(U26,怪物表!$A:$E,5,FALSE)=3,1,0)),IF(V26="",0,IF(VLOOKUP(V26,怪物表!$A:$E,5,FALSE)=3,1,0)),IF(W26="",0,IF(VLOOKUP(W26,怪物表!$A:$E,5,FALSE)=3,1,0)))>0,180,120)*BW26/100 -> 180 | BW26: 100 | BX26: 100
A27: 100105 | B27: 小怪 | N27: 108000 | O27: 100010 | P27: 100009 | Q27: 100000 | X27: =SUM(IF(N27="",0,VLOOKUP(N27,怪物表!$A:$D,3,FALSE)),IF(O27="",0,VLOOKUP(O27,怪物表!$A:$D,3,FALSE)),IF(P27="",0,VLOOKUP(P27,怪物表!$A:$D,3,FALSE)),IF(Q27="",0,VLOOKUP(Q27,怪物表!$A:$D,3,FALSE)),IF(R27="",0,VLOOKUP(R27,怪物表!$A:$D,3,FALSE)),IF(S27="",0,VLOOKUP(S27,怪物表!$A:$D,3,FALSE)),IF(T27="",0,VLOOKUP(T27,怪物表!$A:$D,3,FALSE)),IF(U27="",0,VLOOKUP(U27,怪物表!$A:$D,3,FALSE)),IF(V27="",0,VLOOKUP(V27,怪物表!$A:$D,3,FALSE)),IF(W27="",0,VLOOKUP(W27,怪物表!$A:$D,3,FALSE))) -> 14 | Y27: =IF(N27="","",IF(VLOOKUP(N27,怪物表!$A:$D,4,FALSE)=1,2,0)) -> 0 | Z27: =IF(O27="","",IF(VLOOKUP(O27,怪物表!$A:$D,4,FALSE)=1,2,0)) -> 2 | AA27: =IF(P27="","",IF(VLOOKUP(P27,怪物表!$A:$D,4,FALSE)=1,2,0)) -> 2 | AB27: =IF(Q27="","",IF(VLOOKUP(Q27,怪物表!$A:$D,4,FALSE)=1,2,0)) -> 0 | AC27: =IF(R27="","",IF(VLOOKUP(R27,怪物表!$A:$D,4,FALSE)=1,2,0)) ->  | AD27: =IF(S27="","",IF(VLOOKUP(S27,怪物表!$A:$D,4,FALSE)=1,2,0)) ->  | AE27: =IF(T27="","",IF(VLOOKUP(T27,怪物表!$A:$D,4,FALSE)=1,2,0)) ->  | AF27: =IF(U27="","",IF(VLOOKUP(U27,怪物表!$A:$D,4,FALSE)=1,2,0)) ->  | AG27: =IF(V27="","",IF(VLOOKUP(V27,怪物表!$A:$D,4,FALSE)=1,2,0)) ->  | AH27: =IF(W27="","",IF(VLOOKUP(W27,怪物表!$A:$D,4,FALSE)=1,2,0)) ->  | AI27: 1.2 | AJ27: 0 | AK27: 1.2 | AL27: 2.4 | AM27: 3.6 | AU27: =IF(Y27="","",VLOOKUP(Y27,高度表!$A:$C,3,FALSE)) -> 0 | AV27: =IF(Z27="","",VLOOKUP(Z27,高度表!$A:$C,3,FALSE)) -> 1.8 | AW27: =IF(AA27="","",VLOOKUP(AA27,高度表!$A:$C,3,FALSE)) -> 1.8 | AX27: =IF(AB27="","",VLOOKUP(AB27,高度表!$A:$C,3,FALSE)) -> 0 | AY27: =IF(AC27="","",VLOOKUP(AC27,高度表!$A:$C,3,FALSE)) ->  | AZ27: =IF(AD27="","",VLOOKUP(AD27,高度表!$A:$C,3,FALSE)) ->  | BA27: =IF(AE27="","",VLOOKUP(AE27,高度表!$A:$C,3,FALSE)) ->  | BB27: =IF(AF27="","",VLOOKUP(AF27,高度表!$A:$C,3,FALSE)) ->  | BC27: =IF(AG27="","",VLOOKUP(AG27,高度表!$A:$C,3,FALSE)) ->  | BD27: =IF(AH27="","",VLOOKUP(AH27,高度表!$A:$C,3,FALSE)) ->  | BE27: 0.15 | BF27: 0 | BG27: 0.15 | BH27: 0.3 | BI27: 0.45 | BQ27: 108000;100010;100009;100000 | BR27: 0;1.8;1.8;0 | BS27: 0;1.2;2.4;3.6 | BT27: 0;0.15;0.3;0.45 | BU27: 0;0;0;0 | BV27: =IF(SUM(IF(N27="",0,IF(VLOOKUP(N27,怪物表!$A:$E,5,FALSE)=3,1,0)),IF(O27="",0,IF(VLOOKUP(O27,怪物表!$A:$E,5,FALSE)=3,1,0)),IF(P27="",0,IF(VLOOKUP(P27,怪物表!$A:$E,5,FALSE)=3,1,0)),IF(Q27="",0,IF(VLOOKUP(Q27,怪物表!$A:$E,5,FALSE)=3,1,0)),IF(R27="",0,IF(VLOOKUP(R27,怪物表!$A:$E,5,FALSE)=3,1,0)),IF(S27="",0,IF(VLOOKUP(S27,怪物表!$A:$E,5,FALSE)=3,1,0)),IF(T27="",0,IF(VLOOKUP(T27,怪物表!$A:$E,5,FALSE)=3,1,0)),IF(U27="",0,IF(VLOOKUP(U27,怪物表!$A:$E,5,FALSE)=3,1,0)),IF(V27="",0,IF(VLOOKUP(V27,怪物表!$A:$E,5,FALSE)=3,1,0)),IF(W27="",0,IF(VLOOKUP(W27,怪物表!$A:$E,5,FALSE)=3,1,0)))>0,180,120)*BW27/100 -> 120 | BW27: 100 | BX27: 100
A28: 100106 | B28: 小怪 | N28: 108000 | O28: 100010 | P28: 100009 | Q28: 100000 | X28: =SUM(IF(N28="",0,VLOOKUP(N28,怪物表!$A:$D,3,FALSE)),IF(O28="",0,VLOOKUP(O28,怪物表!$A:$D,3,FALSE)),IF(P28="",0,VLOOKUP(P28,怪物表!$A:$D,3,FALSE)),IF(Q28="",0,VLOOKUP(Q28,怪物表!$A:$D,3,FALSE)),IF(R28="",0,VLOOKUP(R28,怪物表!$A:$D,3,FALSE)),IF(S28="",0,VLOOKUP(S28,怪物表!$A:$D,3,FALSE)),IF(T28="",0,VLOOKUP(T28,怪物表!$A:$D,3,FALSE)),IF(U28="",0,VLOOKUP(U28,怪物表!$A:$D,3,FALSE)),IF(V28="",0,VLOOKUP(V28,怪物表!$A:$D,3,FALSE)),IF(W28="",0,VLOOKUP(W28,怪物表!$A:$D,3,FALSE))) -> 14 | Y28: =IF(N28="","",IF(VLOOKUP(N28,怪物表!$A:$D,4,FALSE)=1,2,0)) -> 0 | Z28: =IF(O28="","",IF(VLOOKUP(O28,怪物表!$A:$D,4,FALSE)=1,2,0)) -> 2 | AA28: =IF(P28="","",IF(VLOOKUP(P28,怪物表!$A:$D,4,FALSE)=1,2,0)) -> 2 | AB28: =IF(Q28="","",IF(VLOOKUP(Q28,怪物表!$A:$D,4,FALSE)=1,2,0)) -> 0 | AC28: =IF(R28="","",IF(VLOOKUP(R28,怪物表!$A:$D,4,FALSE)=1,2,0)) ->  | AD28: =IF(S28="","",IF(VLOOKUP(S28,怪物表!$A:$D,4,FALSE)=1,2,0)) ->  | AE28: =IF(T28="","",IF(VLOOKUP(T28,怪物表!$A:$D,4,FALSE)=1,2,0)) ->  | AF28: =IF(U28="","",IF(VLOOKUP(U28,怪物表!$A:$D,4,FALSE)=1,2,0)) ->  | AG28: =IF(V28="","",IF(VLOOKUP(V28,怪物表!$A:$D,4,FALSE)=1,2,0)) ->  | AH28: =IF(W28="","",IF(VLOOKUP(W28,怪物表!$A:$D,4,FALSE)=1,2,0)) ->  | AI28: 1.2 | AJ28: 0 | AK28: 1.2 | AL28: 2.4 | AM28: 3.6 | AU28: =IF(Y28="","",VLOOKUP(Y28,高度表!$A:$C,3,FALSE)) -> 0 | AV28: =IF(Z28="","",VLOOKUP(Z28,高度表!$A:$C,3,FALSE)) -> 1.8 | AW28: =IF(AA28="","",VLOOKUP(AA28,高度表!$A:$C,3,FALSE)) -> 1.8 | AX28: =IF(AB28="","",VLOOKUP(AB28,高度表!$A:$C,3,FALSE)) -> 0 | AY28: =IF(AC28="","",VLOOKUP(AC28,高度表!$A:$C,3,FALSE)) ->  | AZ28: =IF(AD28="","",VLOOKUP(AD28,高度表!$A:$C,3,FALSE)) ->  | BA28: =IF(AE28="","",VLOOKUP(AE28,高度表!$A:$C,3,FALSE)) ->  | BB28: =IF(AF28="","",VLOOKUP(AF28,高度表!$A:$C,3,FALSE)) ->  | BC28: =IF(AG28="","",VLOOKUP(AG28,高度表!$A:$C,3,FALSE)) ->  | BD28: =IF(AH28="","",VLOOKUP(AH28,高度表!$A:$C,3,FALSE)) ->  | BE28: 0.15 | BF28: 0 | BG28: 0.15 | BH28: 0.3 | BI28: 0.45 | BQ28: 108000;100010;100009;100000 | BR28: 0;1.8;1.8;0 | BS28: 0;1.2;2.4;3.6 | BT28: 0;0.15;0.3;0.45 | BU28: 0;0;0;0 | BV28: =IF(SUM(IF(N28="",0,IF(VLOOKUP(N28,怪物表!$A:$E,5,FALSE)=3,1,0)),IF(O28="",0,IF(VLOOKUP(O28,怪物表!$A:$E,5,FALSE)=3,1,0)),IF(P28="",0,IF(VLOOKUP(P28,怪物表!$A:$E,5,FALSE)=3,1,0)),IF(Q28="",0,IF(VLOOKUP(Q28,怪物表!$A:$E,5,FALSE)=3,1,0)),IF(R28="",0,IF(VLOOKUP(R28,怪物表!$A:$E,5,FALSE)=3,1,0)),IF(S28="",0,IF(VLOOKUP(S28,怪物表!$A:$E,5,FALSE)=3,1,0)),IF(T28="",0,IF(VLOOKUP(T28,怪物表!$A:$E,5,FALSE)=3,1,0)),IF(U28="",0,IF(VLOOKUP(U28,怪物表!$A:$E,5,FALSE)=3,1,0)),IF(V28="",0,IF(VLOOKUP(V28,怪物表!$A:$E,5,FALSE)=3,1,0)),IF(W28="",0,IF(VLOOKUP(W28,怪物表!$A:$E,5,FALSE)=3,1,0)))>0,180,120)*BW28/100 -> 120 | BW28: 100 | BX28: 100
A29: 100201 | B29: 小怪 | N29: 105000 | O29: 105000 | P29: 100009 | Q29: 105000 | R29: 105000 | X29: =SUM(IF(N29="",0,VLOOKUP(N29,怪物表!$A:$D,3,FALSE)),IF(O29="",0,VLOOKUP(O29,怪物表!$A:$D,3,FALSE)),IF(P29="",0,VLOOKUP(P29,怪物表!$A:$D,3,FALSE)),IF(Q29="",0,VLOOKUP(Q29,怪物表!$A:$D,3,FALSE)),IF(R29="",0,VLOOKUP(R29,怪物表!$A:$D,3,FALSE)),IF(S29="",0,VLOOKUP(S29,怪物表!$A:$D,3,FALSE)),IF(T29="",0,VLOOKUP(T29,怪物表!$A:$D,3,FALSE)),IF(U29="",0,VLOOKUP(U29,怪物表!$A:$D,3,FALSE)),IF(V29="",0,VLOOKUP(V29,怪物表!$A:$D,3,FALSE)),IF(W29="",0,VLOOKUP(W29,怪物表!$A:$D,3,FALSE))) -> 10 | Y29: =IF(N29="","",IF(VLOOKUP(N29,怪物表!$A:$D,4,FALSE)=1,2,0)) -> 0 | Z29: =IF(O29="","",IF(VLOOKUP(O29,怪物表!$A:$D,4,FALSE)=1,2,0)) -> 0 | AA29: =IF(P29="","",IF(VLOOKUP(P29,怪物表!$A:$D,4,FALSE)=1,2,0)) -> 2 | AB29: =IF(Q29="","",IF(VLOOKUP(Q29,怪物表!$A:$D,4,FALSE)=1,2,0)) -> 0 | AC29: =IF(R29="","",IF(VLOOKUP(R29,怪物表!$A:$D,4,FALSE)=1,2,0)) -> 0 | AD29: =IF(S29="","",IF(VLOOKUP(S29,怪物表!$A:$D,4,FALSE)=1,2,0)) ->  | AE29: =IF(T29="","",IF(VLOOKUP(T29,怪物表!$A:$D,4,FALSE)=1,2,0)) ->  | AF29: =IF(U29="","",IF(VLOOKUP(U29,怪物表!$A:$D,4,FALSE)=1,2,0)) ->  | AG29: =IF(V29="","",IF(VLOOKUP(V29,怪物表!$A:$D,4,FALSE)=1,2,0)) ->  | AH29: =IF(W29="","",IF(VLOOKUP(W29,怪物表!$A:$D,4,FALSE)=1,2,0)) ->  | AI29: 1.2 | AJ29: 0 | AK29: =IF(O29="","",1*$AI29+$AJ29) -> 1.2 | AL29: =IF(P29="","",2*$AI29+$AJ29) -> 2.4 | AM29: =IF(Q29="","",3*$AI29+$AJ29) -> 3.6 | AN29: =IF(R29="","",4*$AI29+$AJ29) -> 4.8 | AO29: =IF(S29="","",5*$AI29+$AJ29) ->  | AP29: =IF(T29="","",6*$AI29+$AJ29) ->  | AQ29: =IF(U29="","",7*$AI29+$AJ29) ->  | AR29: =IF(V29="","",8*$AI29+$AJ29) ->  | AS29: =IF(W29="","",9*$AI29+$AJ29) ->  | AU29: =IF(Y29="","",VLOOKUP(Y29,高度表!$A:$C,3,FALSE)) -> 0 | AV29: =IF(Z29="","",VLOOKUP(Z29,高度表!$A:$C,3,FALSE)) -> 0 | AW29: =IF(AA29="","",VLOOKUP(AA29,高度表!$A:$C,3,FALSE)) -> 1.8 | AX29: =IF(AB29="","",VLOOKUP(AB29,高度表!$A:$C,3,FALSE)) -> 0 | AY29: =IF(AC29="","",VLOOKUP(AC29,高度表!$A:$C,3,FALSE)) -> 0 | AZ29: =IF(AD29="","",VLOOKUP(AD29,高度表!$A:$C,3,FALSE)) ->  | BA29: =IF(AE29="","",VLOOKUP(AE29,高度表!$A:$C,3,FALSE)) ->  | BB29: =IF(AF29="","",VLOOKUP(AF29,高度表!$A:$C,3,FALSE)) ->  | BC29: =IF(AG29="","",VLOOKUP(AG29,高度表!$A:$C,3,FALSE)) ->  | BD29: =IF(AH29="","",VLOOKUP(AH29,高度表!$A:$C,3,FALSE)) ->  | BE29: 0.15 | BF29: =IF(N29="","",0*$BE29) -> 0 | BG29: =IF(O29="","",1*$BE29) -> 0.15 | BH29: =IF(P29="","",2*$BE29) -> 0.3 | BI29: =IF(Q29="","",3*$BE29) -> 0.45 | BJ29: =IF(R29="","",4*$BE29) -> 0.6 | BK29: =IF(S29="","",5*$BE29) ->  | BL29: =IF(T29="","",6*$BE29) ->  | BM29: =IF(U29="","",7*$BE29) ->  | BN29: =IF(V29="","",8*$BE29) ->  | BO29: =IF(W29="","",9*$BE29) ->  | BQ29: =CONCATENATE(N29,IF(O29="","",";"),O29,IF(P29="","",";"),P29,IF(Q29="","",";"),Q29,IF(R29="","",";"),R29,IF(S29="","",";"),S29,IF(T29="","",";"),T29,IF(U29="","",";"),U29,IF(V29="","",";"),V29,IF(W29="","",";"),W29) -> 105000;105000;100009;105000;105000 | BR29: =CONCATENATE(AU29,IF(AV29="","",";"),AV29,IF(AW29="","",";"),AW29,IF(AX29="","",";"),AX29,IF(AY29="","",";"),AY29,IF(AZ29="","",";"),AZ29,IF(BA29="","",";"),BA29,IF(BB29="","",";"),BB29,IF(BC29="","",";"),BC29,IF(BD29="","",";"),BD29) -> 0;0;1.8;0;0 | BS29: =CONCATENATE(AJ29,IF(AK29="","",";"),AK29,IF(AL29="","",";"),AL29,IF(AM29="","",";"),AM29,IF(AN29="","",";"),AN29,IF(AO29="","",";"),AO29,IF(AP29="","",";"),AP29,IF(AQ29="","",";"),AQ29,IF(AR29="","",";"),AR29,IF(AS29="","",";"),AS29) -> 0;1.2;2.4;3.6;4.8 | BT29: =CONCATENATE(BF29,IF(BG29="","",";"),BG29,IF(BH29="","",";"),BH29,IF(BI29="","",";"),BI29,IF(BJ29="","",";"),BJ29,IF(BK29="","",";"),BK29,IF(BL29="","",";"),BL29,IF(BM29="","",";"),BM29,IF(BN29="","",";"),BN29,IF(BO29="","",";"),BO29) -> 0;0.15;0.3;0.45;0.6 | BU29: =CONCATENATE(IF(N29="","",IF(C29="",0,C29)),IF(IF(O29="","",IF(D29="",0,D29))="","",";"),IF(O29="","",IF(D29="",0,D29)),IF(IF(P29="","",IF(E29="",0,E29))="","",";"),IF(P29="","",IF(E29="",0,E29)),IF(IF(Q29="","",IF(F29="",0,F29))="","",";"),IF(Q29="","",IF(F29="",0,F29)),IF(IF(R29="","",IF(G29="",0,G29))="","",";"),IF(R29="","",IF(G29="",0,G29)),IF(IF(S29="","",IF(H29="",0,H29))="","",";"),IF(S29="","",IF(H29="",0,H29)),IF(IF(T29="","",IF(I29="",0,I29))="","",";"),IF(T29="","",IF(I29="",0,I29)),IF(IF(U29="","",IF(J29="",0,J29))="","",";"),IF(U29="","",IF(J29="",0,J29)),IF(IF(V29="","",IF(K29="",0,K29))="","",";"),IF(V29="","",IF(K29="",0,K29)),IF(IF(W29="","",IF(M29="",0,M29))="","",";"),IF(W29="","",IF(M29="",0,M29))) -> 0;0;0;0;0 | BV29: =IF(SUM(IF(N29="",0,IF(VLOOKUP(N29,怪物表!$A:$E,5,FALSE)=3,1,0)),IF(O29="",0,IF(VLOOKUP(O29,怪物表!$A:$E,5,FALSE)=3,1,0)),IF(P29="",0,IF(VLOOKUP(P29,怪物表!$A:$E,5,FALSE)=3,1,0)),IF(Q29="",0,IF(VLOOKUP(Q29,怪物表!$A:$E,5,FALSE)=3,1,0)),IF(R29="",0,IF(VLOOKUP(R29,怪物表!$A:$E,5,FALSE)=3,1,0)),IF(S29="",0,IF(VLOOKUP(S29,怪物表!$A:$E,5,FALSE)=3,1,0)),IF(T29="",0,IF(VLOOKUP(T29,怪物表!$A:$E,5,FALSE)=3,1,0)),IF(U29="",0,IF(VLOOKUP(U29,怪物表!$A:$E,5,FALSE)=3,1,0)),IF(V29="",0,IF(VLOOKUP(V29,怪物表!$A:$E,5,FALSE)=3,1,0)),IF(W29="",0,IF(VLOOKUP(W29,怪物表!$A:$E,5,FALSE)=3,1,0)))>0,180,120)*BW29/100 -> 120 | BW29: 100 | BX29: 100
A30: 100202 | B30: 小怪 | N30: 105000 | O30: 103000 | P30: 100009 | Q30: 103000 | R30: 103000 | X30: =SUM(IF(N30="",0,VLOOKUP(N30,怪物表!$A:$D,3,FALSE)),IF(O30="",0,VLOOKUP(O30,怪物表!$A:$D,3,FALSE)),IF(P30="",0,VLOOKUP(P30,怪物表!$A:$D,3,FALSE)),IF(Q30="",0,VLOOKUP(Q30,怪物表!$A:$D,3,FALSE)),IF(R30="",0,VLOOKUP(R30,怪物表!$A:$D,3,FALSE)),IF(S30="",0,VLOOKUP(S30,怪物表!$A:$D,3,FALSE)),IF(T30="",0,VLOOKUP(T30,怪物表!$A:$D,3,FALSE)),IF(U30="",0,VLOOKUP(U30,怪物表!$A:$D,3,FALSE)),IF(V30="",0,VLOOKUP(V30,怪物表!$A:$D,3,FALSE)),IF(W30="",0,VLOOKUP(W30,怪物表!$A:$D,3,FALSE))) -> 10 | Y30: =IF(N30="","",IF(VLOOKUP(N30,怪物表!$A:$D,4,FALSE)=1,2,0)) -> 0 | Z30: =IF(O30="","",IF(VLOOKUP(O30,怪物表!$A:$D,4,FALSE)=1,2,0)) -> 2 | AA30: =IF(P30="","",IF(VLOOKUP(P30,怪物表!$A:$D,4,FALSE)=1,2,0)) -> 2 | AB30: 1 | AC30: 3 | AD30: =IF(S30="","",IF(VLOOKUP(S30,怪物表!$A:$D,4,FALSE)=1,2,0)) ->  | AE30: =IF(T30="","",IF(VLOOKUP(T30,怪物表!$A:$D,4,FALSE)=1,2,0)) ->  | AF30: =IF(U30="","",IF(VLOOKUP(U30,怪物表!$A:$D,4,FALSE)=1,2,0)) ->  | AG30: =IF(V30="","",IF(VLOOKUP(V30,怪物表!$A:$D,4,FALSE)=1,2,0)) ->  | AH30: =IF(W30="","",IF(VLOOKUP(W30,怪物表!$A:$D,4,FALSE)=1,2,0)) ->  | AI30: 1.2 | AJ30: 0 | AK30: 1.2 | AL30: 2.4 | AM30: 3.6 | AN30: 4.8 | AU30: =IF(Y30="","",VLOOKUP(Y30,高度表!$A:$C,3,FALSE)) -> 0 | AV30: =IF(Z30="","",VLOOKUP(Z30,高度表!$A:$C,3,FALSE)) -> 1.8 | AW30: =IF(AA30="","",VLOOKUP(AA30,高度表!$A:$C,3,FALSE)) -> 1.8 | AX30: =IF(AB30="","",VLOOKUP(AB30,高度表!$A:$C,3,FALSE)) -> 1.1 | AY30: =IF(AC30="","",VLOOKUP(AC30,高度表!$A:$C,3,FALSE)) -> 2.5 | AZ30: =IF(AD30="","",VLOOKUP(AD30,高度表!$A:$C,3,FALSE)) ->  | BA30: =IF(AE30="","",VLOOKUP(AE30,高度表!$A:$C,3,FALSE)) ->  | BB30: =IF(AF30="","",VLOOKUP(AF30,高度表!$A:$C,3,FALSE)) ->  | BC30: =IF(AG30="","",VLOOKUP(AG30,高度表!$A:$C,3,FALSE)) ->  | BD30: =IF(AH30="","",VLOOKUP(AH30,高度表!$A:$C,3,FALSE)) ->  | BE30: 0.15 | BF30: 0 | BG30: 0.15 | BH30: 0.3 | BI30: 0.45 | BJ30: 0.6 | BQ30: 105000;103000;100009;103000;103000 | BR30: 0;1.8;1.8;1.1;2.5 | BS30: 0;1.2;2.4;3.6;4.8 | BT30: 0;0.15;0.3;0.45;0.6 | BU30: 0;0;0;0;0 | BV30: =IF(SUM(IF(N30="",0,IF(VLOOKUP(N30,怪物表!$A:$E,5,FALSE)=3,1,0)),IF(O30="",0,IF(VLOOKUP(O30,怪物表!$A:$E,5,FALSE)=3,1,0)),IF(P30="",0,IF(VLOOKUP(P30,怪物表!$A:$E,5,FALSE)=3,1,0)),IF(Q30="",0,IF(VLOOKUP(Q30,怪物表!$A:$E,5,FALSE)=3,1,0)),IF(R30="",0,IF(VLOOKUP(R30,怪物表!$A:$E,5,FALSE)=3,1,0)),IF(S30="",0,IF(VLOOKUP(S30,怪物表!$A:$E,5,FALSE)=3,1,0)),IF(T30="",0,IF(VLOOKUP(T30,怪物表!$A:$E,5,FALSE)=3,1,0)),IF(U30="",0,IF(VLOOKUP(U30,怪物表!$A:$E,5,FALSE)=3,1,0)),IF(V30="",0,IF(VLOOKUP(V30,怪物表!$A:$E,5,FALSE)=3,1,0)),IF(W30="",0,IF(VLOOKUP(W30,怪物表!$A:$E,5,FALSE)=3,1,0)))>0,180,120)*BW30/100 -> 120 | BW30: 100 | BX30: 100
A31: 100203 | B31: 小怪 | N31: 200004 | O31: 103000 | P31: 100009 | Q31: 103000 | X31: =SUM(IF(N31="",0,VLOOKUP(N31,怪物表!$A:$D,3,FALSE)),IF(O31="",0,VLOOKUP(O31,怪物表!$A:$D,3,FALSE)),IF(P31="",0,VLOOKUP(P31,怪物表!$A:$D,3,FALSE)),IF(Q31="",0,VLOOKUP(Q31,怪物表!$A:$D,3,FALSE)),IF(R31="",0,VLOOKUP(R31,怪物表!$A:$D,3,FALSE)),IF(S31="",0,VLOOKUP(S31,怪物表!$A:$D,3,FALSE)),IF(T31="",0,VLOOKUP(T31,怪物表!$A:$D,3,FALSE)),IF(U31="",0,VLOOKUP(U31,怪物表!$A:$D,3,FALSE)),IF(V31="",0,VLOOKUP(V31,怪物表!$A:$D,3,FALSE)),IF(W31="",0,VLOOKUP(W31,怪物表!$A:$D,3,FALSE))) -> 13 | Y31: =IF(N31="","",IF(VLOOKUP(N31,怪物表!$A:$D,4,FALSE)=1,2,0)) -> 0 | Z31: =IF(O31="","",IF(VLOOKUP(O31,怪物表!$A:$D,4,FALSE)=1,2,0)) -> 2 | AA31: 3 | AB31: =IF(Q31="","",IF(VLOOKUP(Q31,怪物表!$A:$D,4,FALSE)=1,2,0)) -> 2 | AC31: =IF(R31="","",IF(VLOOKUP(R31,怪物表!$A:$D,4,FALSE)=1,2,0)) ->  | AD31: =IF(S31="","",IF(VLOOKUP(S31,怪物表!$A:$D,4,FALSE)=1,2,0)) ->  | AE31: =IF(T31="","",IF(VLOOKUP(T31,怪物表!$A:$D,4,FALSE)=1,2,0)) ->  | AF31: =IF(U31="","",IF(VLOOKUP(U31,怪物表!$A:$D,4,FALSE)=1,2,0)) ->  | AG31: =IF(V31="","",IF(VLOOKUP(V31,怪物表!$A:$D,4,FALSE)=1,2,0)) ->  | AH31: =IF(W31="","",IF(VLOOKUP(W31,怪物表!$A:$D,4,FALSE)=1,2,0)) ->  | AI31: 1.2 | AJ31: 0 | AK31: 1.2 | AL31: 2.4 | AM31: 3.6 | AU31: =IF(Y31="","",VLOOKUP(Y31,高度表!$A:$C,3,FALSE)) -> 0 | AV31: =IF(Z31="","",VLOOKUP(Z31,高度表!$A:$C,3,FALSE)) -> 1.8 | AW31: =IF(AA31="","",VLOOKUP(AA31,高度表!$A:$C,3,FALSE)) -> 2.5 | AX31: =IF(AB31="","",VLOOKUP(AB31,高度表!$A:$C,3,FALSE)) -> 1.8 | AY31: =IF(AC31="","",VLOOKUP(AC31,高度表!$A:$C,3,FALSE)) ->  | AZ31: =IF(AD31="","",VLOOKUP(AD31,高度表!$A:$C,3,FALSE)) ->  | BA31: =IF(AE31="","",VLOOKUP(AE31,高度表!$A:$C,3,FALSE)) ->  | BB31: =IF(AF31="","",VLOOKUP(AF31,高度表!$A:$C,3,FALSE)) ->  | BC31: =IF(AG31="","",VLOOKUP(AG31,高度表!$A:$C,3,FALSE)) ->  | BD31: =IF(AH31="","",VLOOKUP(AH31,高度表!$A:$C,3,FALSE)) ->  | BE31: 0.15 | BF31: 0 | BG31: 0.15 | BH31: 0.3 | BI31: 0.45 | BQ31: 200004;103000;100009;103000 | BR31: 0;1.8;2.5;1.8 | BS31: 0;1.2;2.4;3.6 | BT31: 0;0.15;0.3;0.45 | BU31: 0;0;0;0 | BV31: =IF(SUM(IF(N31="",0,IF(VLOOKUP(N31,怪物表!$A:$E,5,FALSE)=3,1,0)),IF(O31="",0,IF(VLOOKUP(O31,怪物表!$A:$E,5,FALSE)=3,1,0)),IF(P31="",0,IF(VLOOKUP(P31,怪物表!$A:$E,5,FALSE)=3,1,0)),IF(Q31="",0,IF(VLOOKUP(Q31,怪物表!$A:$E,5,FALSE)=3,1,0)),IF(R31="",0,IF(VLOOKUP(R31,怪物表!$A:$E,5,FALSE)=3,1,0)),IF(S31="",0,IF(VLOOKUP(S31,怪物表!$A:$E,5,FALSE)=3,1,0)),IF(T31="",0,IF(VLOOKUP(T31,怪物表!$A:$E,5,FALSE)=3,1,0)),IF(U31="",0,IF(VLOOKUP(U31,怪物表!$A:$E,5,FALSE)=3,1,0)),IF(V31="",0,IF(VLOOKUP(V31,怪物表!$A:$E,5,FALSE)=3,1,0)),IF(W31="",0,IF(VLOOKUP(W31,怪物表!$A:$E,5,FALSE)=3,1,0)))>0,180,120)*BW31/100 -> 120 | BW31: 100 | BX31: 100
A32: 100204 | B32: 精英 | N32: 205000 | O32: 105000 | P32: 105000 | Q32: 105000 | R32: 105000 | S32: 105000 | X32: =SUM(IF(N32="",0,VLOOKUP(N32,怪物表!$A:$D,3,FALSE)),IF(O32="",0,VLOOKUP(O32,怪物表!$A:$D,3,FALSE)),IF(P32="",0,VLOOKUP(P32,怪物表!$A:$D,3,FALSE)),IF(Q32="",0,VLOOKUP(Q32,怪物表!$A:$D,3,FALSE)),IF(R32="",0,VLOOKUP(R32,怪物表!$A:$D,3,FALSE)),IF(S32="",0,VLOOKUP(S32,怪物表!$A:$D,3,FALSE)),IF(T32="",0,VLOOKUP(T32,怪物表!$A:$D,3,FALSE)),IF(U32="",0,VLOOKUP(U32,怪物表!$A:$D,3,FALSE)),IF(V32="",0,VLOOKUP(V32,怪物表!$A:$D,3,FALSE)),IF(W32="",0,VLOOKUP(W32,怪物表!$A:$D,3,FALSE))) -> 18 | Y32: =IF(N32="","",IF(VLOOKUP(N32,怪物表!$A:$D,4,FALSE)=1,2,0)) -> 0 | Z32: =IF(O32="","",IF(VLOOKUP(O32,怪物表!$A:$D,4,FALSE)=1,2,0)) -> 0 | AA32: =IF(P32="","",IF(VLOOKUP(P32,怪物表!$A:$D,4,FALSE)=1,2,0)) -> 0 | AB32: =IF(Q32="","",IF(VLOOKUP(Q32,怪物表!$A:$D,4,FALSE)=1,2,0)) -> 0 | AC32: =IF(R32="","",IF(VLOOKUP(R32,怪物表!$A:$D,4,FALSE)=1,2,0)) -> 0 | AD32: =IF(S32="","",IF(VLOOKUP(S32,怪物表!$A:$D,4,FALSE)=1,2,0)) -> 0 | AE32: =IF(T32="","",IF(VLOOKUP(T32,怪物表!$A:$D,4,FALSE)=1,2,0)) ->  | AF32: =IF(U32="","",IF(VLOOKUP(U32,怪物表!$A:$D,4,FALSE)=1,2,0)) ->  | AG32: =IF(V32="","",IF(VLOOKUP(V32,怪物表!$A:$D,4,FALSE)=1,2,0)) ->  | AH32: =IF(W32="","",IF(VLOOKUP(W32,怪物表!$A:$D,4,FALSE)=1,2,0)) ->  | AI32: 1.2 | AJ32: 0 | AK32: 15 | AL32: =AK32+$AI32 -> 16.2 | AM32: 17.4 | AN32: 18.6 | AO32: 19.8 | AP32: 21 | AQ32: 22.2 | AR32: 23.4 | AS32: 24.6 | AU32: =IF(Y32="","",VLOOKUP(Y32,高度表!$A:$C,3,FALSE)) -> 0 | AV32: =IF(Z32="","",VLOOKUP(Z32,高度表!$A:$C,3,FALSE)) -> 0 | AW32: =IF(AA32="","",VLOOKUP(AA32,高度表!$A:$C,3,FALSE)) -> 0 | AX32: =IF(AB32="","",VLOOKUP(AB32,高度表!$A:$C,3,FALSE)) -> 0 | AY32: =IF(AC32="","",VLOOKUP(AC32,高度表!$A:$C,3,FALSE)) -> 0 | AZ32: =IF(AD32="","",VLOOKUP(AD32,高度表!$A:$C,3,FALSE)) -> 0 | BA32: =IF(AE32="","",VLOOKUP(AE32,高度表!$A:$C,3,FALSE)) ->  | BB32: =IF(AF32="","",VLOOKUP(AF32,高度表!$A:$C,3,FALSE)) ->  | BC32: =IF(AG32="","",VLOOKUP(AG32,高度表!$A:$C,3,FALSE)) ->  | BD32: =IF(AH32="","",VLOOKUP(AH32,高度表!$A:$C,3,FALSE)) ->  | BE32: 0.15 | BF32: 0 | BG32: 0.15 | BH32: 0.3 | BI32: 0.45 | BJ32: 0.6 | BK32: 0.75 | BQ32: 205000;105000;105000;105000;105000;105000 | BR32: 0;0;0;0;0;0 | BS32: 0;15;16.2;17.4;18.6;19.8;21;22.2;23.4;24.6 | BT32: 0;0.15;0.3;0.45;0.6;0.75 | BU32: 0;0;0;0;0;0 | BV32: =IF(SUM(IF(N32="",0,IF(VLOOKUP(N32,怪物表!$A:$E,5,FALSE)=3,1,0)),IF(O32="",0,IF(VLOOKUP(O32,怪物表!$A:$E,5,FALSE)=3,1,0)),IF(P32="",0,IF(VLOOKUP(P32,怪物表!$A:$E,5,FALSE)=3,1,0)),IF(Q32="",0,IF(VLOOKUP(Q32,怪物表!$A:$E,5,FALSE)=3,1,0)),IF(R32="",0,IF(VLOOKUP(R32,怪物表!$A:$E,5,FALSE)=3,1,0)),IF(S32="",0,IF(VLOOKUP(S32,怪物表!$A:$E,5,FALSE)=3,1,0)),IF(T32="",0,IF(VLOOKUP(T32,怪物表!$A:$E,5,FALSE)=3,1,0)),IF(U32="",0,IF(VLOOKUP(U32,怪物表!$A:$E,5,FALSE)=3,1,0)),IF(V32="",0,IF(VLOOKUP(V32,怪物表!$A:$E,5,FALSE)=3,1,0)),IF(W32="",0,IF(VLOOKUP(W32,怪物表!$A:$E,5,FALSE)=3,1,0)))>0,180,120)*BW32/100 -> 120 | BW32: 100 | BX32: 100
A33: 100205 | B33: 小怪 | N33: 100004 | O33: 107000 | P33: 100009 | Q33: 103000 | X33: =SUM(IF(N33="",0,VLOOKUP(N33,怪物表!$A:$D,3,FALSE)),IF(O33="",0,VLOOKUP(O33,怪物表!$A:$D,3,FALSE)),IF(P33="",0,VLOOKUP(P33,怪物表!$A:$D,3,FALSE)),IF(Q33="",0,VLOOKUP(Q33,怪物表!$A:$D,3,FALSE)),IF(R33="",0,VLOOKUP(R33,怪物表!$A:$D,3,FALSE)),IF(S33="",0,VLOOKUP(S33,怪物表!$A:$D,3,FALSE)),IF(T33="",0,VLOOKUP(T33,怪物表!$A:$D,3,FALSE)),IF(U33="",0,VLOOKUP(U33,怪物表!$A:$D,3,FALSE)),IF(V33="",0,VLOOKUP(V33,怪物表!$A:$D,3,FALSE)),IF(W33="",0,VLOOKUP(W33,怪物表!$A:$D,3,FALSE))) -> 14 | Y33: =IF(N33="","",IF(VLOOKUP(N33,怪物表!$A:$D,4,FALSE)=1,2,0)) -> 0 | Z33: 3 | AA33: =IF(P33="","",IF(VLOOKUP(P33,怪物表!$A:$D,4,FALSE)=1,2,0)) -> 2 | AB33: 3 | AC33: =IF(R33="","",IF(VLOOKUP(R33,怪物表!$A:$D,4,FALSE)=1,2,0)) ->  | AD33: =IF(S33="","",IF(VLOOKUP(S33,怪物表!$A:$D,4,FALSE)=1,2,0)) ->  | AE33: =IF(T33="","",IF(VLOOKUP(T33,怪物表!$A:$D,4,FALSE)=1,2,0)) ->  | AF33: =IF(U33="","",IF(VLOOKUP(U33,怪物表!$A:$D,4,FALSE)=1,2,0)) ->  | AG33: =IF(V33="","",IF(VLOOKUP(V33,怪物表!$A:$D,4,FALSE)=1,2,0)) ->  | AH33: =IF(W33="","",IF(VLOOKUP(W33,怪物表!$A:$D,4,FALSE)=1,2,0)) ->  | AI33: 1.2 | AJ33: 0 | AK33: 1.2 | AL33: 2.4 | AM33: 3.6 | AU33: =IF(Y33="","",VLOOKUP(Y33,高度表!$A:$C,3,FALSE)) -> 0 | AV33: =IF(Z33="","",VLOOKUP(Z33,高度表!$A:$C,3,FALSE)) -> 2.5 | AW33: =IF(AA33="","",VLOOKUP(AA33,高度表!$A:$C,3,FALSE)) -> 1.8 | AX33: =IF(AB33="","",VLOOKUP(AB33,高度表!$A:$C,3,FALSE)) -> 2.5 | AY33: =IF(AC33="","",VLOOKUP(AC33,高度表!$A:$C,3,FALSE)) ->  | AZ33: =IF(AD33="","",VLOOKUP(AD33,高度表!$A:$C,3,FALSE)) ->  | BA33: =IF(AE33="","",VLOOKUP(AE33,高度表!$A:$C,3,FALSE)) ->  | BB33: =IF(AF33="","",VLOOKUP(AF33,高度表!$A:$C,3,FALSE)) ->  | BC33: =IF(AG33="","",VLOOKUP(AG33,高度表!$A:$C,3,FALSE)) ->  | BD33: =IF(AH33="","",VLOOKUP(AH33,高度表!$A:$C,3,FALSE)) ->  | BE33: 0.15 | BF33: 0 | BG33: 0.15 | BH33: 0.3 | BI33: 0.45 | BQ33: 100004;107000;100009;103000 | BR33: 0;2.5;1.8;2.5 | BS33: 0;1.2;2.4;3.6 | BT33: 0;0.15;0.3;0.45 | BU33: 0;0;0;0 | BV33: =IF(SUM(IF(N33="",0,IF(VLOOKUP(N33,怪物表!$A:$E,5,FALSE)=3,1,0)),IF(O33="",0,IF(VLOOKUP(O33,怪物表!$A:$E,5,FALSE)=3,1,0)),IF(P33="",0,IF(VLOOKUP(P33,怪物表!$A:$E,5,FALSE)=3,1,0)),IF(Q33="",0,IF(VLOOKUP(Q33,怪物表!$A:$E,5,FALSE)=3,1,0)),IF(R33="",0,IF(VLOOKUP(R33,怪物表!$A:$E,5,FALSE)=3,1,0)),IF(S33="",0,IF(VLOOKUP(S33,怪物表!$A:$E,5,FALSE)=3,1,0)),IF(T33="",0,IF(VLOOKUP(T33,怪物表!$A:$E,5,FALSE)=3,1,0)),IF(U33="",0,IF(VLOOKUP(U33,怪物表!$A:$E,5,FALSE)=3,1,0)),IF(V33="",0,IF(VLOOKUP(V33,怪物表!$A:$E,5,FALSE)=3,1,0)),IF(W33="",0,IF(VLOOKUP(W33,怪物表!$A:$E,5,FALSE)=3,1,0)))>0,180,120)*BW33/100 -> 120 | BW33: 100 | BX33: 100
A34: 100206 | B34: 小怪 | N34: 105000 | O34: 103000 | P34: 100009 | Q34: 103000 | R34: 103000 | X34: =SUM(IF(N34="",0,VLOOKUP(N34,怪物表!$A:$D,3,FALSE)),IF(O34="",0,VLOOKUP(O34,怪物表!$A:$D,3,FALSE)),IF(P34="",0,VLOOKUP(P34,怪物表!$A:$D,3,FALSE)),IF(Q34="",0,VLOOKUP(Q34,怪物表!$A:$D,3,FALSE)),IF(R34="",0,VLOOKUP(R34,怪物表!$A:$D,3,FALSE)),IF(S34="",0,VLOOKUP(S34,怪物表!$A:$D,3,FALSE)),IF(T34="",0,VLOOKUP(T34,怪物表!$A:$D,3,FALSE)),IF(U34="",0,VLOOKUP(U34,怪物表!$A:$D,3,FALSE)),IF(V34="",0,VLOOKUP(V34,怪物表!$A:$D,3,FALSE)),IF(W34="",0,VLOOKUP(W34,怪物表!$A:$D,3,FALSE))) -> 10 | Y34: =IF(N34="","",IF(VLOOKUP(N34,怪物表!$A:$D,4,FALSE)=1,2,0)) -> 0 | Z34: =IF(O34="","",IF(VLOOKUP(O34,怪物表!$A:$D,4,FALSE)=1,2,0)) -> 2 | AA34: =IF(P34="","",IF(VLOOKUP(P34,怪物表!$A:$D,4,FALSE)=1,2,0)) -> 2 | AB34: 1 | AC34: 3 | AD34: =IF(S34="","",IF(VLOOKUP(S34,怪物表!$A:$D,4,FALSE)=1,2,0)) ->  | AE34: =IF(T34="","",IF(VLOOKUP(T34,怪物表!$A:$D,4,FALSE)=1,2,0)) ->  | AF34: =IF(U34="","",IF(VLOOKUP(U34,怪物表!$A:$D,4,FALSE)=1,2,0)) ->  | AG34: =IF(V34="","",IF(VLOOKUP(V34,怪物表!$A:$D,4,FALSE)=1,2,0)) ->  | AH34: =IF(W34="","",IF(VLOOKUP(W34,怪物表!$A:$D,4,FALSE)=1,2,0)) ->  | AI34: 1.2 | AJ34: 0 | AK34: 1.2 | AL34: 2.4 | AM34: 3.6 | AN34: 4.8 | AU34: =IF(Y34="","",VLOOKUP(Y34,高度表!$A:$C,3,FALSE)) -> 0 | AV34: =IF(Z34="","",VLOOKUP(Z34,高度表!$A:$C,3,FALSE)) -> 1.8 | AW34: =IF(AA34="","",VLOOKUP(AA34,高度表!$A:$C,3,FALSE)) -> 1.8 | AX34: =IF(AB34="","",VLOOKUP(AB34,高度表!$A:$C,3,FALSE)) -> 1.1 | AY34: =IF(AC34="","",VLOOKUP(AC34,高度表!$A:$C,3,FALSE)) -> 2.5 | AZ34: =IF(AD34="","",VLOOKUP(AD34,高度表!$A:$C,3,FALSE)) ->  | BA34: =IF(AE34="","",VLOOKUP(AE34,高度表!$A:$C,3,FALSE)) ->  | BB34: =IF(AF34="","",VLOOKUP(AF34,高度表!$A:$C,3,FALSE)) ->  | BC34: =IF(AG34="","",VLOOKUP(AG34,高度表!$A:$C,3,FALSE)) ->  | BD34: =IF(AH34="","",VLOOKUP(AH34,高度表!$A:$C,3,FALSE)) ->  | BE34: 0.15 | BF34: 0 | BG34: 0.15 | BH34: 0.3 | BI34: 0.45 | BJ34: 0.6 | BQ34: 105000;103000;100009;103000;103000 | BR34: 0;1.8;1.8;1.1;2.5 | BS34: 0;1.2;2.4;3.6;4.8 | BT34: 0;0.15;0.3;0.45;0.6 | BU34: 0;0;0;0;0 | BV34: =IF(SUM(IF(N34="",0,IF(VLOOKUP(N34,怪物表!$A:$E,5,FALSE)=3,1,0)),IF(O34="",0,IF(VLOOKUP(O34,怪物表!$A:$E,5,FALSE)=3,1,0)),IF(P34="",0,IF(VLOOKUP(P34,怪物表!$A:$E,5,FALSE)=3,1,0)),IF(Q34="",0,IF(VLOOKUP(Q34,怪物表!$A:$E,5,FALSE)=3,1,0)),IF(R34="",0,IF(VLOOKUP(R34,怪物表!$A:$E,5,FALSE)=3,1,0)),IF(S34="",0,IF(VLOOKUP(S34,怪物表!$A:$E,5,FALSE)=3,1,0)),IF(T34="",0,IF(VLOOKUP(T34,怪物表!$A:$E,5,FALSE)=3,1,0)),IF(U34="",0,IF(VLOOKUP(U34,怪物表!$A:$E,5,FALSE)=3,1,0)),IF(V34="",0,IF(VLOOKUP(V34,怪物表!$A:$E,5,FALSE)=3,1,0)),IF(W34="",0,IF(VLOOKUP(W34,怪物表!$A:$E,5,FALSE)=3,1,0)))>0,180,120)*BW34/100 -> 120 | BW34: 100 | BX34: 100
A35: 100207 | B35: 小怪 | N35: 100004 | O35: 107000 | P35: 100009 | Q35: 103000 | X35: =SUM(IF(N35="",0,VLOOKUP(N35,怪物表!$A:$D,3,FALSE)),IF(O35="",0,VLOOKUP(O35,怪物表!$A:$D,3,FALSE)),IF(P35="",0,VLOOKUP(P35,怪物表!$A:$D,3,FALSE)),IF(Q35="",0,VLOOKUP(Q35,怪物表!$A:$D,3,FALSE)),IF(R35="",0,VLOOKUP(R35,怪物表!$A:$D,3,FALSE)),IF(S35="",0,VLOOKUP(S35,怪物表!$A:$D,3,FALSE)),IF(T35="",0,VLOOKUP(T35,怪物表!$A:$D,3,FALSE)),IF(U35="",0,VLOOKUP(U35,怪物表!$A:$D,3,FALSE)),IF(V35="",0,VLOOKUP(V35,怪物表!$A:$D,3,FALSE)),IF(W35="",0,VLOOKUP(W35,怪物表!$A:$D,3,FALSE))) -> 14 | Y35: =IF(N35="","",IF(VLOOKUP(N35,怪物表!$A:$D,4,FALSE)=1,2,0)) -> 0 | Z35: 3 | AA35: =IF(P35="","",IF(VLOOKUP(P35,怪物表!$A:$D,4,FALSE)=1,2,0)) -> 2 | AB35: 3 | AC35: =IF(R35="","",IF(VLOOKUP(R35,怪物表!$A:$D,4,FALSE)=1,2,0)) ->  | AD35: =IF(S35="","",IF(VLOOKUP(S35,怪物表!$A:$D,4,FALSE)=1,2,0)) ->  | AE35: =IF(T35="","",IF(VLOOKUP(T35,怪物表!$A:$D,4,FALSE)=1,2,0)) ->  | AF35: =IF(U35="","",IF(VLOOKUP(U35,怪物表!$A:$D,4,FALSE)=1,2,0)) ->  | AG35: =IF(V35="","",IF(VLOOKUP(V35,怪物表!$A:$D,4,FALSE)=1,2,0)) ->  | AH35: =IF(W35="","",IF(VLOOKUP(W35,怪物表!$A:$D,4,FALSE)=1,2,0)) ->  | AI35: 1.2 | AJ35: 0 | AK35: 1.2 | AL35: 2.4 | AM35: 3.6 | AU35: =IF(Y35="","",VLOOKUP(Y35,高度表!$A:$C,3,FALSE)) -> 0 | AV35: =IF(Z35="","",VLOOKUP(Z35,高度表!$A:$C,3,FALSE)) -> 2.5 | AW35: =IF(AA35="","",VLOOKUP(AA35,高度表!$A:$C,3,FALSE)) -> 1.8 | AX35: =IF(AB35="","",VLOOKUP(AB35,高度表!$A:$C,3,FALSE)) -> 2.5 | AY35: =IF(AC35="","",VLOOKUP(AC35,高度表!$A:$C,3,FALSE)) ->  | AZ35: =IF(AD35="","",VLOOKUP(AD35,高度表!$A:$C,3,FALSE)) ->  | BA35: =IF(AE35="","",VLOOKUP(AE35,高度表!$A:$C,3,FALSE)) ->  | BB35: =IF(AF35="","",VLOOKUP(AF35,高度表!$A:$C,3,FALSE)) ->  | BC35: =IF(AG35="","",VLOOKUP(AG35,高度表!$A:$C,3,FALSE)) ->  | BD35: =IF(AH35="","",VLOOKUP(AH35,高度表!$A:$C,3,FALSE)) ->  | BE35: 0.15 | BF35: 0 | BG35: 0.15 | BH35: 0.3 | BI35: 0.45 | BQ35: 100004;107000;100009;103000 | BR35: 0;2.5;1.8;2.5 | BS35: 0;1.2;2.4;3.6 | BT35: 0;0.15;0.3;0.45 | BU35: 0;0;0;0 | BV35: =IF(SUM(IF(N35="",0,IF(VLOOKUP(N35,怪物表!$A:$E,5,FALSE)=3,1,0)),IF(O35="",0,IF(VLOOKUP(O35,怪物表!$A:$E,5,FALSE)=3,1,0)),IF(P35="",0,IF(VLOOKUP(P35,怪物表!$A:$E,5,FALSE)=3,1,0)),IF(Q35="",0,IF(VLOOKUP(Q35,怪物表!$A:$E,5,FALSE)=3,1,0)),IF(R35="",0,IF(VLOOKUP(R35,怪物表!$A:$E,5,FALSE)=3,1,0)),IF(S35="",0,IF(VLOOKUP(S35,怪物表!$A:$E,5,FALSE)=3,1,0)),IF(T35="",0,IF(VLOOKUP(T35,怪物表!$A:$E,5,FALSE)=3,1,0)),IF(U35="",0,IF(VLOOKUP(U35,怪物表!$A:$E,5,FALSE)=3,1,0)),IF(V35="",0,IF(VLOOKUP(V35,怪物表!$A:$E,5,FALSE)=3,1,0)),IF(W35="",0,IF(VLOOKUP(W35,怪物表!$A:$E,5,FALSE)=3,1,0)))>0,180,120)*BW35/100 -> 120 | BW35: 100 | BX35: 100
A36: 100301 | B36: 小怪 | N36: 108000 | O36: 103000 | P36: 103000 | Q36: 103000 | R36: 103000 | X36: =SUM(IF(N36="",0,VLOOKUP(N36,怪物表!$A:$D,3,FALSE)),IF(O36="",0,VLOOKUP(O36,怪物表!$A:$D,3,FALSE)),IF(P36="",0,VLOOKUP(P36,怪物表!$A:$D,3,FALSE)),IF(Q36="",0,VLOOKUP(Q36,怪物表!$A:$D,3,FALSE)),IF(R36="",0,VLOOKUP(R36,怪物表!$A:$D,3,FALSE)),IF(S36="",0,VLOOKUP(S36,怪物表!$A:$D,3,FALSE)),IF(T36="",0,VLOOKUP(T36,怪物表!$A:$D,3,FALSE)),IF(U36="",0,VLOOKUP(U36,怪物表!$A:$D,3,FALSE)),IF(V36="",0,VLOOKUP(V36,怪物表!$A:$D,3,FALSE)),IF(W36="",0,VLOOKUP(W36,怪物表!$A:$D,3,FALSE))) -> 16 | Y36: =IF(N36="","",IF(VLOOKUP(N36,怪物表!$A:$D,4,FALSE)=1,2,0)) -> 0 | Z36: =IF(O36="","",IF(VLOOKUP(O36,怪物表!$A:$D,4,FALSE)=1,2,0)) -> 2 | AA36: 3 | AB36: =IF(Q36="","",IF(VLOOKUP(Q36,怪物表!$A:$D,4,FALSE)=1,2,0)) -> 2 | AC36: =IF(R36="","",IF(VLOOKUP(R36,怪物表!$A:$D,4,FALSE)=1,2,0)) -> 2 | AD36: =IF(S36="","",IF(VLOOKUP(S36,怪物表!$A:$D,4,FALSE)=1,2,0)) ->  | AE36: =IF(T36="","",IF(VLOOKUP(T36,怪物表!$A:$D,4,FALSE)=1,2,0)) ->  | AF36: =IF(U36="","",IF(VLOOKUP(U36,怪物表!$A:$D,4,FALSE)=1,2,0)) ->  | AG36: =IF(V36="","",IF(VLOOKUP(V36,怪物表!$A:$D,4,FALSE)=1,2,0)) ->  | AH36: =IF(W36="","",IF(VLOOKUP(W36,怪物表!$A:$D,4,FALSE)=1,2,0)) ->  | AI36: 1.2 | AJ36: 0 | AK36: 1.2 | AL36: 2.4 | AM36: 3.6 | AN36: 4.8 | AU36: =IF(Y36="","",VLOOKUP(Y36,高度表!$A:$C,3,FALSE)) -> 0 | AV36: =IF(Z36="","",VLOOKUP(Z36,高度表!$A:$C,3,FALSE)) -> 1.8 | AW36: =IF(AA36="","",VLOOKUP(AA36,高度表!$A:$C,3,FALSE)) -> 2.5 | AX36: =IF(AB36="","",VLOOKUP(AB36,高度表!$A:$C,3,FALSE)) -> 1.8 | AY36: =IF(AC36="","",VLOOKUP(AC36,高度表!$A:$C,3,FALSE)) -> 1.8 | AZ36: =IF(AD36="","",VLOOKUP(AD36,高度表!$A:$C,3,FALSE)) ->  | BA36: =IF(AE36="","",VLOOKUP(AE36,高度表!$A:$C,3,FALSE)) ->  | BB36: =IF(AF36="","",VLOOKUP(AF36,高度表!$A:$C,3,FALSE)) ->  | BC36: =IF(AG36="","",VLOOKUP(AG36,高度表!$A:$C,3,FALSE)) ->  | BD36: =IF(AH36="","",VLOOKUP(AH36,高度表!$A:$C,3,FALSE)) ->  | BE36: 0.15 | BF36: =IF(N36="","",0*$BE36) -> 0 | BG36: =IF(O36="","",1*$BE36) -> 0.15 | BH36: =IF(P36="","",2*$BE36) -> 0.3 | BI36: =IF(Q36="","",3*$BE36) -> 0.45 | BJ36: =IF(R36="","",4*$BE36) -> 0.6 | BK36: =IF(S36="","",5*$BE36) ->  | BL36: =IF(T36="","",6*$BE36) ->  | BM36: =IF(U36="","",7*$BE36) ->  | BN36: =IF(V36="","",8*$BE36) ->  | BO36: =IF(W36="","",9*$BE36) ->  | BQ36: =CONCATENATE(N36,IF(O36="","",";"),O36,IF(P36="","",";"),P36,IF(Q36="","",";"),Q36,IF(R36="","",";"),R36,IF(S36="","",";"),S36,IF(T36="","",";"),T36,IF(U36="","",";"),U36,IF(V36="","",";"),V36,IF(W36="","",";"),W36) -> 108000;103000;103000;103000;103000 | BR36: =CONCATENATE(AU36,IF(AV36="","",";"),AV36,IF(AW36="","",";"),AW36,IF(AX36="","",";"),AX36,IF(AY36="","",";"),AY36,IF(AZ36="","",";"),AZ36,IF(BA36="","",";"),BA36,IF(BB36="","",";"),BB36,IF(BC36="","",";"),BC36,IF(BD36="","",";"),BD36) -> 0;1.8;2.5;1.8;1.8 | BS36: =CONCATENATE(AJ36,IF(AK36="","",";"),AK36,IF(AL36="","",";"),AL36,IF(AM36="","",";"),AM36,IF(AN36="","",";"),AN36,IF(AO36="","",";"),AO36,IF(AP36="","",";"),AP36,IF(AQ36="","",";"),AQ36,IF(AR36="","",";"),AR36,IF(AS36="","",";"),AS36) -> 0;1.2;2.4;3.6;4.8 | BT36: =CONCATENATE(BF36,IF(BG36="","",";"),BG36,IF(BH36="","",";"),BH36,IF(BI36="","",";"),BI36,IF(BJ36="","",";"),BJ36,IF(BK36="","",";"),BK36,IF(BL36="","",";"),BL36,IF(BM36="","",";"),BM36,IF(BN36="","",";"),BN36,IF(BO36="","",";"),BO36) -> 0;0.15;0.3;0.45;0.6 | BU36: =CONCATENATE(IF(N36="","",IF(C36="",0,C36)),IF(IF(O36="","",IF(D36="",0,D36))="","",";"),IF(O36="","",IF(D36="",0,D36)),IF(IF(P36="","",IF(E36="",0,E36))="","",";"),IF(P36="","",IF(E36="",0,E36)),IF(IF(Q36="","",IF(F36="",0,F36))="","",";"),IF(Q36="","",IF(F36="",0,F36)),IF(IF(R36="","",IF(G36="",0,G36))="","",";"),IF(R36="","",IF(G36="",0,G36)),IF(IF(S36="","",IF(H36="",0,H36))="","",";"),IF(S36="","",IF(H36="",0,H36)),IF(IF(T36="","",IF(I36="",0,I36))="","",";"),IF(T36="","",IF(I36="",0,I36)),IF(IF(U36="","",IF(J36="",0,J36))="","",";"),IF(U36="","",IF(J36="",0,J36)),IF(IF(V36="","",IF(K36="",0,K36))="","",";"),IF(V36="","",IF(K36="",0,K36)),IF(IF(W36="","",IF(M36="",0,M36))="","",";"),IF(W36="","",IF(M36="",0,M36))) -> 0;0;0;0;0 | BV36: =IF(SUM(IF(N36="",0,IF(VLOOKUP(N36,怪物表!$A:$E,5,FALSE)=3,1,0)),IF(O36="",0,IF(VLOOKUP(O36,怪物表!$A:$E,5,FALSE)=3,1,0)),IF(P36="",0,IF(VLOOKUP(P36,怪物表!$A:$E,5,FALSE)=3,1,0)),IF(Q36="",0,IF(VLOOKUP(Q36,怪物表!$A:$E,5,FALSE)=3,1,0)),IF(R36="",0,IF(VLOOKUP(R36,怪物表!$A:$E,5,FALSE)=3,1,0)),IF(S36="",0,IF(VLOOKUP(S36,怪物表!$A:$E,5,FALSE)=3,1,0)),IF(T36="",0,IF(VLOOKUP(T36,怪物表!$A:$E,5,FALSE)=3,1,0)),IF(U36="",0,IF(VLOOKUP(U36,怪物表!$A:$E,5,FALSE)=3,1,0)),IF(V36="",0,IF(VLOOKUP(V36,怪物表!$A:$E,5,FALSE)=3,1,0)),IF(W36="",0,IF(VLOOKUP(W36,怪物表!$A:$E,5,FALSE)=3,1,0)))>0,180,120)*BW36/100 -> 120 | BW36: 100 | BX36: 100
A37: 100302 | B37: 小怪 | N37: 108000 | O37: 103000 | P37: 103000 | Q37: 103000 | R37: 103000 | X37: =SUM(IF(N37="",0,VLOOKUP(N37,怪物表!$A:$D,3,FALSE)),IF(O37="",0,VLOOKUP(O37,怪物表!$A:$D,3,FALSE)),IF(P37="",0,VLOOKUP(P37,怪物表!$A:$D,3,FALSE)),IF(Q37="",0,VLOOKUP(Q37,怪物表!$A:$D,3,FALSE)),IF(R37="",0,VLOOKUP(R37,怪物表!$A:$D,3,FALSE)),IF(S37="",0,VLOOKUP(S37,怪物表!$A:$D,3,FALSE)),IF(T37="",0,VLOOKUP(T37,怪物表!$A:$D,3,FALSE)),IF(U37="",0,VLOOKUP(U37,怪物表!$A:$D,3,FALSE)),IF(V37="",0,VLOOKUP(V37,怪物表!$A:$D,3,FALSE)),IF(W37="",0,VLOOKUP(W37,怪物表!$A:$D,3,FALSE))) -> 16 | Y37: =IF(N37="","",IF(VLOOKUP(N37,怪物表!$A:$D,4,FALSE)=1,2,0)) -> 0 | Z37: 2 | AA37: 2 | AB37: 2 | AC37: =IF(R37="","",IF(VLOOKUP(R37,怪物表!$A:$D,4,FALSE)=1,2,0)) -> 2 | AD37: =IF(S37="","",IF(VLOOKUP(S37,怪物表!$A:$D,4,FALSE)=1,2,0)) ->  | AE37: =IF(T37="","",IF(VLOOKUP(T37,怪物表!$A:$D,4,FALSE)=1,2,0)) ->  | AF37: =IF(U37="","",IF(VLOOKUP(U37,怪物表!$A:$D,4,FALSE)=1,2,0)) ->  | AG37: =IF(V37="","",IF(VLOOKUP(V37,怪物表!$A:$D,4,FALSE)=1,2,0)) ->  | AH37: =IF(W37="","",IF(VLOOKUP(W37,怪物表!$A:$D,4,FALSE)=1,2,0)) ->  | AI37: 1.2 | AJ37: 0 | AK37: 1.2 | AL37: 2.4 | AM37: 3.6 | AN37: 4.8 | AU37: =IF(Y37="","",VLOOKUP(Y37,高度表!$A:$C,3,FALSE)) -> 0 | AV37: =IF(Z37="","",VLOOKUP(Z37,高度表!$A:$C,3,FALSE)) -> 1.8 | AW37: =IF(AA37="","",VLOOKUP(AA37,高度表!$A:$C,3,FALSE)) -> 1.8 | AX37: =IF(AB37="","",VLOOKUP(AB37,高度表!$A:$C,3,FALSE)) -> 1.8 | AY37: =IF(AC37="","",VLOOKUP(AC37,高度表!$A:$C,3,FALSE)) -> 1.8 | AZ37: =IF(AD37="","",VLOOKUP(AD37,高度表!$A:$C,3,FALSE)) ->  | BA37: =IF(AE37="","",VLOOKUP(AE37,高度表!$A:$C,3,FALSE)) ->  | BB37: =IF(AF37="","",VLOOKUP(AF37,高度表!$A:$C,3,FALSE)) ->  | BC37: =IF(AG37="","",VLOOKUP(AG37,高度表!$A:$C,3,FALSE)) ->  | BD37: =IF(AH37="","",VLOOKUP(AH37,高度表!$A:$C,3,FALSE)) ->  | BE37: 0.15 | BF37: 0 | BG37: 0.15 | BH37: 0.3 | BI37: 0.45 | BJ37: 0.6 | BQ37: 108000;103000;103000;103000;103000 | BR37: 0;1.8;1.8;1.8;1.8 | BS37: 0;1.2;2.4;3.6;4.8 | BT37: 0;0.15;0.3;0.45;0.6 | BU37: 0;0;0;0;0 | BV37: =IF(SUM(IF(N37="",0,IF(VLOOKUP(N37,怪物表!$A:$E,5,FALSE)=3,1,0)),IF(O37="",0,IF(VLOOKUP(O37,怪物表!$A:$E,5,FALSE)=3,1,0)),IF(P37="",0,IF(VLOOKUP(P37,怪物表!$A:$E,5,FALSE)=3,1,0)),IF(Q37="",0,IF(VLOOKUP(Q37,怪物表!$A:$E,5,FALSE)=3,1,0)),IF(R37="",0,IF(VLOOKUP(R37,怪物表!$A:$E,5,FALSE)=3,1,0)),IF(S37="",0,IF(VLOOKUP(S37,怪物表!$A:$E,5,FALSE)=3,1,0)),IF(T37="",0,IF(VLOOKUP(T37,怪物表!$A:$E,5,FALSE)=3,1,0)),IF(U37="",0,IF(VLOOKUP(U37,怪物表!$A:$E,5,FALSE)=3,1,0)),IF(V37="",0,IF(VLOOKUP(V37,怪物表!$A:$E,5,FALSE)=3,1,0)),IF(W37="",0,IF(VLOOKUP(W37,怪物表!$A:$E,5,FALSE)=3,1,0)))>0,180,120)*BW37/100 -> 120 | BW37: 100 | BX37: 100
A38: 100303 | B38: 小怪 | N38: 103000 | O38: 103000 | P38: 103001 | Q38: 103001 | R38: 103003 | X38: =SUM(IF(N38="",0,VLOOKUP(N38,怪物表!$A:$D,3,FALSE)),IF(O38="",0,VLOOKUP(O38,怪物表!$A:$D,3,FALSE)),IF(P38="",0,VLOOKUP(P38,怪物表!$A:$D,3,FALSE)),IF(Q38="",0,VLOOKUP(Q38,怪物表!$A:$D,3,FALSE)),IF(R38="",0,VLOOKUP(R38,怪物表!$A:$D,3,FALSE)),IF(S38="",0,VLOOKUP(S38,怪物表!$A:$D,3,FALSE)),IF(T38="",0,VLOOKUP(T38,怪物表!$A:$D,3,FALSE)),IF(U38="",0,VLOOKUP(U38,怪物表!$A:$D,3,FALSE)),IF(V38="",0,VLOOKUP(V38,怪物表!$A:$D,3,FALSE)),IF(W38="",0,VLOOKUP(W38,怪物表!$A:$D,3,FALSE))) -> 10 | Y38: =IF(N38="","",IF(VLOOKUP(N38,怪物表!$A:$D,4,FALSE)=1,2,0)) -> 2 | Z38: =IF(O38="","",IF(VLOOKUP(O38,怪物表!$A:$D,4,FALSE)=1,2,0)) -> 2 | AA38: =IF(P38="","",IF(VLOOKUP(P38,怪物表!$A:$D,4,FALSE)=1,2,0)) -> 2 | AB38: =IF(Q38="","",IF(VLOOKUP(Q38,怪物表!$A:$D,4,FALSE)=1,2,0)) -> 2 | AC38: =IF(R38="","",IF(VLOOKUP(R38,怪物表!$A:$D,4,FALSE)=1,2,0)) -> 2 | AD38: =IF(S38="","",IF(VLOOKUP(S38,怪物表!$A:$D,4,FALSE)=1,2,0)) ->  | AE38: =IF(T38="","",IF(VLOOKUP(T38,怪物表!$A:$D,4,FALSE)=1,2,0)) ->  | AF38: =IF(U38="","",IF(VLOOKUP(U38,怪物表!$A:$D,4,FALSE)=1,2,0)) ->  | AG38: =IF(V38="","",IF(VLOOKUP(V38,怪物表!$A:$D,4,FALSE)=1,2,0)) ->  | AH38: =IF(W38="","",IF(VLOOKUP(W38,怪物表!$A:$D,4,FALSE)=1,2,0)) ->  | AI38: 1.2 | AJ38: 0 | AK38: 1.2 | AL38: 2.4 | AM38: 3.6 | AN38: 4.8 | AU38: =IF(Y38="","",VLOOKUP(Y38,高度表!$A:$C,3,FALSE)) -> 1.8 | AV38: =IF(Z38="","",VLOOKUP(Z38,高度表!$A:$C,3,FALSE)) -> 1.8 | AW38: =IF(AA38="","",VLOOKUP(AA38,高度表!$A:$C,3,FALSE)) -> 1.8 | AX38: =IF(AB38="","",VLOOKUP(AB38,高度表!$A:$C,3,FALSE)) -> 1.8 | AY38: =IF(AC38="","",VLOOKUP(AC38,高度表!$A:$C,3,FALSE)) -> 1.8 | AZ38: =IF(AD38="","",VLOOKUP(AD38,高度表!$A:$C,3,FALSE)) ->  | BA38: =IF(AE38="","",VLOOKUP(AE38,高度表!$A:$C,3,FALSE)) ->  | BB38: =IF(AF38="","",VLOOKUP(AF38,高度表!$A:$C,3,FALSE)) ->  | BC38: =IF(AG38="","",VLOOKUP(AG38,高度表!$A:$C,3,FALSE)) ->  | BD38: =IF(AH38="","",VLOOKUP(AH38,高度表!$A:$C,3,FALSE)) ->  | BE38: 0.15 | BF38: 0 | BG38: 0.15 | BH38: 0.3 | BI38: 0.45 | BJ38: 0.6 | BQ38: 103000;103000;103001;103001;103003 | BR38: 1.8;1.8;1.8;1.8;1.8 | BS38: 0;1.2;2.4;3.6;4.8 | BT38: 0;0.15;0.3;0.45;0.6 | BU38: 0;0;0;0;0 | BV38: =IF(SUM(IF(N38="",0,IF(VLOOKUP(N38,怪物表!$A:$E,5,FALSE)=3,1,0)),IF(O38="",0,IF(VLOOKUP(O38,怪物表!$A:$E,5,FALSE)=3,1,0)),IF(P38="",0,IF(VLOOKUP(P38,怪物表!$A:$E,5,FALSE)=3,1,0)),IF(Q38="",0,IF(VLOOKUP(Q38,怪物表!$A:$E,5,FALSE)=3,1,0)),IF(R38="",0,IF(VLOOKUP(R38,怪物表!$A:$E,5,FALSE)=3,1,0)),IF(S38="",0,IF(VLOOKUP(S38,怪物表!$A:$E,5,FALSE)=3,1,0)),IF(T38="",0,IF(VLOOKUP(T38,怪物表!$A:$E,5,FALSE)=3,1,0)),IF(U38="",0,IF(VLOOKUP(U38,怪物表!$A:$E,5,FALSE)=3,1,0)),IF(V38="",0,IF(VLOOKUP(V38,怪物表!$A:$E,5,FALSE)=3,1,0)),IF(W38="",0,IF(VLOOKUP(W38,怪物表!$A:$E,5,FALSE)=3,1,0)))>0,180,120)*BW38/100 -> 120 | BW38: 100 | BX38: 100
A39: 100304 | B39: BOSS | N39: 985 | X39: =SUM(IF(N39="",0,VLOOKUP(N39,怪物表!$A:$D,3,FALSE)),IF(O39="",0,VLOOKUP(O39,怪物表!$A:$D,3,FALSE)),IF(P39="",0,VLOOKUP(P39,怪物表!$A:$D,3,FALSE)),IF(Q39="",0,VLOOKUP(Q39,怪物表!$A:$D,3,FALSE)),IF(R39="",0,VLOOKUP(R39,怪物表!$A:$D,3,FALSE)),IF(S39="",0,VLOOKUP(S39,怪物表!$A:$D,3,FALSE)),IF(T39="",0,VLOOKUP(T39,怪物表!$A:$D,3,FALSE)),IF(U39="",0,VLOOKUP(U39,怪物表!$A:$D,3,FALSE)),IF(V39="",0,VLOOKUP(V39,怪物表!$A:$D,3,FALSE)),IF(W39="",0,VLOOKUP(W39,怪物表!$A:$D,3,FALSE))) -> 25 | Y39: =IF(N39="","",IF(VLOOKUP(N39,怪物表!$A:$D,4,FALSE)=1,2,0)) -> 0 | Z39: =IF(O39="","",IF(VLOOKUP(O39,怪物表!$A:$D,4,FALSE)=1,2,0)) ->  | AA39: =IF(P39="","",IF(VLOOKUP(P39,怪物表!$A:$D,4,FALSE)=1,2,0)) ->  | AB39: =IF(Q39="","",IF(VLOOKUP(Q39,怪物表!$A:$D,4,FALSE)=1,2,0)) ->  | AC39: =IF(R39="","",IF(VLOOKUP(R39,怪物表!$A:$D,4,FALSE)=1,2,0)) ->  | AD39: =IF(S39="","",IF(VLOOKUP(S39,怪物表!$A:$D,4,FALSE)=1,2,0)) ->  | AE39: =IF(T39="","",IF(VLOOKUP(T39,怪物表!$A:$D,4,FALSE)=1,2,0)) ->  | AF39: =IF(U39="","",IF(VLOOKUP(U39,怪物表!$A:$D,4,FALSE)=1,2,0)) ->  | AG39: =IF(V39="","",IF(VLOOKUP(V39,怪物表!$A:$D,4,FALSE)=1,2,0)) ->  | AH39: =IF(W39="","",IF(VLOOKUP(W39,怪物表!$A:$D,4,FALSE)=1,2,0)) ->  | AI39: 1.2 | AJ39: =IF(N39="","",0*$AI39) -> 0 | AK39: =IF(O39="","",1*$AI39) ->  | AL39: =IF(P39="","",2*$AI39) ->  | AM39: =IF(Q39="","",3*$AI39) ->  | AN39: =IF(R39="","",4*$AI39) ->  | AO39: =IF(S39="","",5*$AI39) ->  | AP39: =IF(T39="","",6*$AI39) ->  | AQ39: =IF(U39="","",7*$AI39) ->  | AR39: =IF(V39="","",8*$AI39) ->  | AS39: =IF(W39="","",9*$AI39) ->  | AU39: =IF(Y39="","",VLOOKUP(Y39,高度表!$A:$C,3,FALSE)) -> 0 | AV39: =IF(Z39="","",VLOOKUP(Z39,高度表!$A:$C,3,FALSE)) ->  | AW39: =IF(AA39="","",VLOOKUP(AA39,高度表!$A:$C,3,FALSE)) ->  | AX39: =IF(AB39="","",VLOOKUP(AB39,高度表!$A:$C,3,FALSE)) ->  | AY39: =IF(AC39="","",VLOOKUP(AC39,高度表!$A:$C,3,FALSE)) ->  | AZ39: =IF(AD39="","",VLOOKUP(AD39,高度表!$A:$C,3,FALSE)) ->  | BA39: =IF(AE39="","",VLOOKUP(AE39,高度表!$A:$C,3,FALSE)) ->  | BB39: =IF(AF39="","",VLOOKUP(AF39,高度表!$A:$C,3,FALSE)) ->  | BC39: =IF(AG39="","",VLOOKUP(AG39,高度表!$A:$C,3,FALSE)) ->  | BD39: =IF(AH39="","",VLOOKUP(AH39,高度表!$A:$C,3,FALSE)) ->  | BE39: 0.15 | BF39: 0 | BQ39: 985 | BR39: 0 | BS39: 0 | BT39: 0 | BU39: 0 | BV39: =IF(SUM(IF(N39="",0,IF(VLOOKUP(N39,怪物表!$A:$E,5,FALSE)=3,1,0)),IF(O39="",0,IF(VLOOKUP(O39,怪物表!$A:$E,5,FALSE)=3,1,0)),IF(P39="",0,IF(VLOOKUP(P39,怪物表!$A:$E,5,FALSE)=3,1,0)),IF(Q39="",0,IF(VLOOKUP(Q39,怪物表!$A:$E,5,FALSE)=3,1,0)),IF(R39="",0,IF(VLOOKUP(R39,怪物表!$A:$E,5,FALSE)=3,1,0)),IF(S39="",0,IF(VLOOKUP(S39,怪物表!$A:$E,5,FALSE)=3,1,0)),IF(T39="",0,IF(VLOOKUP(T39,怪物表!$A:$E,5,FALSE)=3,1,0)),IF(U39="",0,IF(VLOOKUP(U39,怪物表!$A:$E,5,FALSE)=3,1,0)),IF(V39="",0,IF(VLOOKUP(V39,怪物表!$A:$E,5,FALSE)=3,1,0)),IF(W39="",0,IF(VLOOKUP(W39,怪物表!$A:$E,5,FALSE)=3,1,0)))>0,180,120)*BW39/100 -> 180 | BW39: 100 | BX39: 100
A40: 100305 | B40: 主线2-1小怪 | N40: 105000 | O40: 105000 | P40: 105000 | Q40: 105000 | R40: 105000 | X40: =SUM(IF(N40="",0,VLOOKUP(N40,怪物表!$A:$D,3,FALSE)),IF(O40="",0,VLOOKUP(O40,怪物表!$A:$D,3,FALSE)),IF(P40="",0,VLOOKUP(P40,怪物表!$A:$D,3,FALSE)),IF(Q40="",0,VLOOKUP(Q40,怪物表!$A:$D,3,FALSE)),IF(R40="",0,VLOOKUP(R40,怪物表!$A:$D,3,FALSE)),IF(S40="",0,VLOOKUP(S40,怪物表!$A:$D,3,FALSE)),IF(T40="",0,VLOOKUP(T40,怪物表!$A:$D,3,FALSE)),IF(U40="",0,VLOOKUP(U40,怪物表!$A:$D,3,FALSE)),IF(V40="",0,VLOOKUP(V40,怪物表!$A:$D,3,FALSE)),IF(W40="",0,VLOOKUP(W40,怪物表!$A:$D,3,FALSE))) -> 10 | Y40: =IF(N40="","",IF(VLOOKUP(N40,怪物表!$A:$D,4,FALSE)=1,2,0)) -> 0 | Z40: =IF(O40="","",IF(VLOOKUP(O40,怪物表!$A:$D,4,FALSE)=1,2,0)) -> 0 | AA40: =IF(P40="","",IF(VLOOKUP(P40,怪物表!$A:$D,4,FALSE)=1,2,0)) -> 0 | AB40: =IF(Q40="","",IF(VLOOKUP(Q40,怪物表!$A:$D,4,FALSE)=1,2,0)) -> 0 | AC40: =IF(R40="","",IF(VLOOKUP(R40,怪物表!$A:$D,4,FALSE)=1,2,0)) -> 0 | AD40: =IF(S40="","",IF(VLOOKUP(S40,怪物表!$A:$D,4,FALSE)=1,2,0)) ->  | AE40: =IF(T40="","",IF(VLOOKUP(T40,怪物表!$A:$D,4,FALSE)=1,2,0)) ->  | AF40: =IF(U40="","",IF(VLOOKUP(U40,怪物表!$A:$D,4,FALSE)=1,2,0)) ->  | AG40: =IF(V40="","",IF(VLOOKUP(V40,怪物表!$A:$D,4,FALSE)=1,2,0)) ->  | AH40: =IF(W40="","",IF(VLOOKUP(W40,怪物表!$A:$D,4,FALSE)=1,2,0)) ->  | AI40: 1.2 | AJ40: 0 | AK40: 1.2 | AL40: 2.4 | AM40: 3.6 | AN40: 4.8 | AO40: =IF(S40="","",5*$AI40) ->  | AU40: =IF(Y40="","",VLOOKUP(Y40,高度表!$A:$C,3,FALSE)) -> 0 | AV40: =IF(Z40="","",VLOOKUP(Z40,高度表!$A:$C,3,FALSE)) -> 0 | AW40: =IF(AA40="","",VLOOKUP(AA40,高度表!$A:$C,3,FALSE)) -> 0 | AX40: =IF(AB40="","",VLOOKUP(AB40,高度表!$A:$C,3,FALSE)) -> 0 | AY40: =IF(AC40="","",VLOOKUP(AC40,高度表!$A:$C,3,FALSE)) -> 0 | AZ40: =IF(AD40="","",VLOOKUP(AD40,高度表!$A:$C,3,FALSE)) ->  | BA40: =IF(AE40="","",VLOOKUP(AE40,高度表!$A:$C,3,FALSE)) ->  | BB40: =IF(AF40="","",VLOOKUP(AF40,高度表!$A:$C,3,FALSE)) ->  | BC40: =IF(AG40="","",VLOOKUP(AG40,高度表!$A:$C,3,FALSE)) ->  | BD40: =IF(AH40="","",VLOOKUP(AH40,高度表!$A:$C,3,FALSE)) ->  | BE40: 0.15 | BF40: 0 | BG40: 0.15 | BH40: 0.3 | BI40: 0.45 | BJ40: 0.6 | BQ40: 105000;105000;105000;105000;105000 | BR40: 0;0;0;0;0 | BS40: 0;1.2;2.4;3.6;4.8 | BT40: 0;0.15;0.3;0.45;0.6 | BU40: 0;0;0;0;0 | BV40: =IF(SUM(IF(N40="",0,IF(VLOOKUP(N40,怪物表!$A:$E,5,FALSE)=3,1,0)),IF(O40="",0,IF(VLOOKUP(O40,怪物表!$A:$E,5,FALSE)=3,1,0)),IF(P40="",0,IF(VLOOKUP(P40,怪物表!$A:$E,5,FALSE)=3,1,0)),IF(Q40="",0,IF(VLOOKUP(Q40,怪物表!$A:$E,5,FALSE)=3,1,0)),IF(R40="",0,IF(VLOOKUP(R40,怪物表!$A:$E,5,FALSE)=3,1,0)),IF(S40="",0,IF(VLOOKUP(S40,怪物表!$A:$E,5,FALSE)=3,1,0)),IF(T40="",0,IF(VLOOKUP(T40,怪物表!$A:$E,5,FALSE)=3,1,0)),IF(U40="",0,IF(VLOOKUP(U40,怪物表!$A:$E,5,FALSE)=3,1,0)),IF(V40="",0,IF(VLOOKUP(V40,怪物表!$A:$E,5,FALSE)=3,1,0)),IF(W40="",0,IF(VLOOKUP(W40,怪物表!$A:$E,5,FALSE)=3,1,0)))>0,180,120)*BW40/100 -> 120 | BW40: 100 | BX40: 100
A41: 100306 | B41: 主线2-1小怪 | N41: 100004 | O41: 100000 | P41: 100000 | Q41: 100003 | R41: 100002 | S41: 100001 | X41: =SUM(IF(N41="",0,VLOOKUP(N41,怪物表!$A:$D,3,FALSE)),IF(O41="",0,VLOOKUP(O41,怪物表!$A:$D,3,FALSE)),IF(P41="",0,VLOOKUP(P41,怪物表!$A:$D,3,FALSE)),IF(Q41="",0,VLOOKUP(Q41,怪物表!$A:$D,3,FALSE)),IF(R41="",0,VLOOKUP(R41,怪物表!$A:$D,3,FALSE)),IF(S41="",0,VLOOKUP(S41,怪物表!$A:$D,3,FALSE)),IF(T41="",0,VLOOKUP(T41,怪物表!$A:$D,3,FALSE)),IF(U41="",0,VLOOKUP(U41,怪物表!$A:$D,3,FALSE)),IF(V41="",0,VLOOKUP(V41,怪物表!$A:$D,3,FALSE)),IF(W41="",0,VLOOKUP(W41,怪物表!$A:$D,3,FALSE))) -> 12 | Y41: =IF(N41="","",IF(VLOOKUP(N41,怪物表!$A:$D,4,FALSE)=1,2,0)) -> 0 | Z41: =IF(O41="","",IF(VLOOKUP(O41,怪物表!$A:$D,4,FALSE)=1,2,0)) -> 0 | AA41: =IF(P41="","",IF(VLOOKUP(P41,怪物表!$A:$D,4,FALSE)=1,2,0)) -> 0 | AB41: =IF(Q41="","",IF(VLOOKUP(Q41,怪物表!$A:$D,4,FALSE)=1,2,0)) -> 0 | AC41: =IF(R41="","",IF(VLOOKUP(R41,怪物表!$A:$D,4,FALSE)=1,2,0)) -> 0 | AD41: =IF(S41="","",IF(VLOOKUP(S41,怪物表!$A:$D,4,FALSE)=1,2,0)) -> 0 | AE41: =IF(T41="","",IF(VLOOKUP(T41,怪物表!$A:$D,4,FALSE)=1,2,0)) ->  | AF41: =IF(U41="","",IF(VLOOKUP(U41,怪物表!$A:$D,4,FALSE)=1,2,0)) ->  | AG41: =IF(V41="","",IF(VLOOKUP(V41,怪物表!$A:$D,4,FALSE)=1,2,0)) ->  | AH41: =IF(W41="","",IF(VLOOKUP(W41,怪物表!$A:$D,4,FALSE)=1,2,0)) ->  | AI41: 1.2 | AJ41: 0 | AK41: 1.2 | AL41: 2.4 | AM41: 3.6 | AN41: 4.8 | AO41: =IF(S41="","",5*$AI41) -> 6 | AU41: =IF(Y41="","",VLOOKUP(Y41,高度表!$A:$C,3,FALSE)) -> 0 | AV41: =IF(Z41="","",VLOOKUP(Z41,高度表!$A:$C,3,FALSE)) -> 0 | AW41: =IF(AA41="","",VLOOKUP(AA41,高度表!$A:$C,3,FALSE)) -> 0 | AX41: =IF(AB41="","",VLOOKUP(AB41,高度表!$A:$C,3,FALSE)) -> 0 | AY41: =IF(AC41="","",VLOOKUP(AC41,高度表!$A:$C,3,FALSE)) -> 0 | AZ41: =IF(AD41="","",VLOOKUP(AD41,高度表!$A:$C,3,FALSE)) -> 0 | BA41: =IF(AE41="","",VLOOKUP(AE41,高度表!$A:$C,3,FALSE)) ->  | BB41: =IF(AF41="","",VLOOKUP(AF41,高度表!$A:$C,3,FALSE)) ->  | BC41: =IF(AG41="","",VLOOKUP(AG41,高度表!$A:$C,3,FALSE)) ->  | BD41: =IF(AH41="","",VLOOKUP(AH41,高度表!$A:$C,3,FALSE)) ->  | BE41: 0.15 | BF41: 0 | BG41: 0.15 | BH41: 0.3 | BI41: 0.45 | BJ41: 0.6 | BK41: 0.75 | BQ41: 100004;100000;100000;100003;100002;100001 | BR41: 0;0;0;0;0;0 | BS41: 0;1.2;2.4;3.6;4.8;6 | BT41: 0;0.15;0.3;0.45;0.6;0.75 | BU41: 0;0;0;0;0;0 | BV41: =IF(SUM(IF(N41="",0,IF(VLOOKUP(N41,怪物表!$A:$E,5,FALSE)=3,1,0)),IF(O41="",0,IF(VLOOKUP(O41,怪物表!$A:$E,5,FALSE)=3,1,0)),IF(P41="",0,IF(VLOOKUP(P41,怪物表!$A:$E,5,FALSE)=3,1,0)),IF(Q41="",0,IF(VLOOKUP(Q41,怪物表!$A:$E,5,FALSE)=3,1,0)),IF(R41="",0,IF(VLOOKUP(R41,怪物表!$A:$E,5,FALSE)=3,1,0)),IF(S41="",0,IF(VLOOKUP(S41,怪物表!$A:$E,5,FALSE)=3,1,0)),IF(T41="",0,IF(VLOOKUP(T41,怪物表!$A:$E,5,FALSE)=3,1,0)),IF(U41="",0,IF(VLOOKUP(U41,怪物表!$A:$E,5,FALSE)=3,1,0)),IF(V41="",0,IF(VLOOKUP(V41,怪物表!$A:$E,5,FALSE)=3,1,0)),IF(W41="",0,IF(VLOOKUP(W41,怪物表!$A:$E,5,FALSE)=3,1,0)))>0,180,120)*BW41/100 -> 120 | BW41: 100 | BX41: 100
A42: 100307 | B42: 主线2-1小怪 | N42: 108000 | O42: 100013 | P42: 100001 | X42: =SUM(IF(N42="",0,VLOOKUP(N42,怪物表!$A:$D,3,FALSE)),IF(O42="",0,VLOOKUP(O42,怪物表!$A:$D,3,FALSE)),IF(P42="",0,VLOOKUP(P42,怪物表!$A:$D,3,FALSE)),IF(Q42="",0,VLOOKUP(Q42,怪物表!$A:$D,3,FALSE)),IF(R42="",0,VLOOKUP(R42,怪物表!$A:$D,3,FALSE)),IF(S42="",0,VLOOKUP(S42,怪物表!$A:$D,3,FALSE)),IF(T42="",0,VLOOKUP(T42,怪物表!$A:$D,3,FALSE)),IF(U42="",0,VLOOKUP(U42,怪物表!$A:$D,3,FALSE)),IF(V42="",0,VLOOKUP(V42,怪物表!$A:$D,3,FALSE)),IF(W42="",0,VLOOKUP(W42,怪物表!$A:$D,3,FALSE))) -> 12 | Y42: =IF(N42="","",IF(VLOOKUP(N42,怪物表!$A:$D,4,FALSE)=1,2,0)) -> 0 | Z42: =IF(O42="","",IF(VLOOKUP(O42,怪物表!$A:$D,4,FALSE)=1,2,0)) -> 2 | AA42: =IF(P42="","",IF(VLOOKUP(P42,怪物表!$A:$D,4,FALSE)=1,2,0)) -> 0 | AB42: =IF(Q42="","",IF(VLOOKUP(Q42,怪物表!$A:$D,4,FALSE)=1,2,0)) ->  | AC42: =IF(R42="","",IF(VLOOKUP(R42,怪物表!$A:$D,4,FALSE)=1,2,0)) ->  | AD42: =IF(S42="","",IF(VLOOKUP(S42,怪物表!$A:$D,4,FALSE)=1,2,0)) ->  | AE42: =IF(T42="","",IF(VLOOKUP(T42,怪物表!$A:$D,4,FALSE)=1,2,0)) ->  | AF42: =IF(U42="","",IF(VLOOKUP(U42,怪物表!$A:$D,4,FALSE)=1,2,0)) ->  | AG42: =IF(V42="","",IF(VLOOKUP(V42,怪物表!$A:$D,4,FALSE)=1,2,0)) ->  | AH42: =IF(W42="","",IF(VLOOKUP(W42,怪物表!$A:$D,4,FALSE)=1,2,0)) ->  | AI42: 1.2 | AJ42: =IF(N42="","",0*$AI42) -> 0 | AK42: =IF(O42="","",1*$AI42) -> 1.2 | AL42: =IF(P42="","",2*$AI42) -> 2.4 | AM42: =IF(Q42="","",3*$AI42) ->  | AN42: =IF(R42="","",4*$AI42) ->  | AO42: =IF(S42="","",5*$AI42) ->  | AU42: =IF(Y42="","",VLOOKUP(Y42,高度表!$A:$C,3,FALSE)) -> 0 | AV42: =IF(Z42="","",VLOOKUP(Z42,高度表!$A:$C,3,FALSE)) -> 1.8 | AW42: =IF(AA42="","",VLOOKUP(AA42,高度表!$A:$C,3,FALSE)) -> 0 | AX42: =IF(AB42="","",VLOOKUP(AB42,高度表!$A:$C,3,FALSE)) ->  | AY42: =IF(AC42="","",VLOOKUP(AC42,高度表!$A:$C,3,FALSE)) ->  | AZ42: =IF(AD42="","",VLOOKUP(AD42,高度表!$A:$C,3,FALSE)) ->  | BA42: =IF(AE42="","",VLOOKUP(AE42,高度表!$A:$C,3,FALSE)) ->  | BB42: =IF(AF42="","",VLOOKUP(AF42,高度表!$A:$C,3,FALSE)) ->  | BC42: =IF(AG42="","",VLOOKUP(AG42,高度表!$A:$C,3,FALSE)) ->  | BD42: =IF(AH42="","",VLOOKUP(AH42,高度表!$A:$C,3,FALSE)) ->  | BE42: 0.15 | BF42: 0 | BG42: 0.15 | BH42: 0.3 | BQ42: 108000;100013;100001 | BR42: 0;1.8;0 | BS42: 0;1.2;2.4 | BT42: 0;0.15;0.3 | BU42: 0;0;0 | BV42: =IF(SUM(IF(N42="",0,IF(VLOOKUP(N42,怪物表!$A:$E,5,FALSE)=3,1,0)),IF(O42="",0,IF(VLOOKUP(O42,怪物表!$A:$E,5,FALSE)=3,1,0)),IF(P42="",0,IF(VLOOKUP(P42,怪物表!$A:$E,5,FALSE)=3,1,0)),IF(Q42="",0,IF(VLOOKUP(Q42,怪物表!$A:$E,5,FALSE)=3,1,0)),IF(R42="",0,IF(VLOOKUP(R42,怪物表!$A:$E,5,FALSE)=3,1,0)),IF(S42="",0,IF(VLOOKUP(S42,怪物表!$A:$E,5,FALSE)=3,1,0)),IF(T42="",0,IF(VLOOKUP(T42,怪物表!$A:$E,5,FALSE)=3,1,0)),IF(U42="",0,IF(VLOOKUP(U42,怪物表!$A:$E,5,FALSE)=3,1,0)),IF(V42="",0,IF(VLOOKUP(V42,怪物表!$A:$E,5,FALSE)=3,1,0)),IF(W42="",0,IF(VLOOKUP(W42,怪物表!$A:$E,5,FALSE)=3,1,0)))>0,180,120)*BW42/100 -> 120 | BW42: 100 | BX42: 100
A43: 100308 | B43: 主线2-1小怪 | N43: 200000 | O43: 100002 | P43: 100009 | Q43: 100002 | X43: =SUM(IF(N43="",0,VLOOKUP(N43,怪物表!$A:$D,3,FALSE)),IF(O43="",0,VLOOKUP(O43,怪物表!$A:$D,3,FALSE)),IF(P43="",0,VLOOKUP(P43,怪物表!$A:$D,3,FALSE)),IF(Q43="",0,VLOOKUP(Q43,怪物表!$A:$D,3,FALSE)),IF(R43="",0,VLOOKUP(R43,怪物表!$A:$D,3,FALSE)),IF(S43="",0,VLOOKUP(S43,怪物表!$A:$D,3,FALSE)),IF(T43="",0,VLOOKUP(T43,怪物表!$A:$D,3,FALSE)),IF(U43="",0,VLOOKUP(U43,怪物表!$A:$D,3,FALSE)),IF(V43="",0,VLOOKUP(V43,怪物表!$A:$D,3,FALSE)),IF(W43="",0,VLOOKUP(W43,怪物表!$A:$D,3,FALSE))) -> 13 | Y43: =IF(N43="","",IF(VLOOKUP(N43,怪物表!$A:$D,4,FALSE)=1,2,0)) -> 0 | Z43: =IF(O43="","",IF(VLOOKUP(O43,怪物表!$A:$D,4,FALSE)=1,2,0)) -> 0 | AA43: =IF(P43="","",IF(VLOOKUP(P43,怪物表!$A:$D,4,FALSE)=1,2,0)) -> 2 | AB43: =IF(Q43="","",IF(VLOOKUP(Q43,怪物表!$A:$D,4,FALSE)=1,2,0)) -> 0 | AC43: =IF(R43="","",IF(VLOOKUP(R43,怪物表!$A:$D,4,FALSE)=1,2,0)) ->  | AD43: =IF(S43="","",IF(VLOOKUP(S43,怪物表!$A:$D,4,FALSE)=1,2,0)) ->  | AE43: =IF(T43="","",IF(VLOOKUP(T43,怪物表!$A:$D,4,FALSE)=1,2,0)) ->  | AF43: =IF(U43="","",IF(VLOOKUP(U43,怪物表!$A:$D,4,FALSE)=1,2,0)) ->  | AG43: =IF(V43="","",IF(VLOOKUP(V43,怪物表!$A:$D,4,FALSE)=1,2,0)) ->  | AH43: =IF(W43="","",IF(VLOOKUP(W43,怪物表!$A:$D,4,FALSE)=1,2,0)) ->  | AI43: 1.2 | AJ43: 0 | AK43: 1.2 | AL43: =IF(P43="","",2*$AI43) -> 2.4 | AM43: =IF(Q43="","",3*$AI43) -> 3.6 | AN43: =IF(R43="","",4*$AI43) ->  | AO43: =IF(S43="","",5*$AI43) ->  | AU43: =IF(Y43="","",VLOOKUP(Y43,高度表!$A:$C,3,FALSE)) -> 0 | AV43: =IF(Z43="","",VLOOKUP(Z43,高度表!$A:$C,3,FALSE)) -> 0 | AW43: =IF(AA43="","",VLOOKUP(AA43,高度表!$A:$C,3,FALSE)) -> 1.8 | AX43: =IF(AB43="","",VLOOKUP(AB43,高度表!$A:$C,3,FALSE)) -> 0 | AY43: =IF(AC43="","",VLOOKUP(AC43,高度表!$A:$C,3,FALSE)) ->  | AZ43: =IF(AD43="","",VLOOKUP(AD43,高度表!$A:$C,3,FALSE)) ->  | BA43: =IF(AE43="","",VLOOKUP(AE43,高度表!$A:$C,3,FALSE)) ->  | BB43: =IF(AF43="","",VLOOKUP(AF43,高度表!$A:$C,3,FALSE)) ->  | BC43: =IF(AG43="","",VLOOKUP(AG43,高度表!$A:$C,3,FALSE)) ->  | BD43: =IF(AH43="","",VLOOKUP(AH43,高度表!$A:$C,3,FALSE)) ->  | BE43: 0.15 | BF43: 0 | BG43: 0.15 | BH43: 0.3 | BI43: 0.45 | BQ43: 200000;100002;100009;100002 | BR43: 0;0;1.8;0 | BS43: 0;1.2;2.4;3.6 | BT43: 0;0.15;0.3;0.45 | BU43: 0;0;0;0 | BV43: =IF(SUM(IF(N43="",0,IF(VLOOKUP(N43,怪物表!$A:$E,5,FALSE)=3,1,0)),IF(O43="",0,IF(VLOOKUP(O43,怪物表!$A:$E,5,FALSE)=3,1,0)),IF(P43="",0,IF(VLOOKUP(P43,怪物表!$A:$E,5,FALSE)=3,1,0)),IF(Q43="",0,IF(VLOOKUP(Q43,怪物表!$A:$E,5,FALSE)=3,1,0)),IF(R43="",0,IF(VLOOKUP(R43,怪物表!$A:$E,5,FALSE)=3,1,0)),IF(S43="",0,IF(VLOOKUP(S43,怪物表!$A:$E,5,FALSE)=3,1,0)),IF(T43="",0,IF(VLOOKUP(T43,怪物表!$A:$E,5,FALSE)=3,1,0)),IF(U43="",0,IF(VLOOKUP(U43,怪物表!$A:$E,5,FALSE)=3,1,0)),IF(V43="",0,IF(VLOOKUP(V43,怪物表!$A:$E,5,FALSE)=3,1,0)),IF(W43="",0,IF(VLOOKUP(W43,怪物表!$A:$E,5,FALSE)=3,1,0)))>0,180,120)*BW43/100 -> 120 | BW43: 100 | BX43: 100
A44: 100309 | B44: 主线2-1小怪 | N44: 107000 | O44: 100004 | P44: 100003 | X44: =SUM(IF(N44="",0,VLOOKUP(N44,怪物表!$A:$D,3,FALSE)),IF(O44="",0,VLOOKUP(O44,怪物表!$A:$D,3,FALSE)),IF(P44="",0,VLOOKUP(P44,怪物表!$A:$D,3,FALSE)),IF(Q44="",0,VLOOKUP(Q44,怪物表!$A:$D,3,FALSE)),IF(R44="",0,VLOOKUP(R44,怪物表!$A:$D,3,FALSE)),IF(S44="",0,VLOOKUP(S44,怪物表!$A:$D,3,FALSE)),IF(T44="",0,VLOOKUP(T44,怪物表!$A:$D,3,FALSE)),IF(U44="",0,VLOOKUP(U44,怪物表!$A:$D,3,FALSE)),IF(V44="",0,VLOOKUP(V44,怪物表!$A:$D,3,FALSE)),IF(W44="",0,VLOOKUP(W44,怪物表!$A:$D,3,FALSE))) -> 12 | Y44: =IF(N44="","",IF(VLOOKUP(N44,怪物表!$A:$D,4,FALSE)=1,2,0)) -> 2 | Z44: 0 | AA44: =IF(P44="","",IF(VLOOKUP(P44,怪物表!$A:$D,4,FALSE)=1,2,0)) -> 0 | AB44: =IF(Q44="","",IF(VLOOKUP(Q44,怪物表!$A:$D,4,FALSE)=1,2,0)) ->  | AC44: =IF(R44="","",IF(VLOOKUP(R44,怪物表!$A:$D,4,FALSE)=1,2,0)) ->  | AD44: =IF(S44="","",IF(VLOOKUP(S44,怪物表!$A:$D,4,FALSE)=1,2,0)) ->  | AE44: =IF(T44="","",IF(VLOOKUP(T44,怪物表!$A:$D,4,FALSE)=1,2,0)) ->  | AF44: =IF(U44="","",IF(VLOOKUP(U44,怪物表!$A:$D,4,FALSE)=1,2,0)) ->  | AG44: =IF(V44="","",IF(VLOOKUP(V44,怪物表!$A:$D,4,FALSE)=1,2,0)) ->  | AH44: =IF(W44="","",IF(VLOOKUP(W44,怪物表!$A:$D,4,FALSE)=1,2,0)) ->  | AI44: 3 | AJ44: 0 | AK44: 3 | AL44: 6 | AU44: =IF(Y44="","",VLOOKUP(Y44,高度表!$A:$C,3,FALSE)) -> 1.8 | AV44: =IF(Z44="","",VLOOKUP(Z44,高度表!$A:$C,3,FALSE)) -> 0 | AW44: =IF(AA44="","",VLOOKUP(AA44,高度表!$A:$C,3,FALSE)) -> 0 | AX44: =IF(AB44="","",VLOOKUP(AB44,高度表!$A:$C,3,FALSE)) ->  | AY44: =IF(AC44="","",VLOOKUP(AC44,高度表!$A:$C,3,FALSE)) ->  | AZ44: =IF(AD44="","",VLOOKUP(AD44,高度表!$A:$C,3,FALSE)) ->  | BA44: =IF(AE44="","",VLOOKUP(AE44,高度表!$A:$C,3,FALSE)) ->  | BB44: =IF(AF44="","",VLOOKUP(AF44,高度表!$A:$C,3,FALSE)) ->  | BC44: =IF(AG44="","",VLOOKUP(AG44,高度表!$A:$C,3,FALSE)) ->  | BD44: =IF(AH44="","",VLOOKUP(AH44,高度表!$A:$C,3,FALSE)) ->  | BE44: 0.15 | BF44: 0 | BG44: 0.15 | BH44: 0.3 | BQ44: 107000;100004;100003 | BR44: 1.8;0;0 | BS44: 0;3;6 | BT44: 0;0.15;0.3 | BU44: 0;0;0 | BV44: =IF(SUM(IF(N44="",0,IF(VLOOKUP(N44,怪物表!$A:$E,5,FALSE)=3,1,0)),IF(O44="",0,IF(VLOOKUP(O44,怪物表!$A:$E,5,FALSE)=3,1,0)),IF(P44="",0,IF(VLOOKUP(P44,怪物表!$A:$E,5,FALSE)=3,1,0)),IF(Q44="",0,IF(VLOOKUP(Q44,怪物表!$A:$E,5,FALSE)=3,1,0)),IF(R44="",0,IF(VLOOKUP(R44,怪物表!$A:$E,5,FALSE)=3,1,0)),IF(S44="",0,IF(VLOOKUP(S44,怪物表!$A:$E,5,FALSE)=3,1,0)),IF(T44="",0,IF(VLOOKUP(T44,怪物表!$A:$E,5,FALSE)=3,1,0)),IF(U44="",0,IF(VLOOKUP(U44,怪物表!$A:$E,5,FALSE)=3,1,0)),IF(V44="",0,IF(VLOOKUP(V44,怪物表!$A:$E,5,FALSE)=3,1,0)),IF(W44="",0,IF(VLOOKUP(W44,怪物表!$A:$E,5,FALSE)=3,1,0)))>0,180,120)*BW44/100 -> 120 | BW44: 100 | BX44: 100
A45: 100310 | B45: 主线2-1小怪 | N45: 200001 | O45: 100008 | P45: 100008 | Q45: 100008 | X45: =SUM(IF(N45="",0,VLOOKUP(N45,怪物表!$A:$D,3,FALSE)),IF(O45="",0,VLOOKUP(O45,怪物表!$A:$D,3,FALSE)),IF(P45="",0,VLOOKUP(P45,怪物表!$A:$D,3,FALSE)),IF(Q45="",0,VLOOKUP(Q45,怪物表!$A:$D,3,FALSE)),IF(R45="",0,VLOOKUP(R45,怪物表!$A:$D,3,FALSE)),IF(S45="",0,VLOOKUP(S45,怪物表!$A:$D,3,FALSE)),IF(T45="",0,VLOOKUP(T45,怪物表!$A:$D,3,FALSE)),IF(U45="",0,VLOOKUP(U45,怪物表!$A:$D,3,FALSE)),IF(V45="",0,VLOOKUP(V45,怪物表!$A:$D,3,FALSE)),IF(W45="",0,VLOOKUP(W45,怪物表!$A:$D,3,FALSE))) -> 13 | Y45: =IF(N45="","",IF(VLOOKUP(N45,怪物表!$A:$D,4,FALSE)=1,2,0)) -> 0 | Z45: =IF(O45="","",IF(VLOOKUP(O45,怪物表!$A:$D,4,FALSE)=1,2,0)) -> 2 | AA45: 3 | AB45: 1 | AC45: =IF(R45="","",IF(VLOOKUP(R45,怪物表!$A:$D,4,FALSE)=1,2,0)) ->  | AD45: =IF(S45="","",IF(VLOOKUP(S45,怪物表!$A:$D,4,FALSE)=1,2,0)) ->  | AE45: =IF(T45="","",IF(VLOOKUP(T45,怪物表!$A:$D,4,FALSE)=1,2,0)) ->  | AF45: =IF(U45="","",IF(VLOOKUP(U45,怪物表!$A:$D,4,FALSE)=1,2,0)) ->  | AG45: =IF(V45="","",IF(VLOOKUP(V45,怪物表!$A:$D,4,FALSE)=1,2,0)) ->  | AH45: =IF(W45="","",IF(VLOOKUP(W45,怪物表!$A:$D,4,FALSE)=1,2,0)) ->  | AI45: 1.2 | AJ45: 0 | AK45: 1.2 | AL45: 2.4 | AM45: 3.6 | AU45: =IF(Y45="","",VLOOKUP(Y45,高度表!$A:$C,3,FALSE)) -> 0 | AV45: =IF(Z45="","",VLOOKUP(Z45,高度表!$A:$C,3,FALSE)) -> 1.8 | AW45: =IF(AA45="","",VLOOKUP(AA45,高度表!$A:$C,3,FALSE)) -> 2.5 | AX45: =IF(AB45="","",VLOOKUP(AB45,高度表!$A:$C,3,FALSE)) -> 1.1 | AY45: =IF(AC45="","",VLOOKUP(AC45,高度表!$A:$C,3,FALSE)) ->  | AZ45: =IF(AD45="","",VLOOKUP(AD45,高度表!$A:$C,3,FALSE)) ->  | BA45: =IF(AE45="","",VLOOKUP(AE45,高度表!$A:$C,3,FALSE)) ->  | BB45: =IF(AF45="","",VLOOKUP(AF45,高度表!$A:$C,3,FALSE)) ->  | BC45: =IF(AG45="","",VLOOKUP(AG45,高度表!$A:$C,3,FALSE)) ->  | BD45: =IF(AH45="","",VLOOKUP(AH45,高度表!$A:$C,3,FALSE)) ->  | BE45: 0.15 | BF45: 0 | BG45: 0.15 | BH45: 0.3 | BI45: 0.45 | BQ45: 200001;100008;100008;100008 | BR45: 0;1.8;2.5;1.1 | BS45: 0;1.2;2.4;3.6 | BT45: 0;0.15;0.3;0.45 | BU45: 0;0;0;0 | BV45: =IF(SUM(IF(N45="",0,IF(VLOOKUP(N45,怪物表!$A:$E,5,FALSE)=3,1,0)),IF(O45="",0,IF(VLOOKUP(O45,怪物表!$A:$E,5,FALSE)=3,1,0)),IF(P45="",0,IF(VLOOKUP(P45,怪物表!$A:$E,5,FALSE)=3,1,0)),IF(Q45="",0,IF(VLOOKUP(Q45,怪物表!$A:$E,5,FALSE)=3,1,0)),IF(R45="",0,IF(VLOOKUP(R45,怪物表!$A:$E,5,FALSE)=3,1,0)),IF(S45="",0,IF(VLOOKUP(S45,怪物表!$A:$E,5,FALSE)=3,1,0)),IF(T45="",0,IF(VLOOKUP(T45,怪物表!$A:$E,5,FALSE)=3,1,0)),IF(U45="",0,IF(VLOOKUP(U45,怪物表!$A:$E,5,FALSE)=3,1,0)),IF(V45="",0,IF(VLOOKUP(V45,怪物表!$A:$E,5,FALSE)=3,1,0)),IF(W45="",0,IF(VLOOKUP(W45,怪物表!$A:$E,5,FALSE)=3,1,0)))>0,180,120)*BW45/100 -> 120 | BW45: 100 | BX45: 100
A46: 100311 | B46: 主线2-1小怪 | N46: 106000 | O46: 105000 | P46: 105000 | Q46: 105000 | X46: =SUM(IF(N46="",0,VLOOKUP(N46,怪物表!$A:$D,3,FALSE)),IF(O46="",0,VLOOKUP(O46,怪物表!$A:$D,3,FALSE)),IF(P46="",0,VLOOKUP(P46,怪物表!$A:$D,3,FALSE)),IF(Q46="",0,VLOOKUP(Q46,怪物表!$A:$D,3,FALSE)),IF(R46="",0,VLOOKUP(R46,怪物表!$A:$D,3,FALSE)),IF(S46="",0,VLOOKUP(S46,怪物表!$A:$D,3,FALSE)),IF(T46="",0,VLOOKUP(T46,怪物表!$A:$D,3,FALSE)),IF(U46="",0,VLOOKUP(U46,怪物表!$A:$D,3,FALSE)),IF(V46="",0,VLOOKUP(V46,怪物表!$A:$D,3,FALSE)),IF(W46="",0,VLOOKUP(W46,怪物表!$A:$D,3,FALSE))) -> 12 | Y46: =IF(N46="","",IF(VLOOKUP(N46,怪物表!$A:$D,4,FALSE)=1,2,0)) -> 0 | Z46: =IF(O46="","",IF(VLOOKUP(O46,怪物表!$A:$D,4,FALSE)=1,2,0)) -> 0 | AA46: =IF(P46="","",IF(VLOOKUP(P46,怪物表!$A:$D,4,FALSE)=1,2,0)) -> 0 | AB46: =IF(Q46="","",IF(VLOOKUP(Q46,怪物表!$A:$D,4,FALSE)=1,2,0)) -> 0 | AC46: =IF(R46="","",IF(VLOOKUP(R46,怪物表!$A:$D,4,FALSE)=1,2,0)) ->  | AD46: =IF(S46="","",IF(VLOOKUP(S46,怪物表!$A:$D,4,FALSE)=1,2,0)) ->  | AE46: =IF(T46="","",IF(VLOOKUP(T46,怪物表!$A:$D,4,FALSE)=1,2,0)) ->  | AF46: =IF(U46="","",IF(VLOOKUP(U46,怪物表!$A:$D,4,FALSE)=1,2,0)) ->  | AG46: =IF(V46="","",IF(VLOOKUP(V46,怪物表!$A:$D,4,FALSE)=1,2,0)) ->  | AH46: =IF(W46="","",IF(VLOOKUP(W46,怪物表!$A:$D,4,FALSE)=1,2,0)) ->  | AI46: 2 | AJ46: 0 | AK46: 2 | AL46: 4 | AM46: 6 | AU46: =IF(Y46="","",VLOOKUP(Y46,高度表!$A:$C,3,FALSE)) -> 0 | AV46: =IF(Z46="","",VLOOKUP(Z46,高度表!$A:$C,3,FALSE)) -> 0 | AW46: =IF(AA46="","",VLOOKUP(AA46,高度表!$A:$C,3,FALSE)) -> 0 | AX46: =IF(AB46="","",VLOOKUP(AB46,高度表!$A:$C,3,FALSE)) -> 0 | AY46: =IF(AC46="","",VLOOKUP(AC46,高度表!$A:$C,3,FALSE)) ->  | AZ46: =IF(AD46="","",VLOOKUP(AD46,高度表!$A:$C,3,FALSE)) ->  | BA46: =IF(AE46="","",VLOOKUP(AE46,高度表!$A:$C,3,FALSE)) ->  | BB46: =IF(AF46="","",VLOOKUP(AF46,高度表!$A:$C,3,FALSE)) ->  | BC46: =IF(AG46="","",VLOOKUP(AG46,高度表!$A:$C,3,FALSE)) ->  | BD46: =IF(AH46="","",VLOOKUP(AH46,高度表!$A:$C,3,FALSE)) ->  | BE46: 0.15 | BF46: 0 | BG46: 0.15 | BH46: 0.3 | BI46: 0.45 | BQ46: 106000;105000;105000;105000 | BR46: 0;0;0;0 | BS46: 0;2;4;6 | BT46: 0;0.15;0.3;0.45 | BU46: 0;0;0;0 | BV46: =IF(SUM(IF(N46="",0,IF(VLOOKUP(N46,怪物表!$A:$E,5,FALSE)=3,1,0)),IF(O46="",0,IF(VLOOKUP(O46,怪物表!$A:$E,5,FALSE)=3,1,0)),IF(P46="",0,IF(VLOOKUP(P46,怪物表!$A:$E,5,FALSE)=3,1,0)),IF(Q46="",0,IF(VLOOKUP(Q46,怪物表!$A:$E,5,FALSE)=3,1,0)),IF(R46="",0,IF(VLOOKUP(R46,怪物表!$A:$E,5,FALSE)=3,1,0)),IF(S46="",0,IF(VLOOKUP(S46,怪物表!$A:$E,5,FALSE)=3,1,0)),IF(T46="",0,IF(VLOOKUP(T46,怪物表!$A:$E,5,FALSE)=3,1,0)),IF(U46="",0,IF(VLOOKUP(U46,怪物表!$A:$E,5,FALSE)=3,1,0)),IF(V46="",0,IF(VLOOKUP(V46,怪物表!$A:$E,5,FALSE)=3,1,0)),IF(W46="",0,IF(VLOOKUP(W46,怪物表!$A:$E,5,FALSE)=3,1,0)))>0,180,120)*BW46/100 -> 120 | BW46: 100 | BX46: 100
A47: 100312 | B47: 主线2-1精英 | N47: 200004 | O47: 200001 | P47: 100003 | X47: =SUM(IF(N47="",0,VLOOKUP(N47,怪物表!$A:$D,3,FALSE)),IF(O47="",0,VLOOKUP(O47,怪物表!$A:$D,3,FALSE)),IF(P47="",0,VLOOKUP(P47,怪物表!$A:$D,3,FALSE)),IF(Q47="",0,VLOOKUP(Q47,怪物表!$A:$D,3,FALSE)),IF(R47="",0,VLOOKUP(R47,怪物表!$A:$D,3,FALSE)),IF(S47="",0,VLOOKUP(S47,怪物表!$A:$D,3,FALSE)),IF(T47="",0,VLOOKUP(T47,怪物表!$A:$D,3,FALSE)),IF(U47="",0,VLOOKUP(U47,怪物表!$A:$D,3,FALSE)),IF(V47="",0,VLOOKUP(V47,怪物表!$A:$D,3,FALSE)),IF(W47="",0,VLOOKUP(W47,怪物表!$A:$D,3,FALSE))) -> 16 | Y47: =IF(N47="","",IF(VLOOKUP(N47,怪物表!$A:$D,4,FALSE)=1,2,0)) -> 0 | Z47: =IF(O47="","",IF(VLOOKUP(O47,怪物表!$A:$D,4,FALSE)=1,2,0)) -> 0 | AA47: =IF(P47="","",IF(VLOOKUP(P47,怪物表!$A:$D,4,FALSE)=1,2,0)) -> 0 | AB47: =IF(Q47="","",IF(VLOOKUP(Q47,怪物表!$A:$D,4,FALSE)=1,2,0)) ->  | AC47: =IF(R47="","",IF(VLOOKUP(R47,怪物表!$A:$D,4,FALSE)=1,2,0)) ->  | AD47: =IF(S47="","",IF(VLOOKUP(S47,怪物表!$A:$D,4,FALSE)=1,2,0)) ->  | AE47: =IF(T47="","",IF(VLOOKUP(T47,怪物表!$A:$D,4,FALSE)=1,2,0)) ->  | AF47: =IF(U47="","",IF(VLOOKUP(U47,怪物表!$A:$D,4,FALSE)=1,2,0)) ->  | AG47: =IF(V47="","",IF(VLOOKUP(V47,怪物表!$A:$D,4,FALSE)=1,2,0)) ->  | AH47: =IF(W47="","",IF(VLOOKUP(W47,怪物表!$A:$D,4,FALSE)=1,2,0)) ->  | AI47: 1.2 | AJ47: 0 | AK47: 1.2 | AL47: 2.4 | AU47: =IF(Y47="","",VLOOKUP(Y47,高度表!$A:$C,3,FALSE)) -> 0 | AV47: =IF(Z47="","",VLOOKUP(Z47,高度表!$A:$C,3,FALSE)) -> 0 | AW47: =IF(AA47="","",VLOOKUP(AA47,高度表!$A:$C,3,FALSE)) -> 0 | AX47: =IF(AB47="","",VLOOKUP(AB47,高度表!$A:$C,3,FALSE)) ->  | AY47: =IF(AC47="","",VLOOKUP(AC47,高度表!$A:$C,3,FALSE)) ->  | AZ47: =IF(AD47="","",VLOOKUP(AD47,高度表!$A:$C,3,FALSE)) ->  | BA47: =IF(AE47="","",VLOOKUP(AE47,高度表!$A:$C,3,FALSE)) ->  | BB47: =IF(AF47="","",VLOOKUP(AF47,高度表!$A:$C,3,FALSE)) ->  | BC47: =IF(AG47="","",VLOOKUP(AG47,高度表!$A:$C,3,FALSE)) ->  | BD47: =IF(AH47="","",VLOOKUP(AH47,高度表!$A:$C,3,FALSE)) ->  | BE47: 0.15 | BF47: 0 | BG47: 0.15 | BH47: 0.3 | BQ47: 200004;200001;100003 | BR47: 0;0;0 | BS47: 0;1.2;2.4 | BT47: 0;0.15;0.3 | BU47: 0;0;0 | BV47: =IF(SUM(IF(N47="",0,IF(VLOOKUP(N47,怪物表!$A:$E,5,FALSE)=3,1,0)),IF(O47="",0,IF(VLOOKUP(O47,怪物表!$A:$E,5,FALSE)=3,1,0)),IF(P47="",0,IF(VLOOKUP(P47,怪物表!$A:$E,5,FALSE)=3,1,0)),IF(Q47="",0,IF(VLOOKUP(Q47,怪物表!$A:$E,5,FALSE)=3,1,0)),IF(R47="",0,IF(VLOOKUP(R47,怪物表!$A:$E,5,FALSE)=3,1,0)),IF(S47="",0,IF(VLOOKUP(S47,怪物表!$A:$E,5,FALSE)=3,1,0)),IF(T47="",0,IF(VLOOKUP(T47,怪物表!$A:$E,5,FALSE)=3,1,0)),IF(U47="",0,IF(VLOOKUP(U47,怪物表!$A:$E,5,FALSE)=3,1,0)),IF(V47="",0,IF(VLOOKUP(V47,怪物表!$A:$E,5,FALSE)=3,1,0)),IF(W47="",0,IF(VLOOKUP(W47,怪物表!$A:$E,5,FALSE)=3,1,0)))>0,180,120)*BW47/100 -> 120 | BW47: 100 | BX47: 100
A48: 100313 | B48: 主线2-1精英 | N48: 200002 | O48: 200002 | P48: 100009 | X48: =SUM(IF(N48="",0,VLOOKUP(N48,怪物表!$A:$D,3,FALSE)),IF(O48="",0,VLOOKUP(O48,怪物表!$A:$D,3,FALSE)),IF(P48="",0,VLOOKUP(P48,怪物表!$A:$D,3,FALSE)),IF(Q48="",0,VLOOKUP(Q48,怪物表!$A:$D,3,FALSE)),IF(R48="",0,VLOOKUP(R48,怪物表!$A:$D,3,FALSE)),IF(S48="",0,VLOOKUP(S48,怪物表!$A:$D,3,FALSE)),IF(T48="",0,VLOOKUP(T48,怪物表!$A:$D,3,FALSE)),IF(U48="",0,VLOOKUP(U48,怪物表!$A:$D,3,FALSE)),IF(V48="",0,VLOOKUP(V48,怪物表!$A:$D,3,FALSE)),IF(W48="",0,VLOOKUP(W48,怪物表!$A:$D,3,FALSE))) -> 16 | Y48: =IF(N48="","",IF(VLOOKUP(N48,怪物表!$A:$D,4,FALSE)=1,2,0)) -> 0 | Z48: =IF(O48="","",IF(VLOOKUP(O48,怪物表!$A:$D,4,FALSE)=1,2,0)) -> 0 | AA48: =IF(P48="","",IF(VLOOKUP(P48,怪物表!$A:$D,4,FALSE)=1,2,0)) -> 2 | AB48: =IF(Q48="","",IF(VLOOKUP(Q48,怪物表!$A:$D,4,FALSE)=1,2,0)) ->  | AC48: =IF(R48="","",IF(VLOOKUP(R48,怪物表!$A:$D,4,FALSE)=1,2,0)) ->  | AD48: =IF(S48="","",IF(VLOOKUP(S48,怪物表!$A:$D,4,FALSE)=1,2,0)) ->  | AE48: =IF(T48="","",IF(VLOOKUP(T48,怪物表!$A:$D,4,FALSE)=1,2,0)) ->  | AF48: =IF(U48="","",IF(VLOOKUP(U48,怪物表!$A:$D,4,FALSE)=1,2,0)) ->  | AG48: =IF(V48="","",IF(VLOOKUP(V48,怪物表!$A:$D,4,FALSE)=1,2,0)) ->  | AH48: =IF(W48="","",IF(VLOOKUP(W48,怪物表!$A:$D,4,FALSE)=1,2,0)) ->  | AI48: 1.2 | AJ48: 0 | AK48: 1.2 | AL48: 2.4 | AU48: =IF(Y48="","",VLOOKUP(Y48,高度表!$A:$C,3,FALSE)) -> 0 | AV48: =IF(Z48="","",VLOOKUP(Z48,高度表!$A:$C,3,FALSE)) -> 0 | AW48: =IF(AA48="","",VLOOKUP(AA48,高度表!$A:$C,3,FALSE)) -> 1.8 | AX48: =IF(AB48="","",VLOOKUP(AB48,高度表!$A:$C,3,FALSE)) ->  | AY48: =IF(AC48="","",VLOOKUP(AC48,高度表!$A:$C,3,FALSE)) ->  | AZ48: =IF(AD48="","",VLOOKUP(AD48,高度表!$A:$C,3,FALSE)) ->  | BA48: =IF(AE48="","",VLOOKUP(AE48,高度表!$A:$C,3,FALSE)) ->  | BB48: =IF(AF48="","",VLOOKUP(AF48,高度表!$A:$C,3,FALSE)) ->  | BC48: =IF(AG48="","",VLOOKUP(AG48,高度表!$A:$C,3,FALSE)) ->  | BD48: =IF(AH48="","",VLOOKUP(AH48,高度表!$A:$C,3,FALSE)) ->  | BE48: 0.15 | BF48: 0 | BG48: 0.15 | BH48: 0.3 | BQ48: 200002;200002;100009 | BR48: 0;0;1.8 | BS48: 0;1.2;2.4 | BT48: 0;0.15;0.3 | BU48: 0;0;0 | BV48: =IF(SUM(IF(N48="",0,IF(VLOOKUP(N48,怪物表!$A:$E,5,FALSE)=3,1,0)),IF(O48="",0,IF(VLOOKUP(O48,怪物表!$A:$E,5,FALSE)=3,1,0)),IF(P48="",0,IF(VLOOKUP(P48,怪物表!$A:$E,5,FALSE)=3,1,0)),IF(Q48="",0,IF(VLOOKUP(Q48,怪物表!$A:$E,5,FALSE)=3,1,0)),IF(R48="",0,IF(VLOOKUP(R48,怪物表!$A:$E,5,FALSE)=3,1,0)),IF(S48="",0,IF(VLOOKUP(S48,怪物表!$A:$E,5,FALSE)=3,1,0)),IF(T48="",0,IF(VLOOKUP(T48,怪物表!$A:$E,5,FALSE)=3,1,0)),IF(U48="",0,IF(VLOOKUP(U48,怪物表!$A:$E,5,FALSE)=3,1,0)),IF(V48="",0,IF(VLOOKUP(V48,怪物表!$A:$E,5,FALSE)=3,1,0)),IF(W48="",0,IF(VLOOKUP(W48,怪物表!$A:$E,5,FALSE)=3,1,0)))>0,180,120)*BW48/100 -> 120 | BW48: 100 | BX48: 100
A49: 100314 | B49: 主线2-1BOSS | N49: 102000 | O49: 102002 | P49: 102003 | Q49: 102003 | R49: 102003 | X49: =SUM(IF(N49="",0,VLOOKUP(N49,怪物表!$A:$D,3,FALSE)),IF(O49="",0,VLOOKUP(O49,怪物表!$A:$D,3,FALSE)),IF(P49="",0,VLOOKUP(P49,怪物表!$A:$D,3,FALSE)),IF(Q49="",0,VLOOKUP(Q49,怪物表!$A:$D,3,FALSE)),IF(R49="",0,VLOOKUP(R49,怪物表!$A:$D,3,FALSE)),IF(S49="",0,VLOOKUP(S49,怪物表!$A:$D,3,FALSE)),IF(T49="",0,VLOOKUP(T49,怪物表!$A:$D,3,FALSE)),IF(U49="",0,VLOOKUP(U49,怪物表!$A:$D,3,FALSE)),IF(V49="",0,VLOOKUP(V49,怪物表!$A:$D,3,FALSE)),IF(W49="",0,VLOOKUP(W49,怪物表!$A:$D,3,FALSE))) -> 18 | Y49: =IF(N49="","",IF(VLOOKUP(N49,怪物表!$A:$D,4,FALSE)=1,2,0)) -> 0 | Z49: =IF(O49="","",IF(VLOOKUP(O49,怪物表!$A:$D,4,FALSE)=1,2,0)) -> 0 | AA49: =IF(P49="","",IF(VLOOKUP(P49,怪物表!$A:$D,4,FALSE)=1,2,0)) -> 0 | AB49: =IF(Q49="","",IF(VLOOKUP(Q49,怪物表!$A:$D,4,FALSE)=1,2,0)) -> 0 | AC49: =IF(R49="","",IF(VLOOKUP(R49,怪物表!$A:$D,4,FALSE)=1,2,0)) -> 0 | AD49: =IF(S49="","",IF(VLOOKUP(S49,怪物表!$A:$D,4,FALSE)=1,2,0)) ->  | AE49: =IF(T49="","",IF(VLOOKUP(T49,怪物表!$A:$D,4,FALSE)=1,2,0)) ->  | AF49: =IF(U49="","",IF(VLOOKUP(U49,怪物表!$A:$D,4,FALSE)=1,2,0)) ->  | AG49: =IF(V49="","",IF(VLOOKUP(V49,怪物表!$A:$D,4,FALSE)=1,2,0)) ->  | AH49: =IF(W49="","",IF(VLOOKUP(W49,怪物表!$A:$D,4,FALSE)=1,2,0)) ->  | AI49: 1.2 | AJ49: 0 | AK49: 1.2 | AL49: 2.4 | AM49: 3.6 | AN49: 4.8 | AU49: =IF(Y49="","",VLOOKUP(Y49,高度表!$A:$C,3,FALSE)) -> 0 | AV49: =IF(Z49="","",VLOOKUP(Z49,高度表!$A:$C,3,FALSE)) -> 0 | AW49: =IF(AA49="","",VLOOKUP(AA49,高度表!$A:$C,3,FALSE)) -> 0 | AX49: =IF(AB49="","",VLOOKUP(AB49,高度表!$A:$C,3,FALSE)) -> 0 | AY49: =IF(AC49="","",VLOOKUP(AC49,高度表!$A:$C,3,FALSE)) -> 0 | AZ49: =IF(AD49="","",VLOOKUP(AD49,高度表!$A:$C,3,FALSE)) ->  | BA49: =IF(AE49="","",VLOOKUP(AE49,高度表!$A:$C,3,FALSE)) ->  | BB49: =IF(AF49="","",VLOOKUP(AF49,高度表!$A:$C,3,FALSE)) ->  | BC49: =IF(AG49="","",VLOOKUP(AG49,高度表!$A:$C,3,FALSE)) ->  | BD49: =IF(AH49="","",VLOOKUP(AH49,高度表!$A:$C,3,FALSE)) ->  | BE49: 0.15 | BF49: 0 | BG49: 0.15 | BH49: 0.3 | BI49: 0.45 | BJ49: 0.6 | BQ49: 102000;102002;102003;102003;102003 | BR49: 0;0;0;0;0 | BS49: 0;1.2;2.4;3.6;4.8 | BT49: 0;0.15;0.3;0.45;0.6 | BU49: 0;0;0;0;0 | BV49: =IF(SUM(IF(N49="",0,IF(VLOOKUP(N49,怪物表!$A:$E,5,FALSE)=3,1,0)),IF(O49="",0,IF(VLOOKUP(O49,怪物表!$A:$E,5,FALSE)=3,1,0)),IF(P49="",0,IF(VLOOKUP(P49,怪物表!$A:$E,5,FALSE)=3,1,0)),IF(Q49="",0,IF(VLOOKUP(Q49,怪物表!$A:$E,5,FALSE)=3,1,0)),IF(R49="",0,IF(VLOOKUP(R49,怪物表!$A:$E,5,FALSE)=3,1,0)),IF(S49="",0,IF(VLOOKUP(S49,怪物表!$A:$E,5,FALSE)=3,1,0)),IF(T49="",0,IF(VLOOKUP(T49,怪物表!$A:$E,5,FALSE)=3,1,0)),IF(U49="",0,IF(VLOOKUP(U49,怪物表!$A:$E,5,FALSE)=3,1,0)),IF(V49="",0,IF(VLOOKUP(V49,怪物表!$A:$E,5,FALSE)=3,1,0)),IF(W49="",0,IF(VLOOKUP(W49,怪物表!$A:$E,5,FALSE)=3,1,0)))>0,180,120)*BW49/100 -> 120 | BW49: 100 | BX49: 100
A50: 100315 | B50: 主线2-2小怪 | N50: 102000 | O50: 102002 | P50: 102003 | Q50: 102003 | X50: =SUM(IF(N50="",0,VLOOKUP(N50,怪物表!$A:$D,3,FALSE)),IF(O50="",0,VLOOKUP(O50,怪物表!$A:$D,3,FALSE)),IF(P50="",0,VLOOKUP(P50,怪物表!$A:$D,3,FALSE)),IF(Q50="",0,VLOOKUP(Q50,怪物表!$A:$D,3,FALSE)),IF(R50="",0,VLOOKUP(R50,怪物表!$A:$D,3,FALSE)),IF(S50="",0,VLOOKUP(S50,怪物表!$A:$D,3,FALSE)),IF(T50="",0,VLOOKUP(T50,怪物表!$A:$D,3,FALSE)),IF(U50="",0,VLOOKUP(U50,怪物表!$A:$D,3,FALSE)),IF(V50="",0,VLOOKUP(V50,怪物表!$A:$D,3,FALSE)),IF(W50="",0,VLOOKUP(W50,怪物表!$A:$D,3,FALSE))) -> 15 | Y50: =IF(N50="","",IF(VLOOKUP(N50,怪物表!$A:$D,4,FALSE)=1,2,0)) -> 0 | Z50: =IF(O50="","",IF(VLOOKUP(O50,怪物表!$A:$D,4,FALSE)=1,2,0)) -> 0 | AA50: =IF(P50="","",IF(VLOOKUP(P50,怪物表!$A:$D,4,FALSE)=1,2,0)) -> 0 | AB50: =IF(Q50="","",IF(VLOOKUP(Q50,怪物表!$A:$D,4,FALSE)=1,2,0)) -> 0 | AC50: =IF(R50="","",IF(VLOOKUP(R50,怪物表!$A:$D,4,FALSE)=1,2,0)) ->  | AD50: =IF(S50="","",IF(VLOOKUP(S50,怪物表!$A:$D,4,FALSE)=1,2,0)) ->  | AE50: =IF(T50="","",IF(VLOOKUP(T50,怪物表!$A:$D,4,FALSE)=1,2,0)) ->  | AF50: =IF(U50="","",IF(VLOOKUP(U50,怪物表!$A:$D,4,FALSE)=1,2,0)) ->  | AG50: =IF(V50="","",IF(VLOOKUP(V50,怪物表!$A:$D,4,FALSE)=1,2,0)) ->  | AH50: =IF(W50="","",IF(VLOOKUP(W50,怪物表!$A:$D,4,FALSE)=1,2,0)) ->  | AI50: 1.2 | AJ50: 0 | AK50: 1.2 | AL50: 2.4 | AM50: 3.6 | AU50: =IF(Y50="","",VLOOKUP(Y50,高度表!$A:$C,3,FALSE)) -> 0 | AV50: =IF(Z50="","",VLOOKUP(Z50,高度表!$A:$C,3,FALSE)) -> 0 | AW50: =IF(AA50="","",VLOOKUP(AA50,高度表!$A:$C,3,FALSE)) -> 0 | AX50: =IF(AB50="","",VLOOKUP(AB50,高度表!$A:$C,3,FALSE)) -> 0 | AY50: =IF(AC50="","",VLOOKUP(AC50,高度表!$A:$C,3,FALSE)) ->  | AZ50: =IF(AD50="","",VLOOKUP(AD50,高度表!$A:$C,3,FALSE)) ->  | BA50: =IF(AE50="","",VLOOKUP(AE50,高度表!$A:$C,3,FALSE)) ->  | BB50: =IF(AF50="","",VLOOKUP(AF50,高度表!$A:$C,3,FALSE)) ->  | BC50: =IF(AG50="","",VLOOKUP(AG50,高度表!$A:$C,3,FALSE)) ->  | BD50: =IF(AH50="","",VLOOKUP(AH50,高度表!$A:$C,3,FALSE)) ->  | BE50: 0.15 | BF50: 0 | BG50: 0.15 | BH50: 0.3 | BI50: 0.45 | BQ50: 102000;102002;102003;102003 | BR50: 0;0;0;0 | BS50: 0;1.2;2.4;3.6 | BT50: 0;0.15;0.3;0.45 | BU50: 0;0;0;0 | BV50: =IF(SUM(IF(N50="",0,IF(VLOOKUP(N50,怪物表!$A:$E,5,FALSE)=3,1,0)),IF(O50="",0,IF(VLOOKUP(O50,怪物表!$A:$E,5,FALSE)=3,1,0)),IF(P50="",0,IF(VLOOKUP(P50,怪物表!$A:$E,5,FALSE)=3,1,0)),IF(Q50="",0,IF(VLOOKUP(Q50,怪物表!$A:$E,5,FALSE)=3,1,0)),IF(R50="",0,IF(VLOOKUP(R50,怪物表!$A:$E,5,FALSE)=3,1,0)),IF(S50="",0,IF(VLOOKUP(S50,怪物表!$A:$E,5,FALSE)=3,1,0)),IF(T50="",0,IF(VLOOKUP(T50,怪物表!$A:$E,5,FALSE)=3,1,0)),IF(U50="",0,IF(VLOOKUP(U50,怪物表!$A:$E,5,FALSE)=3,1,0)),IF(V50="",0,IF(VLOOKUP(V50,怪物表!$A:$E,5,FALSE)=3,1,0)),IF(W50="",0,IF(VLOOKUP(W50,怪物表!$A:$E,5,FALSE)=3,1,0)))>0,180,120)*BW50/100 -> 120 | BW50: 100 | BX50: 100
A51: 100316 | B51: 主线2-2小怪 | N51: 102004 | O51: 102002 | P51: 102003 | Q51: 102003 | X51: =SUM(IF(N51="",0,VLOOKUP(N51,怪物表!$A:$D,3,FALSE)),IF(O51="",0,VLOOKUP(O51,怪物表!$A:$D,3,FALSE)),IF(P51="",0,VLOOKUP(P51,怪物表!$A:$D,3,FALSE)),IF(Q51="",0,VLOOKUP(Q51,怪物表!$A:$D,3,FALSE)),IF(R51="",0,VLOOKUP(R51,怪物表!$A:$D,3,FALSE)),IF(S51="",0,VLOOKUP(S51,怪物表!$A:$D,3,FALSE)),IF(T51="",0,VLOOKUP(T51,怪物表!$A:$D,3,FALSE)),IF(U51="",0,VLOOKUP(U51,怪物表!$A:$D,3,FALSE)),IF(V51="",0,VLOOKUP(V51,怪物表!$A:$D,3,FALSE)),IF(W51="",0,VLOOKUP(W51,怪物表!$A:$D,3,FALSE))) -> 15 | Y51: =IF(N51="","",IF(VLOOKUP(N51,怪物表!$A:$D,4,FALSE)=1,2,0)) -> 0 | Z51: =IF(O51="","",IF(VLOOKUP(O51,怪物表!$A:$D,4,FALSE)=1,2,0)) -> 0 | AA51: =IF(P51="","",IF(VLOOKUP(P51,怪物表!$A:$D,4,FALSE)=1,2,0)) -> 0 | AB51: =IF(Q51="","",IF(VLOOKUP(Q51,怪物表!$A:$D,4,FALSE)=1,2,0)) -> 0 | AC51: =IF(R51="","",IF(VLOOKUP(R51,怪物表!$A:$D,4,FALSE)=1,2,0)) ->  | AD51: =IF(S51="","",IF(VLOOKUP(S51,怪物表!$A:$D,4,FALSE)=1,2,0)) ->  | AE51: =IF(T51="","",IF(VLOOKUP(T51,怪物表!$A:$D,4,FALSE)=1,2,0)) ->  | AF51: =IF(U51="","",IF(VLOOKUP(U51,怪物表!$A:$D,4,FALSE)=1,2,0)) ->  | AG51: =IF(V51="","",IF(VLOOKUP(V51,怪物表!$A:$D,4,FALSE)=1,2,0)) ->  | AH51: =IF(W51="","",IF(VLOOKUP(W51,怪物表!$A:$D,4,FALSE)=1,2,0)) ->  | AI51: 1.2 | AJ51: 0 | AK51: 4 | AL51: 6 | AM51: 8 | AU51: =IF(Y51="","",VLOOKUP(Y51,高度表!$A:$C,3,FALSE)) -> 0 | AV51: =IF(Z51="","",VLOOKUP(Z51,高度表!$A:$C,3,FALSE)) -> 0 | AW51: =IF(AA51="","",VLOOKUP(AA51,高度表!$A:$C,3,FALSE)) -> 0 | AX51: =IF(AB51="","",VLOOKUP(AB51,高度表!$A:$C,3,FALSE)) -> 0 | AY51: =IF(AC51="","",VLOOKUP(AC51,高度表!$A:$C,3,FALSE)) ->  | AZ51: =IF(AD51="","",VLOOKUP(AD51,高度表!$A:$C,3,FALSE)) ->  | BA51: =IF(AE51="","",VLOOKUP(AE51,高度表!$A:$C,3,FALSE)) ->  | BB51: =IF(AF51="","",VLOOKUP(AF51,高度表!$A:$C,3,FALSE)) ->  | BC51: =IF(AG51="","",VLOOKUP(AG51,高度表!$A:$C,3,FALSE)) ->  | BD51: =IF(AH51="","",VLOOKUP(AH51,高度表!$A:$C,3,FALSE)) ->  | BE51: 0.15 | BF51: 0 | BG51: 0.15 | BH51: 0.3 | BI51: 0.45 | BQ51: 102004;102002;102003;102003 | BR51: 0;0;0;0 | BS51: 0;4;6;8 | BT51: 0;0.15;0.3;0.45 | BU51: 0;0;0;0 | BV51: =IF(SUM(IF(N51="",0,IF(VLOOKUP(N51,怪物表!$A:$E,5,FALSE)=3,1,0)),IF(O51="",0,IF(VLOOKUP(O51,怪物表!$A:$E,5,FALSE)=3,1,0)),IF(P51="",0,IF(VLOOKUP(P51,怪物表!$A:$E,5,FALSE)=3,1,0)),IF(Q51="",0,IF(VLOOKUP(Q51,怪物表!$A:$E,5,FALSE)=3,1,0)),IF(R51="",0,IF(VLOOKUP(R51,怪物表!$A:$E,5,FALSE)=3,1,0)),IF(S51="",0,IF(VLOOKUP(S51,怪物表!$A:$E,5,FALSE)=3,1,0)),IF(T51="",0,IF(VLOOKUP(T51,怪物表!$A:$E,5,FALSE)=3,1,0)),IF(U51="",0,IF(VLOOKUP(U51,怪物表!$A:$E,5,FALSE)=3,1,0)),IF(V51="",0,IF(VLOOKUP(V51,怪物表!$A:$E,5,FALSE)=3,1,0)),IF(W51="",0,IF(VLOOKUP(W51,怪物表!$A:$E,5,FALSE)=3,1,0)))>0,180,120)*BW51/100 -> 120 | BW51: 100 | BX51: 100
A52: 100317 | B52: 主线2-2小怪 | N52: 102000 | O52: 102004 | P52: 102003 | Q52: 102003 | X52: =SUM(IF(N52="",0,VLOOKUP(N52,怪物表!$A:$D,3,FALSE)),IF(O52="",0,VLOOKUP(O52,怪物表!$A:$D,3,FALSE)),IF(P52="",0,VLOOKUP(P52,怪物表!$A:$D,3,FALSE)),IF(Q52="",0,VLOOKUP(Q52,怪物表!$A:$D,3,FALSE)),IF(R52="",0,VLOOKUP(R52,怪物表!$A:$D,3,FALSE)),IF(S52="",0,VLOOKUP(S52,怪物表!$A:$D,3,FALSE)),IF(T52="",0,VLOOKUP(T52,怪物表!$A:$D,3,FALSE)),IF(U52="",0,VLOOKUP(U52,怪物表!$A:$D,3,FALSE)),IF(V52="",0,VLOOKUP(V52,怪物表!$A:$D,3,FALSE)),IF(W52="",0,VLOOKUP(W52,怪物表!$A:$D,3,FALSE))) -> 12 | Y52: =IF(N52="","",IF(VLOOKUP(N52,怪物表!$A:$D,4,FALSE)=1,2,0)) -> 0 | Z52: =IF(O52="","",IF(VLOOKUP(O52,怪物表!$A:$D,4,FALSE)=1,2,0)) -> 0 | AA52: =IF(P52="","",IF(VLOOKUP(P52,怪物表!$A:$D,4,FALSE)=1,2,0)) -> 0 | AB52: =IF(Q52="","",IF(VLOOKUP(Q52,怪物表!$A:$D,4,FALSE)=1,2,0)) -> 0 | AC52: =IF(R52="","",IF(VLOOKUP(R52,怪物表!$A:$D,4,FALSE)=1,2,0)) ->  | AD52: =IF(S52="","",IF(VLOOKUP(S52,怪物表!$A:$D,4,FALSE)=1,2,0)) ->  | AE52: =IF(T52="","",IF(VLOOKUP(T52,怪物表!$A:$D,4,FALSE)=1,2,0)) ->  | AF52: =IF(U52="","",IF(VLOOKUP(U52,怪物表!$A:$D,4,FALSE)=1,2,0)) ->  | AG52: =IF(V52="","",IF(VLOOKUP(V52,怪物表!$A:$D,4,FALSE)=1,2,0)) ->  | AH52: =IF(W52="","",IF(VLOOKUP(W52,怪物表!$A:$D,4,FALSE)=1,2,0)) ->  | AI52: 1.2 | AJ52: 0 | AK52: 5 | AL52: 6.5 | AM52: 8 | AU52: =IF(Y52="","",VLOOKUP(Y52,高度表!$A:$C,3,FALSE)) -> 0 | AV52: =IF(Z52="","",VLOOKUP(Z52,高度表!$A:$C,3,FALSE)) -> 0 | AW52: =IF(AA52="","",VLOOKUP(AA52,高度表!$A:$C,3,FALSE)) -> 0 | AX52: =IF(AB52="","",VLOOKUP(AB52,高度表!$A:$C,3,FALSE)) -> 0 | AY52: =IF(AC52="","",VLOOKUP(AC52,高度表!$A:$C,3,FALSE)) ->  | AZ52: =IF(AD52="","",VLOOKUP(AD52,高度表!$A:$C,3,FALSE)) ->  | BA52: =IF(AE52="","",VLOOKUP(AE52,高度表!$A:$C,3,FALSE)) ->  | BB52: =IF(AF52="","",VLOOKUP(AF52,高度表!$A:$C,3,FALSE)) ->  | BC52: =IF(AG52="","",VLOOKUP(AG52,高度表!$A:$C,3,FALSE)) ->  | BD52: =IF(AH52="","",VLOOKUP(AH52,高度表!$A:$C,3,FALSE)) ->  | BE52: 0.15 | BF52: 0 | BG52: 0.15 | BH52: 0.3 | BI52: 0.45 | BQ52: 102000;102004;102003;102003 | BR52: 0;0;0;0 | BS52: 0;5;6.5;8 | BT52: 0;0.15;0.3;0.45 | BU52: 0;0;0;0 | BV52: =IF(SUM(IF(N52="",0,IF(VLOOKUP(N52,怪物表!$A:$E,5,FALSE)=3,1,0)),IF(O52="",0,IF(VLOOKUP(O52,怪物表!$A:$E,5,FALSE)=3,1,0)),IF(P52="",0,IF(VLOOKUP(P52,怪物表!$A:$E,5,FALSE)=3,1,0)),IF(Q52="",0,IF(VLOOKUP(Q52,怪物表!$A:$E,5,FALSE)=3,1,0)),IF(R52="",0,IF(VLOOKUP(R52,怪物表!$A:$E,5,FALSE)=3,1,0)),IF(S52="",0,IF(VLOOKUP(S52,怪物表!$A:$E,5,FALSE)=3,1,0)),IF(T52="",0,IF(VLOOKUP(T52,怪物表!$A:$E,5,FALSE)=3,1,0)),IF(U52="",0,IF(VLOOKUP(U52,怪物表!$A:$E,5,FALSE)=3,1,0)),IF(V52="",0,IF(VLOOKUP(V52,怪物表!$A:$E,5,FALSE)=3,1,0)),IF(W52="",0,IF(VLOOKUP(W52,怪物表!$A:$E,5,FALSE)=3,1,0)))>0,180,120)*BW52/100 -> 120 | BW52: 100 | BX52: 100
A53: 100318 | B53: 主线2-2小怪 | N53: 102003 | O53: 102003 | P53: 102003 | Q53: 102003 | X53: =SUM(IF(N53="",0,VLOOKUP(N53,怪物表!$A:$D,3,FALSE)),IF(O53="",0,VLOOKUP(O53,怪物表!$A:$D,3,FALSE)),IF(P53="",0,VLOOKUP(P53,怪物表!$A:$D,3,FALSE)),IF(Q53="",0,VLOOKUP(Q53,怪物表!$A:$D,3,FALSE)),IF(R53="",0,VLOOKUP(R53,怪物表!$A:$D,3,FALSE)),IF(S53="",0,VLOOKUP(S53,怪物表!$A:$D,3,FALSE)),IF(T53="",0,VLOOKUP(T53,怪物表!$A:$D,3,FALSE)),IF(U53="",0,VLOOKUP(U53,怪物表!$A:$D,3,FALSE)),IF(V53="",0,VLOOKUP(V53,怪物表!$A:$D,3,FALSE)),IF(W53="",0,VLOOKUP(W53,怪物表!$A:$D,3,FALSE))) -> 12 | Y53: =IF(N53="","",IF(VLOOKUP(N53,怪物表!$A:$D,4,FALSE)=1,2,0)) -> 0 | Z53: =IF(O53="","",IF(VLOOKUP(O53,怪物表!$A:$D,4,FALSE)=1,2,0)) -> 0 | AA53: =IF(P53="","",IF(VLOOKUP(P53,怪物表!$A:$D,4,FALSE)=1,2,0)) -> 0 | AB53: =IF(Q53="","",IF(VLOOKUP(Q53,怪物表!$A:$D,4,FALSE)=1,2,0)) -> 0 | AC53: =IF(R53="","",IF(VLOOKUP(R53,怪物表!$A:$D,4,FALSE)=1,2,0)) ->  | AD53: =IF(S53="","",IF(VLOOKUP(S53,怪物表!$A:$D,4,FALSE)=1,2,0)) ->  | AE53: =IF(T53="","",IF(VLOOKUP(T53,怪物表!$A:$D,4,FALSE)=1,2,0)) ->  | AF53: =IF(U53="","",IF(VLOOKUP(U53,怪物表!$A:$D,4,FALSE)=1,2,0)) ->  | AG53: =IF(V53="","",IF(VLOOKUP(V53,怪物表!$A:$D,4,FALSE)=1,2,0)) ->  | AH53: =IF(W53="","",IF(VLOOKUP(W53,怪物表!$A:$D,4,FALSE)=1,2,0)) ->  | AI53: 1.2 | AJ53: 0 | AK53: =IF(O53="","",1*$AI53) -> 1.2 | AL53: =IF(P53="","",2*$AI53) -> 2.4 | AM53: =IF(Q53="","",3*$AI53) -> 3.6 | AU53: =IF(Y53="","",VLOOKUP(Y53,高度表!$A:$C,3,FALSE)) -> 0 | AV53: =IF(Z53="","",VLOOKUP(Z53,高度表!$A:$C,3,FALSE)) -> 0 | AW53: =IF(AA53="","",VLOOKUP(AA53,高度表!$A:$C,3,FALSE)) -> 0 | AX53: =IF(AB53="","",VLOOKUP(AB53,高度表!$A:$C,3,FALSE)) -> 0 | AY53: =IF(AC53="","",VLOOKUP(AC53,高度表!$A:$C,3,FALSE)) ->  | AZ53: =IF(AD53="","",VLOOKUP(AD53,高度表!$A:$C,3,FALSE)) ->  | BA53: =IF(AE53="","",VLOOKUP(AE53,高度表!$A:$C,3,FALSE)) ->  | BB53: =IF(AF53="","",VLOOKUP(AF53,高度表!$A:$C,3,FALSE)) ->  | BC53: =IF(AG53="","",VLOOKUP(AG53,高度表!$A:$C,3,FALSE)) ->  | BD53: =IF(AH53="","",VLOOKUP(AH53,高度表!$A:$C,3,FALSE)) ->  | BE53: 0.15 | BF53: 0 | BG53: 0.15 | BH53: 0.3 | BI53: 0.45 | BQ53: 102003;102003;102003;102003 | BR53: 0;0;0;0 | BS53: 0;1.2;2.4;3.6 | BT53: 0;0.15;0.3;0.45 | BU53: 0;0;0;0 | BV53: =IF(SUM(IF(N53="",0,IF(VLOOKUP(N53,怪物表!$A:$E,5,FALSE)=3,1,0)),IF(O53="",0,IF(VLOOKUP(O53,怪物表!$A:$E,5,FALSE)=3,1,0)),IF(P53="",0,IF(VLOOKUP(P53,怪物表!$A:$E,5,FALSE)=3,1,0)),IF(Q53="",0,IF(VLOOKUP(Q53,怪物表!$A:$E,5,FALSE)=3,1,0)),IF(R53="",0,IF(VLOOKUP(R53,怪物表!$A:$E,5,FALSE)=3,1,0)),IF(S53="",0,IF(VLOOKUP(S53,怪物表!$A:$E,5,FALSE)=3,1,0)),IF(T53="",0,IF(VLOOKUP(T53,怪物表!$A:$E,5,FALSE)=3,1,0)),IF(U53="",0,IF(VLOOKUP(U53,怪物表!$A:$E,5,FALSE)=3,1,0)),IF(V53="",0,IF(VLOOKUP(V53,怪物表!$A:$E,5,FALSE)=3,1,0)),IF(W53="",0,IF(VLOOKUP(W53,怪物表!$A:$E,5,FALSE)=3,1,0)))>0,180,120)*BW53/100 -> 120 | BW53: 100 | BX53: 100
A54: 100319 | B54: 主线2-2小怪 | N54: 107000 | O54: 102003 | P54: 102003 | X54: =SUM(IF(N54="",0,VLOOKUP(N54,怪物表!$A:$D,3,FALSE)),IF(O54="",0,VLOOKUP(O54,怪物表!$A:$D,3,FALSE)),IF(P54="",0,VLOOKUP(P54,怪物表!$A:$D,3,FALSE)),IF(Q54="",0,VLOOKUP(Q54,怪物表!$A:$D,3,FALSE)),IF(R54="",0,VLOOKUP(R54,怪物表!$A:$D,3,FALSE)),IF(S54="",0,VLOOKUP(S54,怪物表!$A:$D,3,FALSE)),IF(T54="",0,VLOOKUP(T54,怪物表!$A:$D,3,FALSE)),IF(U54="",0,VLOOKUP(U54,怪物表!$A:$D,3,FALSE)),IF(V54="",0,VLOOKUP(V54,怪物表!$A:$D,3,FALSE)),IF(W54="",0,VLOOKUP(W54,怪物表!$A:$D,3,FALSE))) -> 14 | Y54: =IF(N54="","",IF(VLOOKUP(N54,怪物表!$A:$D,4,FALSE)=1,2,0)) -> 2 | Z54: =IF(O54="","",IF(VLOOKUP(O54,怪物表!$A:$D,4,FALSE)=1,2,0)) -> 0 | AA54: =IF(P54="","",IF(VLOOKUP(P54,怪物表!$A:$D,4,FALSE)=1,2,0)) -> 0 | AB54: =IF(Q54="","",IF(VLOOKUP(Q54,怪物表!$A:$D,4,FALSE)=1,2,0)) ->  | AC54: =IF(R54="","",IF(VLOOKUP(R54,怪物表!$A:$D,4,FALSE)=1,2,0)) ->  | AD54: =IF(S54="","",IF(VLOOKUP(S54,怪物表!$A:$D,4,FALSE)=1,2,0)) ->  | AE54: =IF(T54="","",IF(VLOOKUP(T54,怪物表!$A:$D,4,FALSE)=1,2,0)) ->  | AF54: =IF(U54="","",IF(VLOOKUP(U54,怪物表!$A:$D,4,FALSE)=1,2,0)) ->  | AG54: =IF(V54="","",IF(VLOOKUP(V54,怪物表!$A:$D,4,FALSE)=1,2,0)) ->  | AH54: =IF(W54="","",IF(VLOOKUP(W54,怪物表!$A:$D,4,FALSE)=1,2,0)) ->  | AI54: 1.2 | AJ54: =IF(N54="","",0*$AI54) -> 0 | AK54: =IF(O54="","",1*$AI54) -> 1.2 | AL54: =IF(P54="","",2*$AI54) -> 2.4 | AM54: =IF(Q54="","",3*$AI54) ->  | AN54: =IF(R54="","",4*$AI54) ->  | AO54: =IF(S54="","",5*$AI54) ->  | AP54: =IF(T54="","",6*$AI54) ->  | AQ54: =IF(U54="","",7*$AI54) ->  | AR54: =IF(V54="","",8*$AI54) ->  | AU54: =IF(Y54="","",VLOOKUP(Y54,高度表!$A:$C,3,FALSE)) -> 1.8 | AV54: =IF(Z54="","",VLOOKUP(Z54,高度表!$A:$C,3,FALSE)) -> 0 | AW54: =IF(AA54="","",VLOOKUP(AA54,高度表!$A:$C,3,FALSE)) -> 0 | AX54: =IF(AB54="","",VLOOKUP(AB54,高度表!$A:$C,3,FALSE)) ->  | AY54: =IF(AC54="","",VLOOKUP(AC54,高度表!$A:$C,3,FALSE)) ->  | AZ54: =IF(AD54="","",VLOOKUP(AD54,高度表!$A:$C,3,FALSE)) ->  | BA54: =IF(AE54="","",VLOOKUP(AE54,高度表!$A:$C,3,FALSE)) ->  | BB54: =IF(AF54="","",VLOOKUP(AF54,高度表!$A:$C,3,FALSE)) ->  | BC54: =IF(AG54="","",VLOOKUP(AG54,高度表!$A:$C,3,FALSE)) ->  | BD54: =IF(AH54="","",VLOOKUP(AH54,高度表!$A:$C,3,FALSE)) ->  | BE54: 0.15 | BF54: 0 | BG54: 0.15 | BH54: 0.3 | BQ54: 107000;102003;102003 | BR54: 1.8;0;0 | BS54: 0;1.2;2.4 | BT54: 0;0.15;0.3 | BU54: 0;0;0 | BV54: =IF(SUM(IF(N54="",0,IF(VLOOKUP(N54,怪物表!$A:$E,5,FALSE)=3,1,0)),IF(O54="",0,IF(VLOOKUP(O54,怪物表!$A:$E,5,FALSE)=3,1,0)),IF(P54="",0,IF(VLOOKUP(P54,怪物表!$A:$E,5,FALSE)=3,1,0)),IF(Q54="",0,IF(VLOOKUP(Q54,怪物表!$A:$E,5,FALSE)=3,1,0)),IF(R54="",0,IF(VLOOKUP(R54,怪物表!$A:$E,5,FALSE)=3,1,0)),IF(S54="",0,IF(VLOOKUP(S54,怪物表!$A:$E,5,FALSE)=3,1,0)),IF(T54="",0,IF(VLOOKUP(T54,怪物表!$A:$E,5,FALSE)=3,1,0)),IF(U54="",0,IF(VLOOKUP(U54,怪物表!$A:$E,5,FALSE)=3,1,0)),IF(V54="",0,IF(VLOOKUP(V54,怪物表!$A:$E,5,FALSE)=3,1,0)),IF(W54="",0,IF(VLOOKUP(W54,怪物表!$A:$E,5,FALSE)=3,1,0)))>0,180,120)*BW54/100 -> 120 | BW54: 100 | BX54: 100
A55: 100320 | B55: 主线2-2BOSS | N55: 1004 | X55: =SUM(IF(N55="",0,VLOOKUP(N55,怪物表!$A:$D,3,FALSE)),IF(O55="",0,VLOOKUP(O55,怪物表!$A:$D,3,FALSE)),IF(P55="",0,VLOOKUP(P55,怪物表!$A:$D,3,FALSE)),IF(Q55="",0,VLOOKUP(Q55,怪物表!$A:$D,3,FALSE)),IF(R55="",0,VLOOKUP(R55,怪物表!$A:$D,3,FALSE)),IF(S55="",0,VLOOKUP(S55,怪物表!$A:$D,3,FALSE)),IF(T55="",0,VLOOKUP(T55,怪物表!$A:$D,3,FALSE)),IF(U55="",0,VLOOKUP(U55,怪物表!$A:$D,3,FALSE)),IF(V55="",0,VLOOKUP(V55,怪物表!$A:$D,3,FALSE)),IF(W55="",0,VLOOKUP(W55,怪物表!$A:$D,3,FALSE))) -> 25 | Y55: =IF(N55="","",IF(VLOOKUP(N55,怪物表!$A:$D,4,FALSE)=1,2,0)) -> 0 | Z55: =IF(O55="","",IF(VLOOKUP(O55,怪物表!$A:$D,4,FALSE)=1,2,0)) ->  | AA55: =IF(P55="","",IF(VLOOKUP(P55,怪物表!$A:$D,4,FALSE)=1,2,0)) ->  | AB55: =IF(Q55="","",IF(VLOOKUP(Q55,怪物表!$A:$D,4,FALSE)=1,2,0)) ->  | AC55: =IF(R55="","",IF(VLOOKUP(R55,怪物表!$A:$D,4,FALSE)=1,2,0)) ->  | AD55: =IF(S55="","",IF(VLOOKUP(S55,怪物表!$A:$D,4,FALSE)=1,2,0)) ->  | AE55: =IF(T55="","",IF(VLOOKUP(T55,怪物表!$A:$D,4,FALSE)=1,2,0)) ->  | AF55: =IF(U55="","",IF(VLOOKUP(U55,怪物表!$A:$D,4,FALSE)=1,2,0)) ->  | AG55: =IF(V55="","",IF(VLOOKUP(V55,怪物表!$A:$D,4,FALSE)=1,2,0)) ->  | AH55: =IF(W55="","",IF(VLOOKUP(W55,怪物表!$A:$D,4,FALSE)=1,2,0)) ->  | AI55: 1.2 | AJ55: 0 | AU55: =IF(Y55="","",VLOOKUP(Y55,高度表!$A:$C,3,FALSE)) -> 0 | AV55: =IF(Z55="","",VLOOKUP(Z55,高度表!$A:$C,3,FALSE)) ->  | AW55: =IF(AA55="","",VLOOKUP(AA55,高度表!$A:$C,3,FALSE)) ->  | AX55: =IF(AB55="","",VLOOKUP(AB55,高度表!$A:$C,3,FALSE)) ->  | AY55: =IF(AC55="","",VLOOKUP(AC55,高度表!$A:$C,3,FALSE)) ->  | AZ55: =IF(AD55="","",VLOOKUP(AD55,高度表!$A:$C,3,FALSE)) ->  | BA55: =IF(AE55="","",VLOOKUP(AE55,高度表!$A:$C,3,FALSE)) ->  | BB55: =IF(AF55="","",VLOOKUP(AF55,高度表!$A:$C,3,FALSE)) ->  | BC55: =IF(AG55="","",VLOOKUP(AG55,高度表!$A:$C,3,FALSE)) ->  | BD55: =IF(AH55="","",VLOOKUP(AH55,高度表!$A:$C,3,FALSE)) ->  | BE55: 0.15 | BF55: 0 | BQ55: 1004 | BR55: 0 | BS55: 0 | BT55: 0 | BU55: 0 | BV55: =IF(SUM(IF(N55="",0,IF(VLOOKUP(N55,怪物表!$A:$E,5,FALSE)=3,1,0)),IF(O55="",0,IF(VLOOKUP(O55,怪物表!$A:$E,5,FALSE)=3,1,0)),IF(P55="",0,IF(VLOOKUP(P55,怪物表!$A:$E,5,FALSE)=3,1,0)),IF(Q55="",0,IF(VLOOKUP(Q55,怪物表!$A:$E,5,FALSE)=3,1,0)),IF(R55="",0,IF(VLOOKUP(R55,怪物表!$A:$E,5,FALSE)=3,1,0)),IF(S55="",0,IF(VLOOKUP(S55,怪物表!$A:$E,5,FALSE)=3,1,0)),IF(T55="",0,IF(VLOOKUP(T55,怪物表!$A:$E,5,FALSE)=3,1,0)),IF(U55="",0,IF(VLOOKUP(U55,怪物表!$A:$E,5,FALSE)=3,1,0)),IF(V55="",0,IF(VLOOKUP(V55,怪物表!$A:$E,5,FALSE)=3,1,0)),IF(W55="",0,IF(VLOOKUP(W55,怪物表!$A:$E,5,FALSE)=3,1,0)))>0,180,120)*BW55/100 -> 180 | BW55: 100 | BX55: 100
A56: 100321 | B56: 主线2-3小怪 | N56: 102000 | O56: 102002 | P56: 102003 | Q56: 102003 | X56: =SUM(IF(N56="",0,VLOOKUP(N56,怪物表!$A:$D,3,FALSE)),IF(O56="",0,VLOOKUP(O56,怪物表!$A:$D,3,FALSE)),IF(P56="",0,VLOOKUP(P56,怪物表!$A:$D,3,FALSE)),IF(Q56="",0,VLOOKUP(Q56,怪物表!$A:$D,3,FALSE)),IF(R56="",0,VLOOKUP(R56,怪物表!$A:$D,3,FALSE)),IF(S56="",0,VLOOKUP(S56,怪物表!$A:$D,3,FALSE)),IF(T56="",0,VLOOKUP(T56,怪物表!$A:$D,3,FALSE)),IF(U56="",0,VLOOKUP(U56,怪物表!$A:$D,3,FALSE)),IF(V56="",0,VLOOKUP(V56,怪物表!$A:$D,3,FALSE)),IF(W56="",0,VLOOKUP(W56,怪物表!$A:$D,3,FALSE))) -> 15 | Y56: =IF(N56="","",IF(VLOOKUP(N56,怪物表!$A:$D,4,FALSE)=1,2,0)) -> 0 | Z56: =IF(O56="","",IF(VLOOKUP(O56,怪物表!$A:$D,4,FALSE)=1,2,0)) -> 0 | AA56: =IF(P56="","",IF(VLOOKUP(P56,怪物表!$A:$D,4,FALSE)=1,2,0)) -> 0 | AB56: =IF(Q56="","",IF(VLOOKUP(Q56,怪物表!$A:$D,4,FALSE)=1,2,0)) -> 0 | AC56: =IF(R56="","",IF(VLOOKUP(R56,怪物表!$A:$D,4,FALSE)=1,2,0)) ->  | AD56: =IF(S56="","",IF(VLOOKUP(S56,怪物表!$A:$D,4,FALSE)=1,2,0)) ->  | AE56: =IF(T56="","",IF(VLOOKUP(T56,怪物表!$A:$D,4,FALSE)=1,2,0)) ->  | AF56: =IF(U56="","",IF(VLOOKUP(U56,怪物表!$A:$D,4,FALSE)=1,2,0)) ->  | AG56: =IF(V56="","",IF(VLOOKUP(V56,怪物表!$A:$D,4,FALSE)=1,2,0)) ->  | AH56: =IF(W56="","",IF(VLOOKUP(W56,怪物表!$A:$D,4,FALSE)=1,2,0)) ->  | AI56: 1.2 | AJ56: 0 | AK56: 1.2 | AL56: 2.4 | AM56: 3.6 | AU56: =IF(Y56="","",VLOOKUP(Y56,高度表!$A:$C,3,FALSE)) -> 0 | AV56: =IF(Z56="","",VLOOKUP(Z56,高度表!$A:$C,3,FALSE)) -> 0 | AW56: =IF(AA56="","",VLOOKUP(AA56,高度表!$A:$C,3,FALSE)) -> 0 | AX56: =IF(AB56="","",VLOOKUP(AB56,高度表!$A:$C,3,FALSE)) -> 0 | AY56: =IF(AC56="","",VLOOKUP(AC56,高度表!$A:$C,3,FALSE)) ->  | AZ56: =IF(AD56="","",VLOOKUP(AD56,高度表!$A:$C,3,FALSE)) ->  | BA56: =IF(AE56="","",VLOOKUP(AE56,高度表!$A:$C,3,FALSE)) ->  | BB56: =IF(AF56="","",VLOOKUP(AF56,高度表!$A:$C,3,FALSE)) ->  | BC56: =IF(AG56="","",VLOOKUP(AG56,高度表!$A:$C,3,FALSE)) ->  | BD56: =IF(AH56="","",VLOOKUP(AH56,高度表!$A:$C,3,FALSE)) ->  | BE56: 0.15 | BF56: 0 | BG56: 0.15 | BH56: 0.3 | BI56: 0.45 | BQ56: 102000;102002;102003;102003 | BR56: 0;0;0;0 | BS56: 0;1.2;2.4;3.6 | BT56: 0;0.15;0.3;0.45 | BU56: 0;0;0;0 | BV56: =IF(SUM(IF(N56="",0,IF(VLOOKUP(N56,怪物表!$A:$E,5,FALSE)=3,1,0)),IF(O56="",0,IF(VLOOKUP(O56,怪物表!$A:$E,5,FALSE)=3,1,0)),IF(P56="",0,IF(VLOOKUP(P56,怪物表!$A:$E,5,FALSE)=3,1,0)),IF(Q56="",0,IF(VLOOKUP(Q56,怪物表!$A:$E,5,FALSE)=3,1,0)),IF(R56="",0,IF(VLOOKUP(R56,怪物表!$A:$E,5,FALSE)=3,1,0)),IF(S56="",0,IF(VLOOKUP(S56,怪物表!$A:$E,5,FALSE)=3,1,0)),IF(T56="",0,IF(VLOOKUP(T56,怪物表!$A:$E,5,FALSE)=3,1,0)),IF(U56="",0,IF(VLOOKUP(U56,怪物表!$A:$E,5,FALSE)=3,1,0)),IF(V56="",0,IF(VLOOKUP(V56,怪物表!$A:$E,5,FALSE)=3,1,0)),IF(W56="",0,IF(VLOOKUP(W56,怪物表!$A:$E,5,FALSE)=3,1,0)))>0,180,120)*BW56/100 -> 120 | BW56: 100 | BX56: 100
A57: 100322 | B57: 主线2-3小怪 | N57: 107000 | O57: 102003 | P57: 102003 | X57: =SUM(IF(N57="",0,VLOOKUP(N57,怪物表!$A:$D,3,FALSE)),IF(O57="",0,VLOOKUP(O57,怪物表!$A:$D,3,FALSE)),IF(P57="",0,VLOOKUP(P57,怪物表!$A:$D,3,FALSE)),IF(Q57="",0,VLOOKUP(Q57,怪物表!$A:$D,3,FALSE)),IF(R57="",0,VLOOKUP(R57,怪物表!$A:$D,3,FALSE)),IF(S57="",0,VLOOKUP(S57,怪物表!$A:$D,3,FALSE)),IF(T57="",0,VLOOKUP(T57,怪物表!$A:$D,3,FALSE)),IF(U57="",0,VLOOKUP(U57,怪物表!$A:$D,3,FALSE)),IF(V57="",0,VLOOKUP(V57,怪物表!$A:$D,3,FALSE)),IF(W57="",0,VLOOKUP(W57,怪物表!$A:$D,3,FALSE))) -> 14 | Y57: =IF(N57="","",IF(VLOOKUP(N57,怪物表!$A:$D,4,FALSE)=1,2,0)) -> 2 | Z57: =IF(O57="","",IF(VLOOKUP(O57,怪物表!$A:$D,4,FALSE)=1,2,0)) -> 0 | AA57: =IF(P57="","",IF(VLOOKUP(P57,怪物表!$A:$D,4,FALSE)=1,2,0)) -> 0 | AB57: =IF(Q57="","",IF(VLOOKUP(Q57,怪物表!$A:$D,4,FALSE)=1,2,0)) ->  | AC57: =IF(R57="","",IF(VLOOKUP(R57,怪物表!$A:$D,4,FALSE)=1,2,0)) ->  | AD57: =IF(S57="","",IF(VLOOKUP(S57,怪物表!$A:$D,4,FALSE)=1,2,0)) ->  | AE57: =IF(T57="","",IF(VLOOKUP(T57,怪物表!$A:$D,4,FALSE)=1,2,0)) ->  | AF57: =IF(U57="","",IF(VLOOKUP(U57,怪物表!$A:$D,4,FALSE)=1,2,0)) ->  | AG57: =IF(V57="","",IF(VLOOKUP(V57,怪物表!$A:$D,4,FALSE)=1,2,0)) ->  | AH57: =IF(W57="","",IF(VLOOKUP(W57,怪物表!$A:$D,4,FALSE)=1,2,0)) ->  | AI57: 3 | AJ57: 0 | AK57: 3 | AL57: 6 | AU57: =IF(Y57="","",VLOOKUP(Y57,高度表!$A:$C,3,FALSE)) -> 1.8 | AV57: =IF(Z57="","",VLOOKUP(Z57,高度表!$A:$C,3,FALSE)) -> 0 | AW57: =IF(AA57="","",VLOOKUP(AA57,高度表!$A:$C,3,FALSE)) -> 0 | AX57: =IF(AB57="","",VLOOKUP(AB57,高度表!$A:$C,3,FALSE)) ->  | AY57: =IF(AC57="","",VLOOKUP(AC57,高度表!$A:$C,3,FALSE)) ->  | AZ57: =IF(AD57="","",VLOOKUP(AD57,高度表!$A:$C,3,FALSE)) ->  | BA57: =IF(AE57="","",VLOOKUP(AE57,高度表!$A:$C,3,FALSE)) ->  | BB57: =IF(AF57="","",VLOOKUP(AF57,高度表!$A:$C,3,FALSE)) ->  | BC57: =IF(AG57="","",VLOOKUP(AG57,高度表!$A:$C,3,FALSE)) ->  | BD57: =IF(AH57="","",VLOOKUP(AH57,高度表!$A:$C,3,FALSE)) ->  | BE57: 0.15 | BF57: 0 | BG57: 0.15 | BH57: 0.3 | BQ57: 107000;102003;102003 | BR57: 1.8;0;0 | BS57: 0;3;6 | BT57: 0;0.15;0.3 | BU57: 0;0;0 | BV57: =IF(SUM(IF(N57="",0,IF(VLOOKUP(N57,怪物表!$A:$E,5,FALSE)=3,1,0)),IF(O57="",0,IF(VLOOKUP(O57,怪物表!$A:$E,5,FALSE)=3,1,0)),IF(P57="",0,IF(VLOOKUP(P57,怪物表!$A:$E,5,FALSE)=3,1,0)),IF(Q57="",0,IF(VLOOKUP(Q57,怪物表!$A:$E,5,FALSE)=3,1,0)),IF(R57="",0,IF(VLOOKUP(R57,怪物表!$A:$E,5,FALSE)=3,1,0)),IF(S57="",0,IF(VLOOKUP(S57,怪物表!$A:$E,5,FALSE)=3,1,0)),IF(T57="",0,IF(VLOOKUP(T57,怪物表!$A:$E,5,FALSE)=3,1,0)),IF(U57="",0,IF(VLOOKUP(U57,怪物表!$A:$E,5,FALSE)=3,1,0)),IF(V57="",0,IF(VLOOKUP(V57,怪物表!$A:$E,5,FALSE)=3,1,0)),IF(W57="",0,IF(VLOOKUP(W57,怪物表!$A:$E,5,FALSE)=3,1,0)))>0,180,120)*BW57/100 -> 120 | BW57: 100 | BX57: 100
A58: 100323 | B58: 主线2-3小怪 | N58: 100000 | O58: 100008 | P58: 100000 | Q58: 100008 | R58: 100000 | X58: =SUM(IF(N58="",0,VLOOKUP(N58,怪物表!$A:$D,3,FALSE)),IF(O58="",0,VLOOKUP(O58,怪物表!$A:$D,3,FALSE)),IF(P58="",0,VLOOKUP(P58,怪物表!$A:$D,3,FALSE)),IF(Q58="",0,VLOOKUP(Q58,怪物表!$A:$D,3,FALSE)),IF(R58="",0,VLOOKUP(R58,怪物表!$A:$D,3,FALSE)),IF(S58="",0,VLOOKUP(S58,怪物表!$A:$D,3,FALSE)),IF(T58="",0,VLOOKUP(T58,怪物表!$A:$D,3,FALSE)),IF(U58="",0,VLOOKUP(U58,怪物表!$A:$D,3,FALSE)),IF(V58="",0,VLOOKUP(V58,怪物表!$A:$D,3,FALSE)),IF(W58="",0,VLOOKUP(W58,怪物表!$A:$D,3,FALSE))) -> 10 | Y58: =IF(N58="","",IF(VLOOKUP(N58,怪物表!$A:$D,4,FALSE)=1,2,0)) -> 0 | Z58: =IF(O58="","",IF(VLOOKUP(O58,怪物表!$A:$D,4,FALSE)=1,2,0)) -> 2 | AA58: =IF(P58="","",IF(VLOOKUP(P58,怪物表!$A:$D,4,FALSE)=1,2,0)) -> 0 | AB58: =IF(Q58="","",IF(VLOOKUP(Q58,怪物表!$A:$D,4,FALSE)=1,2,0)) -> 2 | AC58: =IF(R58="","",IF(VLOOKUP(R58,怪物表!$A:$D,4,FALSE)=1,2,0)) -> 0 | AD58: =IF(S58="","",IF(VLOOKUP(S58,怪物表!$A:$D,4,FALSE)=1,2,0)) ->  | AE58: =IF(T58="","",IF(VLOOKUP(T58,怪物表!$A:$D,4,FALSE)=1,2,0)) ->  | AF58: =IF(U58="","",IF(VLOOKUP(U58,怪物表!$A:$D,4,FALSE)=1,2,0)) ->  | AG58: =IF(V58="","",IF(VLOOKUP(V58,怪物表!$A:$D,4,FALSE)=1,2,0)) ->  | AH58: =IF(W58="","",IF(VLOOKUP(W58,怪物表!$A:$D,4,FALSE)=1,2,0)) ->  | AI58: 1.2 | AJ58: 0 | AK58: 1.2 | AL58: 2.4 | AM58: 3.6 | AN58: 4.8 | AU58: =IF(Y58="","",VLOOKUP(Y58,高度表!$A:$C,3,FALSE)) -> 0 | AV58: =IF(Z58="","",VLOOKUP(Z58,高度表!$A:$C,3,FALSE)) -> 1.8 | AW58: =IF(AA58="","",VLOOKUP(AA58,高度表!$A:$C,3,FALSE)) -> 0 | AX58: =IF(AB58="","",VLOOKUP(AB58,高度表!$A:$C,3,FALSE)) -> 1.8 | AY58: =IF(AC58="","",VLOOKUP(AC58,高度表!$A:$C,3,FALSE)) -> 0 | AZ58: =IF(AD58="","",VLOOKUP(AD58,高度表!$A:$C,3,FALSE)) ->  | BA58: =IF(AE58="","",VLOOKUP(AE58,高度表!$A:$C,3,FALSE)) ->  | BB58: =IF(AF58="","",VLOOKUP(AF58,高度表!$A:$C,3,FALSE)) ->  | BC58: =IF(AG58="","",VLOOKUP(AG58,高度表!$A:$C,3,FALSE)) ->  | BD58: =IF(AH58="","",VLOOKUP(AH58,高度表!$A:$C,3,FALSE)) ->  | BE58: 0.15 | BF58: 0 | BG58: 0.15 | BH58: 0.3 | BI58: 0.45 | BJ58: 0.6 | BQ58: 100000;100008;100000;100008;100000 | BR58: 0;1.8;0;1.8;0 | BS58: 0;1.2;2.4;3.6;4.8 | BT58: 0;0.15;0.3;0.45;0.6 | BU58: 0;0;0;0;0 | BV58: =IF(SUM(IF(N58="",0,IF(VLOOKUP(N58,怪物表!$A:$E,5,FALSE)=3,1,0)),IF(O58="",0,IF(VLOOKUP(O58,怪物表!$A:$E,5,FALSE)=3,1,0)),IF(P58="",0,IF(VLOOKUP(P58,怪物表!$A:$E,5,FALSE)=3,1,0)),IF(Q58="",0,IF(VLOOKUP(Q58,怪物表!$A:$E,5,FALSE)=3,1,0)),IF(R58="",0,IF(VLOOKUP(R58,怪物表!$A:$E,5,FALSE)=3,1,0)),IF(S58="",0,IF(VLOOKUP(S58,怪物表!$A:$E,5,FALSE)=3,1,0)),IF(T58="",0,IF(VLOOKUP(T58,怪物表!$A:$E,5,FALSE)=3,1,0)),IF(U58="",0,IF(VLOOKUP(U58,怪物表!$A:$E,5,FALSE)=3,1,0)),IF(V58="",0,IF(VLOOKUP(V58,怪物表!$A:$E,5,FALSE)=3,1,0)),IF(W58="",0,IF(VLOOKUP(W58,怪物表!$A:$E,5,FALSE)=3,1,0)))>0,180,120)*BW58/100 -> 120 | BW58: 100 | BX58: 100
A59: 100324 | B59: 主线2-3小怪 | N59: 200004 | O59: 100003 | P59: 100003 | Q59: 100002 | X59: =SUM(IF(N59="",0,VLOOKUP(N59,怪物表!$A:$D,3,FALSE)),IF(O59="",0,VLOOKUP(O59,怪物表!$A:$D,3,FALSE)),IF(P59="",0,VLOOKUP(P59,怪物表!$A:$D,3,FALSE)),IF(Q59="",0,VLOOKUP(Q59,怪物表!$A:$D,3,FALSE)),IF(R59="",0,VLOOKUP(R59,怪物表!$A:$D,3,FALSE)),IF(S59="",0,VLOOKUP(S59,怪物表!$A:$D,3,FALSE)),IF(T59="",0,VLOOKUP(T59,怪物表!$A:$D,3,FALSE)),IF(U59="",0,VLOOKUP(U59,怪物表!$A:$D,3,FALSE)),IF(V59="",0,VLOOKUP(V59,怪物表!$A:$D,3,FALSE)),IF(W59="",0,VLOOKUP(W59,怪物表!$A:$D,3,FALSE))) -> 13 | Y59: =IF(N59="","",IF(VLOOKUP(N59,怪物表!$A:$D,4,FALSE)=1,2,0)) -> 0 | Z59: =IF(O59="","",IF(VLOOKUP(O59,怪物表!$A:$D,4,FALSE)=1,2,0)) -> 0 | AA59: =IF(P59="","",IF(VLOOKUP(P59,怪物表!$A:$D,4,FALSE)=1,2,0)) -> 0 | AB59: =IF(Q59="","",IF(VLOOKUP(Q59,怪物表!$A:$D,4,FALSE)=1,2,0)) -> 0 | AC59: =IF(R59="","",IF(VLOOKUP(R59,怪物表!$A:$D,4,FALSE)=1,2,0)) ->  | AD59: =IF(S59="","",IF(VLOOKUP(S59,怪物表!$A:$D,4,FALSE)=1,2,0)) ->  | AE59: =IF(T59="","",IF(VLOOKUP(T59,怪物表!$A:$D,4,FALSE)=1,2,0)) ->  | AF59: =IF(U59="","",IF(VLOOKUP(U59,怪物表!$A:$D,4,FALSE)=1,2,0)) ->  | AG59: =IF(V59="","",IF(VLOOKUP(V59,怪物表!$A:$D,4,FALSE)=1,2,0)) ->  | AH59: =IF(W59="","",IF(VLOOKUP(W59,怪物表!$A:$D,4,FALSE)=1,2,0)) ->  | AI59: 2 | AJ59: 0 | AK59: 2 | AL59: 4 | AM59: 6 | AU59: =IF(Y59="","",VLOOKUP(Y59,高度表!$A:$C,3,FALSE)) -> 0 | AV59: =IF(Z59="","",VLOOKUP(Z59,高度表!$A:$C,3,FALSE)) -> 0 | AW59: =IF(AA59="","",VLOOKUP(AA59,高度表!$A:$C,3,FALSE)) -> 0 | AX59: =IF(AB59="","",VLOOKUP(AB59,高度表!$A:$C,3,FALSE)) -> 0 | AY59: =IF(AC59="","",VLOOKUP(AC59,高度表!$A:$C,3,FALSE)) ->  | AZ59: =IF(AD59="","",VLOOKUP(AD59,高度表!$A:$C,3,FALSE)) ->  | BA59: =IF(AE59="","",VLOOKUP(AE59,高度表!$A:$C,3,FALSE)) ->  | BB59: =IF(AF59="","",VLOOKUP(AF59,高度表!$A:$C,3,FALSE)) ->  | BC59: =IF(AG59="","",VLOOKUP(AG59,高度表!$A:$C,3,FALSE)) ->  | BD59: =IF(AH59="","",VLOOKUP(AH59,高度表!$A:$C,3,FALSE)) ->  | BE59: 0.15 | BF59: 0 | BG59: 0.15 | BH59: 0.3 | BI59: 0.45 | BQ59: 200004;100003;100003;100002 | BR59: 0;0;0;0 | BS59: 0;2;4;6 | BT59: 0;0.15;0.3;0.45 | BU59: 0;0;0;0 | BV59: =IF(SUM(IF(N59="",0,IF(VLOOKUP(N59,怪物表!$A:$E,5,FALSE)=3,1,0)),IF(O59="",0,IF(VLOOKUP(O59,怪物表!$A:$E,5,FALSE)=3,1,0)),IF(P59="",0,IF(VLOOKUP(P59,怪物表!$A:$E,5,FALSE)=3,1,0)),IF(Q59="",0,IF(VLOOKUP(Q59,怪物表!$A:$E,5,FALSE)=3,1,0)),IF(R59="",0,IF(VLOOKUP(R59,怪物表!$A:$E,5,FALSE)=3,1,0)),IF(S59="",0,IF(VLOOKUP(S59,怪物表!$A:$E,5,FALSE)=3,1,0)),IF(T59="",0,IF(VLOOKUP(T59,怪物表!$A:$E,5,FALSE)=3,1,0)),IF(U59="",0,IF(VLOOKUP(U59,怪物表!$A:$E,5,FALSE)=3,1,0)),IF(V59="",0,IF(VLOOKUP(V59,怪物表!$A:$E,5,FALSE)=3,1,0)),IF(W59="",0,IF(VLOOKUP(W59,怪物表!$A:$E,5,FALSE)=3,1,0)))>0,180,120)*BW59/100 -> 120 | BW59: 100 | BX59: 100
A60: 100325 | B60: 主线2-3小怪 | N60: 100004 | O60: 100010 | P60: 100000 | Q60: 100000 | R60: 100010 | S60: 100000 | X60: =SUM(IF(N60="",0,VLOOKUP(N60,怪物表!$A:$D,3,FALSE)),IF(O60="",0,VLOOKUP(O60,怪物表!$A:$D,3,FALSE)),IF(P60="",0,VLOOKUP(P60,怪物表!$A:$D,3,FALSE)),IF(Q60="",0,VLOOKUP(Q60,怪物表!$A:$D,3,FALSE)),IF(R60="",0,VLOOKUP(R60,怪物表!$A:$D,3,FALSE)),IF(S60="",0,VLOOKUP(S60,怪物表!$A:$D,3,FALSE)),IF(T60="",0,VLOOKUP(T60,怪物表!$A:$D,3,FALSE)),IF(U60="",0,VLOOKUP(U60,怪物表!$A:$D,3,FALSE)),IF(V60="",0,VLOOKUP(V60,怪物表!$A:$D,3,FALSE)),IF(W60="",0,VLOOKUP(W60,怪物表!$A:$D,3,FALSE))) -> 12 | Y60: =IF(N60="","",IF(VLOOKUP(N60,怪物表!$A:$D,4,FALSE)=1,2,0)) -> 0 | Z60: =IF(O60="","",IF(VLOOKUP(O60,怪物表!$A:$D,4,FALSE)=1,2,0)) -> 2 | AA60: =IF(P60="","",IF(VLOOKUP(P60,怪物表!$A:$D,4,FALSE)=1,2,0)) -> 0 | AB60: =IF(Q60="","",IF(VLOOKUP(Q60,怪物表!$A:$D,4,FALSE)=1,2,0)) -> 0 | AC60: =IF(R60="","",IF(VLOOKUP(R60,怪物表!$A:$D,4,FALSE)=1,2,0)) -> 2 | AD60: =IF(S60="","",IF(VLOOKUP(S60,怪物表!$A:$D,4,FALSE)=1,2,0)) -> 0 | AE60: =IF(T60="","",IF(VLOOKUP(T60,怪物表!$A:$D,4,FALSE)=1,2,0)) ->  | AF60: =IF(U60="","",IF(VLOOKUP(U60,怪物表!$A:$D,4,FALSE)=1,2,0)) ->  | AG60: =IF(V60="","",IF(VLOOKUP(V60,怪物表!$A:$D,4,FALSE)=1,2,0)) ->  | AH60: =IF(W60="","",IF(VLOOKUP(W60,怪物表!$A:$D,4,FALSE)=1,2,0)) ->  | AI60: 1.2 | AJ60: 0 | AK60: 1.2 | AL60: 2.4 | AM60: 3.6 | AN60: 4.8 | AO60: 6 | AU60: =IF(Y60="","",VLOOKUP(Y60,高度表!$A:$C,3,FALSE)) -> 0 | AV60: =IF(Z60="","",VLOOKUP(Z60,高度表!$A:$C,3,FALSE)) -> 1.8 | AW60: =IF(AA60="","",VLOOKUP(AA60,高度表!$A:$C,3,FALSE)) -> 0 | AX60: =IF(AB60="","",VLOOKUP(AB60,高度表!$A:$C,3,FALSE)) -> 0 | AY60: =IF(AC60="","",VLOOKUP(AC60,高度表!$A:$C,3,FALSE)) -> 1.8 | AZ60: =IF(AD60="","",VLOOKUP(AD60,高度表!$A:$C,3,FALSE)) -> 0 | BA60: =IF(AE60="","",VLOOKUP(AE60,高度表!$A:$C,3,FALSE)) ->  | BB60: =IF(AF60="","",VLOOKUP(AF60,高度表!$A:$C,3,FALSE)) ->  | BC60: =IF(AG60="","",VLOOKUP(AG60,高度表!$A:$C,3,FALSE)) ->  | BD60: =IF(AH60="","",VLOOKUP(AH60,高度表!$A:$C,3,FALSE)) ->  | BE60: 0.15 | BF60: 0 | BG60: 0.15 | BH60: 0.3 | BI60: 0.45 | BJ60: 0.6 | BK60: 0.75 | BQ60: 100004;100010;100000;100000;100010;100000 | BR60: 0;1.8;0;0;1.8;0 | BS60: 0;1.2;2.4;3.6;4.8;6 | BT60: 0;0.15;0.3;0.45;0.6;0.75 | BU60: 0;0;0;0;0;0 | BV60: =IF(SUM(IF(N60="",0,IF(VLOOKUP(N60,怪物表!$A:$E,5,FALSE)=3,1,0)),IF(O60="",0,IF(VLOOKUP(O60,怪物表!$A:$E,5,FALSE)=3,1,0)),IF(P60="",0,IF(VLOOKUP(P60,怪物表!$A:$E,5,FALSE)=3,1,0)),IF(Q60="",0,IF(VLOOKUP(Q60,怪物表!$A:$E,5,FALSE)=3,1,0)),IF(R60="",0,IF(VLOOKUP(R60,怪物表!$A:$E,5,FALSE)=3,1,0)),IF(S60="",0,IF(VLOOKUP(S60,怪物表!$A:$E,5,FALSE)=3,1,0)),IF(T60="",0,IF(VLOOKUP(T60,怪物表!$A:$E,5,FALSE)=3,1,0)),IF(U60="",0,IF(VLOOKUP(U60,怪物表!$A:$E,5,FALSE)=3,1,0)),IF(V60="",0,IF(VLOOKUP(V60,怪物表!$A:$E,5,FALSE)=3,1,0)),IF(W60="",0,IF(VLOOKUP(W60,怪物表!$A:$E,5,FALSE)=3,1,0)))>0,180,120)*BW60/100 -> 120 | BW60: 100 | BX60: 100
A61: 100326 | B61: 主线2-3BOSS | N61: 108000 | O61: 106002 | P61: 100001 | Q61: 100001 | X61: =SUM(IF(N61="",0,VLOOKUP(N61,怪物表!$A:$D,3,FALSE)),IF(O61="",0,VLOOKUP(O61,怪物表!$A:$D,3,FALSE)),IF(P61="",0,VLOOKUP(P61,怪物表!$A:$D,3,FALSE)),IF(Q61="",0,VLOOKUP(Q61,怪物表!$A:$D,3,FALSE)),IF(R61="",0,VLOOKUP(R61,怪物表!$A:$D,3,FALSE)),IF(S61="",0,VLOOKUP(S61,怪物表!$A:$D,3,FALSE)),IF(T61="",0,VLOOKUP(T61,怪物表!$A:$D,3,FALSE)),IF(U61="",0,VLOOKUP(U61,怪物表!$A:$D,3,FALSE)),IF(V61="",0,VLOOKUP(V61,怪物表!$A:$D,3,FALSE)),IF(W61="",0,VLOOKUP(W61,怪物表!$A:$D,3,FALSE))) -> 18 | Y61: =IF(N61="","",IF(VLOOKUP(N61,怪物表!$A:$D,4,FALSE)=1,2,0)) -> 0 | Z61: =IF(O61="","",IF(VLOOKUP(O61,怪物表!$A:$D,4,FALSE)=1,2,0)) -> 0 | AA61: =IF(P61="","",IF(VLOOKUP(P61,怪物表!$A:$D,4,FALSE)=1,2,0)) -> 0 | AB61: =IF(Q61="","",IF(VLOOKUP(Q61,怪物表!$A:$D,4,FALSE)=1,2,0)) -> 0 | AC61: =IF(R61="","",IF(VLOOKUP(R61,怪物表!$A:$D,4,FALSE)=1,2,0)) ->  | AD61: =IF(S61="","",IF(VLOOKUP(S61,怪物表!$A:$D,4,FALSE)=1,2,0)) ->  | AE61: =IF(T61="","",IF(VLOOKUP(T61,怪物表!$A:$D,4,FALSE)=1,2,0)) ->  | AF61: =IF(U61="","",IF(VLOOKUP(U61,怪物表!$A:$D,4,FALSE)=1,2,0)) ->  | AG61: =IF(V61="","",IF(VLOOKUP(V61,怪物表!$A:$D,4,FALSE)=1,2,0)) ->  | AH61: =IF(W61="","",IF(VLOOKUP(W61,怪物表!$A:$D,4,FALSE)=1,2,0)) ->  | AI61: 1.2 | AJ61: 0 | AK61: 1.2 | AL61: 2.4 | AM61: 3.6 | AU61: =IF(Y61="","",VLOOKUP(Y61,高度表!$A:$C,3,FALSE)) -> 0 | AV61: =IF(Z61="","",VLOOKUP(Z61,高度表!$A:$C,3,FALSE)) -> 0 | AW61: =IF(AA61="","",VLOOKUP(AA61,高度表!$A:$C,3,FALSE)) -> 0 | AX61: =IF(AB61="","",VLOOKUP(AB61,高度表!$A:$C,3,FALSE)) -> 0 | AY61: =IF(AC61="","",VLOOKUP(AC61,高度表!$A:$C,3,FALSE)) ->  | AZ61: =IF(AD61="","",VLOOKUP(AD61,高度表!$A:$C,3,FALSE)) ->  | BA61: =IF(AE61="","",VLOOKUP(AE61,高度表!$A:$C,3,FALSE)) ->  | BB61: =IF(AF61="","",VLOOKUP(AF61,高度表!$A:$C,3,FALSE)) ->  | BC61: =IF(AG61="","",VLOOKUP(AG61,高度表!$A:$C,3,FALSE)) ->  | BD61: =IF(AH61="","",VLOOKUP(AH61,高度表!$A:$C,3,FALSE)) ->  | BE61: 0.15 | BF61: 0 | BG61: 0.15 | BH61: 0.3 | BI61: 0.45 | BQ61: 108000;106002;100001;100001 | BR61: 0;0;0;0 | BS61: 0;1.2;2.4;3.6 | BT61: 0;0.15;0.3;0.45 | BU61: 0;0;0;0 | BV61: =IF(SUM(IF(N61="",0,IF(VLOOKUP(N61,怪物表!$A:$E,5,FALSE)=3,1,0)),IF(O61="",0,IF(VLOOKUP(O61,怪物表!$A:$E,5,FALSE)=3,1,0)),IF(P61="",0,IF(VLOOKUP(P61,怪物表!$A:$E,5,FALSE)=3,1,0)),IF(Q61="",0,IF(VLOOKUP(Q61,怪物表!$A:$E,5,FALSE)=3,1,0)),IF(R61="",0,IF(VLOOKUP(R61,怪物表!$A:$E,5,FALSE)=3,1,0)),IF(S61="",0,IF(VLOOKUP(S61,怪物表!$A:$E,5,FALSE)=3,1,0)),IF(T61="",0,IF(VLOOKUP(T61,怪物表!$A:$E,5,FALSE)=3,1,0)),IF(U61="",0,IF(VLOOKUP(U61,怪物表!$A:$E,5,FALSE)=3,1,0)),IF(V61="",0,IF(VLOOKUP(V61,怪物表!$A:$E,5,FALSE)=3,1,0)),IF(W61="",0,IF(VLOOKUP(W61,怪物表!$A:$E,5,FALSE)=3,1,0)))>0,180,120)*BW61/100 -> 120 | BW61: 100 | BX61: 100
A62: 100327 | B62: 主线2-4小怪 | N62: 105000 | O62: 103000 | P62: 100009 | Q62: 103000 | R62: 105000 | S62: 103000 | X62: =SUM(IF(N62="",0,VLOOKUP(N62,怪物表!$A:$D,3,FALSE)),IF(O62="",0,VLOOKUP(O62,怪物表!$A:$D,3,FALSE)),IF(P62="",0,VLOOKUP(P62,怪物表!$A:$D,3,FALSE)),IF(Q62="",0,VLOOKUP(Q62,怪物表!$A:$D,3,FALSE)),IF(R62="",0,VLOOKUP(R62,怪物表!$A:$D,3,FALSE)),IF(S62="",0,VLOOKUP(S62,怪物表!$A:$D,3,FALSE)),IF(T62="",0,VLOOKUP(T62,怪物表!$A:$D,3,FALSE)),IF(U62="",0,VLOOKUP(U62,怪物表!$A:$D,3,FALSE)),IF(V62="",0,VLOOKUP(V62,怪物表!$A:$D,3,FALSE)),IF(W62="",0,VLOOKUP(W62,怪物表!$A:$D,3,FALSE))) -> 12 | Y62: =IF(N62="","",IF(VLOOKUP(N62,怪物表!$A:$D,4,FALSE)=1,2,0)) -> 0 | Z62: =IF(O62="","",IF(VLOOKUP(O62,怪物表!$A:$D,4,FALSE)=1,2,0)) -> 2 | AA62: =IF(P62="","",IF(VLOOKUP(P62,怪物表!$A:$D,4,FALSE)=1,2,0)) -> 2 | AB62: =IF(Q62="","",IF(VLOOKUP(Q62,怪物表!$A:$D,4,FALSE)=1,2,0)) -> 2 | AC62: =IF(R62="","",IF(VLOOKUP(R62,怪物表!$A:$D,4,FALSE)=1,2,0)) -> 0 | AD62: =IF(S62="","",IF(VLOOKUP(S62,怪物表!$A:$D,4,FALSE)=1,2,0)) -> 2 | AE62: =IF(T62="","",IF(VLOOKUP(T62,怪物表!$A:$D,4,FALSE)=1,2,0)) ->  | AF62: =IF(U62="","",IF(VLOOKUP(U62,怪物表!$A:$D,4,FALSE)=1,2,0)) ->  | AG62: =IF(V62="","",IF(VLOOKUP(V62,怪物表!$A:$D,4,FALSE)=1,2,0)) ->  | AH62: =IF(W62="","",IF(VLOOKUP(W62,怪物表!$A:$D,4,FALSE)=1,2,0)) ->  | AI62: 1.2 | AJ62: 0 | AK62: 1.2 | AL62: 2.4 | AM62: 3.6 | AN62: 4.8 | AO62: 6 | AU62: =IF(Y62="","",VLOOKUP(Y62,高度表!$A:$C,3,FALSE)) -> 0 | AV62: =IF(Z62="","",VLOOKUP(Z62,高度表!$A:$C,3,FALSE)) -> 1.8 | AW62: =IF(AA62="","",VLOOKUP(AA62,高度表!$A:$C,3,FALSE)) -> 1.8 | AX62: =IF(AB62="","",VLOOKUP(AB62,高度表!$A:$C,3,FALSE)) -> 1.8 | AY62: =IF(AC62="","",VLOOKUP(AC62,高度表!$A:$C,3,FALSE)) -> 0 | AZ62: =IF(AD62="","",VLOOKUP(AD62,高度表!$A:$C,3,FALSE)) -> 1.8 | BA62: =IF(AE62="","",VLOOKUP(AE62,高度表!$A:$C,3,FALSE)) ->  | BB62: =IF(AF62="","",VLOOKUP(AF62,高度表!$A:$C,3,FALSE)) ->  | BC62: =IF(AG62="","",VLOOKUP(AG62,高度表!$A:$C,3,FALSE)) ->  | BD62: =IF(AH62="","",VLOOKUP(AH62,高度表!$A:$C,3,FALSE)) ->  | BE62: 0.15 | BF62: 0 | BG62: 0.15 | BH62: 0.3 | BI62: 0.45 | BJ62: 0.6 | BK62: 0.75 | BQ62: 105000;103000;100009;103000;105000;103000 | BR62: 0;1.8;1.8;1.8;0;1.8 | BS62: 0;1.2;2.4;3.6;4.8;6 | BT62: 0;0.15;0.3;0.45;0.6;0.75 | BU62: 0;0;0;0;0;0 | BV62: =IF(SUM(IF(N62="",0,IF(VLOOKUP(N62,怪物表!$A:$E,5,FALSE)=3,1,0)),IF(O62="",0,IF(VLOOKUP(O62,怪物表!$A:$E,5,FALSE)=3,1,0)),IF(P62="",0,IF(VLOOKUP(P62,怪物表!$A:$E,5,FALSE)=3,1,0)),IF(Q62="",0,IF(VLOOKUP(Q62,怪物表!$A:$E,5,FALSE)=3,1,0)),IF(R62="",0,IF(VLOOKUP(R62,怪物表!$A:$E,5,FALSE)=3,1,0)),IF(S62="",0,IF(VLOOKUP(S62,怪物表!$A:$E,5,FALSE)=3,1,0)),IF(T62="",0,IF(VLOOKUP(T62,怪物表!$A:$E,5,FALSE)=3,1,0)),IF(U62="",0,IF(VLOOKUP(U62,怪物表!$A:$E,5,FALSE)=3,1,0)),IF(V62="",0,IF(VLOOKUP(V62,怪物表!$A:$E,5,FALSE)=3,1,0)),IF(W62="",0,IF(VLOOKUP(W62,怪物表!$A:$E,5,FALSE)=3,1,0)))>0,180,120)*BW62/100 -> 120 | BW62: 100 | BX62: 100
A63: 100328 | B63: 主线2-4小怪 | N63: 100004 | O63: 103000 | P63: 100009 | Q63: 103000 | R63: 103000 | S63: 105000 | X63: =SUM(IF(N63="",0,VLOOKUP(N63,怪物表!$A:$D,3,FALSE)),IF(O63="",0,VLOOKUP(O63,怪物表!$A:$D,3,FALSE)),IF(P63="",0,VLOOKUP(P63,怪物表!$A:$D,3,FALSE)),IF(Q63="",0,VLOOKUP(Q63,怪物表!$A:$D,3,FALSE)),IF(R63="",0,VLOOKUP(R63,怪物表!$A:$D,3,FALSE)),IF(S63="",0,VLOOKUP(S63,怪物表!$A:$D,3,FALSE)),IF(T63="",0,VLOOKUP(T63,怪物表!$A:$D,3,FALSE)),IF(U63="",0,VLOOKUP(U63,怪物表!$A:$D,3,FALSE)),IF(V63="",0,VLOOKUP(V63,怪物表!$A:$D,3,FALSE)),IF(W63="",0,VLOOKUP(W63,怪物表!$A:$D,3,FALSE))) -> 12 | Y63: =IF(N63="","",IF(VLOOKUP(N63,怪物表!$A:$D,4,FALSE)=1,2,0)) -> 0 | Z63: =IF(O63="","",IF(VLOOKUP(O63,怪物表!$A:$D,4,FALSE)=1,2,0)) -> 2 | AA63: =IF(P63="","",IF(VLOOKUP(P63,怪物表!$A:$D,4,FALSE)=1,2,0)) -> 2 | AB63: =IF(Q63="","",IF(VLOOKUP(Q63,怪物表!$A:$D,4,FALSE)=1,2,0)) -> 2 | AC63: =IF(R63="","",IF(VLOOKUP(R63,怪物表!$A:$D,4,FALSE)=1,2,0)) -> 2 | AD63: =IF(S63="","",IF(VLOOKUP(S63,怪物表!$A:$D,4,FALSE)=1,2,0)) -> 0 | AE63: =IF(T63="","",IF(VLOOKUP(T63,怪物表!$A:$D,4,FALSE)=1,2,0)) ->  | AF63: =IF(U63="","",IF(VLOOKUP(U63,怪物表!$A:$D,4,FALSE)=1,2,0)) ->  | AG63: =IF(V63="","",IF(VLOOKUP(V63,怪物表!$A:$D,4,FALSE)=1,2,0)) ->  | AH63: =IF(W63="","",IF(VLOOKUP(W63,怪物表!$A:$D,4,FALSE)=1,2,0)) ->  | AI63: 1.2 | AJ63: 0 | AK63: 1.2 | AL63: 2.4 | AM63: 3.6 | AN63: 4.8 | AO63: 6 | AU63: =IF(Y63="","",VLOOKUP(Y63,高度表!$A:$C,3,FALSE)) -> 0 | AV63: =IF(Z63="","",VLOOKUP(Z63,高度表!$A:$C,3,FALSE)) -> 1.8 | AW63: =IF(AA63="","",VLOOKUP(AA63,高度表!$A:$C,3,FALSE)) -> 1.8 | AX63: =IF(AB63="","",VLOOKUP(AB63,高度表!$A:$C,3,FALSE)) -> 1.8 | AY63: =IF(AC63="","",VLOOKUP(AC63,高度表!$A:$C,3,FALSE)) -> 1.8 | AZ63: =IF(AD63="","",VLOOKUP(AD63,高度表!$A:$C,3,FALSE)) -> 0 | BA63: =IF(AE63="","",VLOOKUP(AE63,高度表!$A:$C,3,FALSE)) ->  | BB63: =IF(AF63="","",VLOOKUP(AF63,高度表!$A:$C,3,FALSE)) ->  | BC63: =IF(AG63="","",VLOOKUP(AG63,高度表!$A:$C,3,FALSE)) ->  | BD63: =IF(AH63="","",VLOOKUP(AH63,高度表!$A:$C,3,FALSE)) ->  | BE63: 0.15 | BF63: 0 | BG63: 0.15 | BH63: 0.3 | BI63: 0.45 | BJ63: 0.6 | BK63: 0.75 | BQ63: 100004;103000;100009;103000;103000;105000 | BR63: 0;1.8;1.8;1.8;1.8;0 | BS63: 0;1.2;2.4;3.6;4.8;6 | BT63: 0;0.15;0.3;0.45;0.6;0.75 | BU63: 0;0;0;0;0;0 | BV63: =IF(SUM(IF(N63="",0,IF(VLOOKUP(N63,怪物表!$A:$E,5,FALSE)=3,1,0)),IF(O63="",0,IF(VLOOKUP(O63,怪物表!$A:$E,5,FALSE)=3,1,0)),IF(P63="",0,IF(VLOOKUP(P63,怪物表!$A:$E,5,FALSE)=3,1,0)),IF(Q63="",0,IF(VLOOKUP(Q63,怪物表!$A:$E,5,FALSE)=3,1,0)),IF(R63="",0,IF(VLOOKUP(R63,怪物表!$A:$E,5,FALSE)=3,1,0)),IF(S63="",0,IF(VLOOKUP(S63,怪物表!$A:$E,5,FALSE)=3,1,0)),IF(T63="",0,IF(VLOOKUP(T63,怪物表!$A:$E,5,FALSE)=3,1,0)),IF(U63="",0,IF(VLOOKUP(U63,怪物表!$A:$E,5,FALSE)=3,1,0)),IF(V63="",0,IF(VLOOKUP(V63,怪物表!$A:$E,5,FALSE)=3,1,0)),IF(W63="",0,IF(VLOOKUP(W63,怪物表!$A:$E,5,FALSE)=3,1,0)))>0,180,120)*BW63/100 -> 120 | BW63: 100 | BX63: 100
A64: 100329 | B64: 主线2-4小怪 | N64: 205000 | O64: 105000 | P64: 100009 | X64: =SUM(IF(N64="",0,VLOOKUP(N64,怪物表!$A:$D,3,FALSE)),IF(O64="",0,VLOOKUP(O64,怪物表!$A:$D,3,FALSE)),IF(P64="",0,VLOOKUP(P64,怪物表!$A:$D,3,FALSE)),IF(Q64="",0,VLOOKUP(Q64,怪物表!$A:$D,3,FALSE)),IF(R64="",0,VLOOKUP(R64,怪物表!$A:$D,3,FALSE)),IF(S64="",0,VLOOKUP(S64,怪物表!$A:$D,3,FALSE)),IF(T64="",0,VLOOKUP(T64,怪物表!$A:$D,3,FALSE)),IF(U64="",0,VLOOKUP(U64,怪物表!$A:$D,3,FALSE)),IF(V64="",0,VLOOKUP(V64,怪物表!$A:$D,3,FALSE)),IF(W64="",0,VLOOKUP(W64,怪物表!$A:$D,3,FALSE))) -> 12 | Y64: =IF(N64="","",IF(VLOOKUP(N64,怪物表!$A:$D,4,FALSE)=1,2,0)) -> 0 | Z64: =IF(O64="","",IF(VLOOKUP(O64,怪物表!$A:$D,4,FALSE)=1,2,0)) -> 0 | AA64: =IF(P64="","",IF(VLOOKUP(P64,怪物表!$A:$D,4,FALSE)=1,2,0)) -> 2 | AB64: =IF(Q64="","",IF(VLOOKUP(Q64,怪物表!$A:$D,4,FALSE)=1,2,0)) ->  | AC64: =IF(R64="","",IF(VLOOKUP(R64,怪物表!$A:$D,4,FALSE)=1,2,0)) ->  | AD64: =IF(S64="","",IF(VLOOKUP(S64,怪物表!$A:$D,4,FALSE)=1,2,0)) ->  | AE64: =IF(T64="","",IF(VLOOKUP(T64,怪物表!$A:$D,4,FALSE)=1,2,0)) ->  | AF64: =IF(U64="","",IF(VLOOKUP(U64,怪物表!$A:$D,4,FALSE)=1,2,0)) ->  | AG64: =IF(V64="","",IF(VLOOKUP(V64,怪物表!$A:$D,4,FALSE)=1,2,0)) ->  | AH64: =IF(W64="","",IF(VLOOKUP(W64,怪物表!$A:$D,4,FALSE)=1,2,0)) ->  | AI64: 1.2 | AJ64: 0 | AK64: 1.2 | AL64: 2.4 | AU64: =IF(Y64="","",VLOOKUP(Y64,高度表!$A:$C,3,FALSE)) -> 0 | AV64: =IF(Z64="","",VLOOKUP(Z64,高度表!$A:$C,3,FALSE)) -> 0 | AW64: =IF(AA64="","",VLOOKUP(AA64,高度表!$A:$C,3,FALSE)) -> 1.8 | AX64: =IF(AB64="","",VLOOKUP(AB64,高度表!$A:$C,3,FALSE)) ->  | AY64: =IF(AC64="","",VLOOKUP(AC64,高度表!$A:$C,3,FALSE)) ->  | AZ64: =IF(AD64="","",VLOOKUP(AD64,高度表!$A:$C,3,FALSE)) ->  | BA64: =IF(AE64="","",VLOOKUP(AE64,高度表!$A:$C,3,FALSE)) ->  | BB64: =IF(AF64="","",VLOOKUP(AF64,高度表!$A:$C,3,FALSE)) ->  | BC64: =IF(AG64="","",VLOOKUP(AG64,高度表!$A:$C,3,FALSE)) ->  | BD64: =IF(AH64="","",VLOOKUP(AH64,高度表!$A:$C,3,FALSE)) ->  | BE64: 0.15 | BF64: 0 | BG64: 0.15 | BH64: 0.3 | BQ64: 205000;105000;100009 | BR64: 0;0;1.8 | BS64: 0;1.2;2.4 | BT64: 0;0.15;0.3 | BU64: 0;0;0 | BV64: =IF(SUM(IF(N64="",0,IF(VLOOKUP(N64,怪物表!$A:$E,5,FALSE)=3,1,0)),IF(O64="",0,IF(VLOOKUP(O64,怪物表!$A:$E,5,FALSE)=3,1,0)),IF(P64="",0,IF(VLOOKUP(P64,怪物表!$A:$E,5,FALSE)=3,1,0)),IF(Q64="",0,IF(VLOOKUP(Q64,怪物表!$A:$E,5,FALSE)=3,1,0)),IF(R64="",0,IF(VLOOKUP(R64,怪物表!$A:$E,5,FALSE)=3,1,0)),IF(S64="",0,IF(VLOOKUP(S64,怪物表!$A:$E,5,FALSE)=3,1,0)),IF(T64="",0,IF(VLOOKUP(T64,怪物表!$A:$E,5,FALSE)=3,1,0)),IF(U64="",0,IF(VLOOKUP(U64,怪物表!$A:$E,5,FALSE)=3,1,0)),IF(V64="",0,IF(VLOOKUP(V64,怪物表!$A:$E,5,FALSE)=3,1,0)),IF(W64="",0,IF(VLOOKUP(W64,怪物表!$A:$E,5,FALSE)=3,1,0)))>0,180,120)*BW64/100 -> 120 | BW64: 100 | BX64: 100
A65: 100330 | B65: 主线2-4小怪 | N65: 200004 | O65: 103000 | P65: 100009 | Q65: 103000 | X65: =SUM(IF(N65="",0,VLOOKUP(N65,怪物表!$A:$D,3,FALSE)),IF(O65="",0,VLOOKUP(O65,怪物表!$A:$D,3,FALSE)),IF(P65="",0,VLOOKUP(P65,怪物表!$A:$D,3,FALSE)),IF(Q65="",0,VLOOKUP(Q65,怪物表!$A:$D,3,FALSE)),IF(R65="",0,VLOOKUP(R65,怪物表!$A:$D,3,FALSE)),IF(S65="",0,VLOOKUP(S65,怪物表!$A:$D,3,FALSE)),IF(T65="",0,VLOOKUP(T65,怪物表!$A:$D,3,FALSE)),IF(U65="",0,VLOOKUP(U65,怪物表!$A:$D,3,FALSE)),IF(V65="",0,VLOOKUP(V65,怪物表!$A:$D,3,FALSE)),IF(W65="",0,VLOOKUP(W65,怪物表!$A:$D,3,FALSE))) -> 13 | Y65: =IF(N65="","",IF(VLOOKUP(N65,怪物表!$A:$D,4,FALSE)=1,2,0)) -> 0 | Z65: =IF(O65="","",IF(VLOOKUP(O65,怪物表!$A:$D,4,FALSE)=1,2,0)) -> 2 | AA65: =IF(P65="","",IF(VLOOKUP(P65,怪物表!$A:$D,4,FALSE)=1,2,0)) -> 2 | AB65: =IF(Q65="","",IF(VLOOKUP(Q65,怪物表!$A:$D,4,FALSE)=1,2,0)) -> 2 | AC65: =IF(R65="","",IF(VLOOKUP(R65,怪物表!$A:$D,4,FALSE)=1,2,0)) ->  | AD65: =IF(S65="","",IF(VLOOKUP(S65,怪物表!$A:$D,4,FALSE)=1,2,0)) ->  | AE65: =IF(T65="","",IF(VLOOKUP(T65,怪物表!$A:$D,4,FALSE)=1,2,0)) ->  | AF65: =IF(U65="","",IF(VLOOKUP(U65,怪物表!$A:$D,4,FALSE)=1,2,0)) ->  | AG65: =IF(V65="","",IF(VLOOKUP(V65,怪物表!$A:$D,4,FALSE)=1,2,0)) ->  | AH65: =IF(W65="","",IF(VLOOKUP(W65,怪物表!$A:$D,4,FALSE)=1,2,0)) ->  | AI65: 1.2 | AJ65: 0 | AK65: 1.2 | AL65: 2.4 | AM65: 3.6 | AU65: =IF(Y65="","",VLOOKUP(Y65,高度表!$A:$C,3,FALSE)) -> 0 | AV65: =IF(Z65="","",VLOOKUP(Z65,高度表!$A:$C,3,FALSE)) -> 1.8 | AW65: =IF(AA65="","",VLOOKUP(AA65,高度表!$A:$C,3,FALSE)) -> 1.8 | AX65: =IF(AB65="","",VLOOKUP(AB65,高度表!$A:$C,3,FALSE)) -> 1.8 | AY65: =IF(AC65="","",VLOOKUP(AC65,高度表!$A:$C,3,FALSE)) ->  | AZ65: =IF(AD65="","",VLOOKUP(AD65,高度表!$A:$C,3,FALSE)) ->  | BA65: =IF(AE65="","",VLOOKUP(AE65,高度表!$A:$C,3,FALSE)) ->  | BB65: =IF(AF65="","",VLOOKUP(AF65,高度表!$A:$C,3,FALSE)) ->  | BC65: =IF(AG65="","",VLOOKUP(AG65,高度表!$A:$C,3,FALSE)) ->  | BD65: =IF(AH65="","",VLOOKUP(AH65,高度表!$A:$C,3,FALSE)) ->  | BE65: 0.15 | BF65: 0 | BG65: 0.15 | BH65: 0.3 | BI65: 0.45 | BQ65: 200004;103000;100009;103000 | BR65: 0;1.8;1.8;1.8 | BS65: 0;1.2;2.4;3.6 | BT65: 0;0.15;0.3;0.45 | BU65: 0;0;0;0 | BV65: =IF(SUM(IF(N65="",0,IF(VLOOKUP(N65,怪物表!$A:$E,5,FALSE)=3,1,0)),IF(O65="",0,IF(VLOOKUP(O65,怪物表!$A:$E,5,FALSE)=3,1,0)),IF(P65="",0,IF(VLOOKUP(P65,怪物表!$A:$E,5,FALSE)=3,1,0)),IF(Q65="",0,IF(VLOOKUP(Q65,怪物表!$A:$E,5,FALSE)=3,1,0)),IF(R65="",0,IF(VLOOKUP(R65,怪物表!$A:$E,5,FALSE)=3,1,0)),IF(S65="",0,IF(VLOOKUP(S65,怪物表!$A:$E,5,FALSE)=3,1,0)),IF(T65="",0,IF(VLOOKUP(T65,怪物表!$A:$E,5,FALSE)=3,1,0)),IF(U65="",0,IF(VLOOKUP(U65,怪物表!$A:$E,5,FALSE)=3,1,0)),IF(V65="",0,IF(VLOOKUP(V65,怪物表!$A:$E,5,FALSE)=3,1,0)),IF(W65="",0,IF(VLOOKUP(W65,怪物表!$A:$E,5,FALSE)=3,1,0)))>0,180,120)*BW65/100 -> 120 | BW65: 100 | BX65: 100
A66: 100331 | B66: 主线2-4BOSS1 | N66: 100004 | O66: 100003 | P66: 100003 | Q66: 100002 | R66: 100002 | S66: 106000 | X66: =SUM(IF(N66="",0,VLOOKUP(N66,怪物表!$A:$D,3,FALSE)),IF(O66="",0,VLOOKUP(O66,怪物表!$A:$D,3,FALSE)),IF(P66="",0,VLOOKUP(P66,怪物表!$A:$D,3,FALSE)),IF(Q66="",0,VLOOKUP(Q66,怪物表!$A:$D,3,FALSE)),IF(R66="",0,VLOOKUP(R66,怪物表!$A:$D,3,FALSE)),IF(S66="",0,VLOOKUP(S66,怪物表!$A:$D,3,FALSE)),IF(T66="",0,VLOOKUP(T66,怪物表!$A:$D,3,FALSE)),IF(U66="",0,VLOOKUP(U66,怪物表!$A:$D,3,FALSE)),IF(V66="",0,VLOOKUP(V66,怪物表!$A:$D,3,FALSE)),IF(W66="",0,VLOOKUP(W66,怪物表!$A:$D,3,FALSE))) -> 16 | Y66: =IF(N66="","",IF(VLOOKUP(N66,怪物表!$A:$D,4,FALSE)=1,2,0)) -> 0 | Z66: =IF(O66="","",IF(VLOOKUP(O66,怪物表!$A:$D,4,FALSE)=1,2,0)) -> 0 | AA66: =IF(P66="","",IF(VLOOKUP(P66,怪物表!$A:$D,4,FALSE)=1,2,0)) -> 0 | AB66: =IF(Q66="","",IF(VLOOKUP(Q66,怪物表!$A:$D,4,FALSE)=1,2,0)) -> 0 | AC66: =IF(R66="","",IF(VLOOKUP(R66,怪物表!$A:$D,4,FALSE)=1,2,0)) -> 0 | AD66: =IF(S66="","",IF(VLOOKUP(S66,怪物表!$A:$D,4,FALSE)=1,2,0)) -> 0 | AE66: =IF(T66="","",IF(VLOOKUP(T66,怪物表!$A:$D,4,FALSE)=1,2,0)) ->  | AF66: =IF(U66="","",IF(VLOOKUP(U66,怪物表!$A:$D,4,FALSE)=1,2,0)) ->  | AG66: =IF(V66="","",IF(VLOOKUP(V66,怪物表!$A:$D,4,FALSE)=1,2,0)) ->  | AH66: =IF(W66="","",IF(VLOOKUP(W66,怪物表!$A:$D,4,FALSE)=1,2,0)) ->  | AI66: 1.2 | AJ66: 0 | AK66: 1.2 | AL66: 2.4 | AM66: 3.6 | AN66: 4.8 | AO66: 6 | AU66: =IF(Y66="","",VLOOKUP(Y66,高度表!$A:$C,3,FALSE)) -> 0 | AV66: =IF(Z66="","",VLOOKUP(Z66,高度表!$A:$C,3,FALSE)) -> 0 | AW66: =IF(AA66="","",VLOOKUP(AA66,高度表!$A:$C,3,FALSE)) -> 0 | AX66: =IF(AB66="","",VLOOKUP(AB66,高度表!$A:$C,3,FALSE)) -> 0 | AY66: =IF(AC66="","",VLOOKUP(AC66,高度表!$A:$C,3,FALSE)) -> 0 | AZ66: =IF(AD66="","",VLOOKUP(AD66,高度表!$A:$C,3,FALSE)) -> 0 | BA66: =IF(AE66="","",VLOOKUP(AE66,高度表!$A:$C,3,FALSE)) ->  | BB66: =IF(AF66="","",VLOOKUP(AF66,高度表!$A:$C,3,FALSE)) ->  | BC66: =IF(AG66="","",VLOOKUP(AG66,高度表!$A:$C,3,FALSE)) ->  | BD66: =IF(AH66="","",VLOOKUP(AH66,高度表!$A:$C,3,FALSE)) ->  | BE66: 0.15 | BF66: 0 | BG66: 0.15 | BH66: 0.3 | BI66: 0.45 | BJ66: 0.6 | BK66: 0.75 | BQ66: 100004;100003;100003;100002;100002;106000 | BR66: 0;0;0;0;0;0 | BS66: 0;1.2;2.4;3.6;4.8;6 | BT66: 0;0.15;0.3;0.45;0.6;0.75 | BU66: 0;0;0;0;0;0 | BV66: =IF(SUM(IF(N66="",0,IF(VLOOKUP(N66,怪物表!$A:$E,5,FALSE)=3,1,0)),IF(O66="",0,IF(VLOOKUP(O66,怪物表!$A:$E,5,FALSE)=3,1,0)),IF(P66="",0,IF(VLOOKUP(P66,怪物表!$A:$E,5,FALSE)=3,1,0)),IF(Q66="",0,IF(VLOOKUP(Q66,怪物表!$A:$E,5,FALSE)=3,1,0)),IF(R66="",0,IF(VLOOKUP(R66,怪物表!$A:$E,5,FALSE)=3,1,0)),IF(S66="",0,IF(VLOOKUP(S66,怪物表!$A:$E,5,FALSE)=3,1,0)),IF(T66="",0,IF(VLOOKUP(T66,怪物表!$A:$E,5,FALSE)=3,1,0)),IF(U66="",0,IF(VLOOKUP(U66,怪物表!$A:$E,5,FALSE)=3,1,0)),IF(V66="",0,IF(VLOOKUP(V66,怪物表!$A:$E,5,FALSE)=3,1,0)),IF(W66="",0,IF(VLOOKUP(W66,怪物表!$A:$E,5,FALSE)=3,1,0)))>0,180,120)*BW66/100 -> 120 | BW66: 100 | BX66: 100
A67: 100332 | B67: 主线2-4BOSS2 | N67: 102000 | O67: 102002 | P67: 102004 | Q67: 102003 | R67: 102003 | X67: =SUM(IF(N67="",0,VLOOKUP(N67,怪物表!$A:$D,3,FALSE)),IF(O67="",0,VLOOKUP(O67,怪物表!$A:$D,3,FALSE)),IF(P67="",0,VLOOKUP(P67,怪物表!$A:$D,3,FALSE)),IF(Q67="",0,VLOOKUP(Q67,怪物表!$A:$D,3,FALSE)),IF(R67="",0,VLOOKUP(R67,怪物表!$A:$D,3,FALSE)),IF(S67="",0,VLOOKUP(S67,怪物表!$A:$D,3,FALSE)),IF(T67="",0,VLOOKUP(T67,怪物表!$A:$D,3,FALSE)),IF(U67="",0,VLOOKUP(U67,怪物表!$A:$D,3,FALSE)),IF(V67="",0,VLOOKUP(V67,怪物表!$A:$D,3,FALSE)),IF(W67="",0,VLOOKUP(W67,怪物表!$A:$D,3,FALSE))) -> 18 | Y67: =IF(N67="","",IF(VLOOKUP(N67,怪物表!$A:$D,4,FALSE)=1,2,0)) -> 0 | Z67: =IF(O67="","",IF(VLOOKUP(O67,怪物表!$A:$D,4,FALSE)=1,2,0)) -> 0 | AA67: =IF(P67="","",IF(VLOOKUP(P67,怪物表!$A:$D,4,FALSE)=1,2,0)) -> 0 | AB67: =IF(Q67="","",IF(VLOOKUP(Q67,怪物表!$A:$D,4,FALSE)=1,2,0)) -> 0 | AC67: =IF(R67="","",IF(VLOOKUP(R67,怪物表!$A:$D,4,FALSE)=1,2,0)) -> 0 | AD67: =IF(S67="","",IF(VLOOKUP(S67,怪物表!$A:$D,4,FALSE)=1,2,0)) ->  | AE67: =IF(T67="","",IF(VLOOKUP(T67,怪物表!$A:$D,4,FALSE)=1,2,0)) ->  | AF67: =IF(U67="","",IF(VLOOKUP(U67,怪物表!$A:$D,4,FALSE)=1,2,0)) ->  | AG67: =IF(V67="","",IF(VLOOKUP(V67,怪物表!$A:$D,4,FALSE)=1,2,0)) ->  | AH67: =IF(W67="","",IF(VLOOKUP(W67,怪物表!$A:$D,4,FALSE)=1,2,0)) ->  | AI67: 1.2 | AJ67: 0 | AK67: 1.2 | AL67: 2.4 | AM67: 3.6 | AN67: 4.8 | AU67: =IF(Y67="","",VLOOKUP(Y67,高度表!$A:$C,3,FALSE)) -> 0 | AV67: =IF(Z67="","",VLOOKUP(Z67,高度表!$A:$C,3,FALSE)) -> 0 | AW67: =IF(AA67="","",VLOOKUP(AA67,高度表!$A:$C,3,FALSE)) -> 0 | AX67: =IF(AB67="","",VLOOKUP(AB67,高度表!$A:$C,3,FALSE)) -> 0 | AY67: =IF(AC67="","",VLOOKUP(AC67,高度表!$A:$C,3,FALSE)) -> 0 | AZ67: =IF(AD67="","",VLOOKUP(AD67,高度表!$A:$C,3,FALSE)) ->  | BA67: =IF(AE67="","",VLOOKUP(AE67,高度表!$A:$C,3,FALSE)) ->  | BB67: =IF(AF67="","",VLOOKUP(AF67,高度表!$A:$C,3,FALSE)) ->  | BC67: =IF(AG67="","",VLOOKUP(AG67,高度表!$A:$C,3,FALSE)) ->  | BD67: =IF(AH67="","",VLOOKUP(AH67,高度表!$A:$C,3,FALSE)) ->  | BE67: 0.15 | BF67: 0 | BG67: 0.15 | BH67: 0.3 | BI67: 0.45 | BJ67: 0.6 | BQ67: 102000;102002;102004;102003;102003 | BR67: 0;0;0;0;0 | BS67: 0;1.2;2.4;3.6;4.8 | BT67: 0;0.15;0.3;0.45;0.6 | BU67: 0;0;0;0;0 | BV67: =IF(SUM(IF(N67="",0,IF(VLOOKUP(N67,怪物表!$A:$E,5,FALSE)=3,1,0)),IF(O67="",0,IF(VLOOKUP(O67,怪物表!$A:$E,5,FALSE)=3,1,0)),IF(P67="",0,IF(VLOOKUP(P67,怪物表!$A:$E,5,FALSE)=3,1,0)),IF(Q67="",0,IF(VLOOKUP(Q67,怪物表!$A:$E,5,FALSE)=3,1,0)),IF(R67="",0,IF(VLOOKUP(R67,怪物表!$A:$E,5,FALSE)=3,1,0)),IF(S67="",0,IF(VLOOKUP(S67,怪物表!$A:$E,5,FALSE)=3,1,0)),IF(T67="",0,IF(VLOOKUP(T67,怪物表!$A:$E,5,FALSE)=3,1,0)),IF(U67="",0,IF(VLOOKUP(U67,怪物表!$A:$E,5,FALSE)=3,1,0)),IF(V67="",0,IF(VLOOKUP(V67,怪物表!$A:$E,5,FALSE)=3,1,0)),IF(W67="",0,IF(VLOOKUP(W67,怪物表!$A:$E,5,FALSE)=3,1,0)))>0,180,120)*BW67/100 -> 120 | BW67: 100 | BX67: 100
A68: 100333 | B68: 主线2-4BOSS3 | N68: 901002 | X68: =SUM(IF(N68="",0,VLOOKUP(N68,怪物表!$A:$D,3,FALSE)),IF(O68="",0,VLOOKUP(O68,怪物表!$A:$D,3,FALSE)),IF(P68="",0,VLOOKUP(P68,怪物表!$A:$D,3,FALSE)),IF(Q68="",0,VLOOKUP(Q68,怪物表!$A:$D,3,FALSE)),IF(R68="",0,VLOOKUP(R68,怪物表!$A:$D,3,FALSE)),IF(S68="",0,VLOOKUP(S68,怪物表!$A:$D,3,FALSE)),IF(T68="",0,VLOOKUP(T68,怪物表!$A:$D,3,FALSE)),IF(U68="",0,VLOOKUP(U68,怪物表!$A:$D,3,FALSE)),IF(V68="",0,VLOOKUP(V68,怪物表!$A:$D,3,FALSE)),IF(W68="",0,VLOOKUP(W68,怪物表!$A:$D,3,FALSE))) -> 25 | Y68: =IF(N68="","",IF(VLOOKUP(N68,怪物表!$A:$D,4,FALSE)=1,2,0)) -> 0 | Z68: =IF(O68="","",IF(VLOOKUP(O68,怪物表!$A:$D,4,FALSE)=1,2,0)) ->  | AA68: =IF(P68="","",IF(VLOOKUP(P68,怪物表!$A:$D,4,FALSE)=1,2,0)) ->  | AB68: =IF(Q68="","",IF(VLOOKUP(Q68,怪物表!$A:$D,4,FALSE)=1,2,0)) ->  | AC68: =IF(R68="","",IF(VLOOKUP(R68,怪物表!$A:$D,4,FALSE)=1,2,0)) ->  | AD68: =IF(S68="","",IF(VLOOKUP(S68,怪物表!$A:$D,4,FALSE)=1,2,0)) ->  | AE68: =IF(T68="","",IF(VLOOKUP(T68,怪物表!$A:$D,4,FALSE)=1,2,0)) ->  | AF68: =IF(U68="","",IF(VLOOKUP(U68,怪物表!$A:$D,4,FALSE)=1,2,0)) ->  | AG68: =IF(V68="","",IF(VLOOKUP(V68,怪物表!$A:$D,4,FALSE)=1,2,0)) ->  | AH68: =IF(W68="","",IF(VLOOKUP(W68,怪物表!$A:$D,4,FALSE)=1,2,0)) ->  | AI68: 1.2 | AJ68: 0 | AU68: =IF(Y68="","",VLOOKUP(Y68,高度表!$A:$C,3,FALSE)) -> 0 | AV68: =IF(Z68="","",VLOOKUP(Z68,高度表!$A:$C,3,FALSE)) ->  | AW68: =IF(AA68="","",VLOOKUP(AA68,高度表!$A:$C,3,FALSE)) ->  | AX68: =IF(AB68="","",VLOOKUP(AB68,高度表!$A:$C,3,FALSE)) ->  | AY68: =IF(AC68="","",VLOOKUP(AC68,高度表!$A:$C,3,FALSE)) ->  | AZ68: =IF(AD68="","",VLOOKUP(AD68,高度表!$A:$C,3,FALSE)) ->  | BA68: =IF(AE68="","",VLOOKUP(AE68,高度表!$A:$C,3,FALSE)) ->  | BB68: =IF(AF68="","",VLOOKUP(AF68,高度表!$A:$C,3,FALSE)) ->  | BC68: =IF(AG68="","",VLOOKUP(AG68,高度表!$A:$C,3,FALSE)) ->  | BD68: =IF(AH68="","",VLOOKUP(AH68,高度表!$A:$C,3,FALSE)) ->  | BE68: 0.15 | BF68: 0 | BQ68: 901002 | BR68: 0 | BS68: 0 | BT68: 0 | BU68: 0 | BV68: =IF(SUM(IF(N68="",0,IF(VLOOKUP(N68,怪物表!$A:$E,5,FALSE)=3,1,0)),IF(O68="",0,IF(VLOOKUP(O68,怪物表!$A:$E,5,FALSE)=3,1,0)),IF(P68="",0,IF(VLOOKUP(P68,怪物表!$A:$E,5,FALSE)=3,1,0)),IF(Q68="",0,IF(VLOOKUP(Q68,怪物表!$A:$E,5,FALSE)=3,1,0)),IF(R68="",0,IF(VLOOKUP(R68,怪物表!$A:$E,5,FALSE)=3,1,0)),IF(S68="",0,IF(VLOOKUP(S68,怪物表!$A:$E,5,FALSE)=3,1,0)),IF(T68="",0,IF(VLOOKUP(T68,怪物表!$A:$E,5,FALSE)=3,1,0)),IF(U68="",0,IF(VLOOKUP(U68,怪物表!$A:$E,5,FALSE)=3,1,0)),IF(V68="",0,IF(VLOOKUP(V68,怪物表!$A:$E,5,FALSE)=3,1,0)),IF(W68="",0,IF(VLOOKUP(W68,怪物表!$A:$E,5,FALSE)=3,1,0)))>0,180,120)*BW68/100 -> 180 | BW68: 100 | BX68: 100
A69: 100334 | B69: 主线2-3精英（补） | N69: 1005 | X69: =SUM(IF(N69="",0,VLOOKUP(N69,怪物表!$A:$D,3,FALSE)),IF(O69="",0,VLOOKUP(O69,怪物表!$A:$D,3,FALSE)),IF(P69="",0,VLOOKUP(P69,怪物表!$A:$D,3,FALSE)),IF(Q69="",0,VLOOKUP(Q69,怪物表!$A:$D,3,FALSE)),IF(R69="",0,VLOOKUP(R69,怪物表!$A:$D,3,FALSE)),IF(S69="",0,VLOOKUP(S69,怪物表!$A:$D,3,FALSE)),IF(T69="",0,VLOOKUP(T69,怪物表!$A:$D,3,FALSE)),IF(U69="",0,VLOOKUP(U69,怪物表!$A:$D,3,FALSE)),IF(V69="",0,VLOOKUP(V69,怪物表!$A:$D,3,FALSE)),IF(W69="",0,VLOOKUP(W69,怪物表!$A:$D,3,FALSE))) -> 25 | Y69: =IF(N69="","",IF(VLOOKUP(N69,怪物表!$A:$D,4,FALSE)=1,2,0)) -> 0 | Z69: =IF(O69="","",IF(VLOOKUP(O69,怪物表!$A:$D,4,FALSE)=1,2,0)) ->  | AA69: =IF(P69="","",IF(VLOOKUP(P69,怪物表!$A:$D,4,FALSE)=1,2,0)) ->  | AB69: =IF(Q69="","",IF(VLOOKUP(Q69,怪物表!$A:$D,4,FALSE)=1,2,0)) ->  | AC69: =IF(R69="","",IF(VLOOKUP(R69,怪物表!$A:$D,4,FALSE)=1,2,0)) ->  | AD69: =IF(S69="","",IF(VLOOKUP(S69,怪物表!$A:$D,4,FALSE)=1,2,0)) ->  | AE69: =IF(T69="","",IF(VLOOKUP(T69,怪物表!$A:$D,4,FALSE)=1,2,0)) ->  | AF69: =IF(U69="","",IF(VLOOKUP(U69,怪物表!$A:$D,4,FALSE)=1,2,0)) ->  | AG69: =IF(V69="","",IF(VLOOKUP(V69,怪物表!$A:$D,4,FALSE)=1,2,0)) ->  | AH69: =IF(W69="","",IF(VLOOKUP(W69,怪物表!$A:$D,4,FALSE)=1,2,0)) ->  | AI69: 1.2 | AJ69: 0 | AU69: =IF(Y69="","",VLOOKUP(Y69,高度表!$A:$C,3,FALSE)) -> 0 | AV69: =IF(Z69="","",VLOOKUP(Z69,高度表!$A:$C,3,FALSE)) ->  | AW69: =IF(AA69="","",VLOOKUP(AA69,高度表!$A:$C,3,FALSE)) ->  | AX69: =IF(AB69="","",VLOOKUP(AB69,高度表!$A:$C,3,FALSE)) ->  | AY69: =IF(AC69="","",VLOOKUP(AC69,高度表!$A:$C,3,FALSE)) ->  | AZ69: =IF(AD69="","",VLOOKUP(AD69,高度表!$A:$C,3,FALSE)) ->  | BA69: =IF(AE69="","",VLOOKUP(AE69,高度表!$A:$C,3,FALSE)) ->  | BB69: =IF(AF69="","",VLOOKUP(AF69,高度表!$A:$C,3,FALSE)) ->  | BC69: =IF(AG69="","",VLOOKUP(AG69,高度表!$A:$C,3,FALSE)) ->  | BD69: =IF(AH69="","",VLOOKUP(AH69,高度表!$A:$C,3,FALSE)) ->  | BE69: 0.15 | BF69: 0 | BQ69: 1005 | BR69: 0 | BS69: 0 | BT69: 0 | BU69: 0 | BV69: =IF(SUM(IF(N69="",0,IF(VLOOKUP(N69,怪物表!$A:$E,5,FALSE)=3,1,0)),IF(O69="",0,IF(VLOOKUP(O69,怪物表!$A:$E,5,FALSE)=3,1,0)),IF(P69="",0,IF(VLOOKUP(P69,怪物表!$A:$E,5,FALSE)=3,1,0)),IF(Q69="",0,IF(VLOOKUP(Q69,怪物表!$A:$E,5,FALSE)=3,1,0)),IF(R69="",0,IF(VLOOKUP(R69,怪物表!$A:$E,5,FALSE)=3,1,0)),IF(S69="",0,IF(VLOOKUP(S69,怪物表!$A:$E,5,FALSE)=3,1,0)),IF(T69="",0,IF(VLOOKUP(T69,怪物表!$A:$E,5,FALSE)=3,1,0)),IF(U69="",0,IF(VLOOKUP(U69,怪物表!$A:$E,5,FALSE)=3,1,0)),IF(V69="",0,IF(VLOOKUP(V69,怪物表!$A:$E,5,FALSE)=3,1,0)),IF(W69="",0,IF(VLOOKUP(W69,怪物表!$A:$E,5,FALSE)=3,1,0)))>0,180,120)*BW69/100 -> 180 | BW69: 100 | BX69: 100
A70: 100335 | B70: 3-1小怪 | C70: =IF(N70="","",9) -> 9 | D70: =IF(O70="","",9) -> 9 | E70: 9 | F70: 9 | G70: =IF(R70="","",9) -> 9 | H70: =IF(S70="","",9) -> 9 | I70: =IF(T70="","",9) -> 9 | J70: =IF(U70="","",9) ->  | K70: =IF(V70="","",9) ->  | L70: =IF(W70="","",9) ->  | N70: 100004 | O70: 100001 | P70: 100001 | Q70: 100002 | R70: 100002 | S70: 100003 | T70: 100003 | X70: =SUM(IF(N70="",0,VLOOKUP(N70,怪物表!$A:$D,3,FALSE)),IF(O70="",0,VLOOKUP(O70,怪物表!$A:$D,3,FALSE)),IF(P70="",0,VLOOKUP(P70,怪物表!$A:$D,3,FALSE)),IF(Q70="",0,VLOOKUP(Q70,怪物表!$A:$D,3,FALSE)),IF(R70="",0,VLOOKUP(R70,怪物表!$A:$D,3,FALSE)),IF(S70="",0,VLOOKUP(S70,怪物表!$A:$D,3,FALSE)),IF(T70="",0,VLOOKUP(T70,怪物表!$A:$D,3,FALSE)),IF(U70="",0,VLOOKUP(U70,怪物表!$A:$D,3,FALSE)),IF(V70="",0,VLOOKUP(V70,怪物表!$A:$D,3,FALSE)),IF(W70="",0,VLOOKUP(W70,怪物表!$A:$D,3,FALSE))) -> 14 | Y70: =IF(N70="","",IF(VLOOKUP(N70,怪物表!$A:$D,4,FALSE)=1,2,0)) -> 0 | Z70: =IF(O70="","",IF(VLOOKUP(O70,怪物表!$A:$D,4,FALSE)=1,2,0)) -> 0 | AA70: =IF(P70="","",IF(VLOOKUP(P70,怪物表!$A:$D,4,FALSE)=1,2,0)) -> 0 | AB70: =IF(Q70="","",IF(VLOOKUP(Q70,怪物表!$A:$D,4,FALSE)=1,2,0)) -> 0 | AC70: =IF(R70="","",IF(VLOOKUP(R70,怪物表!$A:$D,4,FALSE)=1,2,0)) -> 0 | AD70: =IF(S70="","",IF(VLOOKUP(S70,怪物表!$A:$D,4,FALSE)=1,2,0)) -> 0 | AE70: =IF(T70="","",IF(VLOOKUP(T70,怪物表!$A:$D,4,FALSE)=1,2,0)) -> 0 | AF70: =IF(U70="","",IF(VLOOKUP(U70,怪物表!$A:$D,4,FALSE)=1,2,0)) ->  | AG70: =IF(V70="","",IF(VLOOKUP(V70,怪物表!$A:$D,4,FALSE)=1,2,0)) ->  | AH70: =IF(W70="","",IF(VLOOKUP(W70,怪物表!$A:$D,4,FALSE)=1,2,0)) ->  | AI70: 0.8 | AJ70: 0 | AK70: 0.8 | AL70: 1.6 | AM70: 2.4 | AN70: 3.2 | AO70: 4 | AP70: 4.8 | AU70: =IF(Y70="","",VLOOKUP(Y70,高度表!$A:$C,3,FALSE)) -> 0 | AV70: =IF(Z70="","",VLOOKUP(Z70,高度表!$A:$C,3,FALSE)) -> 0 | AW70: =IF(AA70="","",VLOOKUP(AA70,高度表!$A:$C,3,FALSE)) -> 0 | AX70: =IF(AB70="","",VLOOKUP(AB70,高度表!$A:$C,3,FALSE)) -> 0 | AY70: =IF(AC70="","",VLOOKUP(AC70,高度表!$A:$C,3,FALSE)) -> 0 | AZ70: =IF(AD70="","",VLOOKUP(AD70,高度表!$A:$C,3,FALSE)) -> 0 | BA70: =IF(AE70="","",VLOOKUP(AE70,高度表!$A:$C,3,FALSE)) -> 0 | BB70: =IF(AF70="","",VLOOKUP(AF70,高度表!$A:$C,3,FALSE)) ->  | BC70: =IF(AG70="","",VLOOKUP(AG70,高度表!$A:$C,3,FALSE)) ->  | BD70: =IF(AH70="","",VLOOKUP(AH70,高度表!$A:$C,3,FALSE)) ->  | BE70: 0.15 | BF70: 0 | BG70: 0.15 | BH70: 0.3 | BI70: 0.45 | BJ70: 0.6 | BK70: 0.75 | BL70: 0.9 | BQ70: 100004;100001;100001;100002;100002;100003;100003 | BR70: 0;0;0;0;0;0;0 | BS70: 0;0.8;1.6;2.4;3.2;4;4.8 | BT70: 0;0.15;0.3;0.45;0.6;0.75;0.9 | BU70: 9;9;9;9;9;9;9 | BV70: =IF(SUM(IF(N70="",0,IF(VLOOKUP(N70,怪物表!$A:$E,5,FALSE)=3,1,0)),IF(O70="",0,IF(VLOOKUP(O70,怪物表!$A:$E,5,FALSE)=3,1,0)),IF(P70="",0,IF(VLOOKUP(P70,怪物表!$A:$E,5,FALSE)=3,1,0)),IF(Q70="",0,IF(VLOOKUP(Q70,怪物表!$A:$E,5,FALSE)=3,1,0)),IF(R70="",0,IF(VLOOKUP(R70,怪物表!$A:$E,5,FALSE)=3,1,0)),IF(S70="",0,IF(VLOOKUP(S70,怪物表!$A:$E,5,FALSE)=3,1,0)),IF(T70="",0,IF(VLOOKUP(T70,怪物表!$A:$E,5,FALSE)=3,1,0)),IF(U70="",0,IF(VLOOKUP(U70,怪物表!$A:$E,5,FALSE)=3,1,0)),IF(V70="",0,IF(VLOOKUP(V70,怪物表!$A:$E,5,FALSE)=3,1,0)),IF(W70="",0,IF(VLOOKUP(W70,怪物表!$A:$E,5,FALSE)=3,1,0)))>0,180,120)*BW70/100 -> 120 | BW70: 100 | BX70: 100
A71: 100336 | B71: 3-1小怪 | C71: 9 | D71: =IF(O71="","",9) -> 9 | E71: =IF(P71="","",9) -> 9 | F71: =IF(Q71="","",9) -> 9 | G71: 9 | H71: 9 | I71: 9 | J71: =IF(U71="","",9) ->  | K71: =IF(V71="","",9) ->  | L71: =IF(W71="","",9) ->  | N71: 200000 | O71: 103000 | P71: 103000 | Q71: 103002 | R71: 103002 | S71: 103003 | T71: 103003 | X71: =SUM(IF(N71="",0,VLOOKUP(N71,怪物表!$A:$D,3,FALSE)),IF(O71="",0,VLOOKUP(O71,怪物表!$A:$D,3,FALSE)),IF(P71="",0,VLOOKUP(P71,怪物表!$A:$D,3,FALSE)),IF(Q71="",0,VLOOKUP(Q71,怪物表!$A:$D,3,FALSE)),IF(R71="",0,VLOOKUP(R71,怪物表!$A:$D,3,FALSE)),IF(S71="",0,VLOOKUP(S71,怪物表!$A:$D,3,FALSE)),IF(T71="",0,VLOOKUP(T71,怪物表!$A:$D,3,FALSE)),IF(U71="",0,VLOOKUP(U71,怪物表!$A:$D,3,FALSE)),IF(V71="",0,VLOOKUP(V71,怪物表!$A:$D,3,FALSE)),IF(W71="",0,VLOOKUP(W71,怪物表!$A:$D,3,FALSE))) -> 17 | Y71: =IF(N71="","",IF(VLOOKUP(N71,怪物表!$A:$D,4,FALSE)=1,2,0)) -> 0 | Z71: 3 | AA71: =IF(P71="","",IF(VLOOKUP(P71,怪物表!$A:$D,4,FALSE)=1,2,0)) -> 2 | AB71: 3 | AC71: =IF(R71="","",IF(VLOOKUP(R71,怪物表!$A:$D,4,FALSE)=1,2,0)) -> 2 | AD71: 3 | AE71: =IF(T71="","",IF(VLOOKUP(T71,怪物表!$A:$D,4,FALSE)=1,2,0)) -> 2 | AF71: =IF(U71="","",IF(VLOOKUP(U71,怪物表!$A:$D,4,FALSE)=1,2,0)) ->  | AG71: =IF(V71="","",IF(VLOOKUP(V71,怪物表!$A:$D,4,FALSE)=1,2,0)) ->  | AH71: =IF(W71="","",IF(VLOOKUP(W71,怪物表!$A:$D,4,FALSE)=1,2,0)) ->  | AI71: 1 | AJ71: =IF(N71="","",0*$AI71) -> 0 | AK71: =IF(O71="","",1*$AI71) -> 1 | AL71: =IF(P71="","",2*$AI71) -> 2 | AM71: =IF(Q71="","",3*$AI71) -> 3 | AN71: =IF(R71="","",4*$AI71) -> 4 | AO71: =IF(S71="","",5*$AI71) -> 5 | AP71: =IF(T71="","",6*$AI71) -> 6 | AQ71: =IF(U71="","",7*$AI71) ->  | AR71: =IF(V71="","",8*$AI71) ->  | AU71: =IF(Y71="","",VLOOKUP(Y71,高度表!$A:$C,3,FALSE)) -> 0 | AV71: =IF(Z71="","",VLOOKUP(Z71,高度表!$A:$C,3,FALSE)) -> 2.5 | AW71: =IF(AA71="","",VLOOKUP(AA71,高度表!$A:$C,3,FALSE)) -> 1.8 | AX71: =IF(AB71="","",VLOOKUP(AB71,高度表!$A:$C,3,FALSE)) -> 2.5 | AY71: =IF(AC71="","",VLOOKUP(AC71,高度表!$A:$C,3,FALSE)) -> 1.8 | AZ71: =IF(AD71="","",VLOOKUP(AD71,高度表!$A:$C,3,FALSE)) -> 2.5 | BA71: =IF(AE71="","",VLOOKUP(AE71,高度表!$A:$C,3,FALSE)) -> 1.8 | BB71: =IF(AF71="","",VLOOKUP(AF71,高度表!$A:$C,3,FALSE)) ->  | BC71: =IF(AG71="","",VLOOKUP(AG71,高度表!$A:$C,3,FALSE)) ->  | BD71: =IF(AH71="","",VLOOKUP(AH71,高度表!$A:$C,3,FALSE)) ->  | BE71: 0.15 | BF71: 0 | BG71: 0.15 | BH71: 0.3 | BI71: 0.45 | BJ71: 0.6 | BK71: 0.75 | BL71: 0.9 | BQ71: 200000;103000;103000;103002;103002;103003;103003 | BR71: 0;2.5;1.8;2.5;1.8;2.5;1.8 | BS71: 0;1;2;3;4;5;6 | BT71: 0;0.15;0.3;0.45;0.6;0.75;0.9 | BU71: 9;9;9;9;9;9;9 | BV71: =IF(SUM(IF(N71="",0,IF(VLOOKUP(N71,怪物表!$A:$E,5,FALSE)=3,1,0)),IF(O71="",0,IF(VLOOKUP(O71,怪物表!$A:$E,5,FALSE)=3,1,0)),IF(P71="",0,IF(VLOOKUP(P71,怪物表!$A:$E,5,FALSE)=3,1,0)),IF(Q71="",0,IF(VLOOKUP(Q71,怪物表!$A:$E,5,FALSE)=3,1,0)),IF(R71="",0,IF(VLOOKUP(R71,怪物表!$A:$E,5,FALSE)=3,1,0)),IF(S71="",0,IF(VLOOKUP(S71,怪物表!$A:$E,5,FALSE)=3,1,0)),IF(T71="",0,IF(VLOOKUP(T71,怪物表!$A:$E,5,FALSE)=3,1,0)),IF(U71="",0,IF(VLOOKUP(U71,怪物表!$A:$E,5,FALSE)=3,1,0)),IF(V71="",0,IF(VLOOKUP(V71,怪物表!$A:$E,5,FALSE)=3,1,0)),IF(W71="",0,IF(VLOOKUP(W71,怪物表!$A:$E,5,FALSE)=3,1,0)))>0,180,120)*BW71/100 -> 120 | BW71: 100 | BX71: 100
A72: 100337 | B72: 3-1小怪 | C72: 9 | D72: 9 | E72: 9 | F72: 9 | G72: =IF(R72="","",9) -> 9 | H72: =IF(S72="","",9) -> 9 | I72: =IF(T72="","",9) ->  | J72: =IF(U72="","",9) ->  | K72: =IF(V72="","",9) ->  | L72: =IF(W72="","",9) ->  | N72: 105000 | O72: 105000 | P72: 105000 | Q72: 105000 | R72: 105000 | S72: 107000 | X72: =SUM(IF(N72="",0,VLOOKUP(N72,怪物表!$A:$D,3,FALSE)),IF(O72="",0,VLOOKUP(O72,怪物表!$A:$D,3,FALSE)),IF(P72="",0,VLOOKUP(P72,怪物表!$A:$D,3,FALSE)),IF(Q72="",0,VLOOKUP(Q72,怪物表!$A:$D,3,FALSE)),IF(R72="",0,VLOOKUP(R72,怪物表!$A:$D,3,FALSE)),IF(S72="",0,VLOOKUP(S72,怪物表!$A:$D,3,FALSE)),IF(T72="",0,VLOOKUP(T72,怪物表!$A:$D,3,FALSE)),IF(U72="",0,VLOOKUP(U72,怪物表!$A:$D,3,FALSE)),IF(V72="",0,VLOOKUP(V72,怪物表!$A:$D,3,FALSE)),IF(W72="",0,VLOOKUP(W72,怪物表!$A:$D,3,FALSE))) -> 18 | Y72: =IF(N72="","",IF(VLOOKUP(N72,怪物表!$A:$D,4,FALSE)=1,2,0)) -> 0 | Z72: =IF(O72="","",IF(VLOOKUP(O72,怪物表!$A:$D,4,FALSE)=1,2,0)) -> 0 | AA72: =IF(P72="","",IF(VLOOKUP(P72,怪物表!$A:$D,4,FALSE)=1,2,0)) -> 0 | AB72: =IF(Q72="","",IF(VLOOKUP(Q72,怪物表!$A:$D,4,FALSE)=1,2,0)) -> 0 | AC72: =IF(R72="","",IF(VLOOKUP(R72,怪物表!$A:$D,4,FALSE)=1,2,0)) -> 0 | AD72: =IF(S72="","",IF(VLOOKUP(S72,怪物表!$A:$D,4,FALSE)=1,2,0)) -> 2 | AE72: =IF(T72="","",IF(VLOOKUP(T72,怪物表!$A:$D,4,FALSE)=1,2,0)) ->  | AF72: =IF(U72="","",IF(VLOOKUP(U72,怪物表!$A:$D,4,FALSE)=1,2,0)) ->  | AG72: =IF(V72="","",IF(VLOOKUP(V72,怪物表!$A:$D,4,FALSE)=1,2,0)) ->  | AH72: =IF(W72="","",IF(VLOOKUP(W72,怪物表!$A:$D,4,FALSE)=1,2,0)) ->  | AI72: 1.2 | AJ72: 0 | AK72: 1.2 | AL72: 2.4 | AM72: 3.6 | AN72: 4.8 | AO72: 6 | AU72: =IF(Y72="","",VLOOKUP(Y72,高度表!$A:$C,3,FALSE)) -> 0 | AV72: =IF(Z72="","",VLOOKUP(Z72,高度表!$A:$C,3,FALSE)) -> 0 | AW72: =IF(AA72="","",VLOOKUP(AA72,高度表!$A:$C,3,FALSE)) -> 0 | AX72: =IF(AB72="","",VLOOKUP(AB72,高度表!$A:$C,3,FALSE)) -> 0 | AY72: =IF(AC72="","",VLOOKUP(AC72,高度表!$A:$C,3,FALSE)) -> 0 | AZ72: =IF(AD72="","",VLOOKUP(AD72,高度表!$A:$C,3,FALSE)) -> 1.8 | BA72: =IF(AE72="","",VLOOKUP(AE72,高度表!$A:$C,3,FALSE)) ->  | BB72: =IF(AF72="","",VLOOKUP(AF72,高度表!$A:$C,3,FALSE)) ->  | BC72: =IF(AG72="","",VLOOKUP(AG72,高度表!$A:$C,3,FALSE)) ->  | BD72: =IF(AH72="","",VLOOKUP(AH72,高度表!$A:$C,3,FALSE)) ->  | BE72: 0.15 | BF72: 0 | BG72: 0.15 | BH72: 0.3 | BI72: 0.45 | BJ72: 0.6 | BK72: 0.75 | BQ72: 105000;105000;105000;105000;105000;107000 | BR72: 0;0;0;0;0;1.8 | BS72: 0;1.2;2.4;3.6;4.8;6 | BT72: 0;0.15;0.3;0.45;0.6;0.75 | BU72: 9;9;9;9;9;9 | BV72: =IF(SUM(IF(N72="",0,IF(VLOOKUP(N72,怪物表!$A:$E,5,FALSE)=3,1,0)),IF(O72="",0,IF(VLOOKUP(O72,怪物表!$A:$E,5,FALSE)=3,1,0)),IF(P72="",0,IF(VLOOKUP(P72,怪物表!$A:$E,5,FALSE)=3,1,0)),IF(Q72="",0,IF(VLOOKUP(Q72,怪物表!$A:$E,5,FALSE)=3,1,0)),IF(R72="",0,IF(VLOOKUP(R72,怪物表!$A:$E,5,FALSE)=3,1,0)),IF(S72="",0,IF(VLOOKUP(S72,怪物表!$A:$E,5,FALSE)=3,1,0)),IF(T72="",0,IF(VLOOKUP(T72,怪物表!$A:$E,5,FALSE)=3,1,0)),IF(U72="",0,IF(VLOOKUP(U72,怪物表!$A:$E,5,FALSE)=3,1,0)),IF(V72="",0,IF(VLOOKUP(V72,怪物表!$A:$E,5,FALSE)=3,1,0)),IF(W72="",0,IF(VLOOKUP(W72,怪物表!$A:$E,5,FALSE)=3,1,0)))>0,180,120)*BW72/100 -> 120 | BW72: 100 | BX72: 100
A73: 100338 | B73: 3-1小怪 | C73: 9 | D73: 9 | E73: 9 | F73: 9 | N73: 200004 | O73: 200001 | P73: 100009 | Q73: 103000 | X73: =SUM(IF(N73="",0,VLOOKUP(N73,怪物表!$A:$D,3,FALSE)),IF(O73="",0,VLOOKUP(O73,怪物表!$A:$D,3,FALSE)),IF(P73="",0,VLOOKUP(P73,怪物表!$A:$D,3,FALSE)),IF(Q73="",0,VLOOKUP(Q73,怪物表!$A:$D,3,FALSE)),IF(R73="",0,VLOOKUP(R73,怪物表!$A:$D,3,FALSE)),IF(S73="",0,VLOOKUP(S73,怪物表!$A:$D,3,FALSE)),IF(T73="",0,VLOOKUP(T73,怪物表!$A:$D,3,FALSE)),IF(U73="",0,VLOOKUP(U73,怪物表!$A:$D,3,FALSE)),IF(V73="",0,VLOOKUP(V73,怪物表!$A:$D,3,FALSE)),IF(W73="",0,VLOOKUP(W73,怪物表!$A:$D,3,FALSE))) -> 18 | Y73: =IF(N73="","",IF(VLOOKUP(N73,怪物表!$A:$D,4,FALSE)=1,2,0)) -> 0 | Z73: =IF(O73="","",IF(VLOOKUP(O73,怪物表!$A:$D,4,FALSE)=1,2,0)) -> 0 | AA73: 3 | AB73: =IF(Q73="","",IF(VLOOKUP(Q73,怪物表!$A:$D,4,FALSE)=1,2,0)) -> 2 | AC73: =IF(R73="","",IF(VLOOKUP(R73,怪物表!$A:$D,4,FALSE)=1,2,0)) ->  | AD73: =IF(S73="","",IF(VLOOKUP(S73,怪物表!$A:$D,4,FALSE)=1,2,0)) ->  | AE73: =IF(T73="","",IF(VLOOKUP(T73,怪物表!$A:$D,4,FALSE)=1,2,0)) ->  | AF73: =IF(U73="","",IF(VLOOKUP(U73,怪物表!$A:$D,4,FALSE)=1,2,0)) ->  | AG73: =IF(V73="","",IF(VLOOKUP(V73,怪物表!$A:$D,4,FALSE)=1,2,0)) ->  | AH73: =IF(W73="","",IF(VLOOKUP(W73,怪物表!$A:$D,4,FALSE)=1,2,0)) ->  | AI73: 1.2 | AJ73: 0 | AK73: 1.2 | AL73: 2.4 | AM73: 3.6 | AU73: =IF(Y73="","",VLOOKUP(Y73,高度表!$A:$C,3,FALSE)) -> 0 | AV73: =IF(Z73="","",VLOOKUP(Z73,高度表!$A:$C,3,FALSE)) -> 0 | AW73: =IF(AA73="","",VLOOKUP(AA73,高度表!$A:$C,3,FALSE)) -> 2.5 | AX73: =IF(AB73="","",VLOOKUP(AB73,高度表!$A:$C,3,FALSE)) -> 1.8 | AY73: =IF(AC73="","",VLOOKUP(AC73,高度表!$A:$C,3,FALSE)) ->  | AZ73: =IF(AD73="","",VLOOKUP(AD73,高度表!$A:$C,3,FALSE)) ->  | BA73: =IF(AE73="","",VLOOKUP(AE73,高度表!$A:$C,3,FALSE)) ->  | BB73: =IF(AF73="","",VLOOKUP(AF73,高度表!$A:$C,3,FALSE)) ->  | BC73: =IF(AG73="","",VLOOKUP(AG73,高度表!$A:$C,3,FALSE)) ->  | BD73: =IF(AH73="","",VLOOKUP(AH73,高度表!$A:$C,3,FALSE)) ->  | BE73: 0.15 | BF73: 0 | BG73: 0.15 | BH73: 0.3 | BI73: 0.45 | BQ73: 200004;200001;100009;103000 | BR73: 0;0;2.5;1.8 | BS73: 0;1.2;2.4;3.6 | BT73: 0;0.15;0.3;0.45 | BU73: 9;9;9;9 | BV73: =IF(SUM(IF(N73="",0,IF(VLOOKUP(N73,怪物表!$A:$E,5,FALSE)=3,1,0)),IF(O73="",0,IF(VLOOKUP(O73,怪物表!$A:$E,5,FALSE)=3,1,0)),IF(P73="",0,IF(VLOOKUP(P73,怪物表!$A:$E,5,FALSE)=3,1,0)),IF(Q73="",0,IF(VLOOKUP(Q73,怪物表!$A:$E,5,FALSE)=3,1,0)),IF(R73="",0,IF(VLOOKUP(R73,怪物表!$A:$E,5,FALSE)=3,1,0)),IF(S73="",0,IF(VLOOKUP(S73,怪物表!$A:$E,5,FALSE)=3,1,0)),IF(T73="",0,IF(VLOOKUP(T73,怪物表!$A:$E,5,FALSE)=3,1,0)),IF(U73="",0,IF(VLOOKUP(U73,怪物表!$A:$E,5,FALSE)=3,1,0)),IF(V73="",0,IF(VLOOKUP(V73,怪物表!$A:$E,5,FALSE)=3,1,0)),IF(W73="",0,IF(VLOOKUP(W73,怪物表!$A:$E,5,FALSE)=3,1,0)))>0,180,120)*BW73/100 -> 120 | BW73: 100 | BX73: 100
A74: 100339 | B74: 3-1精英 | C74: 9 | D74: 9 | N74: 101001 | O74: 200002 | X74: =SUM(IF(N74="",0,VLOOKUP(N74,怪物表!$A:$D,3,FALSE)),IF(O74="",0,VLOOKUP(O74,怪物表!$A:$D,3,FALSE)),IF(P74="",0,VLOOKUP(P74,怪物表!$A:$D,3,FALSE)),IF(Q74="",0,VLOOKUP(Q74,怪物表!$A:$D,3,FALSE)),IF(R74="",0,VLOOKUP(R74,怪物表!$A:$D,3,FALSE)),IF(S74="",0,VLOOKUP(S74,怪物表!$A:$D,3,FALSE)),IF(T74="",0,VLOOKUP(T74,怪物表!$A:$D,3,FALSE)),IF(U74="",0,VLOOKUP(U74,怪物表!$A:$D,3,FALSE)),IF(V74="",0,VLOOKUP(V74,怪物表!$A:$D,3,FALSE)),IF(W74="",0,VLOOKUP(W74,怪物表!$A:$D,3,FALSE))) -> 15 | Y74: =IF(N74="","",IF(VLOOKUP(N74,怪物表!$A:$D,4,FALSE)=1,2,0)) -> 0 | Z74: =IF(O74="","",IF(VLOOKUP(O74,怪物表!$A:$D,4,FALSE)=1,2,0)) -> 0 | AA74: =IF(P74="","",IF(VLOOKUP(P74,怪物表!$A:$D,4,FALSE)=1,2,0)) ->  | AB74: =IF(Q74="","",IF(VLOOKUP(Q74,怪物表!$A:$D,4,FALSE)=1,2,0)) ->  | AC74: =IF(R74="","",IF(VLOOKUP(R74,怪物表!$A:$D,4,FALSE)=1,2,0)) ->  | AD74: =IF(S74="","",IF(VLOOKUP(S74,怪物表!$A:$D,4,FALSE)=1,2,0)) ->  | AE74: =IF(T74="","",IF(VLOOKUP(T74,怪物表!$A:$D,4,FALSE)=1,2,0)) ->  | AF74: =IF(U74="","",IF(VLOOKUP(U74,怪物表!$A:$D,4,FALSE)=1,2,0)) ->  | AG74: =IF(V74="","",IF(VLOOKUP(V74,怪物表!$A:$D,4,FALSE)=1,2,0)) ->  | AH74: =IF(W74="","",IF(VLOOKUP(W74,怪物表!$A:$D,4,FALSE)=1,2,0)) ->  | AI74: 1.2 | AJ74: 0 | AK74: 1.2 | AU74: =IF(Y74="","",VLOOKUP(Y74,高度表!$A:$C,3,FALSE)) -> 0 | AV74: =IF(Z74="","",VLOOKUP(Z74,高度表!$A:$C,3,FALSE)) -> 0 | AW74: =IF(AA74="","",VLOOKUP(AA74,高度表!$A:$C,3,FALSE)) ->  | AX74: =IF(AB74="","",VLOOKUP(AB74,高度表!$A:$C,3,FALSE)) ->  | AY74: =IF(AC74="","",VLOOKUP(AC74,高度表!$A:$C,3,FALSE)) ->  | AZ74: =IF(AD74="","",VLOOKUP(AD74,高度表!$A:$C,3,FALSE)) ->  | BA74: =IF(AE74="","",VLOOKUP(AE74,高度表!$A:$C,3,FALSE)) ->  | BB74: =IF(AF74="","",VLOOKUP(AF74,高度表!$A:$C,3,FALSE)) ->  | BC74: =IF(AG74="","",VLOOKUP(AG74,高度表!$A:$C,3,FALSE)) ->  | BD74: =IF(AH74="","",VLOOKUP(AH74,高度表!$A:$C,3,FALSE)) ->  | BE74: 0.15 | BF74: 0 | BG74: 0.15 | BQ74: 101001;200002 | BR74: 0;0 | BS74: 0;1.2 | BT74: 0;0.15 | BU74: 9;9 | BV74: =IF(SUM(IF(N74="",0,IF(VLOOKUP(N74,怪物表!$A:$E,5,FALSE)=3,1,0)),IF(O74="",0,IF(VLOOKUP(O74,怪物表!$A:$E,5,FALSE)=3,1,0)),IF(P74="",0,IF(VLOOKUP(P74,怪物表!$A:$E,5,FALSE)=3,1,0)),IF(Q74="",0,IF(VLOOKUP(Q74,怪物表!$A:$E,5,FALSE)=3,1,0)),IF(R74="",0,IF(VLOOKUP(R74,怪物表!$A:$E,5,FALSE)=3,1,0)),IF(S74="",0,IF(VLOOKUP(S74,怪物表!$A:$E,5,FALSE)=3,1,0)),IF(T74="",0,IF(VLOOKUP(T74,怪物表!$A:$E,5,FALSE)=3,1,0)),IF(U74="",0,IF(VLOOKUP(U74,怪物表!$A:$E,5,FALSE)=3,1,0)),IF(V74="",0,IF(VLOOKUP(V74,怪物表!$A:$E,5,FALSE)=3,1,0)),IF(W74="",0,IF(VLOOKUP(W74,怪物表!$A:$E,5,FALSE)=3,1,0)))>0,180,120)*BW74/100 -> 120 | BW74: 100 | BX74: 100
A75: 100411 | B75: 3-1精英 | C75: 9 | D75: 9 | E75: 9 | F75: 9 | G75: 9 | N75: 205000 | O75: 105000 | P75: 105000 | Q75: 105000 | R75: 105000 | X75: =SUM(IF(N75="",0,VLOOKUP(N75,怪物表!$A:$D,3,FALSE)),IF(O75="",0,VLOOKUP(O75,怪物表!$A:$D,3,FALSE)),IF(P75="",0,VLOOKUP(P75,怪物表!$A:$D,3,FALSE)),IF(Q75="",0,VLOOKUP(Q75,怪物表!$A:$D,3,FALSE)),IF(R75="",0,VLOOKUP(R75,怪物表!$A:$D,3,FALSE)),IF(S75="",0,VLOOKUP(S75,怪物表!$A:$D,3,FALSE)),IF(T75="",0,VLOOKUP(T75,怪物表!$A:$D,3,FALSE)),IF(U75="",0,VLOOKUP(U75,怪物表!$A:$D,3,FALSE)),IF(V75="",0,VLOOKUP(V75,怪物表!$A:$D,3,FALSE)),IF(W75="",0,VLOOKUP(W75,怪物表!$A:$D,3,FALSE))) -> 16 | Y75: =IF(N75="","",IF(VLOOKUP(N75,怪物表!$A:$D,4,FALSE)=1,2,0)) -> 0 | Z75: =IF(O75="","",IF(VLOOKUP(O75,怪物表!$A:$D,4,FALSE)=1,2,0)) -> 0 | AA75: =IF(P75="","",IF(VLOOKUP(P75,怪物表!$A:$D,4,FALSE)=1,2,0)) -> 0 | AB75: =IF(Q75="","",IF(VLOOKUP(Q75,怪物表!$A:$D,4,FALSE)=1,2,0)) -> 0 | AC75: =IF(R75="","",IF(VLOOKUP(R75,怪物表!$A:$D,4,FALSE)=1,2,0)) -> 0 | AD75: =IF(S75="","",IF(VLOOKUP(S75,怪物表!$A:$D,4,FALSE)=1,2,0)) ->  | AE75: =IF(T75="","",IF(VLOOKUP(T75,怪物表!$A:$D,4,FALSE)=1,2,0)) ->  | AF75: =IF(U75="","",IF(VLOOKUP(U75,怪物表!$A:$D,4,FALSE)=1,2,0)) ->  | AG75: =IF(V75="","",IF(VLOOKUP(V75,怪物表!$A:$D,4,FALSE)=1,2,0)) ->  | AH75: =IF(W75="","",IF(VLOOKUP(W75,怪物表!$A:$D,4,FALSE)=1,2,0)) ->  | AI75: 1.2 | AJ75: 0 | AK75: 15 | AL75: =AK75+$AI75 -> 16.2 | AM75: 17.4 | AN75: 18.6 | AU75: =IF(Y75="","",VLOOKUP(Y75,高度表!$A:$C,3,FALSE)) -> 0 | AV75: =IF(Z75="","",VLOOKUP(Z75,高度表!$A:$C,3,FALSE)) -> 0 | AW75: =IF(AA75="","",VLOOKUP(AA75,高度表!$A:$C,3,FALSE)) -> 0 | AX75: =IF(AB75="","",VLOOKUP(AB75,高度表!$A:$C,3,FALSE)) -> 0 | AY75: =IF(AC75="","",VLOOKUP(AC75,高度表!$A:$C,3,FALSE)) -> 0 | AZ75: =IF(AD75="","",VLOOKUP(AD75,高度表!$A:$C,3,FALSE)) ->  | BA75: =IF(AE75="","",VLOOKUP(AE75,高度表!$A:$C,3,FALSE)) ->  | BB75: =IF(AF75="","",VLOOKUP(AF75,高度表!$A:$C,3,FALSE)) ->  | BC75: =IF(AG75="","",VLOOKUP(AG75,高度表!$A:$C,3,FALSE)) ->  | BD75: =IF(AH75="","",VLOOKUP(AH75,高度表!$A:$C,3,FALSE)) ->  | BE75: 0.15 | BF75: 0 | BG75: 0.15 | BH75: 0.3 | BI75: 0.45 | BJ75: 0.6 | BQ75: 205000;105000;105000;105000;105000 | BR75: 0;0;0;0;0 | BS75: 0;15;16.2;17.4;18.6 | BT75: 0;0.15;0.3;0.45;0.6 | BU75: 9;9;9;9;9 | BV75: =IF(SUM(IF(N75="",0,IF(VLOOKUP(N75,怪物表!$A:$E,5,FALSE)=3,1,0)),IF(O75="",0,IF(VLOOKUP(O75,怪物表!$A:$E,5,FALSE)=3,1,0)),IF(P75="",0,IF(VLOOKUP(P75,怪物表!$A:$E,5,FALSE)=3,1,0)),IF(Q75="",0,IF(VLOOKUP(Q75,怪物表!$A:$E,5,FALSE)=3,1,0)),IF(R75="",0,IF(VLOOKUP(R75,怪物表!$A:$E,5,FALSE)=3,1,0)),IF(S75="",0,IF(VLOOKUP(S75,怪物表!$A:$E,5,FALSE)=3,1,0)),IF(T75="",0,IF(VLOOKUP(T75,怪物表!$A:$E,5,FALSE)=3,1,0)),IF(U75="",0,IF(VLOOKUP(U75,怪物表!$A:$E,5,FALSE)=3,1,0)),IF(V75="",0,IF(VLOOKUP(V75,怪物表!$A:$E,5,FALSE)=3,1,0)),IF(W75="",0,IF(VLOOKUP(W75,怪物表!$A:$E,5,FALSE)=3,1,0)))>0,180,120)*BW75/100 -> 120 | BW75: 100 | BX75: 100
A76: 100340 | B76: 3-2小怪 | C76: =IF(N76="","",9) -> 9 | D76: =IF(O76="","",9) -> 9 | E76: =IF(P76="","",9) -> 9 | F76: =IF(Q76="","",9) -> 9 | G76: =IF(R76="","",9) ->  | H76: =IF(S76="","",9) ->  | I76: =IF(T76="","",9) ->  | J76: =IF(U76="","",9) ->  | K76: =IF(V76="","",9) ->  | L76: =IF(W76="","",9) ->  | N76: 106000 | O76: 105000 | P76: 105000 | Q76: 105000 | X76: =SUM(IF(N76="",0,VLOOKUP(N76,怪物表!$A:$D,3,FALSE)),IF(O76="",0,VLOOKUP(O76,怪物表!$A:$D,3,FALSE)),IF(P76="",0,VLOOKUP(P76,怪物表!$A:$D,3,FALSE)),IF(Q76="",0,VLOOKUP(Q76,怪物表!$A:$D,3,FALSE)),IF(R76="",0,VLOOKUP(R76,怪物表!$A:$D,3,FALSE)),IF(S76="",0,VLOOKUP(S76,怪物表!$A:$D,3,FALSE)),IF(T76="",0,VLOOKUP(T76,怪物表!$A:$D,3,FALSE)),IF(U76="",0,VLOOKUP(U76,怪物表!$A:$D,3,FALSE)),IF(V76="",0,VLOOKUP(V76,怪物表!$A:$D,3,FALSE)),IF(W76="",0,VLOOKUP(W76,怪物表!$A:$D,3,FALSE))) -> 12 | Y76: =IF(N76="","",IF(VLOOKUP(N76,怪物表!$A:$D,4,FALSE)=1,2,0)) -> 0 | Z76: =IF(O76="","",IF(VLOOKUP(O76,怪物表!$A:$D,4,FALSE)=1,2,0)) -> 0 | AA76: =IF(P76="","",IF(VLOOKUP(P76,怪物表!$A:$D,4,FALSE)=1,2,0)) -> 0 | AB76: =IF(Q76="","",IF(VLOOKUP(Q76,怪物表!$A:$D,4,FALSE)=1,2,0)) -> 0 | AC76: =IF(R76="","",IF(VLOOKUP(R76,怪物表!$A:$D,4,FALSE)=1,2,0)) ->  | AD76: =IF(S76="","",IF(VLOOKUP(S76,怪物表!$A:$D,4,FALSE)=1,2,0)) ->  | AE76: =IF(T76="","",IF(VLOOKUP(T76,怪物表!$A:$D,4,FALSE)=1,2,0)) ->  | AF76: =IF(U76="","",IF(VLOOKUP(U76,怪物表!$A:$D,4,FALSE)=1,2,0)) ->  | AG76: =IF(V76="","",IF(VLOOKUP(V76,怪物表!$A:$D,4,FALSE)=1,2,0)) ->  | AH76: =IF(W76="","",IF(VLOOKUP(W76,怪物表!$A:$D,4,FALSE)=1,2,0)) ->  | AI76: 1.2 | AJ76: 0 | AK76: =IF(O76="","",1*$AI76) -> 1.2 | AL76: =IF(P76="","",2*$AI76) -> 2.4 | AM76: =IF(Q76="","",3*$AI76) -> 3.6 | AN76: =IF(R76="","",4*$AI76) ->  | AO76: =IF(S76="","",5*$AI76) ->  | AP76: =IF(T76="","",6*$AI76) ->  | AQ76: =IF(U76="","",7*$AI76) ->  | AR76: =IF(V76="","",8*$AI76) ->  | AU76: =IF(Y76="","",VLOOKUP(Y76,高度表!$A:$C,3,FALSE)) -> 0 | AV76: =IF(Z76="","",VLOOKUP(Z76,高度表!$A:$C,3,FALSE)) -> 0 | AW76: =IF(AA76="","",VLOOKUP(AA76,高度表!$A:$C,3,FALSE)) -> 0 | AX76: =IF(AB76="","",VLOOKUP(AB76,高度表!$A:$C,3,FALSE)) -> 0 | AY76: =IF(AC76="","",VLOOKUP(AC76,高度表!$A:$C,3,FALSE)) ->  | AZ76: =IF(AD76="","",VLOOKUP(AD76,高度表!$A:$C,3,FALSE)) ->  | BA76: =IF(AE76="","",VLOOKUP(AE76,高度表!$A:$C,3,FALSE)) ->  | BB76: =IF(AF76="","",VLOOKUP(AF76,高度表!$A:$C,3,FALSE)) ->  | BC76: =IF(AG76="","",VLOOKUP(AG76,高度表!$A:$C,3,FALSE)) ->  | BD76: =IF(AH76="","",VLOOKUP(AH76,高度表!$A:$C,3,FALSE)) ->  | BE76: 0.15 | BF76: 0 | BG76: 0.15 | BH76: 0.3 | BI76: 0.45 | BQ76: 106000;105000;105000;105000 | BR76: 0;0;0;0 | BS76: 0;1.2;2.4;3.6 | BT76: 0;0.15;0.3;0.45 | BU76: 9;9;9;9 | BV76: =IF(SUM(IF(N76="",0,IF(VLOOKUP(N76,怪物表!$A:$E,5,FALSE)=3,1,0)),IF(O76="",0,IF(VLOOKUP(O76,怪物表!$A:$E,5,FALSE)=3,1,0)),IF(P76="",0,IF(VLOOKUP(P76,怪物表!$A:$E,5,FALSE)=3,1,0)),IF(Q76="",0,IF(VLOOKUP(Q76,怪物表!$A:$E,5,FALSE)=3,1,0)),IF(R76="",0,IF(VLOOKUP(R76,怪物表!$A:$E,5,FALSE)=3,1,0)),IF(S76="",0,IF(VLOOKUP(S76,怪物表!$A:$E,5,FALSE)=3,1,0)),IF(T76="",0,IF(VLOOKUP(T76,怪物表!$A:$E,5,FALSE)=3,1,0)),IF(U76="",0,IF(VLOOKUP(U76,怪物表!$A:$E,5,FALSE)=3,1,0)),IF(V76="",0,IF(VLOOKUP(V76,怪物表!$A:$E,5,FALSE)=3,1,0)),IF(W76="",0,IF(VLOOKUP(W76,怪物表!$A:$E,5,FALSE)=3,1,0)))>0,180,120)*BW76/100 -> 120 | BW76: 100 | BX76: 100
A77: 100341 | B77: 3-2小怪 | C77: 9 | D77: 9 | E77: 9 | F77: 9 | N77: 102000 | O77: 102002 | P77: 102003 | Q77: 102003 | X77: =SUM(IF(N77="",0,VLOOKUP(N77,怪物表!$A:$D,3,FALSE)),IF(O77="",0,VLOOKUP(O77,怪物表!$A:$D,3,FALSE)),IF(P77="",0,VLOOKUP(P77,怪物表!$A:$D,3,FALSE)),IF(Q77="",0,VLOOKUP(Q77,怪物表!$A:$D,3,FALSE)),IF(R77="",0,VLOOKUP(R77,怪物表!$A:$D,3,FALSE)),IF(S77="",0,VLOOKUP(S77,怪物表!$A:$D,3,FALSE)),IF(T77="",0,VLOOKUP(T77,怪物表!$A:$D,3,FALSE)),IF(U77="",0,VLOOKUP(U77,怪物表!$A:$D,3,FALSE)),IF(V77="",0,VLOOKUP(V77,怪物表!$A:$D,3,FALSE)),IF(W77="",0,VLOOKUP(W77,怪物表!$A:$D,3,FALSE))) -> 15 | Y77: =IF(N77="","",IF(VLOOKUP(N77,怪物表!$A:$D,4,FALSE)=1,2,0)) -> 0 | Z77: =IF(O77="","",IF(VLOOKUP(O77,怪物表!$A:$D,4,FALSE)=1,2,0)) -> 0 | AA77: =IF(P77="","",IF(VLOOKUP(P77,怪物表!$A:$D,4,FALSE)=1,2,0)) -> 0 | AB77: =IF(Q77="","",IF(VLOOKUP(Q77,怪物表!$A:$D,4,FALSE)=1,2,0)) -> 0 | AC77: =IF(R77="","",IF(VLOOKUP(R77,怪物表!$A:$D,4,FALSE)=1,2,0)) ->  | AD77: =IF(S77="","",IF(VLOOKUP(S77,怪物表!$A:$D,4,FALSE)=1,2,0)) ->  | AE77: =IF(T77="","",IF(VLOOKUP(T77,怪物表!$A:$D,4,FALSE)=1,2,0)) ->  | AF77: =IF(U77="","",IF(VLOOKUP(U77,怪物表!$A:$D,4,FALSE)=1,2,0)) ->  | AG77: =IF(V77="","",IF(VLOOKUP(V77,怪物表!$A:$D,4,FALSE)=1,2,0)) ->  | AH77: =IF(W77="","",IF(VLOOKUP(W77,怪物表!$A:$D,4,FALSE)=1,2,0)) ->  | AI77: 1.2 | AJ77: =IF(N77="","",0*$AI77) -> 0 | AK77: =IF(O77="","",1*$AI77) -> 1.2 | AL77: =IF(P77="","",2*$AI77) -> 2.4 | AM77: =IF(Q77="","",3*$AI77) -> 3.6 | AN77: =IF(R77="","",4*$AI77) ->  | AU77: =IF(Y77="","",VLOOKUP(Y77,高度表!$A:$C,3,FALSE)) -> 0 | AV77: =IF(Z77="","",VLOOKUP(Z77,高度表!$A:$C,3,FALSE)) -> 0 | AW77: =IF(AA77="","",VLOOKUP(AA77,高度表!$A:$C,3,FALSE)) -> 0 | AX77: =IF(AB77="","",VLOOKUP(AB77,高度表!$A:$C,3,FALSE)) -> 0 | AY77: =IF(AC77="","",VLOOKUP(AC77,高度表!$A:$C,3,FALSE)) ->  | AZ77: =IF(AD77="","",VLOOKUP(AD77,高度表!$A:$C,3,FALSE)) ->  | BA77: =IF(AE77="","",VLOOKUP(AE77,高度表!$A:$C,3,FALSE)) ->  | BB77: =IF(AF77="","",VLOOKUP(AF77,高度表!$A:$C,3,FALSE)) ->  | BC77: =IF(AG77="","",VLOOKUP(AG77,高度表!$A:$C,3,FALSE)) ->  | BD77: =IF(AH77="","",VLOOKUP(AH77,高度表!$A:$C,3,FALSE)) ->  | BE77: 0.15 | BF77: 0 | BG77: 0.15 | BH77: 0.3 | BI77: 0.45 | BQ77: 102000;102002;102003;102003 | BR77: 0;0;0;0 | BS77: 0;1.2;2.4;3.6 | BT77: 0;0.15;0.3;0.45 | BU77: 9;9;9;9 | BV77: =IF(SUM(IF(N77="",0,IF(VLOOKUP(N77,怪物表!$A:$E,5,FALSE)=3,1,0)),IF(O77="",0,IF(VLOOKUP(O77,怪物表!$A:$E,5,FALSE)=3,1,0)),IF(P77="",0,IF(VLOOKUP(P77,怪物表!$A:$E,5,FALSE)=3,1,0)),IF(Q77="",0,IF(VLOOKUP(Q77,怪物表!$A:$E,5,FALSE)=3,1,0)),IF(R77="",0,IF(VLOOKUP(R77,怪物表!$A:$E,5,FALSE)=3,1,0)),IF(S77="",0,IF(VLOOKUP(S77,怪物表!$A:$E,5,FALSE)=3,1,0)),IF(T77="",0,IF(VLOOKUP(T77,怪物表!$A:$E,5,FALSE)=3,1,0)),IF(U77="",0,IF(VLOOKUP(U77,怪物表!$A:$E,5,FALSE)=3,1,0)),IF(V77="",0,IF(VLOOKUP(V77,怪物表!$A:$E,5,FALSE)=3,1,0)),IF(W77="",0,IF(VLOOKUP(W77,怪物表!$A:$E,5,FALSE)=3,1,0)))>0,180,120)*BW77/100 -> 120 | BW77: 100 | BX77: 100
A78: 100342 | B78: 3-2小怪 | C78: 9 | D78: 9 | E78: 9 | F78: 9 | G78: 9 | N78: 100000 | O78: 100008 | P78: 100000 | Q78: 100008 | R78: 100000 | X78: =SUM(IF(N78="",0,VLOOKUP(N78,怪物表!$A:$D,3,FALSE)),IF(O78="",0,VLOOKUP(O78,怪物表!$A:$D,3,FALSE)),IF(P78="",0,VLOOKUP(P78,怪物表!$A:$D,3,FALSE)),IF(Q78="",0,VLOOKUP(Q78,怪物表!$A:$D,3,FALSE)),IF(R78="",0,VLOOKUP(R78,怪物表!$A:$D,3,FALSE)),IF(S78="",0,VLOOKUP(S78,怪物表!$A:$D,3,FALSE)),IF(T78="",0,VLOOKUP(T78,怪物表!$A:$D,3,FALSE)),IF(U78="",0,VLOOKUP(U78,怪物表!$A:$D,3,FALSE)),IF(V78="",0,VLOOKUP(V78,怪物表!$A:$D,3,FALSE)),IF(W78="",0,VLOOKUP(W78,怪物表!$A:$D,3,FALSE))) -> 10 | Y78: =IF(N78="","",IF(VLOOKUP(N78,怪物表!$A:$D,4,FALSE)=1,2,0)) -> 0 | Z78: =IF(O78="","",IF(VLOOKUP(O78,怪物表!$A:$D,4,FALSE)=1,2,0)) -> 2 | AA78: =IF(P78="","",IF(VLOOKUP(P78,怪物表!$A:$D,4,FALSE)=1,2,0)) -> 0 | AB78: =IF(Q78="","",IF(VLOOKUP(Q78,怪物表!$A:$D,4,FALSE)=1,2,0)) -> 2 | AC78: =IF(R78="","",IF(VLOOKUP(R78,怪物表!$A:$D,4,FALSE)=1,2,0)) -> 0 | AD78: =IF(S78="","",IF(VLOOKUP(S78,怪物表!$A:$D,4,FALSE)=1,2,0)) ->  | AE78: =IF(T78="","",IF(VLOOKUP(T78,怪物表!$A:$D,4,FALSE)=1,2,0)) ->  | AF78: =IF(U78="","",IF(VLOOKUP(U78,怪物表!$A:$D,4,FALSE)=1,2,0)) ->  | AG78: =IF(V78="","",IF(VLOOKUP(V78,怪物表!$A:$D,4,FALSE)=1,2,0)) ->  | AH78: =IF(W78="","",IF(VLOOKUP(W78,怪物表!$A:$D,4,FALSE)=1,2,0)) ->  | AI78: 1.2 | AJ78: 0 | AK78: 1.2 | AL78: 2.4 | AM78: 3.6 | AN78: 4.8 | AU78: =IF(Y78="","",VLOOKUP(Y78,高度表!$A:$C,3,FALSE)) -> 0 | AV78: =IF(Z78="","",VLOOKUP(Z78,高度表!$A:$C,3,FALSE)) -> 1.8 | AW78: =IF(AA78="","",VLOOKUP(AA78,高度表!$A:$C,3,FALSE)) -> 0 | AX78: =IF(AB78="","",VLOOKUP(AB78,高度表!$A:$C,3,FALSE)) -> 1.8 | AY78: =IF(AC78="","",VLOOKUP(AC78,高度表!$A:$C,3,FALSE)) -> 0 | AZ78: =IF(AD78="","",VLOOKUP(AD78,高度表!$A:$C,3,FALSE)) ->  | BA78: =IF(AE78="","",VLOOKUP(AE78,高度表!$A:$C,3,FALSE)) ->  | BB78: =IF(AF78="","",VLOOKUP(AF78,高度表!$A:$C,3,FALSE)) ->  | BC78: =IF(AG78="","",VLOOKUP(AG78,高度表!$A:$C,3,FALSE)) ->  | BD78: =IF(AH78="","",VLOOKUP(AH78,高度表!$A:$C,3,FALSE)) ->  | BE78: 0.15 | BF78: 0 | BG78: 0.15 | BH78: 0.3 | BI78: 0.45 | BJ78: 0.6 | BQ78: 100000;100008;100000;100008;100000 | BR78: 0;1.8;0;1.8;0 | BS78: 0;1.2;2.4;3.6;4.8 | BT78: 0;0.15;0.3;0.45;0.6 | BU78: 9;9;9;9;9 | BV78: =IF(SUM(IF(N78="",0,IF(VLOOKUP(N78,怪物表!$A:$E,5,FALSE)=3,1,0)),IF(O78="",0,IF(VLOOKUP(O78,怪物表!$A:$E,5,FALSE)=3,1,0)),IF(P78="",0,IF(VLOOKUP(P78,怪物表!$A:$E,5,FALSE)=3,1,0)),IF(Q78="",0,IF(VLOOKUP(Q78,怪物表!$A:$E,5,FALSE)=3,1,0)),IF(R78="",0,IF(VLOOKUP(R78,怪物表!$A:$E,5,FALSE)=3,1,0)),IF(S78="",0,IF(VLOOKUP(S78,怪物表!$A:$E,5,FALSE)=3,1,0)),IF(T78="",0,IF(VLOOKUP(T78,怪物表!$A:$E,5,FALSE)=3,1,0)),IF(U78="",0,IF(VLOOKUP(U78,怪物表!$A:$E,5,FALSE)=3,1,0)),IF(V78="",0,IF(VLOOKUP(V78,怪物表!$A:$E,5,FALSE)=3,1,0)),IF(W78="",0,IF(VLOOKUP(W78,怪物表!$A:$E,5,FALSE)=3,1,0)))>0,180,120)*BW78/100 -> 120 | BW78: 100 | BX78: 100
A79: 100343 | B79: 3-2小怪 | C79: 9 | D79: 9 | E79: 9 | F79: 9 | G79: 9 | H79: 9 | N79: 100004 | O79: 100010 | P79: 100000 | Q79: 100000 | R79: 100010 | S79: 100000 | X79: =SUM(IF(N79="",0,VLOOKUP(N79,怪物表!$A:$D,3,FALSE)),IF(O79="",0,VLOOKUP(O79,怪物表!$A:$D,3,FALSE)),IF(P79="",0,VLOOKUP(P79,怪物表!$A:$D,3,FALSE)),IF(Q79="",0,VLOOKUP(Q79,怪物表!$A:$D,3,FALSE)),IF(R79="",0,VLOOKUP(R79,怪物表!$A:$D,3,FALSE)),IF(S79="",0,VLOOKUP(S79,怪物表!$A:$D,3,FALSE)),IF(T79="",0,VLOOKUP(T79,怪物表!$A:$D,3,FALSE)),IF(U79="",0,VLOOKUP(U79,怪物表!$A:$D,3,FALSE)),IF(V79="",0,VLOOKUP(V79,怪物表!$A:$D,3,FALSE)),IF(W79="",0,VLOOKUP(W79,怪物表!$A:$D,3,FALSE))) -> 12 | Y79: =IF(N79="","",IF(VLOOKUP(N79,怪物表!$A:$D,4,FALSE)=1,2,0)) -> 0 | Z79: =IF(O79="","",IF(VLOOKUP(O79,怪物表!$A:$D,4,FALSE)=1,2,0)) -> 2 | AA79: =IF(P79="","",IF(VLOOKUP(P79,怪物表!$A:$D,4,FALSE)=1,2,0)) -> 0 | AB79: =IF(Q79="","",IF(VLOOKUP(Q79,怪物表!$A:$D,4,FALSE)=1,2,0)) -> 0 | AC79: =IF(R79="","",IF(VLOOKUP(R79,怪物表!$A:$D,4,FALSE)=1,2,0)) -> 2 | AD79: =IF(S79="","",IF(VLOOKUP(S79,怪物表!$A:$D,4,FALSE)=1,2,0)) -> 0 | AE79: =IF(T79="","",IF(VLOOKUP(T79,怪物表!$A:$D,4,FALSE)=1,2,0)) ->  | AF79: =IF(U79="","",IF(VLOOKUP(U79,怪物表!$A:$D,4,FALSE)=1,2,0)) ->  | AG79: =IF(V79="","",IF(VLOOKUP(V79,怪物表!$A:$D,4,FALSE)=1,2,0)) ->  | AH79: =IF(W79="","",IF(VLOOKUP(W79,怪物表!$A:$D,4,FALSE)=1,2,0)) ->  | AI79: 3 | AJ79: 0 | AK79: 3 | AL79: 6 | AM79: 9 | AN79: 12 | AO79: 15 | AU79: =IF(Y79="","",VLOOKUP(Y79,高度表!$A:$C,3,FALSE)) -> 0 | AV79: =IF(Z79="","",VLOOKUP(Z79,高度表!$A:$C,3,FALSE)) -> 1.8 | AW79: =IF(AA79="","",VLOOKUP(AA79,高度表!$A:$C,3,FALSE)) -> 0 | AX79: =IF(AB79="","",VLOOKUP(AB79,高度表!$A:$C,3,FALSE)) -> 0 | AY79: =IF(AC79="","",VLOOKUP(AC79,高度表!$A:$C,3,FALSE)) -> 1.8 | AZ79: =IF(AD79="","",VLOOKUP(AD79,高度表!$A:$C,3,FALSE)) -> 0 | BA79: =IF(AE79="","",VLOOKUP(AE79,高度表!$A:$C,3,FALSE)) ->  | BB79: =IF(AF79="","",VLOOKUP(AF79,高度表!$A:$C,3,FALSE)) ->  | BC79: =IF(AG79="","",VLOOKUP(AG79,高度表!$A:$C,3,FALSE)) ->  | BD79: =IF(AH79="","",VLOOKUP(AH79,高度表!$A:$C,3,FALSE)) ->  | BE79: 0.15 | BF79: 0 | BG79: 0.15 | BH79: 0.3 | BI79: 0.45 | BJ79: 0.6 | BK79: 0.75 | BQ79: 100004;100010;100000;100000;100010;100000 | BR79: 0;1.8;0;0;1.8;0 | BS79: 0;3;6;9;12;15 | BT79: 0;0.15;0.3;0.45;0.6;0.75 | BU79: 9;9;9;9;9;9 | BV79: =IF(SUM(IF(N79="",0,IF(VLOOKUP(N79,怪物表!$A:$E,5,FALSE)=3,1,0)),IF(O79="",0,IF(VLOOKUP(O79,怪物表!$A:$E,5,FALSE)=3,1,0)),IF(P79="",0,IF(VLOOKUP(P79,怪物表!$A:$E,5,FALSE)=3,1,0)),IF(Q79="",0,IF(VLOOKUP(Q79,怪物表!$A:$E,5,FALSE)=3,1,0)),IF(R79="",0,IF(VLOOKUP(R79,怪物表!$A:$E,5,FALSE)=3,1,0)),IF(S79="",0,IF(VLOOKUP(S79,怪物表!$A:$E,5,FALSE)=3,1,0)),IF(T79="",0,IF(VLOOKUP(T79,怪物表!$A:$E,5,FALSE)=3,1,0)),IF(U79="",0,IF(VLOOKUP(U79,怪物表!$A:$E,5,FALSE)=3,1,0)),IF(V79="",0,IF(VLOOKUP(V79,怪物表!$A:$E,5,FALSE)=3,1,0)),IF(W79="",0,IF(VLOOKUP(W79,怪物表!$A:$E,5,FALSE)=3,1,0)))>0,180,120)*BW79/100 -> 120 | BW79: 100 | BX79: 100
A80: 100344 | B80: 3-2精英 | C80: 9 | D80: 9 | E80: 9 | F80: 9 | G80: 9 | N80: 101001 | O80: 102002 | P80: 102003 | Q80: 107000 | R80: 103003 | X80: =SUM(IF(N80="",0,VLOOKUP(N80,怪物表!$A:$D,3,FALSE)),IF(O80="",0,VLOOKUP(O80,怪物表!$A:$D,3,FALSE)),IF(P80="",0,VLOOKUP(P80,怪物表!$A:$D,3,FALSE)),IF(Q80="",0,VLOOKUP(Q80,怪物表!$A:$D,3,FALSE)),IF(R80="",0,VLOOKUP(R80,怪物表!$A:$D,3,FALSE)),IF(S80="",0,VLOOKUP(S80,怪物表!$A:$D,3,FALSE)),IF(T80="",0,VLOOKUP(T80,怪物表!$A:$D,3,FALSE)),IF(U80="",0,VLOOKUP(U80,怪物表!$A:$D,3,FALSE)),IF(V80="",0,VLOOKUP(V80,怪物表!$A:$D,3,FALSE)),IF(W80="",0,VLOOKUP(W80,怪物表!$A:$D,3,FALSE))) -> 27 | Y80: =IF(N80="","",IF(VLOOKUP(N80,怪物表!$A:$D,4,FALSE)=1,2,0)) -> 0 | Z80: =IF(O80="","",IF(VLOOKUP(O80,怪物表!$A:$D,4,FALSE)=1,2,0)) -> 0 | AA80: =IF(P80="","",IF(VLOOKUP(P80,怪物表!$A:$D,4,FALSE)=1,2,0)) -> 0 | AB80: =IF(Q80="","",IF(VLOOKUP(Q80,怪物表!$A:$D,4,FALSE)=1,2,0)) -> 2 | AC80: =IF(R80="","",IF(VLOOKUP(R80,怪物表!$A:$D,4,FALSE)=1,2,0)) -> 2 | AD80: =IF(S80="","",IF(VLOOKUP(S80,怪物表!$A:$D,4,FALSE)=1,2,0)) ->  | AE80: =IF(T80="","",IF(VLOOKUP(T80,怪物表!$A:$D,4,FALSE)=1,2,0)) ->  | AF80: =IF(U80="","",IF(VLOOKUP(U80,怪物表!$A:$D,4,FALSE)=1,2,0)) ->  | AG80: =IF(V80="","",IF(VLOOKUP(V80,怪物表!$A:$D,4,FALSE)=1,2,0)) ->  | AH80: =IF(W80="","",IF(VLOOKUP(W80,怪物表!$A:$D,4,FALSE)=1,2,0)) ->  | AI80: 1.2 | AJ80: 0 | AK80: 1.2 | AL80: 2.4 | AM80: 3.6 | AN80: 4.8 | AU80: =IF(Y80="","",VLOOKUP(Y80,高度表!$A:$C,3,FALSE)) -> 0 | AV80: =IF(Z80="","",VLOOKUP(Z80,高度表!$A:$C,3,FALSE)) -> 0 | AW80: =IF(AA80="","",VLOOKUP(AA80,高度表!$A:$C,3,FALSE)) -> 0 | AX80: =IF(AB80="","",VLOOKUP(AB80,高度表!$A:$C,3,FALSE)) -> 1.8 | AY80: =IF(AC80="","",VLOOKUP(AC80,高度表!$A:$C,3,FALSE)) -> 1.8 | AZ80: =IF(AD80="","",VLOOKUP(AD80,高度表!$A:$C,3,FALSE)) ->  | BA80: =IF(AE80="","",VLOOKUP(AE80,高度表!$A:$C,3,FALSE)) ->  | BB80: =IF(AF80="","",VLOOKUP(AF80,高度表!$A:$C,3,FALSE)) ->  | BC80: =IF(AG80="","",VLOOKUP(AG80,高度表!$A:$C,3,FALSE)) ->  | BD80: =IF(AH80="","",VLOOKUP(AH80,高度表!$A:$C,3,FALSE)) ->  | BE80: 0.15 | BF80: 0 | BG80: 0.15 | BH80: 0.3 | BI80: 0.45 | BJ80: 0.6 | BQ80: 101001;102002;102003;107000;103003 | BR80: 0;0;0;1.8;1.8 | BS80: 0;1.2;2.4;3.6;4.8 | BT80: 0;0.15;0.3;0.45;0.6 | BU80: 9;9;9;9;9 | BV80: =IF(SUM(IF(N80="",0,IF(VLOOKUP(N80,怪物表!$A:$E,5,FALSE)=3,1,0)),IF(O80="",0,IF(VLOOKUP(O80,怪物表!$A:$E,5,FALSE)=3,1,0)),IF(P80="",0,IF(VLOOKUP(P80,怪物表!$A:$E,5,FALSE)=3,1,0)),IF(Q80="",0,IF(VLOOKUP(Q80,怪物表!$A:$E,5,FALSE)=3,1,0)),IF(R80="",0,IF(VLOOKUP(R80,怪物表!$A:$E,5,FALSE)=3,1,0)),IF(S80="",0,IF(VLOOKUP(S80,怪物表!$A:$E,5,FALSE)=3,1,0)),IF(T80="",0,IF(VLOOKUP(T80,怪物表!$A:$E,5,FALSE)=3,1,0)),IF(U80="",0,IF(VLOOKUP(U80,怪物表!$A:$E,5,FALSE)=3,1,0)),IF(V80="",0,IF(VLOOKUP(V80,怪物表!$A:$E,5,FALSE)=3,1,0)),IF(W80="",0,IF(VLOOKUP(W80,怪物表!$A:$E,5,FALSE)=3,1,0)))>0,180,120)*BW80/100 -> 120 | BW80: 100 | BX80: 100
A81: 100345 | B81: 3-3小怪 | C81: 9 | D81: 9 | E81: 9 | F81: 9 | G81: 9 | H81: 9 | N81: 105000 | O81: 103000 | P81: 100009 | Q81: 103000 | R81: 105000 | S81: 103000 | X81: =SUM(IF(N81="",0,VLOOKUP(N81,怪物表!$A:$D,3,FALSE)),IF(O81="",0,VLOOKUP(O81,怪物表!$A:$D,3,FALSE)),IF(P81="",0,VLOOKUP(P81,怪物表!$A:$D,3,FALSE)),IF(Q81="",0,VLOOKUP(Q81,怪物表!$A:$D,3,FALSE)),IF(R81="",0,VLOOKUP(R81,怪物表!$A:$D,3,FALSE)),IF(S81="",0,VLOOKUP(S81,怪物表!$A:$D,3,FALSE)),IF(T81="",0,VLOOKUP(T81,怪物表!$A:$D,3,FALSE)),IF(U81="",0,VLOOKUP(U81,怪物表!$A:$D,3,FALSE)),IF(V81="",0,VLOOKUP(V81,怪物表!$A:$D,3,FALSE)),IF(W81="",0,VLOOKUP(W81,怪物表!$A:$D,3,FALSE))) -> 12 | Y81: =IF(N81="","",IF(VLOOKUP(N81,怪物表!$A:$D,4,FALSE)=1,2,0)) -> 0 | Z81: =IF(O81="","",IF(VLOOKUP(O81,怪物表!$A:$D,4,FALSE)=1,2,0)) -> 2 | AA81: =IF(P81="","",IF(VLOOKUP(P81,怪物表!$A:$D,4,FALSE)=1,2,0)) -> 2 | AB81: 1 | AC81: =IF(R81="","",IF(VLOOKUP(R81,怪物表!$A:$D,4,FALSE)=1,2,0)) -> 0 | AD81: 3 | AE81: =IF(T81="","",IF(VLOOKUP(T81,怪物表!$A:$D,4,FALSE)=1,2,0)) ->  | AF81: =IF(U81="","",IF(VLOOKUP(U81,怪物表!$A:$D,4,FALSE)=1,2,0)) ->  | AG81: =IF(V81="","",IF(VLOOKUP(V81,怪物表!$A:$D,4,FALSE)=1,2,0)) ->  | AH81: =IF(W81="","",IF(VLOOKUP(W81,怪物表!$A:$D,4,FALSE)=1,2,0)) ->  | AI81: 2 | AJ81: 0 | AK81: 2 | AL81: 4 | AM81: 6 | AN81: 8 | AO81: 10 | AU81: =IF(Y81="","",VLOOKUP(Y81,高度表!$A:$C,3,FALSE)) -> 0 | AV81: =IF(Z81="","",VLOOKUP(Z81,高度表!$A:$C,3,FALSE)) -> 1.8 | AW81: =IF(AA81="","",VLOOKUP(AA81,高度表!$A:$C,3,FALSE)) -> 1.8 | AX81: =IF(AB81="","",VLOOKUP(AB81,高度表!$A:$C,3,FALSE)) -> 1.1 | AY81: =IF(AC81="","",VLOOKUP(AC81,高度表!$A:$C,3,FALSE)) -> 0 | AZ81: =IF(AD81="","",VLOOKUP(AD81,高度表!$A:$C,3,FALSE)) -> 2.5 | BA81: =IF(AE81="","",VLOOKUP(AE81,高度表!$A:$C,3,FALSE)) ->  | BB81: =IF(AF81="","",VLOOKUP(AF81,高度表!$A:$C,3,FALSE)) ->  | BC81: =IF(AG81="","",VLOOKUP(AG81,高度表!$A:$C,3,FALSE)) ->  | BD81: =IF(AH81="","",VLOOKUP(AH81,高度表!$A:$C,3,FALSE)) ->  | BE81: 0.15 | BF81: 0 | BG81: 0.15 | BH81: 0.3 | BI81: 0.45 | BJ81: 0.6 | BK81: 0.75 | BQ81: 105000;103000;100009;103000;105000;103000 | BR81: 0;1.8;1.8;1.1;0;2.5 | BS81: 0;2;4;6;8;10 | BT81: 0;0.15;0.3;0.45;0.6;0.75 | BU81: 9;9;9;9;9;9 | BV81: =IF(SUM(IF(N81="",0,IF(VLOOKUP(N81,怪物表!$A:$E,5,FALSE)=3,1,0)),IF(O81="",0,IF(VLOOKUP(O81,怪物表!$A:$E,5,FALSE)=3,1,0)),IF(P81="",0,IF(VLOOKUP(P81,怪物表!$A:$E,5,FALSE)=3,1,0)),IF(Q81="",0,IF(VLOOKUP(Q81,怪物表!$A:$E,5,FALSE)=3,1,0)),IF(R81="",0,IF(VLOOKUP(R81,怪物表!$A:$E,5,FALSE)=3,1,0)),IF(S81="",0,IF(VLOOKUP(S81,怪物表!$A:$E,5,FALSE)=3,1,0)),IF(T81="",0,IF(VLOOKUP(T81,怪物表!$A:$E,5,FALSE)=3,1,0)),IF(U81="",0,IF(VLOOKUP(U81,怪物表!$A:$E,5,FALSE)=3,1,0)),IF(V81="",0,IF(VLOOKUP(V81,怪物表!$A:$E,5,FALSE)=3,1,0)),IF(W81="",0,IF(VLOOKUP(W81,怪物表!$A:$E,5,FALSE)=3,1,0)))>0,180,120)*BW81/100 -> 120 | BW81: 100 | BX81: 100
A82: 100346 | B82: 3-3小怪 | C82: 9 | D82: 9 | E82: 9 | F82: 9 | G82: 9 | H82: 9 | N82: 100004 | O82: 103000 | P82: 100009 | Q82: 103000 | R82: 103000 | S82: 105000 | X82: =SUM(IF(N82="",0,VLOOKUP(N82,怪物表!$A:$D,3,FALSE)),IF(O82="",0,VLOOKUP(O82,怪物表!$A:$D,3,FALSE)),IF(P82="",0,VLOOKUP(P82,怪物表!$A:$D,3,FALSE)),IF(Q82="",0,VLOOKUP(Q82,怪物表!$A:$D,3,FALSE)),IF(R82="",0,VLOOKUP(R82,怪物表!$A:$D,3,FALSE)),IF(S82="",0,VLOOKUP(S82,怪物表!$A:$D,3,FALSE)),IF(T82="",0,VLOOKUP(T82,怪物表!$A:$D,3,FALSE)),IF(U82="",0,VLOOKUP(U82,怪物表!$A:$D,3,FALSE)),IF(V82="",0,VLOOKUP(V82,怪物表!$A:$D,3,FALSE)),IF(W82="",0,VLOOKUP(W82,怪物表!$A:$D,3,FALSE))) -> 12 | Y82: =IF(N82="","",IF(VLOOKUP(N82,怪物表!$A:$D,4,FALSE)=1,2,0)) -> 0 | Z82: 3 | AA82: =IF(P82="","",IF(VLOOKUP(P82,怪物表!$A:$D,4,FALSE)=1,2,0)) -> 2 | AB82: 3 | AC82: =IF(R82="","",IF(VLOOKUP(R82,怪物表!$A:$D,4,FALSE)=1,2,0)) -> 2 | AD82: =IF(S82="","",IF(VLOOKUP(S82,怪物表!$A:$D,4,FALSE)=1,2,0)) -> 0 | AE82: =IF(T82="","",IF(VLOOKUP(T82,怪物表!$A:$D,4,FALSE)=1,2,0)) ->  | AF82: =IF(U82="","",IF(VLOOKUP(U82,怪物表!$A:$D,4,FALSE)=1,2,0)) ->  | AG82: =IF(V82="","",IF(VLOOKUP(V82,怪物表!$A:$D,4,FALSE)=1,2,0)) ->  | AH82: =IF(W82="","",IF(VLOOKUP(W82,怪物表!$A:$D,4,FALSE)=1,2,0)) ->  | AI82: 1.2 | AJ82: 0 | AK82: 1.2 | AL82: 2.4 | AM82: 3.6 | AN82: 4.8 | AO82: 6 | AU82: =IF(Y82="","",VLOOKUP(Y82,高度表!$A:$C,3,FALSE)) -> 0 | AV82: =IF(Z82="","",VLOOKUP(Z82,高度表!$A:$C,3,FALSE)) -> 2.5 | AW82: =IF(AA82="","",VLOOKUP(AA82,高度表!$A:$C,3,FALSE)) -> 1.8 | AX82: =IF(AB82="","",VLOOKUP(AB82,高度表!$A:$C,3,FALSE)) -> 2.5 | AY82: =IF(AC82="","",VLOOKUP(AC82,高度表!$A:$C,3,FALSE)) -> 1.8 | AZ82: =IF(AD82="","",VLOOKUP(AD82,高度表!$A:$C,3,FALSE)) -> 0 | BA82: =IF(AE82="","",VLOOKUP(AE82,高度表!$A:$C,3,FALSE)) ->  | BB82: =IF(AF82="","",VLOOKUP(AF82,高度表!$A:$C,3,FALSE)) ->  | BC82: =IF(AG82="","",VLOOKUP(AG82,高度表!$A:$C,3,FALSE)) ->  | BD82: =IF(AH82="","",VLOOKUP(AH82,高度表!$A:$C,3,FALSE)) ->  | BE82: 0.15 | BF82: 0 | BG82: 0.15 | BH82: 0.3 | BI82: 0.45 | BJ82: 0.6 | BK82: 0.75 | BQ82: 100004;103000;100009;103000;103000;105000 | BR82: 0;2.5;1.8;2.5;1.8;0 | BS82: 0;1.2;2.4;3.6;4.8;6 | BT82: 0;0.15;0.3;0.45;0.6;0.75 | BU82: 9;9;9;9;9;9 | BV82: =IF(SUM(IF(N82="",0,IF(VLOOKUP(N82,怪物表!$A:$E,5,FALSE)=3,1,0)),IF(O82="",0,IF(VLOOKUP(O82,怪物表!$A:$E,5,FALSE)=3,1,0)),IF(P82="",0,IF(VLOOKUP(P82,怪物表!$A:$E,5,FALSE)=3,1,0)),IF(Q82="",0,IF(VLOOKUP(Q82,怪物表!$A:$E,5,FALSE)=3,1,0)),IF(R82="",0,IF(VLOOKUP(R82,怪物表!$A:$E,5,FALSE)=3,1,0)),IF(S82="",0,IF(VLOOKUP(S82,怪物表!$A:$E,5,FALSE)=3,1,0)),IF(T82="",0,IF(VLOOKUP(T82,怪物表!$A:$E,5,FALSE)=3,1,0)),IF(U82="",0,IF(VLOOKUP(U82,怪物表!$A:$E,5,FALSE)=3,1,0)),IF(V82="",0,IF(VLOOKUP(V82,怪物表!$A:$E,5,FALSE)=3,1,0)),IF(W82="",0,IF(VLOOKUP(W82,怪物表!$A:$E,5,FALSE)=3,1,0)))>0,180,120)*BW82/100 -> 120 | BW82: 100 | BX82: 100
A83: 100347 | B83: 3-3小怪 | C83: 9 | D83: 9 | E83: 9 | N83: 205000 | O83: 105000 | P83: 100009 | X83: =SUM(IF(N83="",0,VLOOKUP(N83,怪物表!$A:$D,3,FALSE)),IF(O83="",0,VLOOKUP(O83,怪物表!$A:$D,3,FALSE)),IF(P83="",0,VLOOKUP(P83,怪物表!$A:$D,3,FALSE)),IF(Q83="",0,VLOOKUP(Q83,怪物表!$A:$D,3,FALSE)),IF(R83="",0,VLOOKUP(R83,怪物表!$A:$D,3,FALSE)),IF(S83="",0,VLOOKUP(S83,怪物表!$A:$D,3,FALSE)),IF(T83="",0,VLOOKUP(T83,怪物表!$A:$D,3,FALSE)),IF(U83="",0,VLOOKUP(U83,怪物表!$A:$D,3,FALSE)),IF(V83="",0,VLOOKUP(V83,怪物表!$A:$D,3,FALSE)),IF(W83="",0,VLOOKUP(W83,怪物表!$A:$D,3,FALSE))) -> 12 | Y83: =IF(N83="","",IF(VLOOKUP(N83,怪物表!$A:$D,4,FALSE)=1,2,0)) -> 0 | Z83: =IF(O83="","",IF(VLOOKUP(O83,怪物表!$A:$D,4,FALSE)=1,2,0)) -> 0 | AA83: =IF(P83="","",IF(VLOOKUP(P83,怪物表!$A:$D,4,FALSE)=1,2,0)) -> 2 | AB83: =IF(Q83="","",IF(VLOOKUP(Q83,怪物表!$A:$D,4,FALSE)=1,2,0)) ->  | AC83: =IF(R83="","",IF(VLOOKUP(R83,怪物表!$A:$D,4,FALSE)=1,2,0)) ->  | AD83: =IF(S83="","",IF(VLOOKUP(S83,怪物表!$A:$D,4,FALSE)=1,2,0)) ->  | AE83: =IF(T83="","",IF(VLOOKUP(T83,怪物表!$A:$D,4,FALSE)=1,2,0)) ->  | AF83: =IF(U83="","",IF(VLOOKUP(U83,怪物表!$A:$D,4,FALSE)=1,2,0)) ->  | AG83: =IF(V83="","",IF(VLOOKUP(V83,怪物表!$A:$D,4,FALSE)=1,2,0)) ->  | AH83: =IF(W83="","",IF(VLOOKUP(W83,怪物表!$A:$D,4,FALSE)=1,2,0)) ->  | AI83: 1.2 | AJ83: 0 | AK83: 1.2 | AL83: 2.4 | AU83: =IF(Y83="","",VLOOKUP(Y83,高度表!$A:$C,3,FALSE)) -> 0 | AV83: =IF(Z83="","",VLOOKUP(Z83,高度表!$A:$C,3,FALSE)) -> 0 | AW83: =IF(AA83="","",VLOOKUP(AA83,高度表!$A:$C,3,FALSE)) -> 1.8 | AX83: =IF(AB83="","",VLOOKUP(AB83,高度表!$A:$C,3,FALSE)) ->  | AY83: =IF(AC83="","",VLOOKUP(AC83,高度表!$A:$C,3,FALSE)) ->  | AZ83: =IF(AD83="","",VLOOKUP(AD83,高度表!$A:$C,3,FALSE)) ->  | BA83: =IF(AE83="","",VLOOKUP(AE83,高度表!$A:$C,3,FALSE)) ->  | BB83: =IF(AF83="","",VLOOKUP(AF83,高度表!$A:$C,3,FALSE)) ->  | BC83: =IF(AG83="","",VLOOKUP(AG83,高度表!$A:$C,3,FALSE)) ->  | BD83: =IF(AH83="","",VLOOKUP(AH83,高度表!$A:$C,3,FALSE)) ->  | BE83: 0.15 | BF83: 0 | BG83: 0.15 | BH83: 0.3 | BQ83: 205000;105000;100009 | BR83: 0;0;1.8 | BS83: 0;1.2;2.4 | BT83: 0;0.15;0.3 | BU83: 9;9;9 | BV83: =IF(SUM(IF(N83="",0,IF(VLOOKUP(N83,怪物表!$A:$E,5,FALSE)=3,1,0)),IF(O83="",0,IF(VLOOKUP(O83,怪物表!$A:$E,5,FALSE)=3,1,0)),IF(P83="",0,IF(VLOOKUP(P83,怪物表!$A:$E,5,FALSE)=3,1,0)),IF(Q83="",0,IF(VLOOKUP(Q83,怪物表!$A:$E,5,FALSE)=3,1,0)),IF(R83="",0,IF(VLOOKUP(R83,怪物表!$A:$E,5,FALSE)=3,1,0)),IF(S83="",0,IF(VLOOKUP(S83,怪物表!$A:$E,5,FALSE)=3,1,0)),IF(T83="",0,IF(VLOOKUP(T83,怪物表!$A:$E,5,FALSE)=3,1,0)),IF(U83="",0,IF(VLOOKUP(U83,怪物表!$A:$E,5,FALSE)=3,1,0)),IF(V83="",0,IF(VLOOKUP(V83,怪物表!$A:$E,5,FALSE)=3,1,0)),IF(W83="",0,IF(VLOOKUP(W83,怪物表!$A:$E,5,FALSE)=3,1,0)))>0,180,120)*BW83/100 -> 120 | BW83: 100 | BX83: 100
A84: 100348 | B84: 3-3小怪 | C84: 9 | D84: 9 | E84: 9 | F84: 9 | N84: 200004 | O84: 103000 | P84: 100009 | Q84: 103000 | X84: =SUM(IF(N84="",0,VLOOKUP(N84,怪物表!$A:$D,3,FALSE)),IF(O84="",0,VLOOKUP(O84,怪物表!$A:$D,3,FALSE)),IF(P84="",0,VLOOKUP(P84,怪物表!$A:$D,3,FALSE)),IF(Q84="",0,VLOOKUP(Q84,怪物表!$A:$D,3,FALSE)),IF(R84="",0,VLOOKUP(R84,怪物表!$A:$D,3,FALSE)),IF(S84="",0,VLOOKUP(S84,怪物表!$A:$D,3,FALSE)),IF(T84="",0,VLOOKUP(T84,怪物表!$A:$D,3,FALSE)),IF(U84="",0,VLOOKUP(U84,怪物表!$A:$D,3,FALSE)),IF(V84="",0,VLOOKUP(V84,怪物表!$A:$D,3,FALSE)),IF(W84="",0,VLOOKUP(W84,怪物表!$A:$D,3,FALSE))) -> 13 | Y84: =IF(N84="","",IF(VLOOKUP(N84,怪物表!$A:$D,4,FALSE)=1,2,0)) -> 0 | Z84: =IF(O84="","",IF(VLOOKUP(O84,怪物表!$A:$D,4,FALSE)=1,2,0)) -> 2 | AA84: 3 | AB84: =IF(Q84="","",IF(VLOOKUP(Q84,怪物表!$A:$D,4,FALSE)=1,2,0)) -> 2 | AC84: =IF(R84="","",IF(VLOOKUP(R84,怪物表!$A:$D,4,FALSE)=1,2,0)) ->  | AD84: =IF(S84="","",IF(VLOOKUP(S84,怪物表!$A:$D,4,FALSE)=1,2,0)) ->  | AE84: =IF(T84="","",IF(VLOOKUP(T84,怪物表!$A:$D,4,FALSE)=1,2,0)) ->  | AF84: =IF(U84="","",IF(VLOOKUP(U84,怪物表!$A:$D,4,FALSE)=1,2,0)) ->  | AG84: =IF(V84="","",IF(VLOOKUP(V84,怪物表!$A:$D,4,FALSE)=1,2,0)) ->  | AH84: =IF(W84="","",IF(VLOOKUP(W84,怪物表!$A:$D,4,FALSE)=1,2,0)) ->  | AI84: 1.2 | AJ84: 0 | AK84: 1.2 | AL84: 2.4 | AM84: 3.6 | AU84: =IF(Y84="","",VLOOKUP(Y84,高度表!$A:$C,3,FALSE)) -> 0 | AV84: =IF(Z84="","",VLOOKUP(Z84,高度表!$A:$C,3,FALSE)) -> 1.8 | AW84: =IF(AA84="","",VLOOKUP(AA84,高度表!$A:$C,3,FALSE)) -> 2.5 | AX84: =IF(AB84="","",VLOOKUP(AB84,高度表!$A:$C,3,FALSE)) -> 1.8 | AY84: =IF(AC84="","",VLOOKUP(AC84,高度表!$A:$C,3,FALSE)) ->  | AZ84: =IF(AD84="","",VLOOKUP(AD84,高度表!$A:$C,3,FALSE)) ->  | BA84: =IF(AE84="","",VLOOKUP(AE84,高度表!$A:$C,3,FALSE)) ->  | BB84: =IF(AF84="","",VLOOKUP(AF84,高度表!$A:$C,3,FALSE)) ->  | BC84: =IF(AG84="","",VLOOKUP(AG84,高度表!$A:$C,3,FALSE)) ->  | BD84: =IF(AH84="","",VLOOKUP(AH84,高度表!$A:$C,3,FALSE)) ->  | BE84: 0.15 | BF84: 0 | BG84: 0.15 | BH84: 0.3 | BI84: 0.45 | BQ84: 200004;103000;100009;103000 | BR84: 0;1.8;2.5;1.8 | BS84: 0;1.2;2.4;3.6 | BT84: 0;0.15;0.3;0.45 | BU84: 9;9;9;9 | BV84: =IF(SUM(IF(N84="",0,IF(VLOOKUP(N84,怪物表!$A:$E,5,FALSE)=3,1,0)),IF(O84="",0,IF(VLOOKUP(O84,怪物表!$A:$E,5,FALSE)=3,1,0)),IF(P84="",0,IF(VLOOKUP(P84,怪物表!$A:$E,5,FALSE)=3,1,0)),IF(Q84="",0,IF(VLOOKUP(Q84,怪物表!$A:$E,5,FALSE)=3,1,0)),IF(R84="",0,IF(VLOOKUP(R84,怪物表!$A:$E,5,FALSE)=3,1,0)),IF(S84="",0,IF(VLOOKUP(S84,怪物表!$A:$E,5,FALSE)=3,1,0)),IF(T84="",0,IF(VLOOKUP(T84,怪物表!$A:$E,5,FALSE)=3,1,0)),IF(U84="",0,IF(VLOOKUP(U84,怪物表!$A:$E,5,FALSE)=3,1,0)),IF(V84="",0,IF(VLOOKUP(V84,怪物表!$A:$E,5,FALSE)=3,1,0)),IF(W84="",0,IF(VLOOKUP(W84,怪物表!$A:$E,5,FALSE)=3,1,0)))>0,180,120)*BW84/100 -> 120 | BW84: 100 | BX84: 100
A85: 100349 | B85: 3-3小怪 | C85: 9 | D85: 9 | E85: 9 | F85: 9 | G85: 9 | H85: 9 | I85: 9 | N85: 100004 | O85: 100001 | P85: 100001 | Q85: 100002 | R85: 100002 | S85: 100003 | T85: 100003 | X85: =SUM(IF(N85="",0,VLOOKUP(N85,怪物表!$A:$D,3,FALSE)),IF(O85="",0,VLOOKUP(O85,怪物表!$A:$D,3,FALSE)),IF(P85="",0,VLOOKUP(P85,怪物表!$A:$D,3,FALSE)),IF(Q85="",0,VLOOKUP(Q85,怪物表!$A:$D,3,FALSE)),IF(R85="",0,VLOOKUP(R85,怪物表!$A:$D,3,FALSE)),IF(S85="",0,VLOOKUP(S85,怪物表!$A:$D,3,FALSE)),IF(T85="",0,VLOOKUP(T85,怪物表!$A:$D,3,FALSE)),IF(U85="",0,VLOOKUP(U85,怪物表!$A:$D,3,FALSE)),IF(V85="",0,VLOOKUP(V85,怪物表!$A:$D,3,FALSE)),IF(W85="",0,VLOOKUP(W85,怪物表!$A:$D,3,FALSE))) -> 14 | Y85: =IF(N85="","",IF(VLOOKUP(N85,怪物表!$A:$D,4,FALSE)=1,2,0)) -> 0 | Z85: =IF(O85="","",IF(VLOOKUP(O85,怪物表!$A:$D,4,FALSE)=1,2,0)) -> 0 | AA85: =IF(P85="","",IF(VLOOKUP(P85,怪物表!$A:$D,4,FALSE)=1,2,0)) -> 0 | AB85: =IF(Q85="","",IF(VLOOKUP(Q85,怪物表!$A:$D,4,FALSE)=1,2,0)) -> 0 | AC85: =IF(R85="","",IF(VLOOKUP(R85,怪物表!$A:$D,4,FALSE)=1,2,0)) -> 0 | AD85: =IF(S85="","",IF(VLOOKUP(S85,怪物表!$A:$D,4,FALSE)=1,2,0)) -> 0 | AE85: =IF(T85="","",IF(VLOOKUP(T85,怪物表!$A:$D,4,FALSE)=1,2,0)) -> 0 | AF85: =IF(U85="","",IF(VLOOKUP(U85,怪物表!$A:$D,4,FALSE)=1,2,0)) ->  | AG85: =IF(V85="","",IF(VLOOKUP(V85,怪物表!$A:$D,4,FALSE)=1,2,0)) ->  | AH85: =IF(W85="","",IF(VLOOKUP(W85,怪物表!$A:$D,4,FALSE)=1,2,0)) ->  | AI85: 1.2 | AJ85: 0 | AK85: 1.2 | AL85: 2.4 | AM85: 3.6 | AN85: 4.8 | AO85: 6 | AP85: 7.2 | AU85: =IF(Y85="","",VLOOKUP(Y85,高度表!$A:$C,3,FALSE)) -> 0 | AV85: =IF(Z85="","",VLOOKUP(Z85,高度表!$A:$C,3,FALSE)) -> 0 | AW85: =IF(AA85="","",VLOOKUP(AA85,高度表!$A:$C,3,FALSE)) -> 0 | AX85: =IF(AB85="","",VLOOKUP(AB85,高度表!$A:$C,3,FALSE)) -> 0 | AY85: =IF(AC85="","",VLOOKUP(AC85,高度表!$A:$C,3,FALSE)) -> 0 | AZ85: =IF(AD85="","",VLOOKUP(AD85,高度表!$A:$C,3,FALSE)) -> 0 | BA85: =IF(AE85="","",VLOOKUP(AE85,高度表!$A:$C,3,FALSE)) -> 0 | BB85: =IF(AF85="","",VLOOKUP(AF85,高度表!$A:$C,3,FALSE)) ->  | BC85: =IF(AG85="","",VLOOKUP(AG85,高度表!$A:$C,3,FALSE)) ->  | BD85: =IF(AH85="","",VLOOKUP(AH85,高度表!$A:$C,3,FALSE)) ->  | BE85: 0.15 | BF85: 0 | BG85: 0.15 | BH85: 0.3 | BI85: 0.45 | BJ85: 0.6 | BK85: 0.75 | BL85: 0.9 | BQ85: 100004;100001;100001;100002;100002;100003;100003 | BR85: 0;0;0;0;0;0;0 | BS85: 0;1.2;2.4;3.6;4.8;6;7.2 | BT85: 0;0.15;0.3;0.45;0.6;0.75;0.9 | BU85: 9;9;9;9;9;9;9 | BV85: =IF(SUM(IF(N85="",0,IF(VLOOKUP(N85,怪物表!$A:$E,5,FALSE)=3,1,0)),IF(O85="",0,IF(VLOOKUP(O85,怪物表!$A:$E,5,FALSE)=3,1,0)),IF(P85="",0,IF(VLOOKUP(P85,怪物表!$A:$E,5,FALSE)=3,1,0)),IF(Q85="",0,IF(VLOOKUP(Q85,怪物表!$A:$E,5,FALSE)=3,1,0)),IF(R85="",0,IF(VLOOKUP(R85,怪物表!$A:$E,5,FALSE)=3,1,0)),IF(S85="",0,IF(VLOOKUP(S85,怪物表!$A:$E,5,FALSE)=3,1,0)),IF(T85="",0,IF(VLOOKUP(T85,怪物表!$A:$E,5,FALSE)=3,1,0)),IF(U85="",0,IF(VLOOKUP(U85,怪物表!$A:$E,5,FALSE)=3,1,0)),IF(V85="",0,IF(VLOOKUP(V85,怪物表!$A:$E,5,FALSE)=3,1,0)),IF(W85="",0,IF(VLOOKUP(W85,怪物表!$A:$E,5,FALSE)=3,1,0)))>0,180,120)*BW85/100 -> 120 | BW85: 100 | BX85: 100
A86: 100350 | B86: 3-3小怪 | C86: 9 | D86: 9 | E86: 9 | F86: 9 | G86: 9 | H86: 9 | I86: 9 | N86: 103000 | O86: 103000 | P86: 103000 | Q86: 103002 | R86: 103002 | S86: 103003 | T86: 103003 | X86: =SUM(IF(N86="",0,VLOOKUP(N86,怪物表!$A:$D,3,FALSE)),IF(O86="",0,VLOOKUP(O86,怪物表!$A:$D,3,FALSE)),IF(P86="",0,VLOOKUP(P86,怪物表!$A:$D,3,FALSE)),IF(Q86="",0,VLOOKUP(Q86,怪物表!$A:$D,3,FALSE)),IF(R86="",0,VLOOKUP(R86,怪物表!$A:$D,3,FALSE)),IF(S86="",0,VLOOKUP(S86,怪物表!$A:$D,3,FALSE)),IF(T86="",0,VLOOKUP(T86,怪物表!$A:$D,3,FALSE)),IF(U86="",0,VLOOKUP(U86,怪物表!$A:$D,3,FALSE)),IF(V86="",0,VLOOKUP(V86,怪物表!$A:$D,3,FALSE)),IF(W86="",0,VLOOKUP(W86,怪物表!$A:$D,3,FALSE))) -> 12 | Y86: =IF(N86="","",IF(VLOOKUP(N86,怪物表!$A:$D,4,FALSE)=1,2,0)) -> 2 | Z86: 3 | AA86: =IF(P86="","",IF(VLOOKUP(P86,怪物表!$A:$D,4,FALSE)=1,2,0)) -> 2 | AB86: 3 | AC86: =IF(R86="","",IF(VLOOKUP(R86,怪物表!$A:$D,4,FALSE)=1,2,0)) -> 2 | AD86: 3 | AE86: =IF(T86="","",IF(VLOOKUP(T86,怪物表!$A:$D,4,FALSE)=1,2,0)) -> 2 | AF86: =IF(U86="","",IF(VLOOKUP(U86,怪物表!$A:$D,4,FALSE)=1,2,0)) ->  | AG86: =IF(V86="","",IF(VLOOKUP(V86,怪物表!$A:$D,4,FALSE)=1,2,0)) ->  | AH86: =IF(W86="","",IF(VLOOKUP(W86,怪物表!$A:$D,4,FALSE)=1,2,0)) ->  | AI86: 1.2 | AJ86: 0 | AK86: 1.2 | AL86: 2.4 | AM86: 3.6 | AN86: 4.8 | AO86: 6 | AP86: 7.2 | AU86: =IF(Y86="","",VLOOKUP(Y86,高度表!$A:$C,3,FALSE)) -> 1.8 | AV86: =IF(Z86="","",VLOOKUP(Z86,高度表!$A:$C,3,FALSE)) -> 2.5 | AW86: =IF(AA86="","",VLOOKUP(AA86,高度表!$A:$C,3,FALSE)) -> 1.8 | AX86: =IF(AB86="","",VLOOKUP(AB86,高度表!$A:$C,3,FALSE)) -> 2.5 | AY86: =IF(AC86="","",VLOOKUP(AC86,高度表!$A:$C,3,FALSE)) -> 1.8 | AZ86: =IF(AD86="","",VLOOKUP(AD86,高度表!$A:$C,3,FALSE)) -> 2.5 | BA86: =IF(AE86="","",VLOOKUP(AE86,高度表!$A:$C,3,FALSE)) -> 1.8 | BB86: =IF(AF86="","",VLOOKUP(AF86,高度表!$A:$C,3,FALSE)) ->  | BC86: =IF(AG86="","",VLOOKUP(AG86,高度表!$A:$C,3,FALSE)) ->  | BD86: =IF(AH86="","",VLOOKUP(AH86,高度表!$A:$C,3,FALSE)) ->  | BE86: 0.15 | BF86: 0 | BG86: 0.15 | BH86: 0.3 | BI86: 0.45 | BJ86: 0.6 | BK86: 0.75 | BL86: 0.9 | BQ86: 103000;103000;103000;103002;103002;103003;103003 | BR86: 1.8;2.5;1.8;2.5;1.8;2.5;1.8 | BS86: 0;1.2;2.4;3.6;4.8;6;7.2 | BT86: 0;0.15;0.3;0.45;0.6;0.75;0.9 | BU86: 9;9;9;9;9;9;9 | BV86: =IF(SUM(IF(N86="",0,IF(VLOOKUP(N86,怪物表!$A:$E,5,FALSE)=3,1,0)),IF(O86="",0,IF(VLOOKUP(O86,怪物表!$A:$E,5,FALSE)=3,1,0)),IF(P86="",0,IF(VLOOKUP(P86,怪物表!$A:$E,5,FALSE)=3,1,0)),IF(Q86="",0,IF(VLOOKUP(Q86,怪物表!$A:$E,5,FALSE)=3,1,0)),IF(R86="",0,IF(VLOOKUP(R86,怪物表!$A:$E,5,FALSE)=3,1,0)),IF(S86="",0,IF(VLOOKUP(S86,怪物表!$A:$E,5,FALSE)=3,1,0)),IF(T86="",0,IF(VLOOKUP(T86,怪物表!$A:$E,5,FALSE)=3,1,0)),IF(U86="",0,IF(VLOOKUP(U86,怪物表!$A:$E,5,FALSE)=3,1,0)),IF(V86="",0,IF(VLOOKUP(V86,怪物表!$A:$E,5,FALSE)=3,1,0)),IF(W86="",0,IF(VLOOKUP(W86,怪物表!$A:$E,5,FALSE)=3,1,0)))>0,180,120)*BW86/100 -> 120 | BW86: 100 | BX86: 100
A87: 100351 | B87: 3-3精英 | C87: 9 | D87: 9 | E87: 9 | F87: 9 | G87: 9 | N87: 205000 | O87: 105000 | P87: 105000 | Q87: 105000 | R87: 105000 | X87: =SUM(IF(N87="",0,VLOOKUP(N87,怪物表!$A:$D,3,FALSE)),IF(O87="",0,VLOOKUP(O87,怪物表!$A:$D,3,FALSE)),IF(P87="",0,VLOOKUP(P87,怪物表!$A:$D,3,FALSE)),IF(Q87="",0,VLOOKUP(Q87,怪物表!$A:$D,3,FALSE)),IF(R87="",0,VLOOKUP(R87,怪物表!$A:$D,3,FALSE)),IF(S87="",0,VLOOKUP(S87,怪物表!$A:$D,3,FALSE)),IF(T87="",0,VLOOKUP(T87,怪物表!$A:$D,3,FALSE)),IF(U87="",0,VLOOKUP(U87,怪物表!$A:$D,3,FALSE)),IF(V87="",0,VLOOKUP(V87,怪物表!$A:$D,3,FALSE)),IF(W87="",0,VLOOKUP(W87,怪物表!$A:$D,3,FALSE))) -> 16 | Y87: =IF(N87="","",IF(VLOOKUP(N87,怪物表!$A:$D,4,FALSE)=1,2,0)) -> 0 | Z87: =IF(O87="","",IF(VLOOKUP(O87,怪物表!$A:$D,4,FALSE)=1,2,0)) -> 0 | AA87: =IF(P87="","",IF(VLOOKUP(P87,怪物表!$A:$D,4,FALSE)=1,2,0)) -> 0 | AB87: =IF(Q87="","",IF(VLOOKUP(Q87,怪物表!$A:$D,4,FALSE)=1,2,0)) -> 0 | AC87: =IF(R87="","",IF(VLOOKUP(R87,怪物表!$A:$D,4,FALSE)=1,2,0)) -> 0 | AD87: =IF(S87="","",IF(VLOOKUP(S87,怪物表!$A:$D,4,FALSE)=1,2,0)) ->  | AE87: =IF(T87="","",IF(VLOOKUP(T87,怪物表!$A:$D,4,FALSE)=1,2,0)) ->  | AF87: =IF(U87="","",IF(VLOOKUP(U87,怪物表!$A:$D,4,FALSE)=1,2,0)) ->  | AG87: =IF(V87="","",IF(VLOOKUP(V87,怪物表!$A:$D,4,FALSE)=1,2,0)) ->  | AH87: =IF(W87="","",IF(VLOOKUP(W87,怪物表!$A:$D,4,FALSE)=1,2,0)) ->  | AI87: 1.2 | AJ87: 0 | AK87: 15 | AL87: =AK87+$AI87 -> 16.2 | AM87: =AL87+$AI87 -> 17.4 | AN87: =AM87+$AI87 -> 18.6 | AU87: =IF(Y87="","",VLOOKUP(Y87,高度表!$A:$C,3,FALSE)) -> 0 | AV87: =IF(Z87="","",VLOOKUP(Z87,高度表!$A:$C,3,FALSE)) -> 0 | AW87: =IF(AA87="","",VLOOKUP(AA87,高度表!$A:$C,3,FALSE)) -> 0 | AX87: =IF(AB87="","",VLOOKUP(AB87,高度表!$A:$C,3,FALSE)) -> 0 | AY87: =IF(AC87="","",VLOOKUP(AC87,高度表!$A:$C,3,FALSE)) -> 0 | AZ87: =IF(AD87="","",VLOOKUP(AD87,高度表!$A:$C,3,FALSE)) ->  | BA87: =IF(AE87="","",VLOOKUP(AE87,高度表!$A:$C,3,FALSE)) ->  | BB87: =IF(AF87="","",VLOOKUP(AF87,高度表!$A:$C,3,FALSE)) ->  | BC87: =IF(AG87="","",VLOOKUP(AG87,高度表!$A:$C,3,FALSE)) ->  | BD87: =IF(AH87="","",VLOOKUP(AH87,高度表!$A:$C,3,FALSE)) ->  | BE87: 0.15 | BF87: 0 | BG87: 0.15 | BH87: 0.3 | BI87: 0.45 | BJ87: 0.6 | BQ87: 205000;105000;105000;105000;105000 | BR87: 0;0;0;0;0 | BS87: 0;15;16.2;17.4;18.6 | BT87: 0;0.15;0.3;0.45;0.6 | BU87: 9;9;9;9;9 | BV87: =IF(SUM(IF(N87="",0,IF(VLOOKUP(N87,怪物表!$A:$E,5,FALSE)=3,1,0)),IF(O87="",0,IF(VLOOKUP(O87,怪物表!$A:$E,5,FALSE)=3,1,0)),IF(P87="",0,IF(VLOOKUP(P87,怪物表!$A:$E,5,FALSE)=3,1,0)),IF(Q87="",0,IF(VLOOKUP(Q87,怪物表!$A:$E,5,FALSE)=3,1,0)),IF(R87="",0,IF(VLOOKUP(R87,怪物表!$A:$E,5,FALSE)=3,1,0)),IF(S87="",0,IF(VLOOKUP(S87,怪物表!$A:$E,5,FALSE)=3,1,0)),IF(T87="",0,IF(VLOOKUP(T87,怪物表!$A:$E,5,FALSE)=3,1,0)),IF(U87="",0,IF(VLOOKUP(U87,怪物表!$A:$E,5,FALSE)=3,1,0)),IF(V87="",0,IF(VLOOKUP(V87,怪物表!$A:$E,5,FALSE)=3,1,0)),IF(W87="",0,IF(VLOOKUP(W87,怪物表!$A:$E,5,FALSE)=3,1,0)))>0,180,120)*BW87/100 -> 120 | BW87: 100 | BX87: 100
A88: 100352 | B88: 3-3boss | C88: 9 | D88: 9 | E88: 9 | N88: 101001 | O88: 108000 | P88: 100003 | X88: =SUM(IF(N88="",0,VLOOKUP(N88,怪物表!$A:$D,3,FALSE)),IF(O88="",0,VLOOKUP(O88,怪物表!$A:$D,3,FALSE)),IF(P88="",0,VLOOKUP(P88,怪物表!$A:$D,3,FALSE)),IF(Q88="",0,VLOOKUP(Q88,怪物表!$A:$D,3,FALSE)),IF(R88="",0,VLOOKUP(R88,怪物表!$A:$D,3,FALSE)),IF(S88="",0,VLOOKUP(S88,怪物表!$A:$D,3,FALSE)),IF(T88="",0,VLOOKUP(T88,怪物表!$A:$D,3,FALSE)),IF(U88="",0,VLOOKUP(U88,怪物表!$A:$D,3,FALSE)),IF(V88="",0,VLOOKUP(V88,怪物表!$A:$D,3,FALSE)),IF(W88="",0,VLOOKUP(W88,怪物表!$A:$D,3,FALSE))) -> 18 | Y88: =IF(N88="","",IF(VLOOKUP(N88,怪物表!$A:$D,4,FALSE)=1,2,0)) -> 0 | Z88: =IF(O88="","",IF(VLOOKUP(O88,怪物表!$A:$D,4,FALSE)=1,2,0)) -> 0 | AA88: =IF(P88="","",IF(VLOOKUP(P88,怪物表!$A:$D,4,FALSE)=1,2,0)) -> 0 | AB88: =IF(Q88="","",IF(VLOOKUP(Q88,怪物表!$A:$D,4,FALSE)=1,2,0)) ->  | AC88: =IF(R88="","",IF(VLOOKUP(R88,怪物表!$A:$D,4,FALSE)=1,2,0)) ->  | AD88: =IF(S88="","",IF(VLOOKUP(S88,怪物表!$A:$D,4,FALSE)=1,2,0)) ->  | AE88: =IF(T88="","",IF(VLOOKUP(T88,怪物表!$A:$D,4,FALSE)=1,2,0)) ->  | AF88: =IF(U88="","",IF(VLOOKUP(U88,怪物表!$A:$D,4,FALSE)=1,2,0)) ->  | AG88: =IF(V88="","",IF(VLOOKUP(V88,怪物表!$A:$D,4,FALSE)=1,2,0)) ->  | AH88: =IF(W88="","",IF(VLOOKUP(W88,怪物表!$A:$D,4,FALSE)=1,2,0)) ->  | AI88: 5 | AJ88: 0 | AK88: 5 | AL88: 10 | AU88: =IF(Y88="","",VLOOKUP(Y88,高度表!$A:$C,3,FALSE)) -> 0 | AV88: =IF(Z88="","",VLOOKUP(Z88,高度表!$A:$C,3,FALSE)) -> 0 | AW88: =IF(AA88="","",VLOOKUP(AA88,高度表!$A:$C,3,FALSE)) -> 0 | AX88: =IF(AB88="","",VLOOKUP(AB88,高度表!$A:$C,3,FALSE)) ->  | AY88: =IF(AC88="","",VLOOKUP(AC88,高度表!$A:$C,3,FALSE)) ->  | AZ88: =IF(AD88="","",VLOOKUP(AD88,高度表!$A:$C,3,FALSE)) ->  | BA88: =IF(AE88="","",VLOOKUP(AE88,高度表!$A:$C,3,FALSE)) ->  | BB88: =IF(AF88="","",VLOOKUP(AF88,高度表!$A:$C,3,FALSE)) ->  | BC88: =IF(AG88="","",VLOOKUP(AG88,高度表!$A:$C,3,FALSE)) ->  | BD88: =IF(AH88="","",VLOOKUP(AH88,高度表!$A:$C,3,FALSE)) ->  | BE88: 0.15 | BF88: 0 | BG88: 0.15 | BH88: 0.3 | BQ88: 101001;108000;100003 | BR88: 0;0;0 | BS88: 0;5;10 | BT88: 0;0.15;0.3 | BU88: 9;9;9 | BV88: =IF(SUM(IF(N88="",0,IF(VLOOKUP(N88,怪物表!$A:$E,5,FALSE)=3,1,0)),IF(O88="",0,IF(VLOOKUP(O88,怪物表!$A:$E,5,FALSE)=3,1,0)),IF(P88="",0,IF(VLOOKUP(P88,怪物表!$A:$E,5,FALSE)=3,1,0)),IF(Q88="",0,IF(VLOOKUP(Q88,怪物表!$A:$E,5,FALSE)=3,1,0)),IF(R88="",0,IF(VLOOKUP(R88,怪物表!$A:$E,5,FALSE)=3,1,0)),IF(S88="",0,IF(VLOOKUP(S88,怪物表!$A:$E,5,FALSE)=3,1,0)),IF(T88="",0,IF(VLOOKUP(T88,怪物表!$A:$E,5,FALSE)=3,1,0)),IF(U88="",0,IF(VLOOKUP(U88,怪物表!$A:$E,5,FALSE)=3,1,0)),IF(V88="",0,IF(VLOOKUP(V88,怪物表!$A:$E,5,FALSE)=3,1,0)),IF(W88="",0,IF(VLOOKUP(W88,怪物表!$A:$E,5,FALSE)=3,1,0)))>0,180,120)*BW88/100 -> 120 | BW88: 100 | BX88: 100
A89: 100353 | B89: 3-4小怪 | C89: 9 | D89: 9 | E89: 9 | F89: 9 | G89: 9 | H89: 9 | N89: 105000 | O89: 105000 | P89: 105000 | Q89: 105000 | R89: 105000 | S89: 105000 | X89: =SUM(IF(N89="",0,VLOOKUP(N89,怪物表!$A:$D,3,FALSE)),IF(O89="",0,VLOOKUP(O89,怪物表!$A:$D,3,FALSE)),IF(P89="",0,VLOOKUP(P89,怪物表!$A:$D,3,FALSE)),IF(Q89="",0,VLOOKUP(Q89,怪物表!$A:$D,3,FALSE)),IF(R89="",0,VLOOKUP(R89,怪物表!$A:$D,3,FALSE)),IF(S89="",0,VLOOKUP(S89,怪物表!$A:$D,3,FALSE)),IF(T89="",0,VLOOKUP(T89,怪物表!$A:$D,3,FALSE)),IF(U89="",0,VLOOKUP(U89,怪物表!$A:$D,3,FALSE)),IF(V89="",0,VLOOKUP(V89,怪物表!$A:$D,3,FALSE)),IF(W89="",0,VLOOKUP(W89,怪物表!$A:$D,3,FALSE))) -> 12 | Y89: =IF(N89="","",IF(VLOOKUP(N89,怪物表!$A:$D,4,FALSE)=1,2,0)) -> 0 | Z89: =IF(O89="","",IF(VLOOKUP(O89,怪物表!$A:$D,4,FALSE)=1,2,0)) -> 0 | AA89: =IF(P89="","",IF(VLOOKUP(P89,怪物表!$A:$D,4,FALSE)=1,2,0)) -> 0 | AB89: =IF(Q89="","",IF(VLOOKUP(Q89,怪物表!$A:$D,4,FALSE)=1,2,0)) -> 0 | AC89: =IF(R89="","",IF(VLOOKUP(R89,怪物表!$A:$D,4,FALSE)=1,2,0)) -> 0 | AD89: =IF(S89="","",IF(VLOOKUP(S89,怪物表!$A:$D,4,FALSE)=1,2,0)) -> 0 | AE89: =IF(T89="","",IF(VLOOKUP(T89,怪物表!$A:$D,4,FALSE)=1,2,0)) ->  | AF89: =IF(U89="","",IF(VLOOKUP(U89,怪物表!$A:$D,4,FALSE)=1,2,0)) ->  | AG89: =IF(V89="","",IF(VLOOKUP(V89,怪物表!$A:$D,4,FALSE)=1,2,0)) ->  | AH89: =IF(W89="","",IF(VLOOKUP(W89,怪物表!$A:$D,4,FALSE)=1,2,0)) ->  | AI89: 1.2 | AJ89: 0 | AK89: 1.2 | AL89: 2.4 | AM89: 3.6 | AN89: 4.8 | AO89: 6 | AU89: =IF(Y89="","",VLOOKUP(Y89,高度表!$A:$C,3,FALSE)) -> 0 | AV89: =IF(Z89="","",VLOOKUP(Z89,高度表!$A:$C,3,FALSE)) -> 0 | AW89: =IF(AA89="","",VLOOKUP(AA89,高度表!$A:$C,3,FALSE)) -> 0 | AX89: =IF(AB89="","",VLOOKUP(AB89,高度表!$A:$C,3,FALSE)) -> 0 | AY89: =IF(AC89="","",VLOOKUP(AC89,高度表!$A:$C,3,FALSE)) -> 0 | AZ89: =IF(AD89="","",VLOOKUP(AD89,高度表!$A:$C,3,FALSE)) -> 0 | BA89: =IF(AE89="","",VLOOKUP(AE89,高度表!$A:$C,3,FALSE)) ->  | BB89: =IF(AF89="","",VLOOKUP(AF89,高度表!$A:$C,3,FALSE)) ->  | BC89: =IF(AG89="","",VLOOKUP(AG89,高度表!$A:$C,3,FALSE)) ->  | BD89: =IF(AH89="","",VLOOKUP(AH89,高度表!$A:$C,3,FALSE)) ->  | BE89: 0.15 | BF89: 0 | BG89: 0.15 | BH89: 0.3 | BI89: 0.45 | BJ89: 0.6 | BK89: 0.75 | BQ89: 105000;105000;105000;105000;105000;105000 | BR89: 0;0;0;0;0;0 | BS89: 0;1.2;2.4;3.6;4.8;6 | BT89: 0;0.15;0.3;0.45;0.6;0.75 | BU89: 9;9;9;9;9;9 | BV89: =IF(SUM(IF(N89="",0,IF(VLOOKUP(N89,怪物表!$A:$E,5,FALSE)=3,1,0)),IF(O89="",0,IF(VLOOKUP(O89,怪物表!$A:$E,5,FALSE)=3,1,0)),IF(P89="",0,IF(VLOOKUP(P89,怪物表!$A:$E,5,FALSE)=3,1,0)),IF(Q89="",0,IF(VLOOKUP(Q89,怪物表!$A:$E,5,FALSE)=3,1,0)),IF(R89="",0,IF(VLOOKUP(R89,怪物表!$A:$E,5,FALSE)=3,1,0)),IF(S89="",0,IF(VLOOKUP(S89,怪物表!$A:$E,5,FALSE)=3,1,0)),IF(T89="",0,IF(VLOOKUP(T89,怪物表!$A:$E,5,FALSE)=3,1,0)),IF(U89="",0,IF(VLOOKUP(U89,怪物表!$A:$E,5,FALSE)=3,1,0)),IF(V89="",0,IF(VLOOKUP(V89,怪物表!$A:$E,5,FALSE)=3,1,0)),IF(W89="",0,IF(VLOOKUP(W89,怪物表!$A:$E,5,FALSE)=3,1,0)))>0,180,120)*BW89/100 -> 120 | BW89: 100 | BX89: 100
A90: 100354 | B90: 3-4小怪 | C90: 9 | D90: 9 | E90: 9 | F90: 9 | G90: 9 | N90: 100004 | O90: 100002 | P90: 108000 | Q90: 100002 | R90: 100003 | X90: =SUM(IF(N90="",0,VLOOKUP(N90,怪物表!$A:$D,3,FALSE)),IF(O90="",0,VLOOKUP(O90,怪物表!$A:$D,3,FALSE)),IF(P90="",0,VLOOKUP(P90,怪物表!$A:$D,3,FALSE)),IF(Q90="",0,VLOOKUP(Q90,怪物表!$A:$D,3,FALSE)),IF(R90="",0,VLOOKUP(R90,怪物表!$A:$D,3,FALSE)),IF(S90="",0,VLOOKUP(S90,怪物表!$A:$D,3,FALSE)),IF(T90="",0,VLOOKUP(T90,怪物表!$A:$D,3,FALSE)),IF(U90="",0,VLOOKUP(U90,怪物表!$A:$D,3,FALSE)),IF(V90="",0,VLOOKUP(V90,怪物表!$A:$D,3,FALSE)),IF(W90="",0,VLOOKUP(W90,怪物表!$A:$D,3,FALSE))) -> 16 | Y90: =IF(N90="","",IF(VLOOKUP(N90,怪物表!$A:$D,4,FALSE)=1,2,0)) -> 0 | Z90: =IF(O90="","",IF(VLOOKUP(O90,怪物表!$A:$D,4,FALSE)=1,2,0)) -> 0 | AA90: =IF(P90="","",IF(VLOOKUP(P90,怪物表!$A:$D,4,FALSE)=1,2,0)) -> 0 | AB90: =IF(Q90="","",IF(VLOOKUP(Q90,怪物表!$A:$D,4,FALSE)=1,2,0)) -> 0 | AC90: =IF(R90="","",IF(VLOOKUP(R90,怪物表!$A:$D,4,FALSE)=1,2,0)) -> 0 | AD90: =IF(S90="","",IF(VLOOKUP(S90,怪物表!$A:$D,4,FALSE)=1,2,0)) ->  | AE90: =IF(T90="","",IF(VLOOKUP(T90,怪物表!$A:$D,4,FALSE)=1,2,0)) ->  | AF90: =IF(U90="","",IF(VLOOKUP(U90,怪物表!$A:$D,4,FALSE)=1,2,0)) ->  | AG90: =IF(V90="","",IF(VLOOKUP(V90,怪物表!$A:$D,4,FALSE)=1,2,0)) ->  | AH90: =IF(W90="","",IF(VLOOKUP(W90,怪物表!$A:$D,4,FALSE)=1,2,0)) ->  | AI90: 1.2 | AJ90: 0 | AK90: 1.2 | AL90: 2.4 | AM90: 3.6 | AN90: 4.8 | AU90: =IF(Y90="","",VLOOKUP(Y90,高度表!$A:$C,3,FALSE)) -> 0 | AV90: =IF(Z90="","",VLOOKUP(Z90,高度表!$A:$C,3,FALSE)) -> 0 | AW90: =IF(AA90="","",VLOOKUP(AA90,高度表!$A:$C,3,FALSE)) -> 0 | AX90: =IF(AB90="","",VLOOKUP(AB90,高度表!$A:$C,3,FALSE)) -> 0 | AY90: =IF(AC90="","",VLOOKUP(AC90,高度表!$A:$C,3,FALSE)) -> 0 | AZ90: =IF(AD90="","",VLOOKUP(AD90,高度表!$A:$C,3,FALSE)) ->  | BA90: =IF(AE90="","",VLOOKUP(AE90,高度表!$A:$C,3,FALSE)) ->  | BB90: =IF(AF90="","",VLOOKUP(AF90,高度表!$A:$C,3,FALSE)) ->  | BC90: =IF(AG90="","",VLOOKUP(AG90,高度表!$A:$C,3,FALSE)) ->  | BD90: =IF(AH90="","",VLOOKUP(AH90,高度表!$A:$C,3,FALSE)) ->  | BE90: 0.15 | BF90: 0 | BG90: 0.15 | BH90: 0.3 | BI90: 0.45 | BJ90: 0.6 | BQ90: 100004;100002;108000;100002;100003 | BR90: 0;0;0;0;0 | BS90: 0;1.2;2.4;3.6;4.8 | BT90: 0;0.15;0.3;0.45;0.6 | BU90: 9;9;9;9;9 | BV90: =IF(SUM(IF(N90="",0,IF(VLOOKUP(N90,怪物表!$A:$E,5,FALSE)=3,1,0)),IF(O90="",0,IF(VLOOKUP(O90,怪物表!$A:$E,5,FALSE)=3,1,0)),IF(P90="",0,IF(VLOOKUP(P90,怪物表!$A:$E,5,FALSE)=3,1,0)),IF(Q90="",0,IF(VLOOKUP(Q90,怪物表!$A:$E,5,FALSE)=3,1,0)),IF(R90="",0,IF(VLOOKUP(R90,怪物表!$A:$E,5,FALSE)=3,1,0)),IF(S90="",0,IF(VLOOKUP(S90,怪物表!$A:$E,5,FALSE)=3,1,0)),IF(T90="",0,IF(VLOOKUP(T90,怪物表!$A:$E,5,FALSE)=3,1,0)),IF(U90="",0,IF(VLOOKUP(U90,怪物表!$A:$E,5,FALSE)=3,1,0)),IF(V90="",0,IF(VLOOKUP(V90,怪物表!$A:$E,5,FALSE)=3,1,0)),IF(W90="",0,IF(VLOOKUP(W90,怪物表!$A:$E,5,FALSE)=3,1,0)))>0,180,120)*BW90/100 -> 120 | BW90: 100 | BX90: 100
A91: 100355 | B91: 3-4小怪 | C91: 9 | D91: 9 | E91: 9 | F91: 9 | G91: 9 | N91: 100000 | O91: 100008 | P91: 107000 | Q91: 100008 | R91: 100000 | X91: =SUM(IF(N91="",0,VLOOKUP(N91,怪物表!$A:$D,3,FALSE)),IF(O91="",0,VLOOKUP(O91,怪物表!$A:$D,3,FALSE)),IF(P91="",0,VLOOKUP(P91,怪物表!$A:$D,3,FALSE)),IF(Q91="",0,VLOOKUP(Q91,怪物表!$A:$D,3,FALSE)),IF(R91="",0,VLOOKUP(R91,怪物表!$A:$D,3,FALSE)),IF(S91="",0,VLOOKUP(S91,怪物表!$A:$D,3,FALSE)),IF(T91="",0,VLOOKUP(T91,怪物表!$A:$D,3,FALSE)),IF(U91="",0,VLOOKUP(U91,怪物表!$A:$D,3,FALSE)),IF(V91="",0,VLOOKUP(V91,怪物表!$A:$D,3,FALSE)),IF(W91="",0,VLOOKUP(W91,怪物表!$A:$D,3,FALSE))) -> 16 | Y91: =IF(N91="","",IF(VLOOKUP(N91,怪物表!$A:$D,4,FALSE)=1,2,0)) -> 0 | Z91: =IF(O91="","",IF(VLOOKUP(O91,怪物表!$A:$D,4,FALSE)=1,2,0)) -> 2 | AA91: =IF(P91="","",IF(VLOOKUP(P91,怪物表!$A:$D,4,FALSE)=1,2,0)) -> 2 | AB91: =IF(Q91="","",IF(VLOOKUP(Q91,怪物表!$A:$D,4,FALSE)=1,2,0)) -> 2 | AC91: =IF(R91="","",IF(VLOOKUP(R91,怪物表!$A:$D,4,FALSE)=1,2,0)) -> 0 | AD91: =IF(S91="","",IF(VLOOKUP(S91,怪物表!$A:$D,4,FALSE)=1,2,0)) ->  | AE91: =IF(T91="","",IF(VLOOKUP(T91,怪物表!$A:$D,4,FALSE)=1,2,0)) ->  | AF91: =IF(U91="","",IF(VLOOKUP(U91,怪物表!$A:$D,4,FALSE)=1,2,0)) ->  | AG91: =IF(V91="","",IF(VLOOKUP(V91,怪物表!$A:$D,4,FALSE)=1,2,0)) ->  | AH91: =IF(W91="","",IF(VLOOKUP(W91,怪物表!$A:$D,4,FALSE)=1,2,0)) ->  | AI91: 1.2 | AJ91: 0 | AK91: 1.2 | AL91: 2.4 | AM91: 3.6 | AN91: 4.8 | AU91: =IF(Y91="","",VLOOKUP(Y91,高度表!$A:$C,3,FALSE)) -> 0 | AV91: =IF(Z91="","",VLOOKUP(Z91,高度表!$A:$C,3,FALSE)) -> 1.8 | AW91: =IF(AA91="","",VLOOKUP(AA91,高度表!$A:$C,3,FALSE)) -> 1.8 | AX91: =IF(AB91="","",VLOOKUP(AB91,高度表!$A:$C,3,FALSE)) -> 1.8 | AY91: =IF(AC91="","",VLOOKUP(AC91,高度表!$A:$C,3,FALSE)) -> 0 | AZ91: =IF(AD91="","",VLOOKUP(AD91,高度表!$A:$C,3,FALSE)) ->  | BA91: =IF(AE91="","",VLOOKUP(AE91,高度表!$A:$C,3,FALSE)) ->  | BB91: =IF(AF91="","",VLOOKUP(AF91,高度表!$A:$C,3,FALSE)) ->  | BC91: =IF(AG91="","",VLOOKUP(AG91,高度表!$A:$C,3,FALSE)) ->  | BD91: =IF(AH91="","",VLOOKUP(AH91,高度表!$A:$C,3,FALSE)) ->  | BE91: 0.15 | BF91: 0 | BG91: 0.15 | BH91: 0.3 | BI91: 0.45 | BJ91: 0.6 | BQ91: 100000;100008;107000;100008;100000 | BR91: 0;1.8;1.8;1.8;0 | BS91: 0;1.2;2.4;3.6;4.8 | BT91: 0;0.15;0.3;0.45;0.6 | BU91: 9;9;9;9;9 | BV91: =IF(SUM(IF(N91="",0,IF(VLOOKUP(N91,怪物表!$A:$E,5,FALSE)=3,1,0)),IF(O91="",0,IF(VLOOKUP(O91,怪物表!$A:$E,5,FALSE)=3,1,0)),IF(P91="",0,IF(VLOOKUP(P91,怪物表!$A:$E,5,FALSE)=3,1,0)),IF(Q91="",0,IF(VLOOKUP(Q91,怪物表!$A:$E,5,FALSE)=3,1,0)),IF(R91="",0,IF(VLOOKUP(R91,怪物表!$A:$E,5,FALSE)=3,1,0)),IF(S91="",0,IF(VLOOKUP(S91,怪物表!$A:$E,5,FALSE)=3,1,0)),IF(T91="",0,IF(VLOOKUP(T91,怪物表!$A:$E,5,FALSE)=3,1,0)),IF(U91="",0,IF(VLOOKUP(U91,怪物表!$A:$E,5,FALSE)=3,1,0)),IF(V91="",0,IF(VLOOKUP(V91,怪物表!$A:$E,5,FALSE)=3,1,0)),IF(W91="",0,IF(VLOOKUP(W91,怪物表!$A:$E,5,FALSE)=3,1,0)))>0,180,120)*BW91/100 -> 120 | BW91: 100 | BX91: 100
A92: 100356 | B92: 3-4小怪 | C92: 9 | D92: 9 | E92: 9 | F92: 9 | G92: 9 | H92: 9 | N92: 105000 | O92: 103000 | P92: 100009 | Q92: 103000 | R92: 105000 | S92: 107000 | X92: =SUM(IF(N92="",0,VLOOKUP(N92,怪物表!$A:$D,3,FALSE)),IF(O92="",0,VLOOKUP(O92,怪物表!$A:$D,3,FALSE)),IF(P92="",0,VLOOKUP(P92,怪物表!$A:$D,3,FALSE)),IF(Q92="",0,VLOOKUP(Q92,怪物表!$A:$D,3,FALSE)),IF(R92="",0,VLOOKUP(R92,怪物表!$A:$D,3,FALSE)),IF(S92="",0,VLOOKUP(S92,怪物表!$A:$D,3,FALSE)),IF(T92="",0,VLOOKUP(T92,怪物表!$A:$D,3,FALSE)),IF(U92="",0,VLOOKUP(U92,怪物表!$A:$D,3,FALSE)),IF(V92="",0,VLOOKUP(V92,怪物表!$A:$D,3,FALSE)),IF(W92="",0,VLOOKUP(W92,怪物表!$A:$D,3,FALSE))) -> 18 | Y92: =IF(N92="","",IF(VLOOKUP(N92,怪物表!$A:$D,4,FALSE)=1,2,0)) -> 0 | Z92: =IF(O92="","",IF(VLOOKUP(O92,怪物表!$A:$D,4,FALSE)=1,2,0)) -> 2 | AA92: 3 | AB92: =IF(Q92="","",IF(VLOOKUP(Q92,怪物表!$A:$D,4,FALSE)=1,2,0)) -> 2 | AC92: =IF(R92="","",IF(VLOOKUP(R92,怪物表!$A:$D,4,FALSE)=1,2,0)) -> 0 | AD92: =IF(S92="","",IF(VLOOKUP(S92,怪物表!$A:$D,4,FALSE)=1,2,0)) -> 2 | AE92: =IF(T92="","",IF(VLOOKUP(T92,怪物表!$A:$D,4,FALSE)=1,2,0)) ->  | AF92: =IF(U92="","",IF(VLOOKUP(U92,怪物表!$A:$D,4,FALSE)=1,2,0)) ->  | AG92: =IF(V92="","",IF(VLOOKUP(V92,怪物表!$A:$D,4,FALSE)=1,2,0)) ->  | AH92: =IF(W92="","",IF(VLOOKUP(W92,怪物表!$A:$D,4,FALSE)=1,2,0)) ->  | AI92: 1.2 | AJ92: 0 | AK92: 1.2 | AL92: 2.4 | AM92: 3.6 | AN92: 4.8 | AO92: 6 | AU92: =IF(Y92="","",VLOOKUP(Y92,高度表!$A:$C,3,FALSE)) -> 0 | AV92: =IF(Z92="","",VLOOKUP(Z92,高度表!$A:$C,3,FALSE)) -> 1.8 | AW92: =IF(AA92="","",VLOOKUP(AA92,高度表!$A:$C,3,FALSE)) -> 2.5 | AX92: =IF(AB92="","",VLOOKUP(AB92,高度表!$A:$C,3,FALSE)) -> 1.8 | AY92: =IF(AC92="","",VLOOKUP(AC92,高度表!$A:$C,3,FALSE)) -> 0 | AZ92: =IF(AD92="","",VLOOKUP(AD92,高度表!$A:$C,3,FALSE)) -> 1.8 | BA92: =IF(AE92="","",VLOOKUP(AE92,高度表!$A:$C,3,FALSE)) ->  | BB92: =IF(AF92="","",VLOOKUP(AF92,高度表!$A:$C,3,FALSE)) ->  | BC92: =IF(AG92="","",VLOOKUP(AG92,高度表!$A:$C,3,FALSE)) ->  | BD92: =IF(AH92="","",VLOOKUP(AH92,高度表!$A:$C,3,FALSE)) ->  | BE92: 0.15 | BF92: 0 | BG92: 0.15 | BH92: 0.3 | BI92: 0.45 | BJ92: 0.6 | BK92: 0.75 | BQ92: 105000;103000;100009;103000;105000;107000 | BR92: 0;1.8;2.5;1.8;0;1.8 | BS92: 0;1.2;2.4;3.6;4.8;6 | BT92: 0;0.15;0.3;0.45;0.6;0.75 | BU92: 9;9;9;9;9;9 | BV92: =IF(SUM(IF(N92="",0,IF(VLOOKUP(N92,怪物表!$A:$E,5,FALSE)=3,1,0)),IF(O92="",0,IF(VLOOKUP(O92,怪物表!$A:$E,5,FALSE)=3,1,0)),IF(P92="",0,IF(VLOOKUP(P92,怪物表!$A:$E,5,FALSE)=3,1,0)),IF(Q92="",0,IF(VLOOKUP(Q92,怪物表!$A:$E,5,FALSE)=3,1,0)),IF(R92="",0,IF(VLOOKUP(R92,怪物表!$A:$E,5,FALSE)=3,1,0)),IF(S92="",0,IF(VLOOKUP(S92,怪物表!$A:$E,5,FALSE)=3,1,0)),IF(T92="",0,IF(VLOOKUP(T92,怪物表!$A:$E,5,FALSE)=3,1,0)),IF(U92="",0,IF(VLOOKUP(U92,怪物表!$A:$E,5,FALSE)=3,1,0)),IF(V92="",0,IF(VLOOKUP(V92,怪物表!$A:$E,5,FALSE)=3,1,0)),IF(W92="",0,IF(VLOOKUP(W92,怪物表!$A:$E,5,FALSE)=3,1,0)))>0,180,120)*BW92/100 -> 120 | BW92: 100 | BX92: 100
A93: 100357 | B93: 3-4小怪 | C93: 9 | D93: 9 | E93: 9 | F93: 9 | G93: 9 | H93: 9 | N93: 100004 | O93: 103000 | P93: 100009 | Q93: 103000 | R93: 103000 | S93: 105000 | X93: =SUM(IF(N93="",0,VLOOKUP(N93,怪物表!$A:$D,3,FALSE)),IF(O93="",0,VLOOKUP(O93,怪物表!$A:$D,3,FALSE)),IF(P93="",0,VLOOKUP(P93,怪物表!$A:$D,3,FALSE)),IF(Q93="",0,VLOOKUP(Q93,怪物表!$A:$D,3,FALSE)),IF(R93="",0,VLOOKUP(R93,怪物表!$A:$D,3,FALSE)),IF(S93="",0,VLOOKUP(S93,怪物表!$A:$D,3,FALSE)),IF(T93="",0,VLOOKUP(T93,怪物表!$A:$D,3,FALSE)),IF(U93="",0,VLOOKUP(U93,怪物表!$A:$D,3,FALSE)),IF(V93="",0,VLOOKUP(V93,怪物表!$A:$D,3,FALSE)),IF(W93="",0,VLOOKUP(W93,怪物表!$A:$D,3,FALSE))) -> 12 | Y93: =IF(N93="","",IF(VLOOKUP(N93,怪物表!$A:$D,4,FALSE)=1,2,0)) -> 0 | Z93: =IF(O93="","",IF(VLOOKUP(O93,怪物表!$A:$D,4,FALSE)=1,2,0)) -> 2 | AA93: 3 | AB93: =IF(Q93="","",IF(VLOOKUP(Q93,怪物表!$A:$D,4,FALSE)=1,2,0)) -> 2 | AC93: =IF(R93="","",IF(VLOOKUP(R93,怪物表!$A:$D,4,FALSE)=1,2,0)) -> 2 | AD93: =IF(S93="","",IF(VLOOKUP(S93,怪物表!$A:$D,4,FALSE)=1,2,0)) -> 0 | AE93: =IF(T93="","",IF(VLOOKUP(T93,怪物表!$A:$D,4,FALSE)=1,2,0)) ->  | AF93: =IF(U93="","",IF(VLOOKUP(U93,怪物表!$A:$D,4,FALSE)=1,2,0)) ->  | AG93: =IF(V93="","",IF(VLOOKUP(V93,怪物表!$A:$D,4,FALSE)=1,2,0)) ->  | AH93: =IF(W93="","",IF(VLOOKUP(W93,怪物表!$A:$D,4,FALSE)=1,2,0)) ->  | AI93: 1.2 | AJ93: 0 | AK93: 1.2 | AL93: 2.4 | AM93: 3.6 | AN93: 4.8 | AO93: 6 | AU93: =IF(Y93="","",VLOOKUP(Y93,高度表!$A:$C,3,FALSE)) -> 0 | AV93: =IF(Z93="","",VLOOKUP(Z93,高度表!$A:$C,3,FALSE)) -> 1.8 | AW93: =IF(AA93="","",VLOOKUP(AA93,高度表!$A:$C,3,FALSE)) -> 2.5 | AX93: =IF(AB93="","",VLOOKUP(AB93,高度表!$A:$C,3,FALSE)) -> 1.8 | AY93: =IF(AC93="","",VLOOKUP(AC93,高度表!$A:$C,3,FALSE)) -> 1.8 | AZ93: =IF(AD93="","",VLOOKUP(AD93,高度表!$A:$C,3,FALSE)) -> 0 | BA93: =IF(AE93="","",VLOOKUP(AE93,高度表!$A:$C,3,FALSE)) ->  | BB93: =IF(AF93="","",VLOOKUP(AF93,高度表!$A:$C,3,FALSE)) ->  | BC93: =IF(AG93="","",VLOOKUP(AG93,高度表!$A:$C,3,FALSE)) ->  | BD93: =IF(AH93="","",VLOOKUP(AH93,高度表!$A:$C,3,FALSE)) ->  | BE93: 0.15 | BF93: 0 | BG93: 0.15 | BH93: 0.3 | BI93: 0.45 | BJ93: 0.6 | BK93: 0.75 | BQ93: 100004;103000;100009;103000;103000;105000 | BR93: 0;1.8;2.5;1.8;1.8;0 | BS93: 0;1.2;2.4;3.6;4.8;6 | BT93: 0;0.15;0.3;0.45;0.6;0.75 | BU93: 9;9;9;9;9;9 | BV93: =IF(SUM(IF(N93="",0,IF(VLOOKUP(N93,怪物表!$A:$E,5,FALSE)=3,1,0)),IF(O93="",0,IF(VLOOKUP(O93,怪物表!$A:$E,5,FALSE)=3,1,0)),IF(P93="",0,IF(VLOOKUP(P93,怪物表!$A:$E,5,FALSE)=3,1,0)),IF(Q93="",0,IF(VLOOKUP(Q93,怪物表!$A:$E,5,FALSE)=3,1,0)),IF(R93="",0,IF(VLOOKUP(R93,怪物表!$A:$E,5,FALSE)=3,1,0)),IF(S93="",0,IF(VLOOKUP(S93,怪物表!$A:$E,5,FALSE)=3,1,0)),IF(T93="",0,IF(VLOOKUP(T93,怪物表!$A:$E,5,FALSE)=3,1,0)),IF(U93="",0,IF(VLOOKUP(U93,怪物表!$A:$E,5,FALSE)=3,1,0)),IF(V93="",0,IF(VLOOKUP(V93,怪物表!$A:$E,5,FALSE)=3,1,0)),IF(W93="",0,IF(VLOOKUP(W93,怪物表!$A:$E,5,FALSE)=3,1,0)))>0,180,120)*BW93/100 -> 120 | BW93: 100 | BX93: 100
A94: 100358 | B94: 3-4小怪 | C94: 9 | D94: 9 | E94: 9 | F94: 9 | G94: 9 | N94: 105000 | O94: 105000 | P94: 105000 | Q94: 106000 | R94: 105000 | X94: =SUM(IF(N94="",0,VLOOKUP(N94,怪物表!$A:$D,3,FALSE)),IF(O94="",0,VLOOKUP(O94,怪物表!$A:$D,3,FALSE)),IF(P94="",0,VLOOKUP(P94,怪物表!$A:$D,3,FALSE)),IF(Q94="",0,VLOOKUP(Q94,怪物表!$A:$D,3,FALSE)),IF(R94="",0,VLOOKUP(R94,怪物表!$A:$D,3,FALSE)),IF(S94="",0,VLOOKUP(S94,怪物表!$A:$D,3,FALSE)),IF(T94="",0,VLOOKUP(T94,怪物表!$A:$D,3,FALSE)),IF(U94="",0,VLOOKUP(U94,怪物表!$A:$D,3,FALSE)),IF(V94="",0,VLOOKUP(V94,怪物表!$A:$D,3,FALSE)),IF(W94="",0,VLOOKUP(W94,怪物表!$A:$D,3,FALSE))) -> 14 | Y94: =IF(N94="","",IF(VLOOKUP(N94,怪物表!$A:$D,4,FALSE)=1,2,0)) -> 0 | Z94: =IF(O94="","",IF(VLOOKUP(O94,怪物表!$A:$D,4,FALSE)=1,2,0)) -> 0 | AA94: =IF(P94="","",IF(VLOOKUP(P94,怪物表!$A:$D,4,FALSE)=1,2,0)) -> 0 | AB94: =IF(Q94="","",IF(VLOOKUP(Q94,怪物表!$A:$D,4,FALSE)=1,2,0)) -> 0 | AC94: =IF(R94="","",IF(VLOOKUP(R94,怪物表!$A:$D,4,FALSE)=1,2,0)) -> 0 | AD94: =IF(S94="","",IF(VLOOKUP(S94,怪物表!$A:$D,4,FALSE)=1,2,0)) ->  | AE94: =IF(T94="","",IF(VLOOKUP(T94,怪物表!$A:$D,4,FALSE)=1,2,0)) ->  | AF94: =IF(U94="","",IF(VLOOKUP(U94,怪物表!$A:$D,4,FALSE)=1,2,0)) ->  | AG94: =IF(V94="","",IF(VLOOKUP(V94,怪物表!$A:$D,4,FALSE)=1,2,0)) ->  | AH94: =IF(W94="","",IF(VLOOKUP(W94,怪物表!$A:$D,4,FALSE)=1,2,0)) ->  | AI94: 1.2 | AJ94: 0 | AK94: 1.2 | AL94: 2.4 | AM94: 3.6 | AN94: 4.8 | AU94: =IF(Y94="","",VLOOKUP(Y94,高度表!$A:$C,3,FALSE)) -> 0 | AV94: =IF(Z94="","",VLOOKUP(Z94,高度表!$A:$C,3,FALSE)) -> 0 | AW94: =IF(AA94="","",VLOOKUP(AA94,高度表!$A:$C,3,FALSE)) -> 0 | AX94: =IF(AB94="","",VLOOKUP(AB94,高度表!$A:$C,3,FALSE)) -> 0 | AY94: =IF(AC94="","",VLOOKUP(AC94,高度表!$A:$C,3,FALSE)) -> 0 | AZ94: =IF(AD94="","",VLOOKUP(AD94,高度表!$A:$C,3,FALSE)) ->  | BA94: =IF(AE94="","",VLOOKUP(AE94,高度表!$A:$C,3,FALSE)) ->  | BB94: =IF(AF94="","",VLOOKUP(AF94,高度表!$A:$C,3,FALSE)) ->  | BC94: =IF(AG94="","",VLOOKUP(AG94,高度表!$A:$C,3,FALSE)) ->  | BD94: =IF(AH94="","",VLOOKUP(AH94,高度表!$A:$C,3,FALSE)) ->  | BE94: 0.15 | BF94: 0 | BG94: 0.15 | BH94: 0.3 | BI94: 0.45 | BJ94: 0.6 | BQ94: 105000;105000;105000;106000;105000 | BR94: 0;0;0;0;0 | BS94: 0;1.2;2.4;3.6;4.8 | BT94: 0;0.15;0.3;0.45;0.6 | BU94: 9;9;9;9;9 | BV94: =IF(SUM(IF(N94="",0,IF(VLOOKUP(N94,怪物表!$A:$E,5,FALSE)=3,1,0)),IF(O94="",0,IF(VLOOKUP(O94,怪物表!$A:$E,5,FALSE)=3,1,0)),IF(P94="",0,IF(VLOOKUP(P94,怪物表!$A:$E,5,FALSE)=3,1,0)),IF(Q94="",0,IF(VLOOKUP(Q94,怪物表!$A:$E,5,FALSE)=3,1,0)),IF(R94="",0,IF(VLOOKUP(R94,怪物表!$A:$E,5,FALSE)=3,1,0)),IF(S94="",0,IF(VLOOKUP(S94,怪物表!$A:$E,5,FALSE)=3,1,0)),IF(T94="",0,IF(VLOOKUP(T94,怪物表!$A:$E,5,FALSE)=3,1,0)),IF(U94="",0,IF(VLOOKUP(U94,怪物表!$A:$E,5,FALSE)=3,1,0)),IF(V94="",0,IF(VLOOKUP(V94,怪物表!$A:$E,5,FALSE)=3,1,0)),IF(W94="",0,IF(VLOOKUP(W94,怪物表!$A:$E,5,FALSE)=3,1,0)))>0,180,120)*BW94/100 -> 120 | BW94: 100 | BX94: 100
A95: 100359 | B95: 3-4boss | N95: 905002 | X95: =SUM(IF(N95="",0,VLOOKUP(N95,怪物表!$A:$D,3,FALSE)),IF(O95="",0,VLOOKUP(O95,怪物表!$A:$D,3,FALSE)),IF(P95="",0,VLOOKUP(P95,怪物表!$A:$D,3,FALSE)),IF(Q95="",0,VLOOKUP(Q95,怪物表!$A:$D,3,FALSE)),IF(R95="",0,VLOOKUP(R95,怪物表!$A:$D,3,FALSE)),IF(S95="",0,VLOOKUP(S95,怪物表!$A:$D,3,FALSE)),IF(T95="",0,VLOOKUP(T95,怪物表!$A:$D,3,FALSE)),IF(U95="",0,VLOOKUP(U95,怪物表!$A:$D,3,FALSE)),IF(V95="",0,VLOOKUP(V95,怪物表!$A:$D,3,FALSE)),IF(W95="",0,VLOOKUP(W95,怪物表!$A:$D,3,FALSE))) -> 25 | Y95: 1 | Z95: =IF(O95="","",IF(VLOOKUP(O95,怪物表!$A:$D,4,FALSE)=1,2,0)) ->  | AA95: =IF(P95="","",IF(VLOOKUP(P95,怪物表!$A:$D,4,FALSE)=1,2,0)) ->  | AB95: =IF(Q95="","",IF(VLOOKUP(Q95,怪物表!$A:$D,4,FALSE)=1,2,0)) ->  | AC95: =IF(R95="","",IF(VLOOKUP(R95,怪物表!$A:$D,4,FALSE)=1,2,0)) ->  | AD95: =IF(S95="","",IF(VLOOKUP(S95,怪物表!$A:$D,4,FALSE)=1,2,0)) ->  | AE95: =IF(T95="","",IF(VLOOKUP(T95,怪物表!$A:$D,4,FALSE)=1,2,0)) ->  | AF95: =IF(U95="","",IF(VLOOKUP(U95,怪物表!$A:$D,4,FALSE)=1,2,0)) ->  | AG95: =IF(V95="","",IF(VLOOKUP(V95,怪物表!$A:$D,4,FALSE)=1,2,0)) ->  | AH95: =IF(W95="","",IF(VLOOKUP(W95,怪物表!$A:$D,4,FALSE)=1,2,0)) ->  | AI95: 1.2 | AJ95: 0 | AU95: =IF(Y95="","",VLOOKUP(Y95,高度表!$A:$C,3,FALSE)) -> 1.1 | AV95: =IF(Z95="","",VLOOKUP(Z95,高度表!$A:$C,3,FALSE)) ->  | AW95: =IF(AA95="","",VLOOKUP(AA95,高度表!$A:$C,3,FALSE)) ->  | AX95: =IF(AB95="","",VLOOKUP(AB95,高度表!$A:$C,3,FALSE)) ->  | AY95: =IF(AC95="","",VLOOKUP(AC95,高度表!$A:$C,3,FALSE)) ->  | AZ95: =IF(AD95="","",VLOOKUP(AD95,高度表!$A:$C,3,FALSE)) ->  | BA95: =IF(AE95="","",VLOOKUP(AE95,高度表!$A:$C,3,FALSE)) ->  | BB95: =IF(AF95="","",VLOOKUP(AF95,高度表!$A:$C,3,FALSE)) ->  | BC95: =IF(AG95="","",VLOOKUP(AG95,高度表!$A:$C,3,FALSE)) ->  | BD95: =IF(AH95="","",VLOOKUP(AH95,高度表!$A:$C,3,FALSE)) ->  | BE95: 0.15 | BF95: 0 | BQ95: 905002 | BR95: 1.1 | BS95: 0 | BT95: 0 | BU95: 0 | BV95: =IF(SUM(IF(N95="",0,IF(VLOOKUP(N95,怪物表!$A:$E,5,FALSE)=3,1,0)),IF(O95="",0,IF(VLOOKUP(O95,怪物表!$A:$E,5,FALSE)=3,1,0)),IF(P95="",0,IF(VLOOKUP(P95,怪物表!$A:$E,5,FALSE)=3,1,0)),IF(Q95="",0,IF(VLOOKUP(Q95,怪物表!$A:$E,5,FALSE)=3,1,0)),IF(R95="",0,IF(VLOOKUP(R95,怪物表!$A:$E,5,FALSE)=3,1,0)),IF(S95="",0,IF(VLOOKUP(S95,怪物表!$A:$E,5,FALSE)=3,1,0)),IF(T95="",0,IF(VLOOKUP(T95,怪物表!$A:$E,5,FALSE)=3,1,0)),IF(U95="",0,IF(VLOOKUP(U95,怪物表!$A:$E,5,FALSE)=3,1,0)),IF(V95="",0,IF(VLOOKUP(V95,怪物表!$A:$E,5,FALSE)=3,1,0)),IF(W95="",0,IF(VLOOKUP(W95,怪物表!$A:$E,5,FALSE)=3,1,0)))>0,180,120)*BW95/100 -> 180 | BW95: 100 | BX95: 100
A96: 100388 | B96: 4-1小怪 | C96: =IF(N96="","",9) -> 9 | D96: =IF(O96="","",9) -> 9 | E96: =IF(P96="","",9) -> 9 | F96: =IF(Q96="","",9) -> 9 | G96: =IF(R96="","",9) -> 9 | H96: =IF(S96="","",9) -> 9 | I96: =IF(T96="","",9) ->  | J96: =IF(U96="","",9) ->  | K96: =IF(V96="","",9) ->  | L96: =IF(W96="","",9) ->  | N96: 100004 | O96: 300002 | P96: 100009 | Q96: 103000 | R96: 103000 | S96: 105000 | X96: =SUM(IF(N96="",0,VLOOKUP(N96,怪物表!$A:$D,3,FALSE)),IF(O96="",0,VLOOKUP(O96,怪物表!$A:$D,3,FALSE)),IF(P96="",0,VLOOKUP(P96,怪物表!$A:$D,3,FALSE)),IF(Q96="",0,VLOOKUP(Q96,怪物表!$A:$D,3,FALSE)),IF(R96="",0,VLOOKUP(R96,怪物表!$A:$D,3,FALSE)),IF(S96="",0,VLOOKUP(S96,怪物表!$A:$D,3,FALSE)),IF(T96="",0,VLOOKUP(T96,怪物表!$A:$D,3,FALSE)),IF(U96="",0,VLOOKUP(U96,怪物表!$A:$D,3,FALSE)),IF(V96="",0,VLOOKUP(V96,怪物表!$A:$D,3,FALSE)),IF(W96="",0,VLOOKUP(W96,怪物表!$A:$D,3,FALSE))) -> 13 | Y96: 0 | Z96: 0 | AA96: 2 | AB96: 3 | AC96: 2 | AD96: 0 | AI96: 1.2 | AJ96: =IF(N96="","",0*$AI96) -> 0 | AK96: =IF(O96="","",1*$AI96) -> 1.2 | AL96: =IF(P96="","",2*$AI96) -> 2.4 | AM96: =IF(Q96="","",3*$AI96) -> 3.6 | AN96: =IF(R96="","",4*$AI96) -> 4.8 | AO96: =IF(S96="","",5*$AI96) -> 6 | AP96: =IF(T96="","",6*$AI96) ->  | AQ96: =IF(U96="","",7*$AI96) ->  | AR96: =IF(V96="","",8*$AI96) ->  | AS96: =IF(W96="","",9*$AI96) ->  | AU96: =IF(Y96="","",VLOOKUP(Y96,高度表!$A:$C,3,FALSE)) -> 0 | AV96: =IF(Z96="","",VLOOKUP(Z96,高度表!$A:$C,3,FALSE)) -> 0 | AW96: =IF(AA96="","",VLOOKUP(AA96,高度表!$A:$C,3,FALSE)) -> 1.8 | AX96: =IF(AB96="","",VLOOKUP(AB96,高度表!$A:$C,3,FALSE)) -> 2.5 | AY96: =IF(AC96="","",VLOOKUP(AC96,高度表!$A:$C,3,FALSE)) -> 1.8 | AZ96: =IF(AD96="","",VLOOKUP(AD96,高度表!$A:$C,3,FALSE)) -> 0 | BA96: =IF(AE96="","",VLOOKUP(AE96,高度表!$A:$C,3,FALSE)) ->  | BB96: =IF(AF96="","",VLOOKUP(AF96,高度表!$A:$C,3,FALSE)) ->  | BC96: =IF(AG96="","",VLOOKUP(AG96,高度表!$A:$C,3,FALSE)) ->  | BD96: =IF(AH96="","",VLOOKUP(AH96,高度表!$A:$C,3,FALSE)) ->  | BE96: 0.15 | BF96: =IF(N96="","",0*$BE96) -> 0 | BG96: =IF(O96="","",1*$BE96) -> 0.15 | BH96: =IF(P96="","",2*$BE96) -> 0.3 | BI96: =IF(Q96="","",3*$BE96) -> 0.45 | BJ96: =IF(R96="","",4*$BE96) -> 0.6 | BK96: =IF(S96="","",5*$BE96) -> 0.75 | BL96: =IF(T96="","",6*$BE96) ->  | BM96: =IF(U96="","",7*$BE96) ->  | BN96: =IF(V96="","",8*$BE96) ->  | BO96: =IF(W96="","",9*$BE96) ->  | BQ96: =CONCATENATE(N96,IF(O96="","",";"),O96,IF(P96="","",";"),P96,IF(Q96="","",";"),Q96,IF(R96="","",";"),R96,IF(S96="","",";"),S96,IF(T96="","",";"),T96,IF(U96="","",";"),U96,IF(V96="","",";"),V96,IF(W96="","",";"),W96) -> 100004;300002;100009;103000;103000;105000 | BR96: =CONCATENATE(AU96,IF(AV96="","",";"),AV96,IF(AW96="","",";"),AW96,IF(AX96="","",";"),AX96,IF(AY96="","",";"),AY96,IF(AZ96="","",";"),AZ96,IF(BA96="","",";"),BA96,IF(BB96="","",";"),BB96,IF(BC96="","",";"),BC96,IF(BD96="","",";"),BD96) -> 0;0;1.8;2.5;1.8;0 | BS96: =CONCATENATE(AJ96,IF(AK96="","",";"),AK96,IF(AL96="","",";"),AL96,IF(AM96="","",";"),AM96,IF(AN96="","",";"),AN96,IF(AO96="","",";"),AO96,IF(AP96="","",";"),AP96,IF(AQ96="","",";"),AQ96,IF(AR96="","",";"),AR96,IF(AS96="","",";"),AS96) -> 0;1.2;2.4;3.6;4.8;6 | BT96: =CONCATENATE(BF96,IF(BG96="","",";"),BG96,IF(BH96="","",";"),BH96,IF(BI96="","",";"),BI96,IF(BJ96="","",";"),BJ96,IF(BK96="","",";"),BK96,IF(BL96="","",";"),BL96,IF(BM96="","",";"),BM96,IF(BN96="","",";"),BN96,IF(BO96="","",";"),BO96) -> 0;0.15;0.3;0.45;0.6;0.75 | BU96: =CONCATENATE(IF(N96="","",IF(C96="",0,C96)),IF(IF(O96="","",IF(D96="",0,D96))="","",";"),IF(O96="","",IF(D96="",0,D96)),IF(IF(P96="","",IF(E96="",0,E96))="","",";"),IF(P96="","",IF(E96="",0,E96)),IF(IF(Q96="","",IF(F96="",0,F96))="","",";"),IF(Q96="","",IF(F96="",0,F96)),IF(IF(R96="","",IF(G96="",0,G96))="","",";"),IF(R96="","",IF(G96="",0,G96)),IF(IF(S96="","",IF(H96="",0,H96))="","",";"),IF(S96="","",IF(H96="",0,H96)),IF(IF(T96="","",IF(I96="",0,I96))="","",";"),IF(T96="","",IF(I96="",0,I96)),IF(IF(U96="","",IF(J96="",0,J96))="","",";"),IF(U96="","",IF(J96="",0,J96)),IF(IF(V96="","",IF(K96="",0,K96))="","",";"),IF(V96="","",IF(K96="",0,K96)),IF(IF(W96="","",IF(M96="",0,M96))="","",";"),IF(W96="","",IF(M96="",0,M96))) -> 9;9;9;9;9;9 | BV96: =IF(SUM(IF(N96="",0,IF(VLOOKUP(N96,怪物表!$A:$E,5,FALSE)=3,1,0)),IF(O96="",0,IF(VLOOKUP(O96,怪物表!$A:$E,5,FALSE)=3,1,0)),IF(P96="",0,IF(VLOOKUP(P96,怪物表!$A:$E,5,FALSE)=3,1,0)),IF(Q96="",0,IF(VLOOKUP(Q96,怪物表!$A:$E,5,FALSE)=3,1,0)),IF(R96="",0,IF(VLOOKUP(R96,怪物表!$A:$E,5,FALSE)=3,1,0)),IF(S96="",0,IF(VLOOKUP(S96,怪物表!$A:$E,5,FALSE)=3,1,0)),IF(T96="",0,IF(VLOOKUP(T96,怪物表!$A:$E,5,FALSE)=3,1,0)),IF(U96="",0,IF(VLOOKUP(U96,怪物表!$A:$E,5,FALSE)=3,1,0)),IF(V96="",0,IF(VLOOKUP(V96,怪物表!$A:$E,5,FALSE)=3,1,0)),IF(W96="",0,IF(VLOOKUP(W96,怪物表!$A:$E,5,FALSE)=3,1,0)))>0,180,120)*BW96/100 -> 120 | BW96: 100 | BX96: 100
A97: 100389 | B97: 4-1小怪 | C97: =IF(N97="","",9) -> 9 | D97: 9 | E97: 9 | N97: 205000 | O97: 105000 | P97: 105000 | X97: =SUM(IF(N97="",0,VLOOKUP(N97,怪物表!$A:$D,3,FALSE)),IF(O97="",0,VLOOKUP(O97,怪物表!$A:$D,3,FALSE)),IF(P97="",0,VLOOKUP(P97,怪物表!$A:$D,3,FALSE)),IF(Q97="",0,VLOOKUP(Q97,怪物表!$A:$D,3,FALSE)),IF(R97="",0,VLOOKUP(R97,怪物表!$A:$D,3,FALSE)),IF(S97="",0,VLOOKUP(S97,怪物表!$A:$D,3,FALSE)),IF(T97="",0,VLOOKUP(T97,怪物表!$A:$D,3,FALSE)),IF(U97="",0,VLOOKUP(U97,怪物表!$A:$D,3,FALSE)),IF(V97="",0,VLOOKUP(V97,怪物表!$A:$D,3,FALSE)),IF(W97="",0,VLOOKUP(W97,怪物表!$A:$D,3,FALSE))) -> 12 | Y97: 0 | Z97: 0 | AA97: 0 | AI97: 1.2 | AJ97: 0 | AK97: 1.2 | AL97: 2.4 | AU97: =IF(Y97="","",VLOOKUP(Y97,高度表!$A:$C,3,FALSE)) -> 0 | AV97: =IF(Z97="","",VLOOKUP(Z97,高度表!$A:$C,3,FALSE)) -> 0 | AW97: =IF(AA97="","",VLOOKUP(AA97,高度表!$A:$C,3,FALSE)) -> 0 | AX97: =IF(AB97="","",VLOOKUP(AB97,高度表!$A:$C,3,FALSE)) ->  | AY97: =IF(AC97="","",VLOOKUP(AC97,高度表!$A:$C,3,FALSE)) ->  | AZ97: =IF(AD97="","",VLOOKUP(AD97,高度表!$A:$C,3,FALSE)) ->  | BA97: =IF(AE97="","",VLOOKUP(AE97,高度表!$A:$C,3,FALSE)) ->  | BB97: =IF(AF97="","",VLOOKUP(AF97,高度表!$A:$C,3,FALSE)) ->  | BC97: =IF(AG97="","",VLOOKUP(AG97,高度表!$A:$C,3,FALSE)) ->  | BD97: =IF(AH97="","",VLOOKUP(AH97,高度表!$A:$C,3,FALSE)) ->  | BE97: 0.15 | BF97: 0 | BG97: 0.15 | BH97: 0.3 | BQ97: 205000;105000;105000 | BR97: 0;0;0 | BS97: 0;1.2;2.4 | BT97: 0;0.15;0.3 | BU97: 9;9;9 | BV97: =IF(SUM(IF(N97="",0,IF(VLOOKUP(N97,怪物表!$A:$E,5,FALSE)=3,1,0)),IF(O97="",0,IF(VLOOKUP(O97,怪物表!$A:$E,5,FALSE)=3,1,0)),IF(P97="",0,IF(VLOOKUP(P97,怪物表!$A:$E,5,FALSE)=3,1,0)),IF(Q97="",0,IF(VLOOKUP(Q97,怪物表!$A:$E,5,FALSE)=3,1,0)),IF(R97="",0,IF(VLOOKUP(R97,怪物表!$A:$E,5,FALSE)=3,1,0)),IF(S97="",0,IF(VLOOKUP(S97,怪物表!$A:$E,5,FALSE)=3,1,0)),IF(T97="",0,IF(VLOOKUP(T97,怪物表!$A:$E,5,FALSE)=3,1,0)),IF(U97="",0,IF(VLOOKUP(U97,怪物表!$A:$E,5,FALSE)=3,1,0)),IF(V97="",0,IF(VLOOKUP(V97,怪物表!$A:$E,5,FALSE)=3,1,0)),IF(W97="",0,IF(VLOOKUP(W97,怪物表!$A:$E,5,FALSE)=3,1,0)))>0,180,120)*BW97/100 -> 120 | BW97: 100 | BX97: 100
A98: 100390 | B98: 4-1小怪 | C98: 9 | D98: 9 | E98: 9 | F98: 9 | G98: 9 | N98: 300001 | O98: 103000 | P98: 100009 | Q98: 103000 | R98: 300002 | X98: =SUM(IF(N98="",0,VLOOKUP(N98,怪物表!$A:$D,3,FALSE)),IF(O98="",0,VLOOKUP(O98,怪物表!$A:$D,3,FALSE)),IF(P98="",0,VLOOKUP(P98,怪物表!$A:$D,3,FALSE)),IF(Q98="",0,VLOOKUP(Q98,怪物表!$A:$D,3,FALSE)),IF(R98="",0,VLOOKUP(R98,怪物表!$A:$D,3,FALSE)),IF(S98="",0,VLOOKUP(S98,怪物表!$A:$D,3,FALSE)),IF(T98="",0,VLOOKUP(T98,怪物表!$A:$D,3,FALSE)),IF(U98="",0,VLOOKUP(U98,怪物表!$A:$D,3,FALSE)),IF(V98="",0,VLOOKUP(V98,怪物表!$A:$D,3,FALSE)),IF(W98="",0,VLOOKUP(W98,怪物表!$A:$D,3,FALSE))) -> 12 | Y98: 0 | Z98: 2 | AA98: 3 | AB98: 2 | AC98: 0 | AI98: 1.2 | AJ98: 0 | AK98: 1.2 | AL98: 2.4 | AM98: 3.6 | AN98: 4.8 | AU98: =IF(Y98="","",VLOOKUP(Y98,高度表!$A:$C,3,FALSE)) -> 0 | AV98: =IF(Z98="","",VLOOKUP(Z98,高度表!$A:$C,3,FALSE)) -> 1.8 | AW98: =IF(AA98="","",VLOOKUP(AA98,高度表!$A:$C,3,FALSE)) -> 2.5 | AX98: =IF(AB98="","",VLOOKUP(AB98,高度表!$A:$C,3,FALSE)) -> 1.8 | AY98: =IF(AC98="","",VLOOKUP(AC98,高度表!$A:$C,3,FALSE)) -> 0 | AZ98: =IF(AD98="","",VLOOKUP(AD98,高度表!$A:$C,3,FALSE)) ->  | BA98: =IF(AE98="","",VLOOKUP(AE98,高度表!$A:$C,3,FALSE)) ->  | BB98: =IF(AF98="","",VLOOKUP(AF98,高度表!$A:$C,3,FALSE)) ->  | BC98: =IF(AG98="","",VLOOKUP(AG98,高度表!$A:$C,3,FALSE)) ->  | BD98: =IF(AH98="","",VLOOKUP(AH98,高度表!$A:$C,3,FALSE)) ->  | BE98: 0.15 | BF98: 0 | BG98: 0.15 | BH98: 0.3 | BI98: 0.45 | BJ98: 0.6 | BQ98: 300001;103000;100009;103000;300002 | BR98: 0;1.8;2.5;1.8;0 | BS98: 0;1.2;2.4;3.6;4.8 | BT98: 0;0.15;0.3;0.45;0.6 | BU98: 9;9;9;9;9 | BV98: =IF(SUM(IF(N98="",0,IF(VLOOKUP(N98,怪物表!$A:$E,5,FALSE)=3,1,0)),IF(O98="",0,IF(VLOOKUP(O98,怪物表!$A:$E,5,FALSE)=3,1,0)),IF(P98="",0,IF(VLOOKUP(P98,怪物表!$A:$E,5,FALSE)=3,1,0)),IF(Q98="",0,IF(VLOOKUP(Q98,怪物表!$A:$E,5,FALSE)=3,1,0)),IF(R98="",0,IF(VLOOKUP(R98,怪物表!$A:$E,5,FALSE)=3,1,0)),IF(S98="",0,IF(VLOOKUP(S98,怪物表!$A:$E,5,FALSE)=3,1,0)),IF(T98="",0,IF(VLOOKUP(T98,怪物表!$A:$E,5,FALSE)=3,1,0)),IF(U98="",0,IF(VLOOKUP(U98,怪物表!$A:$E,5,FALSE)=3,1,0)),IF(V98="",0,IF(VLOOKUP(V98,怪物表!$A:$E,5,FALSE)=3,1,0)),IF(W98="",0,IF(VLOOKUP(W98,怪物表!$A:$E,5,FALSE)=3,1,0)))>0,180,120)*BW98/100 -> 120 | BW98: 100 | BX98: 100
A99: 100391 | B99: 4-1小怪 | C99: 9 | D99: 9 | E99: 9 | F99: 9 | G99: 9 | H99: 9 | I99: 9 | N99: 100004 | O99: 100001 | P99: 100001 | Q99: 100002 | R99: 100002 | S99: 100003 | T99: 100003 | X99: =SUM(IF(N99="",0,VLOOKUP(N99,怪物表!$A:$D,3,FALSE)),IF(O99="",0,VLOOKUP(O99,怪物表!$A:$D,3,FALSE)),IF(P99="",0,VLOOKUP(P99,怪物表!$A:$D,3,FALSE)),IF(Q99="",0,VLOOKUP(Q99,怪物表!$A:$D,3,FALSE)),IF(R99="",0,VLOOKUP(R99,怪物表!$A:$D,3,FALSE)),IF(S99="",0,VLOOKUP(S99,怪物表!$A:$D,3,FALSE)),IF(T99="",0,VLOOKUP(T99,怪物表!$A:$D,3,FALSE)),IF(U99="",0,VLOOKUP(U99,怪物表!$A:$D,3,FALSE)),IF(V99="",0,VLOOKUP(V99,怪物表!$A:$D,3,FALSE)),IF(W99="",0,VLOOKUP(W99,怪物表!$A:$D,3,FALSE))) -> 14 | Y99: 0 | Z99: 0 | AA99: 0 | AB99: 0 | AC99: 0 | AD99: 0 | AE99: 0 | AI99: 1.2 | AJ99: 0 | AK99: 1.2 | AL99: 2.4 | AM99: 3.6 | AN99: 4.8 | AO99: 6 | AP99: 7.2 | AU99: =IF(Y99="","",VLOOKUP(Y99,高度表!$A:$C,3,FALSE)) -> 0 | AV99: =IF(Z99="","",VLOOKUP(Z99,高度表!$A:$C,3,FALSE)) -> 0 | AW99: =IF(AA99="","",VLOOKUP(AA99,高度表!$A:$C,3,FALSE)) -> 0 | AX99: =IF(AB99="","",VLOOKUP(AB99,高度表!$A:$C,3,FALSE)) -> 0 | AY99: =IF(AC99="","",VLOOKUP(AC99,高度表!$A:$C,3,FALSE)) -> 0 | AZ99: =IF(AD99="","",VLOOKUP(AD99,高度表!$A:$C,3,FALSE)) -> 0 | BA99: =IF(AE99="","",VLOOKUP(AE99,高度表!$A:$C,3,FALSE)) -> 0 | BB99: =IF(AF99="","",VLOOKUP(AF99,高度表!$A:$C,3,FALSE)) ->  | BC99: =IF(AG99="","",VLOOKUP(AG99,高度表!$A:$C,3,FALSE)) ->  | BD99: =IF(AH99="","",VLOOKUP(AH99,高度表!$A:$C,3,FALSE)) ->  | BE99: 0.15 | BF99: 0 | BG99: 0.15 | BH99: 0.3 | BI99: 0.45 | BJ99: 0.6 | BK99: 0.75 | BL99: 0.9 | BQ99: 100004;100001;100001;100002;100002;100003;100003 | BR99: 0;0;0;0;0;0;0 | BS99: 0;1.2;2.4;3.6;4.8;6;7.2 | BT99: 0;0.15;0.3;0.45;0.6;0.75;0.9 | BU99: 9;9;9;9;9;9;9 | BV99: =IF(SUM(IF(N99="",0,IF(VLOOKUP(N99,怪物表!$A:$E,5,FALSE)=3,1,0)),IF(O99="",0,IF(VLOOKUP(O99,怪物表!$A:$E,5,FALSE)=3,1,0)),IF(P99="",0,IF(VLOOKUP(P99,怪物表!$A:$E,5,FALSE)=3,1,0)),IF(Q99="",0,IF(VLOOKUP(Q99,怪物表!$A:$E,5,FALSE)=3,1,0)),IF(R99="",0,IF(VLOOKUP(R99,怪物表!$A:$E,5,FALSE)=3,1,0)),IF(S99="",0,IF(VLOOKUP(S99,怪物表!$A:$E,5,FALSE)=3,1,0)),IF(T99="",0,IF(VLOOKUP(T99,怪物表!$A:$E,5,FALSE)=3,1,0)),IF(U99="",0,IF(VLOOKUP(U99,怪物表!$A:$E,5,FALSE)=3,1,0)),IF(V99="",0,IF(VLOOKUP(V99,怪物表!$A:$E,5,FALSE)=3,1,0)),IF(W99="",0,IF(VLOOKUP(W99,怪物表!$A:$E,5,FALSE)=3,1,0)))>0,180,120)*BW99/100 -> 120 | BW99: 100 | BX99: 100
A100: 100392 | B100: 4-1精英 | C100: 9 | D100: 9 | E100: 9 | F100: 9 | G100: 9 | N100: 300001 | O100: 300004 | P100: 300004 | Q100: 300004 | R100: 300005 | X100: =SUM(IF(N100="",0,VLOOKUP(N100,怪物表!$A:$D,3,FALSE)),IF(O100="",0,VLOOKUP(O100,怪物表!$A:$D,3,FALSE)),IF(P100="",0,VLOOKUP(P100,怪物表!$A:$D,3,FALSE)),IF(Q100="",0,VLOOKUP(Q100,怪物表!$A:$D,3,FALSE)),IF(R100="",0,VLOOKUP(R100,怪物表!$A:$D,3,FALSE)),IF(S100="",0,VLOOKUP(S100,怪物表!$A:$D,3,FALSE)),IF(T100="",0,VLOOKUP(T100,怪物表!$A:$D,3,FALSE)),IF(U100="",0,VLOOKUP(U100,怪物表!$A:$D,3,FALSE)),IF(V100="",0,VLOOKUP(V100,怪物表!$A:$D,3,FALSE)),IF(W100="",0,VLOOKUP(W100,怪物表!$A:$D,3,FALSE))) -> 15 | Y100: 0 | Z100: =IF(O100="","",IF(VLOOKUP(O100,怪物表!$A:$D,4,FALSE)=1,2,0)) -> 2 | AA100: 3 | AB100: =IF(Q100="","",IF(VLOOKUP(Q100,怪物表!$A:$D,4,FALSE)=1,2,0)) -> 2 | AC100: 3 | AD100: =IF(S100="","",IF(VLOOKUP(S100,怪物表!$A:$D,4,FALSE)=1,2,0)) ->  | AE100: =IF(T100="","",IF(VLOOKUP(T100,怪物表!$A:$D,4,FALSE)=1,2,0)) ->  | AF100: =IF(U100="","",IF(VLOOKUP(U100,怪物表!$A:$D,4,FALSE)=1,2,0)) ->  | AG100: =IF(V100="","",IF(VLOOKUP(V100,怪物表!$A:$D,4,FALSE)=1,2,0)) ->  | AH100: =IF(W100="","",IF(VLOOKUP(W100,怪物表!$A:$D,4,FALSE)=1,2,0)) ->  | AI100: 1.2 | AJ100: 0 | AK100: 1.2 | AL100: 2.4 | AM100: 3.6 | AN100: 4.8 | AU100: =IF(Y100="","",VLOOKUP(Y100,高度表!$A:$C,3,FALSE)) -> 0 | AV100: =IF(Z100="","",VLOOKUP(Z100,高度表!$A:$C,3,FALSE)) -> 1.8 | AW100: =IF(AA100="","",VLOOKUP(AA100,高度表!$A:$C,3,FALSE)) -> 2.5 | AX100: =IF(AB100="","",VLOOKUP(AB100,高度表!$A:$C,3,FALSE)) -> 1.8 | AY100: =IF(AC100="","",VLOOKUP(AC100,高度表!$A:$C,3,FALSE)) -> 2.5 | AZ100: =IF(AD100="","",VLOOKUP(AD100,高度表!$A:$C,3,FALSE)) ->  | BA100: =IF(AE100="","",VLOOKUP(AE100,高度表!$A:$C,3,FALSE)) ->  | BB100: =IF(AF100="","",VLOOKUP(AF100,高度表!$A:$C,3,FALSE)) ->  | BC100: =IF(AG100="","",VLOOKUP(AG100,高度表!$A:$C,3,FALSE)) ->  | BD100: =IF(AH100="","",VLOOKUP(AH100,高度表!$A:$C,3,FALSE)) ->  | BE100: 0.15 | BF100: 0 | BG100: 0.15 | BH100: 0.3 | BI100: 0.45 | BJ100: 0.6 | BQ100: 300001;300004;300004;300004;300005 | BR100: 0;1.8;2.5;1.8;2.5 | BS100: 0;1.2;2.4;3.6;4.8 | BT100: 0;0.15;0.3;0.45;0.6 | BU100: 9;9;9;9;9 | BV100: =IF(SUM(IF(N100="",0,IF(VLOOKUP(N100,怪物表!$A:$E,5,FALSE)=3,1,0)),IF(O100="",0,IF(VLOOKUP(O100,怪物表!$A:$E,5,FALSE)=3,1,0)),IF(P100="",0,IF(VLOOKUP(P100,怪物表!$A:$E,5,FALSE)=3,1,0)),IF(Q100="",0,IF(VLOOKUP(Q100,怪物表!$A:$E,5,FALSE)=3,1,0)),IF(R100="",0,IF(VLOOKUP(R100,怪物表!$A:$E,5,FALSE)=3,1,0)),IF(S100="",0,IF(VLOOKUP(S100,怪物表!$A:$E,5,FALSE)=3,1,0)),IF(T100="",0,IF(VLOOKUP(T100,怪物表!$A:$E,5,FALSE)=3,1,0)),IF(U100="",0,IF(VLOOKUP(U100,怪物表!$A:$E,5,FALSE)=3,1,0)),IF(V100="",0,IF(VLOOKUP(V100,怪物表!$A:$E,5,FALSE)=3,1,0)),IF(W100="",0,IF(VLOOKUP(W100,怪物表!$A:$E,5,FALSE)=3,1,0)))>0,180,120)*BW100/100 -> 120 | BW100: 100 | BX100: 100
A101: 100393 | B101: 4-2小怪 | C101: 9 | D101: 9 | E101: 9 | F101: 9 | G101: 9 | N101: 100004 | O101: 100002 | P101: 108000 | Q101: 100002 | R101: 100003 | X101: =SUM(IF(N101="",0,VLOOKUP(N101,怪物表!$A:$D,3,FALSE)),IF(O101="",0,VLOOKUP(O101,怪物表!$A:$D,3,FALSE)),IF(P101="",0,VLOOKUP(P101,怪物表!$A:$D,3,FALSE)),IF(Q101="",0,VLOOKUP(Q101,怪物表!$A:$D,3,FALSE)),IF(R101="",0,VLOOKUP(R101,怪物表!$A:$D,3,FALSE)),IF(S101="",0,VLOOKUP(S101,怪物表!$A:$D,3,FALSE)),IF(T101="",0,VLOOKUP(T101,怪物表!$A:$D,3,FALSE)),IF(U101="",0,VLOOKUP(U101,怪物表!$A:$D,3,FALSE)),IF(V101="",0,VLOOKUP(V101,怪物表!$A:$D,3,FALSE)),IF(W101="",0,VLOOKUP(W101,怪物表!$A:$D,3,FALSE))) -> 16 | Y101: 0 | Z101: 0 | AA101: 0 | AB101: 0 | AC101: 0 | AI101: 1.2 | AJ101: 0 | AK101: 1.2 | AL101: 2.4 | AM101: 3.6 | AN101: 4.8 | AU101: =IF(Y101="","",VLOOKUP(Y101,高度表!$A:$C,3,FALSE)) -> 0 | AV101: =IF(Z101="","",VLOOKUP(Z101,高度表!$A:$C,3,FALSE)) -> 0 | AW101: =IF(AA101="","",VLOOKUP(AA101,高度表!$A:$C,3,FALSE)) -> 0 | AX101: =IF(AB101="","",VLOOKUP(AB101,高度表!$A:$C,3,FALSE)) -> 0 | AY101: =IF(AC101="","",VLOOKUP(AC101,高度表!$A:$C,3,FALSE)) -> 0 | AZ101: =IF(AD101="","",VLOOKUP(AD101,高度表!$A:$C,3,FALSE)) ->  | BA101: =IF(AE101="","",VLOOKUP(AE101,高度表!$A:$C,3,FALSE)) ->  | BB101: =IF(AF101="","",VLOOKUP(AF101,高度表!$A:$C,3,FALSE)) ->  | BC101: =IF(AG101="","",VLOOKUP(AG101,高度表!$A:$C,3,FALSE)) ->  | BD101: =IF(AH101="","",VLOOKUP(AH101,高度表!$A:$C,3,FALSE)) ->  | BE101: 0.15 | BF101: 0 | BG101: 0.15 | BH101: 0.3 | BI101: 0.45 | BJ101: 0.6 | BQ101: 100004;100002;108000;100002;100003 | BR101: 0;0;0;0;0 | BS101: 0;1.2;2.4;3.6;4.8 | BT101: 0;0.15;0.3;0.45;0.6 | BU101: 9;9;9;9;9 | BV101: =IF(SUM(IF(N101="",0,IF(VLOOKUP(N101,怪物表!$A:$E,5,FALSE)=3,1,0)),IF(O101="",0,IF(VLOOKUP(O101,怪物表!$A:$E,5,FALSE)=3,1,0)),IF(P101="",0,IF(VLOOKUP(P101,怪物表!$A:$E,5,FALSE)=3,1,0)),IF(Q101="",0,IF(VLOOKUP(Q101,怪物表!$A:$E,5,FALSE)=3,1,0)),IF(R101="",0,IF(VLOOKUP(R101,怪物表!$A:$E,5,FALSE)=3,1,0)),IF(S101="",0,IF(VLOOKUP(S101,怪物表!$A:$E,5,FALSE)=3,1,0)),IF(T101="",0,IF(VLOOKUP(T101,怪物表!$A:$E,5,FALSE)=3,1,0)),IF(U101="",0,IF(VLOOKUP(U101,怪物表!$A:$E,5,FALSE)=3,1,0)),IF(V101="",0,IF(VLOOKUP(V101,怪物表!$A:$E,5,FALSE)=3,1,0)),IF(W101="",0,IF(VLOOKUP(W101,怪物表!$A:$E,5,FALSE)=3,1,0)))>0,180,120)*BW101/100 -> 120 | BW101: 100 | BX101: 100
A102: 100394 | B102: 4-2小怪 | C102: 9 | D102: 9 | E102: 9 | F102: 9 | G102: 9 | N102: 100000 | O102: 100008 | P102: 107000 | Q102: 100008 | R102: 100000 | X102: =SUM(IF(N102="",0,VLOOKUP(N102,怪物表!$A:$D,3,FALSE)),IF(O102="",0,VLOOKUP(O102,怪物表!$A:$D,3,FALSE)),IF(P102="",0,VLOOKUP(P102,怪物表!$A:$D,3,FALSE)),IF(Q102="",0,VLOOKUP(Q102,怪物表!$A:$D,3,FALSE)),IF(R102="",0,VLOOKUP(R102,怪物表!$A:$D,3,FALSE)),IF(S102="",0,VLOOKUP(S102,怪物表!$A:$D,3,FALSE)),IF(T102="",0,VLOOKUP(T102,怪物表!$A:$D,3,FALSE)),IF(U102="",0,VLOOKUP(U102,怪物表!$A:$D,3,FALSE)),IF(V102="",0,VLOOKUP(V102,怪物表!$A:$D,3,FALSE)),IF(W102="",0,VLOOKUP(W102,怪物表!$A:$D,3,FALSE))) -> 16 | Y102: 0 | Z102: 2 | AA102: 2 | AB102: 2 | AC102: 0 | AI102: 1.2 | AJ102: 0 | AK102: 1.2 | AL102: 2.4 | AM102: 3.6 | AN102: 4.8 | AU102: =IF(Y102="","",VLOOKUP(Y102,高度表!$A:$C,3,FALSE)) -> 0 | AV102: =IF(Z102="","",VLOOKUP(Z102,高度表!$A:$C,3,FALSE)) -> 1.8 | AW102: =IF(AA102="","",VLOOKUP(AA102,高度表!$A:$C,3,FALSE)) -> 1.8 | AX102: =IF(AB102="","",VLOOKUP(AB102,高度表!$A:$C,3,FALSE)) -> 1.8 | AY102: =IF(AC102="","",VLOOKUP(AC102,高度表!$A:$C,3,FALSE)) -> 0 | AZ102: =IF(AD102="","",VLOOKUP(AD102,高度表!$A:$C,3,FALSE)) ->  | BA102: =IF(AE102="","",VLOOKUP(AE102,高度表!$A:$C,3,FALSE)) ->  | BB102: =IF(AF102="","",VLOOKUP(AF102,高度表!$A:$C,3,FALSE)) ->  | BC102: =IF(AG102="","",VLOOKUP(AG102,高度表!$A:$C,3,FALSE)) ->  | BD102: =IF(AH102="","",VLOOKUP(AH102,高度表!$A:$C,3,FALSE)) ->  | BE102: 0.15 | BF102: 0 | BG102: 0.15 | BH102: 0.3 | BI102: 0.45 | BJ102: 0.6 | BQ102: 100000;100008;107000;100008;100000 | BR102: 0;1.8;1.8;1.8;0 | BS102: 0;1.2;2.4;3.6;4.8 | BT102: 0;0.15;0.3;0.45;0.6 | BU102: 9;9;9;9;9 | BV102: =IF(SUM(IF(N102="",0,IF(VLOOKUP(N102,怪物表!$A:$E,5,FALSE)=3,1,0)),IF(O102="",0,IF(VLOOKUP(O102,怪物表!$A:$E,5,FALSE)=3,1,0)),IF(P102="",0,IF(VLOOKUP(P102,怪物表!$A:$E,5,FALSE)=3,1,0)),IF(Q102="",0,IF(VLOOKUP(Q102,怪物表!$A:$E,5,FALSE)=3,1,0)),IF(R102="",0,IF(VLOOKUP(R102,怪物表!$A:$E,5,FALSE)=3,1,0)),IF(S102="",0,IF(VLOOKUP(S102,怪物表!$A:$E,5,FALSE)=3,1,0)),IF(T102="",0,IF(VLOOKUP(T102,怪物表!$A:$E,5,FALSE)=3,1,0)),IF(U102="",0,IF(VLOOKUP(U102,怪物表!$A:$E,5,FALSE)=3,1,0)),IF(V102="",0,IF(VLOOKUP(V102,怪物表!$A:$E,5,FALSE)=3,1,0)),IF(W102="",0,IF(VLOOKUP(W102,怪物表!$A:$E,5,FALSE)=3,1,0)))>0,180,120)*BW102/100 -> 120 | BW102: 100 | BX102: 100
A103: 100395 | B103: 4-2小怪 | C103: 9 | D103: 9 | E103: 9 | F103: 9 | G103: 9 | H103: 9 | N103: 105000 | O103: 103000 | P103: 100009 | Q103: 103000 | R103: 105000 | S103: 107000 | X103: =SUM(IF(N103="",0,VLOOKUP(N103,怪物表!$A:$D,3,FALSE)),IF(O103="",0,VLOOKUP(O103,怪物表!$A:$D,3,FALSE)),IF(P103="",0,VLOOKUP(P103,怪物表!$A:$D,3,FALSE)),IF(Q103="",0,VLOOKUP(Q103,怪物表!$A:$D,3,FALSE)),IF(R103="",0,VLOOKUP(R103,怪物表!$A:$D,3,FALSE)),IF(S103="",0,VLOOKUP(S103,怪物表!$A:$D,3,FALSE)),IF(T103="",0,VLOOKUP(T103,怪物表!$A:$D,3,FALSE)),IF(U103="",0,VLOOKUP(U103,怪物表!$A:$D,3,FALSE)),IF(V103="",0,VLOOKUP(V103,怪物表!$A:$D,3,FALSE)),IF(W103="",0,VLOOKUP(W103,怪物表!$A:$D,3,FALSE))) -> 18 | Y103: 0 | Z103: 2 | AA103: 2 | AB103: 2 | AC103: 0 | AD103: 2 | AI103: 1.2 | AJ103: 0 | AK103: 1.2 | AL103: 2.4 | AM103: 3.6 | AN103: 4.8 | AO103: 6 | AU103: =IF(Y103="","",VLOOKUP(Y103,高度表!$A:$C,3,FALSE)) -> 0 | AV103: =IF(Z103="","",VLOOKUP(Z103,高度表!$A:$C,3,FALSE)) -> 1.8 | AW103: =IF(AA103="","",VLOOKUP(AA103,高度表!$A:$C,3,FALSE)) -> 1.8 | AX103: =IF(AB103="","",VLOOKUP(AB103,高度表!$A:$C,3,FALSE)) -> 1.8 | AY103: =IF(AC103="","",VLOOKUP(AC103,高度表!$A:$C,3,FALSE)) -> 0 | AZ103: =IF(AD103="","",VLOOKUP(AD103,高度表!$A:$C,3,FALSE)) -> 1.8 | BA103: =IF(AE103="","",VLOOKUP(AE103,高度表!$A:$C,3,FALSE)) ->  | BB103: =IF(AF103="","",VLOOKUP(AF103,高度表!$A:$C,3,FALSE)) ->  | BC103: =IF(AG103="","",VLOOKUP(AG103,高度表!$A:$C,3,FALSE)) ->  | BD103: =IF(AH103="","",VLOOKUP(AH103,高度表!$A:$C,3,FALSE)) ->  | BE103: 0.15 | BF103: 0 | BG103: 0.15 | BH103: 0.3 | BI103: 0.45 | BJ103: 0.6 | BK103: 0.75 | BQ103: 105000;103000;100009;103000;105000;107000 | BR103: 0;1.8;1.8;1.8;0;1.8 | BS103: 0;1.2;2.4;3.6;4.8;6 | BT103: 0;0.15;0.3;0.45;0.6;0.75 | BU103: 9;9;9;9;9;9 | BV103: =IF(SUM(IF(N103="",0,IF(VLOOKUP(N103,怪物表!$A:$E,5,FALSE)=3,1,0)),IF(O103="",0,IF(VLOOKUP(O103,怪物表!$A:$E,5,FALSE)=3,1,0)),IF(P103="",0,IF(VLOOKUP(P103,怪物表!$A:$E,5,FALSE)=3,1,0)),IF(Q103="",0,IF(VLOOKUP(Q103,怪物表!$A:$E,5,FALSE)=3,1,0)),IF(R103="",0,IF(VLOOKUP(R103,怪物表!$A:$E,5,FALSE)=3,1,0)),IF(S103="",0,IF(VLOOKUP(S103,怪物表!$A:$E,5,FALSE)=3,1,0)),IF(T103="",0,IF(VLOOKUP(T103,怪物表!$A:$E,5,FALSE)=3,1,0)),IF(U103="",0,IF(VLOOKUP(U103,怪物表!$A:$E,5,FALSE)=3,1,0)),IF(V103="",0,IF(VLOOKUP(V103,怪物表!$A:$E,5,FALSE)=3,1,0)),IF(W103="",0,IF(VLOOKUP(W103,怪物表!$A:$E,5,FALSE)=3,1,0)))>0,180,120)*BW103/100 -> 120 | BW103: 100 | BX103: 100
A104: 100396 | B104: 4-2小怪 | C104: 9 | D104: 9 | E104: 9 | F104: 9 | N104: 300001 | O104: 300002 | P104: 300004 | Q104: 300004 | X104: =SUM(IF(N104="",0,VLOOKUP(N104,怪物表!$A:$D,3,FALSE)),IF(O104="",0,VLOOKUP(O104,怪物表!$A:$D,3,FALSE)),IF(P104="",0,VLOOKUP(P104,怪物表!$A:$D,3,FALSE)),IF(Q104="",0,VLOOKUP(Q104,怪物表!$A:$D,3,FALSE)),IF(R104="",0,VLOOKUP(R104,怪物表!$A:$D,3,FALSE)),IF(S104="",0,VLOOKUP(S104,怪物表!$A:$D,3,FALSE)),IF(T104="",0,VLOOKUP(T104,怪物表!$A:$D,3,FALSE)),IF(U104="",0,VLOOKUP(U104,怪物表!$A:$D,3,FALSE)),IF(V104="",0,VLOOKUP(V104,怪物表!$A:$D,3,FALSE)),IF(W104="",0,VLOOKUP(W104,怪物表!$A:$D,3,FALSE))) -> 12 | Y104: =IF(N104="","",IF(VLOOKUP(N104,怪物表!$A:$D,4,FALSE)=1,2,0)) -> 0 | Z104: =IF(O104="","",IF(VLOOKUP(O104,怪物表!$A:$D,4,FALSE)=1,2,0)) -> 0 | AA104: =IF(P104="","",IF(VLOOKUP(P104,怪物表!$A:$D,4,FALSE)=1,2,0)) -> 2 | AB104: =IF(Q104="","",IF(VLOOKUP(Q104,怪物表!$A:$D,4,FALSE)=1,2,0)) -> 2 | AC104: =IF(R104="","",IF(VLOOKUP(R104,怪物表!$A:$D,4,FALSE)=1,2,0)) ->  | AD104: =IF(S104="","",IF(VLOOKUP(S104,怪物表!$A:$D,4,FALSE)=1,2,0)) ->  | AE104: =IF(T104="","",IF(VLOOKUP(T104,怪物表!$A:$D,4,FALSE)=1,2,0)) ->  | AF104: =IF(U104="","",IF(VLOOKUP(U104,怪物表!$A:$D,4,FALSE)=1,2,0)) ->  | AG104: =IF(V104="","",IF(VLOOKUP(V104,怪物表!$A:$D,4,FALSE)=1,2,0)) ->  | AH104: =IF(W104="","",IF(VLOOKUP(W104,怪物表!$A:$D,4,FALSE)=1,2,0)) ->  | AI104: 3 | AJ104: 0 | AK104: 3 | AL104: 6 | AM104: 9 | AU104: =IF(Y104="","",VLOOKUP(Y104,高度表!$A:$C,3,FALSE)) -> 0 | AV104: =IF(Z104="","",VLOOKUP(Z104,高度表!$A:$C,3,FALSE)) -> 0 | AW104: =IF(AA104="","",VLOOKUP(AA104,高度表!$A:$C,3,FALSE)) -> 1.8 | AX104: =IF(AB104="","",VLOOKUP(AB104,高度表!$A:$C,3,FALSE)) -> 1.8 | AY104: =IF(AC104="","",VLOOKUP(AC104,高度表!$A:$C,3,FALSE)) ->  | AZ104: =IF(AD104="","",VLOOKUP(AD104,高度表!$A:$C,3,FALSE)) ->  | BA104: =IF(AE104="","",VLOOKUP(AE104,高度表!$A:$C,3,FALSE)) ->  | BB104: =IF(AF104="","",VLOOKUP(AF104,高度表!$A:$C,3,FALSE)) ->  | BC104: =IF(AG104="","",VLOOKUP(AG104,高度表!$A:$C,3,FALSE)) ->  | BD104: =IF(AH104="","",VLOOKUP(AH104,高度表!$A:$C,3,FALSE)) ->  | BE104: 0.15 | BF104: 0 | BG104: 0.15 | BH104: 0.3 | BI104: 0.45 | BQ104: 300001;300002;300004;300004 | BR104: 0;0;1.8;1.8 | BS104: 0;3;6;9 | BT104: 0;0.15;0.3;0.45 | BU104: 9;9;9;9 | BV104: =IF(SUM(IF(N104="",0,IF(VLOOKUP(N104,怪物表!$A:$E,5,FALSE)=3,1,0)),IF(O104="",0,IF(VLOOKUP(O104,怪物表!$A:$E,5,FALSE)=3,1,0)),IF(P104="",0,IF(VLOOKUP(P104,怪物表!$A:$E,5,FALSE)=3,1,0)),IF(Q104="",0,IF(VLOOKUP(Q104,怪物表!$A:$E,5,FALSE)=3,1,0)),IF(R104="",0,IF(VLOOKUP(R104,怪物表!$A:$E,5,FALSE)=3,1,0)),IF(S104="",0,IF(VLOOKUP(S104,怪物表!$A:$E,5,FALSE)=3,1,0)),IF(T104="",0,IF(VLOOKUP(T104,怪物表!$A:$E,5,FALSE)=3,1,0)),IF(U104="",0,IF(VLOOKUP(U104,怪物表!$A:$E,5,FALSE)=3,1,0)),IF(V104="",0,IF(VLOOKUP(V104,怪物表!$A:$E,5,FALSE)=3,1,0)),IF(W104="",0,IF(VLOOKUP(W104,怪物表!$A:$E,5,FALSE)=3,1,0)))>0,180,120)*BW104/100 -> 120 | BW104: 100 | BX104: 100
A105: 100397 | B105: 4-2精英 | C105: 9 | D105: 9 | E105: 9 | F105: 9 | G105: 9 | H105: 9 | I105: 9 | J105: 9 | K105: 9 | L105: 9 | N105: 200004 | O105: 100005 | P105: 100005 | Q105: 100005 | R105: 100011 | S105: 100011 | T105: 100005 | U105: 100011 | V105: 100005 | W105: 100011 | X105: =SUM(IF(N105="",0,VLOOKUP(N105,怪物表!$A:$D,3,FALSE)),IF(O105="",0,VLOOKUP(O105,怪物表!$A:$D,3,FALSE)),IF(P105="",0,VLOOKUP(P105,怪物表!$A:$D,3,FALSE)),IF(Q105="",0,VLOOKUP(Q105,怪物表!$A:$D,3,FALSE)),IF(R105="",0,VLOOKUP(R105,怪物表!$A:$D,3,FALSE)),IF(S105="",0,VLOOKUP(S105,怪物表!$A:$D,3,FALSE)),IF(T105="",0,VLOOKUP(T105,怪物表!$A:$D,3,FALSE)),IF(U105="",0,VLOOKUP(U105,怪物表!$A:$D,3,FALSE)),IF(V105="",0,VLOOKUP(V105,怪物表!$A:$D,3,FALSE)),IF(W105="",0,VLOOKUP(W105,怪物表!$A:$D,3,FALSE))) -> 25 | Y105: =IF(N105="","",IF(VLOOKUP(N105,怪物表!$A:$D,4,FALSE)=1,2,0)) -> 0 | Z105: =IF(O105="","",IF(VLOOKUP(O105,怪物表!$A:$D,4,FALSE)=1,2,0)) -> 0 | AA105: =IF(P105="","",IF(VLOOKUP(P105,怪物表!$A:$D,4,FALSE)=1,2,0)) -> 0 | AB105: =IF(Q105="","",IF(VLOOKUP(Q105,怪物表!$A:$D,4,FALSE)=1,2,0)) -> 0 | AC105: 1 | AD105: =IF(S105="","",IF(VLOOKUP(S105,怪物表!$A:$D,4,FALSE)=1,2,0)) -> 2 | AE105: =IF(T105="","",IF(VLOOKUP(T105,怪物表!$A:$D,4,FALSE)=1,2,0)) -> 0 | AF105: 1 | AG105: =IF(V105="","",IF(VLOOKUP(V105,怪物表!$A:$D,4,FALSE)=1,2,0)) -> 0 | AH105: =IF(W105="","",IF(VLOOKUP(W105,怪物表!$A:$D,4,FALSE)=1,2,0)) -> 2 | AI105: 1.2 | AJ105: -10 | AK105: =IF(O105="","",1*$AI105+AJ105) -> -8.8 | AL105: =IF(P105="","",2*$AI105+AJ105) -> -7.6 | AM105: =IF(Q105="","",3*$AI105+AJ105) -> -6.4 | AN105: =IF(R105="","",4*$AI105+AJ105) -> -5.2 | AO105: =IF(S105="","",5*$AI105+AJ105) -> -4 | AP105: =IF(T105="","",6*$AI105+AJ105) -> -2.8 | AQ105: =IF(U105="","",7*$AI105+AJ105) -> -1.6 | AR105: =IF(V105="","",8*$AI105+$AJ105) -> -0.4 | AS105: =IF(W105="","",9*$AI105+$AJ105) -> 0.8 | AU105: =IF(Y105="","",VLOOKUP(Y105,高度表!$A:$C,3,FALSE)) -> 0 | AV105: =IF(Z105="","",VLOOKUP(Z105,高度表!$A:$C,3,FALSE)) -> 0 | AW105: =IF(AA105="","",VLOOKUP(AA105,高度表!$A:$C,3,FALSE)) -> 0 | AX105: =IF(AB105="","",VLOOKUP(AB105,高度表!$A:$C,3,FALSE)) -> 0 | AY105: =IF(AC105="","",VLOOKUP(AC105,高度表!$A:$C,3,FALSE)) -> 1.1 | AZ105: =IF(AD105="","",VLOOKUP(AD105,高度表!$A:$C,3,FALSE)) -> 1.8 | BA105: =IF(AE105="","",VLOOKUP(AE105,高度表!$A:$C,3,FALSE)) -> 0 | BB105: =IF(AF105="","",VLOOKUP(AF105,高度表!$A:$C,3,FALSE)) -> 1.1 | BC105: =IF(AG105="","",VLOOKUP(AG105,高度表!$A:$C,3,FALSE)) -> 0 | BD105: =IF(AH105="","",VLOOKUP(AH105,高度表!$A:$C,3,FALSE)) -> 1.8 | BE105: 0.15 | BF105: 0 | BG105: 0.15 | BH105: 0.3 | BI105: 0.45 | BJ105: 0.6 | BK105: 0.75 | BL105: 0.9 | BM105: 1.05 | BN105: 1.2 | BO105: 1.35 | BQ105: 200004;100005;100005;100005;100011;100011;100005;100011;100005;100011 | BR105: 0;0;0;0;1.1;1.8;0;1.1;0;1.8 | BS105: -10;-8.8;-7.6;-6.4;-5.2;-4;-2.8;-1.6;-0.4;0.799999999999999 | BT105: 0;0.15;0.3;0.45;0.6;0.75;0.9;1.05;1.2;1.35 | BU105: 9;9;9;9;9;9;9;9;9;0 | BV105: =IF(SUM(IF(N105="",0,IF(VLOOKUP(N105,怪物表!$A:$E,5,FALSE)=3,1,0)),IF(O105="",0,IF(VLOOKUP(O105,怪物表!$A:$E,5,FALSE)=3,1,0)),IF(P105="",0,IF(VLOOKUP(P105,怪物表!$A:$E,5,FALSE)=3,1,0)),IF(Q105="",0,IF(VLOOKUP(Q105,怪物表!$A:$E,5,FALSE)=3,1,0)),IF(R105="",0,IF(VLOOKUP(R105,怪物表!$A:$E,5,FALSE)=3,1,0)),IF(S105="",0,IF(VLOOKUP(S105,怪物表!$A:$E,5,FALSE)=3,1,0)),IF(T105="",0,IF(VLOOKUP(T105,怪物表!$A:$E,5,FALSE)=3,1,0)),IF(U105="",0,IF(VLOOKUP(U105,怪物表!$A:$E,5,FALSE)=3,1,0)),IF(V105="",0,IF(VLOOKUP(V105,怪物表!$A:$E,5,FALSE)=3,1,0)),IF(W105="",0,IF(VLOOKUP(W105,怪物表!$A:$E,5,FALSE)=3,1,0)))>0,180,120)*BW105/100 -> 120 | BW105: 100 | BX105: 100
A106: 100415 | B106: 4-2小怪 | C106: 9 | D106: 9 | E106: 9 | F106: 9 | N106: 300001 | O106: 300002 | P106: 300004 | Q106: 300004 | X106: =SUM(IF(N106="",0,VLOOKUP(N106,怪物表!$A:$D,3,FALSE)),IF(O106="",0,VLOOKUP(O106,怪物表!$A:$D,3,FALSE)),IF(P106="",0,VLOOKUP(P106,怪物表!$A:$D,3,FALSE)),IF(Q106="",0,VLOOKUP(Q106,怪物表!$A:$D,3,FALSE)),IF(R106="",0,VLOOKUP(R106,怪物表!$A:$D,3,FALSE)),IF(S106="",0,VLOOKUP(S106,怪物表!$A:$D,3,FALSE)),IF(T106="",0,VLOOKUP(T106,怪物表!$A:$D,3,FALSE)),IF(U106="",0,VLOOKUP(U106,怪物表!$A:$D,3,FALSE)),IF(V106="",0,VLOOKUP(V106,怪物表!$A:$D,3,FALSE)),IF(W106="",0,VLOOKUP(W106,怪物表!$A:$D,3,FALSE))) -> 12 | Y106: =IF(N106="","",IF(VLOOKUP(N106,怪物表!$A:$D,4,FALSE)=1,2,0)) -> 0 | Z106: =IF(O106="","",IF(VLOOKUP(O106,怪物表!$A:$D,4,FALSE)=1,2,0)) -> 0 | AA106: =IF(P106="","",IF(VLOOKUP(P106,怪物表!$A:$D,4,FALSE)=1,2,0)) -> 2 | AB106: =IF(Q106="","",IF(VLOOKUP(Q106,怪物表!$A:$D,4,FALSE)=1,2,0)) -> 2 | AC106: =IF(R106="","",IF(VLOOKUP(R106,怪物表!$A:$D,4,FALSE)=1,2,0)) ->  | AD106: =IF(S106="","",IF(VLOOKUP(S106,怪物表!$A:$D,4,FALSE)=1,2,0)) ->  | AE106: =IF(T106="","",IF(VLOOKUP(T106,怪物表!$A:$D,4,FALSE)=1,2,0)) ->  | AF106: =IF(U106="","",IF(VLOOKUP(U106,怪物表!$A:$D,4,FALSE)=1,2,0)) ->  | AG106: =IF(V106="","",IF(VLOOKUP(V106,怪物表!$A:$D,4,FALSE)=1,2,0)) ->  | AH106: =IF(W106="","",IF(VLOOKUP(W106,怪物表!$A:$D,4,FALSE)=1,2,0)) ->  | AI106: 3 | AJ106: 0 | AK106: 3 | AL106: 6 | AM106: 9 | AU106: =IF(Y106="","",VLOOKUP(Y106,高度表!$A:$C,3,FALSE)) -> 0 | AV106: =IF(Z106="","",VLOOKUP(Z106,高度表!$A:$C,3,FALSE)) -> 0 | AW106: =IF(AA106="","",VLOOKUP(AA106,高度表!$A:$C,3,FALSE)) -> 1.8 | AX106: =IF(AB106="","",VLOOKUP(AB106,高度表!$A:$C,3,FALSE)) -> 1.8 | AY106: =IF(AC106="","",VLOOKUP(AC106,高度表!$A:$C,3,FALSE)) ->  | AZ106: =IF(AD106="","",VLOOKUP(AD106,高度表!$A:$C,3,FALSE)) ->  | BA106: =IF(AE106="","",VLOOKUP(AE106,高度表!$A:$C,3,FALSE)) ->  | BB106: =IF(AF106="","",VLOOKUP(AF106,高度表!$A:$C,3,FALSE)) ->  | BC106: =IF(AG106="","",VLOOKUP(AG106,高度表!$A:$C,3,FALSE)) ->  | BD106: =IF(AH106="","",VLOOKUP(AH106,高度表!$A:$C,3,FALSE)) ->  | BE106: 0.15 | BF106: 0 | BG106: 0.15 | BH106: 0.3 | BI106: 0.45 | BQ106: 300001;300002;300004;300004 | BR106: 0;0;1.8;1.8 | BS106: 0;3;6;9 | BT106: 0;0.15;0.3;0.45 | BU106: 9;9;9;9 | BV106: =IF(SUM(IF(N106="",0,IF(VLOOKUP(N106,怪物表!$A:$E,5,FALSE)=3,1,0)),IF(O106="",0,IF(VLOOKUP(O106,怪物表!$A:$E,5,FALSE)=3,1,0)),IF(P106="",0,IF(VLOOKUP(P106,怪物表!$A:$E,5,FALSE)=3,1,0)),IF(Q106="",0,IF(VLOOKUP(Q106,怪物表!$A:$E,5,FALSE)=3,1,0)),IF(R106="",0,IF(VLOOKUP(R106,怪物表!$A:$E,5,FALSE)=3,1,0)),IF(S106="",0,IF(VLOOKUP(S106,怪物表!$A:$E,5,FALSE)=3,1,0)),IF(T106="",0,IF(VLOOKUP(T106,怪物表!$A:$E,5,FALSE)=3,1,0)),IF(U106="",0,IF(VLOOKUP(U106,怪物表!$A:$E,5,FALSE)=3,1,0)),IF(V106="",0,IF(VLOOKUP(V106,怪物表!$A:$E,5,FALSE)=3,1,0)),IF(W106="",0,IF(VLOOKUP(W106,怪物表!$A:$E,5,FALSE)=3,1,0)))>0,180,120)*BW106/100 -> 120 | BW106: 100 | BX106: 100
A107: 100398 | B107: 4-3小怪 | C107: 9 | D107: =IF(O107="","",9) -> 9 | E107: =IF(P107="","",9) -> 9 | F107: =IF(Q107="","",9) -> 9 | G107: =IF(R107="","",9) -> 9 | H107: =IF(S107="","",9) -> 9 | I107: =IF(T107="","",9) ->  | J107: =IF(U107="","",9) ->  | K107: =IF(V107="","",9) ->  | L107: =IF(W107="","",9) ->  | N107: 100004 | O107: 300002 | P107: 100009 | Q107: 103000 | R107: 103000 | S107: 105000 | X107: =SUM(IF(N107="",0,VLOOKUP(N107,怪物表!$A:$D,3,FALSE)),IF(O107="",0,VLOOKUP(O107,怪物表!$A:$D,3,FALSE)),IF(P107="",0,VLOOKUP(P107,怪物表!$A:$D,3,FALSE)),IF(Q107="",0,VLOOKUP(Q107,怪物表!$A:$D,3,FALSE)),IF(R107="",0,VLOOKUP(R107,怪物表!$A:$D,3,FALSE)),IF(S107="",0,VLOOKUP(S107,怪物表!$A:$D,3,FALSE)),IF(T107="",0,VLOOKUP(T107,怪物表!$A:$D,3,FALSE)),IF(U107="",0,VLOOKUP(U107,怪物表!$A:$D,3,FALSE)),IF(V107="",0,VLOOKUP(V107,怪物表!$A:$D,3,FALSE)),IF(W107="",0,VLOOKUP(W107,怪物表!$A:$D,3,FALSE))) -> 13 | Y107: =IF(N107="","",IF(VLOOKUP(N107,怪物表!$A:$D,4,FALSE)=1,2,0)) -> 0 | Z107: =IF(O107="","",IF(VLOOKUP(O107,怪物表!$A:$D,4,FALSE)=1,2,0)) -> 0 | AA107: =IF(P107="","",IF(VLOOKUP(P107,怪物表!$A:$D,4,FALSE)=1,2,0)) -> 2 | AB107: 3 | AC107: =IF(R107="","",IF(VLOOKUP(R107,怪物表!$A:$D,4,FALSE)=1,2,0)) -> 2 | AD107: =IF(S107="","",IF(VLOOKUP(S107,怪物表!$A:$D,4,FALSE)=1,2,0)) -> 0 | AE107: =IF(T107="","",IF(VLOOKUP(T107,怪物表!$A:$D,4,FALSE)=1,2,0)) ->  | AF107: =IF(U107="","",IF(VLOOKUP(U107,怪物表!$A:$D,4,FALSE)=1,2,0)) ->  | AG107: =IF(V107="","",IF(VLOOKUP(V107,怪物表!$A:$D,4,FALSE)=1,2,0)) ->  | AH107: =IF(W107="","",IF(VLOOKUP(W107,怪物表!$A:$D,4,FALSE)=1,2,0)) ->  | AI107: 1.2 | AJ107: 0 | AK107: 1.2 | AL107: 2.4 | AM107: 3.6 | AN107: 4.8 | AO107: 6 | AS107: =IF(W107="","",9*$AI107) ->  | AU107: =IF(Y107="","",VLOOKUP(Y107,高度表!$A:$C,3,FALSE)) -> 0 | AV107: =IF(Z107="","",VLOOKUP(Z107,高度表!$A:$C,3,FALSE)) -> 0 | AW107: =IF(AA107="","",VLOOKUP(AA107,高度表!$A:$C,3,FALSE)) -> 1.8 | AX107: =IF(AB107="","",VLOOKUP(AB107,高度表!$A:$C,3,FALSE)) -> 2.5 | AY107: =IF(AC107="","",VLOOKUP(AC107,高度表!$A:$C,3,FALSE)) -> 1.8 | AZ107: =IF(AD107="","",VLOOKUP(AD107,高度表!$A:$C,3,FALSE)) -> 0 | BA107: =IF(AE107="","",VLOOKUP(AE107,高度表!$A:$C,3,FALSE)) ->  | BB107: =IF(AF107="","",VLOOKUP(AF107,高度表!$A:$C,3,FALSE)) ->  | BC107: =IF(AG107="","",VLOOKUP(AG107,高度表!$A:$C,3,FALSE)) ->  | BD107: =IF(AH107="","",VLOOKUP(AH107,高度表!$A:$C,3,FALSE)) ->  | BE107: 0.15 | BF107: =IF(N107="","",0*$BE107) -> 0 | BG107: =IF(O107="","",1*$BE107) -> 0.15 | BH107: =IF(P107="","",2*$BE107) -> 0.3 | BI107: =IF(Q107="","",3*$BE107) -> 0.45 | BJ107: =IF(R107="","",4*$BE107) -> 0.6 | BK107: =IF(S107="","",5*$BE107) -> 0.75 | BL107: =IF(T107="","",6*$BE107) ->  | BM107: =IF(U107="","",7*$BE107) ->  | BN107: =IF(V107="","",8*$BE107) ->  | BO107: =IF(W107="","",9*$BE107) ->  | BQ107: =CONCATENATE(N107,IF(O107="","",";"),O107,IF(P107="","",";"),P107,IF(Q107="","",";"),Q107,IF(R107="","",";"),R107,IF(S107="","",";"),S107,IF(T107="","",";"),T107,IF(U107="","",";"),U107,IF(V107="","",";"),V107,IF(W107="","",";"),W107) -> 100004;300002;100009;103000;103000;105000 | BR107: =CONCATENATE(AU107,IF(AV107="","",";"),AV107,IF(AW107="","",";"),AW107,IF(AX107="","",";"),AX107,IF(AY107="","",";"),AY107,IF(AZ107="","",";"),AZ107,IF(BA107="","",";"),BA107,IF(BB107="","",";"),BB107,IF(BC107="","",";"),BC107,IF(BD107="","",";"),BD107) -> 0;0;1.8;2.5;1.8;0 | BS107: =CONCATENATE(AJ107,IF(AK107="","",";"),AK107,IF(AL107="","",";"),AL107,IF(AM107="","",";"),AM107,IF(AN107="","",";"),AN107,IF(AO107="","",";"),AO107,IF(AP107="","",";"),AP107,IF(AQ107="","",";"),AQ107,IF(AR107="","",";"),AR107,IF(AS107="","",";"),AS107) -> 0;1.2;2.4;3.6;4.8;6 | BT107: =CONCATENATE(BF107,IF(BG107="","",";"),BG107,IF(BH107="","",";"),BH107,IF(BI107="","",";"),BI107,IF(BJ107="","",";"),BJ107,IF(BK107="","",";"),BK107,IF(BL107="","",";"),BL107,IF(BM107="","",";"),BM107,IF(BN107="","",";"),BN107,IF(BO107="","",";"),BO107) -> 0;0.15;0.3;0.45;0.6;0.75 | BU107: =CONCATENATE(IF(N107="","",IF(C107="",0,C107)),IF(IF(O107="","",IF(D107="",0,D107))="","",";"),IF(O107="","",IF(D107="",0,D107)),IF(IF(P107="","",IF(E107="",0,E107))="","",";"),IF(P107="","",IF(E107="",0,E107)),IF(IF(Q107="","",IF(F107="",0,F107))="","",";"),IF(Q107="","",IF(F107="",0,F107)),IF(IF(R107="","",IF(G107="",0,G107))="","",";"),IF(R107="","",IF(G107="",0,G107)),IF(IF(S107="","",IF(H107="",0,H107))="","",";"),IF(S107="","",IF(H107="",0,H107)),IF(IF(T107="","",IF(I107="",0,I107))="","",";"),IF(T107="","",IF(I107="",0,I107)),IF(IF(U107="","",IF(J107="",0,J107))="","",";"),IF(U107="","",IF(J107="",0,J107)),IF(IF(V107="","",IF(K107="",0,K107))="","",";"),IF(V107="","",IF(K107="",0,K107)),IF(IF(W107="","",IF(M107="",0,M107))="","",";"),IF(W107="","",IF(M107="",0,M107))) -> 9;9;9;9;9;9 | BV107: =IF(SUM(IF(N107="",0,IF(VLOOKUP(N107,怪物表!$A:$E,5,FALSE)=3,1,0)),IF(O107="",0,IF(VLOOKUP(O107,怪物表!$A:$E,5,FALSE)=3,1,0)),IF(P107="",0,IF(VLOOKUP(P107,怪物表!$A:$E,5,FALSE)=3,1,0)),IF(Q107="",0,IF(VLOOKUP(Q107,怪物表!$A:$E,5,FALSE)=3,1,0)),IF(R107="",0,IF(VLOOKUP(R107,怪物表!$A:$E,5,FALSE)=3,1,0)),IF(S107="",0,IF(VLOOKUP(S107,怪物表!$A:$E,5,FALSE)=3,1,0)),IF(T107="",0,IF(VLOOKUP(T107,怪物表!$A:$E,5,FALSE)=3,1,0)),IF(U107="",0,IF(VLOOKUP(U107,怪物表!$A:$E,5,FALSE)=3,1,0)),IF(V107="",0,IF(VLOOKUP(V107,怪物表!$A:$E,5,FALSE)=3,1,0)),IF(W107="",0,IF(VLOOKUP(W107,怪物表!$A:$E,5,FALSE)=3,1,0)))>0,180,120)*BW107/100 -> 120 | BW107: 100 | BX107: 100
A108: 100399 | B108: 4-3小怪 | C108: =IF(N108="","",9) -> 9 | D108: 9 | E108: 9 | N108: 205000 | O108: 105000 | P108: 105000 | X108: =SUM(IF(N108="",0,VLOOKUP(N108,怪物表!$A:$D,3,FALSE)),IF(O108="",0,VLOOKUP(O108,怪物表!$A:$D,3,FALSE)),IF(P108="",0,VLOOKUP(P108,怪物表!$A:$D,3,FALSE)),IF(Q108="",0,VLOOKUP(Q108,怪物表!$A:$D,3,FALSE)),IF(R108="",0,VLOOKUP(R108,怪物表!$A:$D,3,FALSE)),IF(S108="",0,VLOOKUP(S108,怪物表!$A:$D,3,FALSE)),IF(T108="",0,VLOOKUP(T108,怪物表!$A:$D,3,FALSE)),IF(U108="",0,VLOOKUP(U108,怪物表!$A:$D,3,FALSE)),IF(V108="",0,VLOOKUP(V108,怪物表!$A:$D,3,FALSE)),IF(W108="",0,VLOOKUP(W108,怪物表!$A:$D,3,FALSE))) -> 12 | Y108: =IF(N108="","",IF(VLOOKUP(N108,怪物表!$A:$D,4,FALSE)=1,2,0)) -> 0 | Z108: =IF(O108="","",IF(VLOOKUP(O108,怪物表!$A:$D,4,FALSE)=1,2,0)) -> 0 | AA108: =IF(P108="","",IF(VLOOKUP(P108,怪物表!$A:$D,4,FALSE)=1,2,0)) -> 0 | AB108: =IF(Q108="","",IF(VLOOKUP(Q108,怪物表!$A:$D,4,FALSE)=1,2,0)) ->  | AC108: =IF(R108="","",IF(VLOOKUP(R108,怪物表!$A:$D,4,FALSE)=1,2,0)) ->  | AD108: =IF(S108="","",IF(VLOOKUP(S108,怪物表!$A:$D,4,FALSE)=1,2,0)) ->  | AE108: =IF(T108="","",IF(VLOOKUP(T108,怪物表!$A:$D,4,FALSE)=1,2,0)) ->  | AF108: =IF(U108="","",IF(VLOOKUP(U108,怪物表!$A:$D,4,FALSE)=1,2,0)) ->  | AG108: =IF(V108="","",IF(VLOOKUP(V108,怪物表!$A:$D,4,FALSE)=1,2,0)) ->  | AH108: =IF(W108="","",IF(VLOOKUP(W108,怪物表!$A:$D,4,FALSE)=1,2,0)) ->  | AI108: 1.2 | AJ108: =IF(N108="","",0*$AI108) -> 0 | AK108: =IF(O108="","",1*$AI108) -> 1.2 | AL108: =IF(P108="","",2*$AI108) -> 2.4 | AM108: =IF(Q108="","",3*$AI108) ->  | AN108: =IF(R108="","",4*$AI108) ->  | AO108: =IF(S108="","",5*$AI108) ->  | AP108: =IF(T108="","",6*$AI108) ->  | AQ108: =IF(U108="","",7*$AI108) ->  | AR108: =IF(V108="","",8*$AI108) ->  | AU108: =IF(Y108="","",VLOOKUP(Y108,高度表!$A:$C,3,FALSE)) -> 0 | AV108: =IF(Z108="","",VLOOKUP(Z108,高度表!$A:$C,3,FALSE)) -> 0 | AW108: =IF(AA108="","",VLOOKUP(AA108,高度表!$A:$C,3,FALSE)) -> 0 | AX108: =IF(AB108="","",VLOOKUP(AB108,高度表!$A:$C,3,FALSE)) ->  | AY108: =IF(AC108="","",VLOOKUP(AC108,高度表!$A:$C,3,FALSE)) ->  | AZ108: =IF(AD108="","",VLOOKUP(AD108,高度表!$A:$C,3,FALSE)) ->  | BA108: =IF(AE108="","",VLOOKUP(AE108,高度表!$A:$C,3,FALSE)) ->  | BB108: =IF(AF108="","",VLOOKUP(AF108,高度表!$A:$C,3,FALSE)) ->  | BC108: =IF(AG108="","",VLOOKUP(AG108,高度表!$A:$C,3,FALSE)) ->  | BD108: =IF(AH108="","",VLOOKUP(AH108,高度表!$A:$C,3,FALSE)) ->  | BE108: 0.15 | BF108: 0 | BG108: 0.15 | BH108: 0.3 | BQ108: 205000;105000;105000 | BR108: 0;0;0 | BS108: 0;1.2;2.4 | BT108: 0;0.15;0.3 | BU108: 9;9;9 | BV108: =IF(SUM(IF(N108="",0,IF(VLOOKUP(N108,怪物表!$A:$E,5,FALSE)=3,1,0)),IF(O108="",0,IF(VLOOKUP(O108,怪物表!$A:$E,5,FALSE)=3,1,0)),IF(P108="",0,IF(VLOOKUP(P108,怪物表!$A:$E,5,FALSE)=3,1,0)),IF(Q108="",0,IF(VLOOKUP(Q108,怪物表!$A:$E,5,FALSE)=3,1,0)),IF(R108="",0,IF(VLOOKUP(R108,怪物表!$A:$E,5,FALSE)=3,1,0)),IF(S108="",0,IF(VLOOKUP(S108,怪物表!$A:$E,5,FALSE)=3,1,0)),IF(T108="",0,IF(VLOOKUP(T108,怪物表!$A:$E,5,FALSE)=3,1,0)),IF(U108="",0,IF(VLOOKUP(U108,怪物表!$A:$E,5,FALSE)=3,1,0)),IF(V108="",0,IF(VLOOKUP(V108,怪物表!$A:$E,5,FALSE)=3,1,0)),IF(W108="",0,IF(VLOOKUP(W108,怪物表!$A:$E,5,FALSE)=3,1,0)))>0,180,120)*BW108/100 -> 120 | BW108: 100 | BX108: 100
